{"text_format":"1","workbook":"xlsx","n_sheets":5,"sheets":["بيانات المركز.","prof","حساب عدد الأيام","توزيع الحراس","أيام الحراسة"],"not_rendered":{"charts":0,"images":2,"macros":1,"external_links":29,"defined_names":409,"comments":1,"pivot_tables":0},"unopened":[],"bounds":{"document_bytes":16777216,"sheet_cells":100000,"rows_first":2000,"rows_last":500,"rows_between":2000,"halvings":0,"cell_chars":16384,"cell_head_chars":4096},"cells_cut":0,"cells_raw":0,"read":"whole","date_system":"1900"}

{"sheet":"بيانات المركز.","index":0,"n_rows":19,"n_cols":22,"rows_kept":19,"cut":false,"hidden":false,"merged":[[0,10,0,17],[18,21,18,25],[3,9,3,20],[16,5,16,7],[16,9,16,14],[17,0,17,5],[18,0,18,2],[18,3,18,7],[18,17,18,20],[12,0,12,5],[12,6,12,13],[12,15,12,20],[12,21,12,25],[13,0,13,1],[14,0,14,1],[14,2,14,6],[6,21,6,25],[14,7,14,8],[14,9,14,17],[8,0,8,2],[8,3,8,9],[8,10,8,15],[8,16,8,25],[10,0,10,2],[10,3,10,9],[10,11,10,14],[10,15,10,20],[10,21,10,25],[1,10,1,17],[4,0,4,7],[6,0,6,3],[6,4,6,9],[6,17,6,20]]}
[null,null,null,null,null,null,null,null,null,null,"الجمهوريــة الجزائريــة الديمقراطيــة الشعبيــة"]
[null,null,null,null,null,null,null,null,null,null,"وزارة التربية الوطنية"]
["الدّيوان الوطني للامتحانات و المسابقات "]
[null,null,null,null,null,null,null,null,null,"بطاقــة استعلامــات المركــز"]
[]
[]
["اختر نوع المركز",null,null,null,"الإجـــراء",null,null,null,null,null,null,null,null,null,null,null,null,"الرمـــــــز :",null,null,null,39044]
[]
["الولايـــة :",null,null,"الوادي",null,null,null,null,null,null,"مؤسسة الإجراء / الإغفال / التصحيح",null,null,null,null,null,"ثانوية المجتهد - الوادي"]
[]
["البلديـــة :",null,null,"النخلــــة",null,null,null,null,null,null,null,null,null,null,null,"رئيس(ة) مركز الإجراء :",null,null,null,null,null,"مصطفى مصطفى"]
[]
["اختـــر نوع امتحان شهادة   :",null,null,null,null,null,"بكالوريا التّعليم الثانوي",null,null,null,null,null,null,null,null,"الإطـــــــــــــــــار :",null,null,null,null,null,"مدير ثانوية"]
[]
["فــرع  :",null,"غرداية",null,null,null,null,"العنوان :",null,".ص . ب رقم 1454 بلغـــنم غرداية "]
[]
[null,null,null,null,null,"رقم الهاتف :",null,null,null,"023.45.47.14"]
[]
["الـــــدّورة  :",null,null,"جوان 2021",null,null,null,null,null,null,null,null,null,null,null,null,null,"تاريخ الامتحان :",null,null,null,"2021-06-20"]

{"sheet":"prof","index":1,"n_rows":657,"n_cols":15,"rows_kept":657,"cut":false,"hidden":false,"merged":[]}
["الرقم الترتيبي","الرقم","اللقب والاسم","الرتبة","الطور","مادة التدريس","المؤسسة","المقاطعة","العنوان","بلدية الاقامة","نوع المركز","اسم مركز التصحيح","مركز اجراء بكالوريا","مركز اجراء ش ت م","المهمة"]
[1,12453,"محمد1 علي1","أستاذ تعليم ثانوي","ثا -","العلوم الاسلامية","سعد شعباني - الرقيبة","","النخلة","النخلة","مركز اجراء امتحان ش البكالوريا","","ثانوية الشهيد بن حمده علي  - النخلة","",""]
[2,12454,"محمد1 علي2","أستاذ رئيسي في التعليم الثانوي","ثا -","الفرنسية","مفدي زكرياء - البياضة","","حي 18 فبراير","البياضة","مركز اجراء امتحان ش البكالوريا","","ثانوية الشهيد بن حمده علي  - النخلة","",""]
[3,12455,"محمد1 علي3","أستاذ مكون في التعليم الثانوي","ثا -","الانجليزية","مفدي زكرياء - البياضة","","حي الكرامة ا","البياضة","مركز اجراء امتحان ش البكالوريا","","ثانوية الشهيد بن حمده علي  - النخلة","",""]
[4,12456,"محمد1 علي4","أستاذ رئيسي في التعليم الثانوي","ثا -","الانجليزية","مفدي زكرياء - البياضة","","حي 1 نوفمبر","البياضة","مركز اجراء امتحان ش البكالوريا","","ثانوية الشهيد بن حمده علي  - النخلة","",""]
[5,12457,"محمد1 علي5","أستاذ مكون في التعليم الثانوي","ثا -","هندسة الطرائق","مفدي زكرياء - البياضة","","حي الصومام","البياضة","مركز اجراء امتحان ش البكالوريا","","ثانوية الشهيد بن حمده علي  - النخلة","",""]
[6,12458,"محمد1 علي6","أستاذ تعليم ثانوي","ثا -","الرياضيات","مفدي زكرياء - البياضة","","حي القدس","البياضة","مركز اجراء امتحان ش البكالوريا","","ثانوية الشهيد بن حمده علي  - النخلة","",""]
[7,12459,"محمد1 علي7","أستاذ تعليم ثانوي","ثا -","الاقتصاد و المناجمنت","لقرع محمد الضيف - الرباح","","حي علي دربال","الرباح","مركز اجراء امتحان ش البكالوريا","","ثانوية الشهيد بن حمده علي  - النخلة","",""]
[8,12460,"محمد1 علي8","أستاذ تعليم ثانوي","ثا -","الاقتصاد و المناجمنت","لقرع محمد الضيف - الرباح","","حي علي دربال","الرباح","مركز اجراء امتحان ش البكالوريا","","ثانوية الشهيد بن حمده علي  - النخلة","",""]
[9,12461,"محمد1 علي9","أستاذ تعليم ثانوي","ثا -","الرياضيات","مفدي زكرياء - البياضة","","النخلة","النخلة","مركز اجراء امتحان ش البكالوريا","","ثانوية الشهيد بن حمده علي  - النخلة","",""]
[10,12462,"محمد1 علي10","أستاذ رئيسي في التعليم الثانوي","ثا -","الفلسفة","مفدي زكرياء - البياضة","","حي 81 سكن","البياضة","مركز اجراء امتحان ش البكالوريا","","ثانوية الشهيد بن حمده علي  - النخلة","",""]
[11,12463,"محمد1 علي11","أستاذ مكون في التعليم الثانوي","ثا -","الرياضيات","مفدي زكرياء - البياضة","","حي اولاد عياد","البياضة","مركز اجراء امتحان ش البكالوريا","","ثانوية الشهيد بن حمده علي  - النخلة","",""]
[12,12464,"محمد1 علي12","أستاذ رئيسي في التعليم الثانوي","ثا -","الفيزياء","مفدي زكرياء - البياضة","","حي محمد بوضياف","البياضة","مركز اجراء امتحان ش البكالوريا","","ثانوية الشهيد بن حمده علي  - النخلة","",""]
[13,12465,"محمد1 علي13","أستاذ رئيسي في التعليم الثانوي","ثا -","الفيزياء","مفدي زكرياء - البياضة","","النخلة","النخلة","مركز اجراء امتحان ش البكالوريا","","ثانوية الشهيد بن حمده علي  - النخلة","",""]
[14,12466,"محمد1 علي14","أستاذ رئيسي في التعليم الثانوي","ثا -","علوم طبيعية","مفدي زكرياء - البياضة","","حي الصوالح","البياضة","مركز اجراء امتحان ش البكالوريا","","ثانوية الشهيد بن حمده علي  - النخلة","",""]
[15,12467,"محمد1 علي15","أستاذ رئيسي في التعليم الثانوي","ثا -","علوم طبيعية","مفدي زكرياء - البياضة","","حي الكرامة ا","البياضة","مركز اجراء امتحان ش البكالوريا","","ثانوية الشهيد بن حمده علي  - النخلة","",""]
[16,12468,"محمد1 علي16","أستاذ رئيسي في التعليم الثانوي","ثا -","الفيزياء","مفدي زكرياء - البياضة","","حي القدس","البياضة","مركز اجراء امتحان ش البكالوريا","","ثانوية الشهيد بن حمده علي  - النخلة","",""]
[17,12469,"محمد1 علي17","أستاذ رئيسي في التعليم الثانوي","ثا -","علوم طبيعية","مفدي زكرياء - البياضة","","حي الإستقلال","البياضة","مركز اجراء امتحان ش البكالوريا","","ثانوية الشهيد بن حمده علي  - النخلة","",""]
[18,12470,"محمد1 علي18","أستاذ رئيسي في التعليم الثانوي","ثا -","علوم طبيعية","مفدي زكرياء - البياضة","","حي 81 سكن","البياضة","مركز اجراء امتحان ش البكالوريا","","ثانوية الشهيد بن حمده علي  - النخلة","",""]
[19,12471,"محمد1 علي19","أستاذ تعليم ثانوي","ثا -","الفيزياء","خوازم الطاهر - البياضة","","أول نوفمبر 1954 البياضة","البياضة","مركز اجراء امتحان ش البكالوريا","","ثانوية الشهيد بن حمده علي  - النخلة","",""]
[20,12472,"محمد1 علي20","أستاذ رئيسي في التعليم الثانوي","ثا -","الرياضيات","خوازم الطاهر - البياضة","","الخبنة -النخلة","النخلة","مركز اجراء امتحان ش البكالوريا","","ثانوية الشهيد بن حمده علي  - النخلة","",""]
[21,12473,"محمد1 علي21","أستاذ تعليم ثانوي","ثا -","الرياضيات","خوازم الطاهر - البياضة","","السلام -البياضة","البياضة","مركز اجراء امتحان ش البكالوريا","","ثانوية الشهيد بن حمده علي  - النخلة","",""]
[22,12474,"محمد1 علي22","أستاذ رئيسي في التعليم الثانوي","ثا -","الرياضيات","خوازم الطاهر - البياضة","","حي السلام","البياضة","مركز اجراء امتحان ش البكالوريا","","ثانوية الشهيد بن حمده علي  - النخلة","",""]
[23,12475,"محمد1 علي23","أستاذ رئيسي في التعليم الثانوي","ثا -","الرياضيات","خوازم الطاهر - البياضة","","أول نوفمبر 1954 البياضة","البياضة","مركز اجراء امتحان ش البكالوريا","","ثانوية الشهيد بن حمده علي  - النخلة","",""]
[24,12476,"محمد1 علي24","أستاذ رئيسي في التعليم الثانوي","ثا -","العلوم الاسلامية","خوازم الطاهر - البياضة","","أول نوفمبر 1954 البياضة","البياضة","مركز اجراء امتحان ش البكالوريا","","ثانوية الشهيد بن حمده علي  - النخلة","",""]
[25,12477,"محمد1 علي25","أستاذ تعليم ثانوي","ثا -","التاريخ والجغرافيا","خوازم الطاهر - البياضة","","أولاد مياسة -الرباح","الرباح","مركز اجراء امتحان ش البكالوريا","","ثانوية الشهيد بن حمده علي  - النخلة","",""]
[26,12478,"محمد1 علي26","أستاذ رئيسي في التعليم الثانوي","ثا -","الرياضيات","تجاني أمحمد - البياضة","","البياضة","البياضة","مركز اجراء امتحان ش البكالوريا","","ثانوية الشهيد بن حمده علي  - النخلة","",""]
[27,12479,"محمد1 علي27","أستاذ تعليم ثانوي","ثا -","الفرنسية","خوازم الطاهر - البياضة","","العواشير -الرباح","الرباح","مركز اجراء امتحان ش البكالوريا","","ثانوية الشهيد بن حمده علي  - النخلة","",""]
[28,12480,"محمد1 علي28","أستاذ مكون في التعليم الثانوي","ثا -","الهندسة الميكانيكية","كركوبية خليفة - الرباح","","حي النخلة الشرقية النخلة","النخلة","مركز اجراء امتحان ش البكالوريا","","ثانوية الشهيد بن حمده علي  - النخلة","",""]
[29,12481,"محمد1 علي29","أستاذ تعليم ثانوي","ثا -","هندسة الطرائق","كركوبية خليفة - الرباح","","حي النخلة الشرقية النخلة","النخلة","مركز اجراء امتحان ش البكالوريا","","ثانوية الشهيد بن حمده علي  - النخلة","",""]
[30,12482,"محمد1 علي30","أستاذ مكون في التعليم الثانوي","ثا -","علوم طبيعية","لقرع محمد الضيف - الرباح","","حي البغازلية","الرباح","مركز اجراء امتحان ش البكالوريا","","ثانوية الشهيد بن حمده علي  - النخلة","",""]
[31,12483,"محمد1 علي31","أستاذ مكون في التعليم الثانوي","ثا -","العلوم الاسلامية","لقرع محمد الضيف - الرباح","","حي علي دربال","الرباح","مركز اجراء امتحان ش البكالوريا","","ثانوية الشهيد بن حمده علي  - النخلة","",""]
[32,12484,"محمد1 علي32","أستاذ رئيسي في التعليم الثانوي","ثا -","الفيزياء","لقرع محمد الضيف - الرباح","","حي النخلة","النخلة","مركز اجراء امتحان ش البكالوريا","","ثانوية الشهيد بن حمده علي  - النخلة","",""]
[33,12485,"محمد1 علي33","أستاذ رئيسي في التعليم الثانوي","ثا -","العربية","لقرع محمد الضيف - الرباح","","حي البغازلية","الرباح","مركز اجراء امتحان ش البكالوريا","","ثانوية الشهيد بن حمده علي  - النخلة","",""]
[34,12486,"محمد1 علي34","أستاذ رئيسي في التعليم الثانوي","ثا -","علوم طبيعية","لقرع محمد الضيف - الرباح","","حي علي دربال","الرباح","مركز اجراء امتحان ش البكالوريا","","ثانوية الشهيد بن حمده علي  - النخلة","",""]
[35,12487,"محمد1 علي35","أستاذ تعليم ثانوي","ثا -","الانجليزية","لقرع محمد الضيف - الرباح","","النخلة","النخلة","مركز اجراء امتحان ش البكالوريا","","ثانوية الشهيد بن حمده علي  - النخلة","",""]
[36,12488,"محمد1 علي36","أستاذ مكون في التعليم الثانوي","ثا -","الرياضيات","لقرع محمد الضيف - الرباح","","حي البغازلية","الرباح","مركز اجراء امتحان ش البكالوريا","","ثانوية الشهيد بن حمده علي  - النخلة","",""]
[37,12489,"محمد1 علي37","أستاذ رئيسي في التعليم الثانوي","ثا -","العربية","خوازم الطاهر - البياضة","","أول نوفمبر 1954 البياضة","البياضة","مركز اجراء امتحان ش البكالوريا","","ثانوية الشهيد بن حمده علي  - النخلة","",""]
[38,12490,"محمد1 علي38","أستاذ رئيسي في التعليم الثانوي","ثا -","الانجليزية","تجاني أمحمد - البياضة","","البياضة","البياضة","مركز اجراء امتحان ش البكالوريا","","ثانوية الشهيد بن حمده علي  - النخلة","",""]
[39,12491,"محمد1 علي39","أستاذ تعليم ثانوي","ثا -","علوم طبيعية","تجاني أمحمد - البياضة","","البياضة","البياضة","مركز اجراء امتحان ش البكالوريا","","ثانوية الشهيد بن حمده علي  - النخلة","",""]
[40,12492,"محمد1 علي40","أستاذ تعليم ثانوي","ثا -","التاريخ والجغرافيا","تجاني أمحمد - البياضة","","الخبنة","النخلة","مركز اجراء امتحان ش البكالوريا","","ثانوية الشهيد بن حمده علي  - النخلة","",""]
[41,12493,"محمد1 علي41","أستاذ مكون في التعليم الثانوي","ثا -","التاريخ والجغرافيا","تجاني أمحمد - البياضة","","البياضة","البياضة","مركز اجراء امتحان ش البكالوريا","","ثانوية الشهيد بن حمده علي  - النخلة","",""]
[42,12494,"محمد1 علي42","أستاذ مكون في التعليم الثانوي","ثا -","علوم طبيعية","تجاني أمحمد - البياضة","","البياضة","البياضة","مركز اجراء امتحان ش البكالوريا","","ثانوية الشهيد بن حمده علي  - النخلة","",""]
[43,12495,"محمد1 علي43","أستاذ تعليم ثانوي","ثا -","التربية البدنية","خوازم الطاهر - البياضة","","العواشير -الرباح","الرباح","مركز اجراء امتحان ش البكالوريا","","ثانوية الشهيد بن حمده علي  - النخلة","",""]
[44,12496,"محمد1 علي44","أستاذ تعليم ثانوي","ثا -","الفلسفة","خوازم الطاهر - البياضة","","علي دربال -الرباح","الرباح","مركز اجراء امتحان ش البكالوريا","","ثانوية الشهيد بن حمده علي  - النخلة","",""]
[45,12497,"محمد1 علي45","أستاذ تعليم ثانوي","ثا -","الاقتصاد و المناجمنت","خوازم الطاهر - البياضة","","5جويلية 1962 البياضة","البياضة","مركز اجراء امتحان ش البكالوريا","","ثانوية الشهيد بن حمده علي  - النخلة","",""]
[46,12498,"محمد1 علي46","أستاذ تعليم ثانوي","ثا -","الرياضيات","تجاني أمحمد - البياضة","","البياضة","البياضة","مركز اجراء امتحان ش البكالوريا","","ثانوية الشهيد بن حمده علي  - النخلة","",""]
[47,12499,"محمد1 علي47","أستاذ تعليم ثانوي","ثا -","الفلسفة","تجاني أمحمد - البياضة","","الرباح","الرباح","مركز اجراء امتحان ش البكالوريا","","ثانوية الشهيد بن حمده علي  - النخلة","",""]
[48,12500,"محمد1 علي48","أستاذ تعليم ثانوي","ثا -","الاقتصاد و المناجمنت","تجاني أمحمد - البياضة","","البياضة","البياضة","مركز اجراء امتحان ش البكالوريا","","ثانوية الشهيد بن حمده علي  - النخلة","",""]
[49,12501,"محمد1 علي49","أستاذ مكون في التعليم الثانوي","ثا -","هندسة الطرائق","تجاني أمحمد - البياضة","","البياضة","البياضة","مركز اجراء امتحان ش البكالوريا","","ثانوية الشهيد بن حمده علي  - النخلة","",""]
[50,12502,"محمد1 علي50","أستاذ مكون في التعليم الثانوي","ثا -","العربية","خوازم الطاهر - البياضة","","أول نوفمبر 1954 البياضة","البياضة","مركز اجراء امتحان ش البكالوريا","","ثانوية الشهيد بن حمده علي  - النخلة","",""]
[51,12503,"محمد1 علي51","أستاذ رئيسي في التعليم الثانوي","ثا -","التربية البدنية","تجاني أمحمد - البياضة","","النخلة","النخلة","مركز اجراء امتحان ش البكالوريا","","ثانوية الشهيد بن حمده علي  - النخلة","",""]
[52,12504,"محمد1 علي52","أستاذ رئيسي في التعليم الثانوي","ثا -","الفرنسية","تجاني أمحمد - البياضة","","البياضة","البياضة","مركز اجراء امتحان ش البكالوريا","","ثانوية الشهيد بن حمده علي  - النخلة","",""]
[53,12505,"محمد1 علي53","أستاذ تعليم ثانوي","ثا -","الرياضيات","تجاني أمحمد - البياضة","","البياضة","البياضة","مركز اجراء امتحان ش البكالوريا","","ثانوية الشهيد بن حمده علي  - النخلة","",""]
[54,12506,"محمد1 علي54","أستاذ رئيسي في التعليم الثانوي","ثا -","الفيزياء","خوازم الطاهر - البياضة","","الصوالح -البياضة","البياضة","مركز اجراء امتحان ش البكالوريا","","ثانوية الشهيد بن حمده علي  - النخلة","",""]
[55,12507,"محمد1 علي55","أستاذ رئيسي في التعليم الثانوي","ثا -","العربية","تجاني أمحمد - البياضة","","البياضة","البياضة","مركز اجراء امتحان ش البكالوريا","","ثانوية الشهيد بن حمده علي  - النخلة","",""]
[56,12508,"محمد1 علي56","أستاذ تعليم ثانوي","ثا -","الاقتصاد و المناجمنت","مفدي زكرياء - البياضة","","حي أولاد مياسة","الرباح","مركز اجراء امتحان ش البكالوريا","","ثانوية الشهيد بن حمده علي  - النخلة","",""]
[57,12509,"محمد1 علي57","أستاذ رئيسي في التعليم الثانوي","ثا -","الفيزياء","كركوبية خليفة - الرباح","","حي الخبنة النخلة","النخلة","مركز اجراء امتحان ش البكالوريا","","ثانوية الشهيد بن حمده علي  - النخلة","",""]
[58,12510,"محمد1 علي58","أستاذ رئيسي في التعليم الثانوي","ثا -","الفيزياء","كركوبية خليفة - الرباح","","حي العقيلة العقلة","العقلة","مركز اجراء امتحان ش البكالوريا","","ثانوية الشهيد بن حمده علي  - النخلة","",""]
[59,12511,"محمد1 علي59","أستاذ رئيسي في التعليم الابتدائي","إ -","العربية","بوغزالة حمد عبد الكامل- النخلة","الرباح","حي العقيلة","العقلة","مركز اجراء امتحان ش البكالوريا","","ثانوية الشهيد بن حمده علي  - النخلة","",""]
[60,12512,"محمد1 علي60","استاذ تعليم ابتدائي","إ -","العربية","قطوطة عمارة- العقلة","الرباح","حي محمد بوضياف","العقلة","مركز اجراء امتحان ش البكالوريا","","ثانوية الشهيد بن حمده علي  - النخلة","",""]
[61,12513,"محمد1 علي61","استاذ تعليم ابتدائي","إ -","العربية","قطوطة عمارة- العقلة","الرباح","حي بن عمر الجيلاني","العقلة","مركز اجراء امتحان ش البكالوريا","","ثانوية الشهيد بن حمده علي  - النخلة","",""]
[62,12514,"محمد1 علي62","أستاذ رئيسي في التعليم الابتدائي","إ -","العربية","قطوطة عمارة- العقلة","الرباح","حي محمد بوضياف","العقلة","مركز اجراء امتحان ش البكالوريا","","ثانوية الشهيد بن حمده علي  - النخلة","",""]
[63,12515,"محمد1 علي63","أستاذ رئيسي في التعليم الابتدائي","إ -","العربية","قطوطة عمارة- العقلة","الرباح","حي محمد بوضياف","العقلة","مركز اجراء امتحان ش البكالوريا","","ثانوية الشهيد بن حمده علي  - النخلة","",""]
[64,12516,"محمد1 علي64","استاذ تعليم ابتدائي","إ -","الفرنسية","قطوطة عمارة- العقلة","الرباح","حي بن عمر الجيلاني","العقلة","مركز اجراء امتحان ش البكالوريا","","ثانوية الشهيد بن حمده علي  - النخلة","",""]
[65,12517,"محمد1 علي65","استاذ تعليم ابتدائي","إ -","العربية","قطوطة عمارة- العقلة","الرباح","حي بن عمر الجيلاني","العقلة","مركز اجراء امتحان ش البكالوريا","","ثانوية الشهيد بن حمده علي  - النخلة","",""]
[66,12518,"محمد1 علي66","استاذ تعليم ابتدائي","إ -","العربية","قطوطة عمارة- العقلة","الرباح","حي بن عمر الجيلاني","العقلة","مركز اجراء امتحان ش البكالوريا","","ثانوية الشهيد بن حمده علي  - النخلة","",""]
[67,12519,"محمد1 علي67","استاذ تعليم ابتدائي","إ -","العربية","قطوطة عمارة- العقلة","الرباح","النخلة الشرقية","العقلة","مركز اجراء امتحان ش البكالوريا","","ثانوية الشهيد بن حمده علي  - النخلة","",""]
[68,12520,"محمد1 علي68","أستاذ رئيسي في التعليم الابتدائي","إ -","العربية","عمر بن الخطاب- العقلة","الرباح","حي عقيب نصر","العقلة","مركز اجراء امتحان ش البكالوريا","","ثانوية الشهيد بن حمده علي  - النخلة","",""]
[69,12521,"محمد1 علي69","استاذ تعليم ابتدائي","إ -","الفرنسية","عمر بن الخطاب- العقلة","الرباح","حي العقيلة","العقلة","مركز اجراء امتحان ش البكالوريا","","ثانوية الشهيد بن حمده علي  - النخلة","",""]
[70,12522,"محمد1 علي70","استاذ تعليم ابتدائي","إ -","العربية","عمر بن الخطاب- العقلة","الرباح","حي عقيب نصر","العقلة","مركز اجراء امتحان ش البكالوريا","","ثانوية الشهيد بن حمده علي  - النخلة","",""]
[71,12523,"محمد1 علي71","استاذ تعليم ابتدائي","إ -","العربية","عمر بن الخطاب- العقلة","الرباح","حي العقيلة","العقلة","مركز اجراء امتحان ش البكالوريا","","ثانوية الشهيد بن حمده علي  - النخلة","",""]
[72,12524,"محمد1 علي72","استاذ تعليم ابتدائي","إ -","العربية","عمر بن الخطاب- العقلة","الرباح","حي عقيب نصر","العقلة","مركز اجراء امتحان ش البكالوريا","","ثانوية الشهيد بن حمده علي  - النخلة","",""]
[73,12525,"محمد1 علي73","استاذ تعليم ابتدائي","إ -","العربية","عمر بن الخطاب- العقلة","الرباح","حي عقيب نصر العقلة","العقلة","مركز اجراء امتحان ش البكالوريا","","ثانوية الشهيد بن حمده علي  - النخلة","",""]
[74,12526,"محمد1 علي74","استاذ تعليم ابتدائي","إ -","العربية","عمر بن الخطاب- العقلة","الرباح","حي بن عمر الجيلاني","العقلة","مركز اجراء امتحان ش البكالوريا","","ثانوية الشهيد بن حمده علي  - النخلة","",""]
[75,12527,"محمد1 علي75","استاذ تعليم ابتدائي","إ -","العربية","عمر بن الخطاب- العقلة","الرباح","حي عقيب نصر العقلة","العقلة","مركز اجراء امتحان ش البكالوريا","","ثانوية الشهيد بن حمده علي  - النخلة","",""]
[76,12528,"محمد1 علي76","استاذ تعليم ابتدائي","إ -","العربية","عمر بن الخطاب- العقلة","الرباح","حي خالدي الطاهر","العقلة","مركز اجراء امتحان ش البكالوريا","","ثانوية الشهيد بن حمده علي  - النخلة","",""]
[77,12529,"محمد1 علي77","أستاذ مكون في التعليم الابتدائي","إ -","العربية","عمر بن الخطاب- العقلة","الرباح","حي عقيب نصر العقلة","العقلة","مركز اجراء امتحان ش البكالوريا","","ثانوية الشهيد بن حمده علي  - النخلة","",""]
[78,12530,"محمد1 علي78","استاذ تعليم ابتدائي","إ -","العربية","عمر بن الخطاب- العقلة","الرباح","حي عقيب نصر العقلة","العقلة","مركز اجراء امتحان ش البكالوريا","","ثانوية الشهيد بن حمده علي  - النخلة","",""]
[79,12531,"محمد1 علي79","أستاذ رئيسي في التعليم الابتدائي","إ -","العربية","ابن باديس- النخلة","الرباح","النخلة الغربية","النخلة","مركز اجراء امتحان ش البكالوريا","","ثانوية الشهيد بن حمده علي  - النخلة","",""]
[80,12532,"محمد1 علي80","استاذ تعليم ابتدائي","إ -","العربية","ابن باديس- النخلة","الرباح","النخلة الغربية","النخلة","مركز اجراء امتحان ش البكالوريا","","ثانوية الشهيد بن حمده علي  - النخلة","",""]
[81,12533,"محمد1 علي81","استاذ تعليم ابتدائي","إ -","العربية","ابن باديس- النخلة","الرباح","النخلة الغربية","النخلة","مركز اجراء امتحان ش البكالوريا","","ثانوية الشهيد بن حمده علي  - النخلة","",""]
[82,12534,"محمد1 علي82","أستاذ مكون في التعليم الابتدائي","إ -","العربية","ابن باديس- النخلة","الرباح","النخلة الشرقية","النخلة","مركز اجراء امتحان ش البكالوريا","","ثانوية الشهيد بن حمده علي  - النخلة","",""]
[83,12535,"محمد1 علي83","أستاذ رئيسي في التعليم الابتدائي","إ -","العربية","ابن باديس- النخلة","الرباح","النخلة الغربية","النخلة","مركز اجراء امتحان ش البكالوريا","","ثانوية الشهيد بن حمده علي  - النخلة","",""]
[84,12536,"محمد1 علي84","أستاذ رئيسي في التعليم الابتدائي","إ -","العربية","ابن باديس- النخلة","الرباح","النخلة الغربية","النخلة","مركز اجراء امتحان ش البكالوريا","","ثانوية الشهيد بن حمده علي  - النخلة","",""]
[85,12537,"محمد1 علي85","أستاذ رئيسي في التعليم الابتدائي","إ -","العربية","ابن باديس- النخلة","الرباح","النخلة الغربية","النخلة","مركز اجراء امتحان ش البكالوريا","","ثانوية الشهيد بن حمده علي  - النخلة","",""]
[86,12538,"محمد1 علي86","أستاذ رئيسي في التعليم الابتدائي","إ -","العربية","بوغزالة حمد عبد الكامل- النخلة","الرباح","حي النصر النخلة","النخلة","مركز اجراء امتحان ش البكالوريا","","ثانوية الشهيد بن حمده علي  - النخلة","",""]
[87,12539,"محمد1 علي87","استاذ تعليم ابتدائي","إ -","الفرنسية","بوغزالة حمد عبد الكامل- النخلة","الرباح","حي النخلة الشمالية","النخلة","مركز اجراء امتحان ش البكالوريا","","ثانوية الشهيد بن حمده علي  - النخلة","",""]
[88,12540,"محمد1 علي88","أستاذ رئيسي في التعليم الابتدائي","إ -","العربية","بوغزالة حمد عبد الكامل- النخلة","الرباح","حي النصر النخلة","النخلة","مركز اجراء امتحان ش البكالوريا","","ثانوية الشهيد بن حمده علي  - النخلة","",""]
[89,12541,"محمد1 علي89","أستاذ مكون في التعليم الابتدائي","إ -","العربية","بوغزالة حمد عبد الكامل- النخلة","الرباح","حي النصر النخلة","النخلة","مركز اجراء امتحان ش البكالوريا","","ثانوية الشهيد بن حمده علي  - النخلة","",""]
[90,12542,"محمد1 علي90","استاذ تعليم ابتدائي","إ -","العربية","قطوطة عمارة- العقلة","الرباح","النخلة الشرقية","النخلة","مركز اجراء امتحان ش البكالوريا","","ثانوية الشهيد بن حمده علي  - النخلة","",""]
[91,12543,"محمد1 علي91","استاذ تعليم ابتدائي","إ -","العربية","قطوطة عمارة- العقلة","الرباح","النخلة الغربية","النخلة","مركز اجراء امتحان ش البكالوريا","","ثانوية الشهيد بن حمده علي  - النخلة","",""]
[92,12544,"محمد1 علي92","استاذ تعليم ابتدائي","إ -","العربية","عمر بن الخطاب- العقلة","الرباح","حي البدر النخلة","النخلة","مركز اجراء امتحان ش البكالوريا","","ثانوية الشهيد بن حمده علي  - النخلة","",""]
[93,12545,"محمد1 علي93","استاذ تعليم ابتدائي","إ -","العربية","نغموش علي علي- النخلة","الرباح","النخلة الشرقية","النخلة","مركز اجراء امتحان ش البكالوريا","","ثانوية الشهيد بن حمده علي  - النخلة","",""]
[94,12546,"محمد1 علي94","استاذ تعليم ابتدائي","إ -","العربية","مجمع حي النور- النخلة","الرباح","حي النخلة الشرقية","النخلة","مركز اجراء امتحان ش البكالوريا","","ثانوية الشهيد بن حمده علي  - النخلة","",""]
[95,12547,"محمد1 علي95","أستاذ مكون في التعليم الابتدائي","إ -","العربية","فرجاني العربي- النخلة","الرباح","حي الخبنة","النخلة","مركز اجراء امتحان ش البكالوريا","","ثانوية الشهيد بن حمده علي  - النخلة","",""]
[96,12548,"محمد1 علي96","استاذ تعليم ابتدائي","إ -","العربية","نغموش علي علي- النخلة","الرباح","النخلة الغربية","النخلة","مركز اجراء امتحان ش البكالوريا","","ثانوية الشهيد بن حمده علي  - النخلة","",""]
[97,12549,"محمد1 علي97","استاذ تعليم ابتدائي","إ -","العربية","بن علي الطاهر- النخلة","الرباح","حي البدر والنصر النخلة.","النخلة","مركز اجراء امتحان ش البكالوريا","","ثانوية الشهيد بن حمده علي  - النخلة","",""]
[98,12550,"محمد1 علي98","أستاذ مكون في التعليم الابتدائي","إ -","العربية","ابتدائية  الشهيد جاب الله امحمد","الرباح","حي النخلة الشرقية","النخلة","مركز اجراء امتحان ش البكالوريا","","ثانوية الشهيد بن حمده علي  - النخلة","",""]
[99,12551,"محمد1 علي99","استاذ تعليم ابتدائي","إ -","العربية","نغموش علي علي- النخلة","الرباح","النخلة الشرقية","النخلة","مركز اجراء امتحان ش البكالوريا","","ثانوية الشهيد بن حمده علي  - النخلة","",""]
[100,12552,"محمد1 علي100","استاذ تعليم ابتدائي","إ -","العربية","بن علي الطاهر- النخلة","الرباح","النخلة الشرقية","النخلة","مركز اجراء امتحان ش البكالوريا","","ثانوية الشهيد بن حمده علي  - النخلة","",""]
[101,12553,"محمد1 علي101","استاذ تعليم ابتدائي","إ -","العربية","بن عبد الله عمار- النخلة","الرباح","النخلة","النخلة","مركز اجراء امتحان ش البكالوريا","","ثانوية الشهيد بن حمده علي  - النخلة","",""]
[102,12554,"محمد1 علي102","أستاذ رئيسي في التعليم الابتدائي","إ -","العربية","فرجاني العربي- النخلة","الرباح","حي الخبنة","النخلة","مركز اجراء امتحان ش البكالوريا","","ثانوية الشهيد بن حمده علي  - النخلة","",""]
[103,12555,"محمد1 علي103","أستاذ مكون في التعليم الابتدائي","إ -","العربية","فرجاني العربي- النخلة","الرباح","حي الخبنة","النخلة","مركز اجراء امتحان ش البكالوريا","","ثانوية الشهيد بن حمده علي  - النخلة","",""]
[104,12556,"محمد1 علي104","استاذ تعليم ابتدائي","إ -","العربية","حماتي علي- النخلة","الرباح","حي النخلة الشرقية","النخلة","مركز اجراء امتحان ش البكالوريا","","ثانوية الشهيد بن حمده علي  - النخلة","",""]
[105,12557,"محمد1 علي105","أستاذ رئيسي في التعليم الابتدائي","إ -","العربية","مرزوقي مرزوقي- النخلة","الرباح","النخلة الشمالية","النخلة","مركز اجراء امتحان ش البكالوريا","","ثانوية الشهيد بن حمده علي  - النخلة","",""]
[106,12558,"محمد1 علي106","أستاذ مكون في التعليم الابتدائي","إ -","العربية","مرزوقي مرزوقي- النخلة","الرباح","النخلة الشمالية","النخلة","مركز اجراء امتحان ش البكالوريا","","ثانوية الشهيد بن حمده علي  - النخلة","",""]
[107,12559,"محمد1 علي107","أستاذ رئيسي في التعليم الابتدائي","إ -","العربية","مرزوقي مرزوقي- النخلة","الرباح","النخلة الشمالية","النخلة","مركز اجراء امتحان ش البكالوريا","","ثانوية الشهيد بن حمده علي  - النخلة","",""]
[108,12560,"محمد1 علي108","استاذ تعليم ابتدائي","إ -","العربية","جويدة الجموعي- النخلة","الرباح","حي النور","النخلة","مركز اجراء امتحان ش البكالوريا","","ثانوية الشهيد بن حمده علي  - النخلة","",""]
[109,12561,"محمد1 علي109","استاذ تعليم ابتدائي","إ -","العربية","جويدة الجموعي- النخلة","الرباح","حي النور","النخلة","مركز اجراء امتحان ش البكالوريا","","ثانوية الشهيد بن حمده علي  - النخلة"]
[110,12562,"محمد1 علي110","استاذ تعليم ابتدائي","إ -","العربية","جويدة الجموعي- النخلة","الرباح","حي النور","النخلة","مركز اجراء امتحان ش البكالوريا","","ثانوية الشهيد بن حمده علي  - النخلة"]
[111,12563,"محمد1 علي111","استاذ تعليم ابتدائي","إ -","العربية","جويدة الجموعي- النخلة","الرباح","حي النور","النخلة","مركز اجراء امتحان ش البكالوريا","","ثانوية الشهيد بن حمده علي  - النخلة"]
[112,12564,"محمد1 علي112","استاذ تعليم ابتدائي","إ -","العربية","جويدة الجموعي- النخلة","الرباح","حي النور","النخلة","مركز اجراء امتحان ش البكالوريا","","ثانوية الشهيد بن حمده علي  - النخلة"]
[113,12565,"محمد1 علي113","استاذ تعليم ابتدائي","إ -","العربية","جويدة الجموعي- النخلة","الرباح","حي النور","النخلة","مركز اجراء امتحان ش البكالوريا","","ثانوية الشهيد بن حمده علي  - النخلة"]
[114,12566,"محمد1 علي114","استاذ تعليم ابتدائي","إ -","العربية","جويدة الجموعي- النخلة","الرباح","حي النور","النخلة","مركز اجراء امتحان ش البكالوريا","","ثانوية الشهيد بن حمده علي  - النخلة"]
[115,12567,"محمد1 علي115","استاذ تعليم ابتدائي","إ -","العربية","جويدة الجموعي- النخلة","الرباح","حي النور","النخلة","مركز اجراء امتحان ش البكالوريا","","ثانوية الشهيد بن حمده علي  - النخلة"]
[116,12568,"محمد1 علي116","استاذ تعليم ابتدائي","إ -","العربية","جويدة الجموعي- النخلة","الرباح","حي النور","النخلة","مركز اجراء امتحان ش البكالوريا","","ثانوية الشهيد بن حمده علي  - النخلة"]
[117,12569,"محمد1 علي117","استاذ تعليم ابتدائي","إ -","العربية","جويدة الجموعي- النخلة","الرباح","حي النور","النخلة","مركز اجراء امتحان ش البكالوريا","","ثانوية الشهيد بن حمده علي  - النخلة"]
[118,12570,"محمد1 علي118","استاذ تعليم ابتدائي","إ -","العربية","جويدة الجموعي- النخلة","الرباح","حي النور","النخلة","مركز اجراء امتحان ش البكالوريا","","ثانوية الشهيد بن حمده علي  - النخلة"]
[119,12571,"محمد1 علي119","استاذ تعليم ابتدائي","إ -","العربية","جويدة الجموعي- النخلة","الرباح","حي النور","النخلة","مركز اجراء امتحان ش البكالوريا","","ثانوية الشهيد بن حمده علي  - النخلة"]
[120,12572,"محمد1 علي120","استاذ تعليم ابتدائي","إ -","العربية","جويدة الجموعي- النخلة","الرباح","حي النور","النخلة","مركز اجراء امتحان ش البكالوريا","","ثانوية الشهيد بن حمده علي  - النخلة"]
[121,12573,"محمد1 علي121","استاذ تعليم ابتدائي","إ -","العربية","جويدة الجموعي- النخلة","الرباح","حي النور","النخلة","مركز اجراء امتحان ش البكالوريا","","ثانوية الشهيد بن حمده علي  - النخلة"]
[122,12574,"محمد1 علي122","استاذ تعليم ابتدائي","إ -","العربية","جويدة الجموعي- النخلة","الرباح","حي النور","النخلة","مركز اجراء امتحان ش البكالوريا","","ثانوية الشهيد بن حمده علي  - النخلة"]
[123,12575,"محمد1 علي123","استاذ تعليم ابتدائي","إ -","العربية","جويدة الجموعي- النخلة","الرباح","حي النور","النخلة","مركز اجراء امتحان ش البكالوريا","","ثانوية الشهيد بن حمده علي  - النخلة"]
[124,12576,"محمد1 علي124","استاذ تعليم ابتدائي","إ -","العربية","جويدة الجموعي- النخلة","الرباح","حي النور","النخلة","مركز اجراء امتحان ش البكالوريا","","ثانوية الشهيد بن حمده علي  - النخلة"]
[125,12577,"محمد1 علي125","استاذ تعليم ابتدائي","إ -","العربية","جويدة الجموعي- النخلة","الرباح","حي النور","النخلة","مركز اجراء امتحان ش البكالوريا","","ثانوية الشهيد بن حمده علي  - النخلة"]
[126,12578,"محمد1 علي126","استاذ تعليم ابتدائي","إ -","العربية","جويدة الجموعي- النخلة","الرباح","حي النور","النخلة","مركز اجراء امتحان ش البكالوريا","","ثانوية الشهيد بن حمده علي  - النخلة"]
[127,12579,"محمد1 علي127","استاذ تعليم ابتدائي","إ -","العربية","جويدة الجموعي- النخلة","الرباح","حي النور","النخلة","مركز اجراء امتحان ش البكالوريا","","ثانوية الشهيد بن حمده علي  - النخلة"]
[128,12580,"محمد1 علي128","استاذ تعليم ابتدائي","إ -","العربية","جويدة الجموعي- النخلة","الرباح","حي النور","النخلة","مركز اجراء امتحان ش البكالوريا","","ثانوية الشهيد بن حمده علي  - النخلة"]
[129,12581,"محمد1 علي129","استاذ تعليم ابتدائي","إ -","العربية","جويدة الجموعي- النخلة","الرباح","حي النور","النخلة","مركز اجراء امتحان ش البكالوريا","","ثانوية الشهيد بن حمده علي  - النخلة"]
[130,12582,"محمد1 علي130","استاذ تعليم ابتدائي","إ -","العربية","جويدة الجموعي- النخلة","الرباح","حي النور","النخلة","مركز اجراء امتحان ش البكالوريا","","ثانوية الشهيد بن حمده علي  - النخلة"]
[131,12583,"محمد1 علي131","استاذ تعليم ابتدائي","إ -","العربية","جويدة الجموعي- النخلة","الرباح","حي النور","النخلة","مركز اجراء امتحان ش البكالوريا","","ثانوية الشهيد بن حمده علي  - النخلة"]
[132,12584,"محمد1 علي132","استاذ تعليم ابتدائي","إ -","العربية","جويدة الجموعي- النخلة","الرباح","حي النور","النخلة","مركز اجراء امتحان ش البكالوريا","","ثانوية الشهيد بن حمده علي  - النخلة"]
[133,12585,"محمد1 علي133","استاذ تعليم ابتدائي","إ -","العربية","جويدة الجموعي- النخلة","الرباح","حي النور","النخلة","مركز اجراء امتحان ش البكالوريا","","ثانوية الشهيد بن حمده علي  - النخلة"]
[134,12586,"محمد1 علي134","استاذ تعليم ابتدائي","إ -","العربية","جويدة الجموعي- النخلة","الرباح","حي النور","النخلة","مركز اجراء امتحان ش البكالوريا","","ثانوية الشهيد بن حمده علي  - النخلة"]
[135,12587,"محمد1 علي135","استاذ تعليم ابتدائي","إ -","العربية","جويدة الجموعي- النخلة","الرباح","حي النور","النخلة","مركز اجراء امتحان ش البكالوريا","","ثانوية الشهيد بن حمده علي  - النخلة"]
[136,12588,"محمد1 علي136","استاذ تعليم ابتدائي","إ -","العربية","جويدة الجموعي- النخلة","الرباح","حي النور","النخلة","مركز اجراء امتحان ش البكالوريا","","ثانوية الشهيد بن حمده علي  - النخلة"]
[137,12589,"محمد1 علي137","استاذ تعليم ابتدائي","إ -","العربية","جويدة الجموعي- النخلة","الرباح","حي النور","النخلة","مركز اجراء امتحان ش البكالوريا","","ثانوية الشهيد بن حمده علي  - النخلة"]
[138,12590,"محمد1 علي138","استاذ تعليم ابتدائي","إ -","العربية","جويدة الجموعي- النخلة","الرباح","حي النور","النخلة","مركز اجراء امتحان ش البكالوريا","","ثانوية الشهيد بن حمده علي  - النخلة"]
[139,12591,"محمد1 علي139","استاذ تعليم ابتدائي","إ -","العربية","جويدة الجموعي- النخلة","الرباح","حي النور","النخلة","مركز اجراء امتحان ش البكالوريا","","ثانوية الشهيد بن حمده علي  - النخلة"]
[140,12592,"محمد1 علي140","استاذ تعليم ابتدائي","إ -","العربية","جويدة الجموعي- النخلة","الرباح","حي النور","النخلة","مركز اجراء امتحان ش البكالوريا","","ثانوية الشهيد بن حمده علي  - النخلة"]
[141,12593,"محمد1 علي141","استاذ تعليم ابتدائي","إ -","العربية","جويدة الجموعي- النخلة","الرباح","حي النور","النخلة","مركز اجراء امتحان ش البكالوريا","","ثانوية الشهيد بن حمده علي  - النخلة"]
[142,12594,"محمد1 علي142","استاذ تعليم ابتدائي","إ -","العربية","جويدة الجموعي- النخلة","الرباح","حي النور","النخلة","مركز اجراء امتحان ش البكالوريا","","ثانوية الشهيد بن حمده علي  - النخلة"]
[143,12595,"محمد1 علي143","استاذ تعليم ابتدائي","إ -","العربية","جويدة الجموعي- النخلة","الرباح","حي النور","النخلة","مركز اجراء امتحان ش البكالوريا","","ثانوية الشهيد بن حمده علي  - النخلة"]
[144,12596,"محمد1 علي144","استاذ تعليم ابتدائي","إ -","العربية","جويدة الجموعي- النخلة","الرباح","حي النور","النخلة","مركز اجراء امتحان ش البكالوريا","","ثانوية الشهيد بن حمده علي  - النخلة"]
[145,12597,"محمد1 علي145","استاذ تعليم ابتدائي","إ -","العربية","جويدة الجموعي- النخلة","الرباح","حي النور","النخلة","مركز اجراء امتحان ش البكالوريا","","ثانوية الشهيد بن حمده علي  - النخلة"]
[146,12598,"محمد1 علي146","استاذ تعليم ابتدائي","إ -","العربية","جويدة الجموعي- النخلة","الرباح","حي النور","النخلة","مركز اجراء امتحان ش البكالوريا","","ثانوية الشهيد بن حمده علي  - النخلة"]
[147,12599,"محمد1 علي147","استاذ تعليم ابتدائي","إ -","العربية","جويدة الجموعي- النخلة","الرباح","حي النور","النخلة","مركز اجراء امتحان ش البكالوريا","","ثانوية الشهيد بن حمده علي  - النخلة"]
[148,12600,"محمد1 علي148","استاذ تعليم ابتدائي","إ -","العربية","جويدة الجموعي- النخلة","الرباح","حي النور","النخلة","مركز اجراء امتحان ش البكالوريا","","ثانوية الشهيد بن حمده علي  - النخلة"]
[149,12601,"محمد1 علي149","استاذ تعليم ابتدائي","إ -","العربية","جويدة الجموعي- النخلة","الرباح","حي النور","النخلة","مركز اجراء امتحان ش البكالوريا","","ثانوية الشهيد بن حمده علي  - النخلة"]
[150,12602,"محمد1 علي150","استاذ تعليم ابتدائي","إ -","العربية","جويدة الجموعي- النخلة","الرباح","حي النور","النخلة","مركز اجراء امتحان ش البكالوريا","","ثانوية الشهيد بن حمده علي  - النخلة"]
[151,12603,"محمد1 علي151","استاذ تعليم ابتدائي","إ -","العربية","جويدة الجموعي- النخلة","الرباح","حي النور","النخلة","مركز اجراء امتحان ش البكالوريا","","ثانوية الشهيد بن حمده علي  - النخلة"]
[152,12604,"محمد1 علي152","استاذ تعليم ابتدائي","إ -","العربية","جويدة الجموعي- النخلة","الرباح","حي النور","النخلة","مركز اجراء امتحان ش البكالوريا","","ثانوية الشهيد بن حمده علي  - النخلة"]
[153,12605,"محمد1 علي153","استاذ تعليم ابتدائي","إ -","العربية","جويدة الجموعي- النخلة","الرباح","حي النور","النخلة","مركز اجراء امتحان ش البكالوريا","","ثانوية الشهيد بن حمده علي  - النخلة"]
[154,12606,"محمد1 علي154","استاذ تعليم ابتدائي","إ -","العربية","جويدة الجموعي- النخلة","الرباح","حي النور","النخلة","مركز اجراء امتحان ش البكالوريا","","ثانوية الشهيد بن حمده علي  - النخلة"]
[155,12607,"محمد1 علي155","استاذ تعليم ابتدائي","إ -","العربية","جويدة الجموعي- النخلة","الرباح","حي النور","النخلة","مركز اجراء امتحان ش البكالوريا","","ثانوية الشهيد بن حمده علي  - النخلة"]
[156,12608,"محمد1 علي156","استاذ تعليم ابتدائي","إ -","العربية","جويدة الجموعي- النخلة","الرباح","حي النور","النخلة","مركز اجراء امتحان ش البكالوريا","","ثانوية الشهيد بن حمده علي  - النخلة"]
[157,12609,"محمد1 علي157","استاذ تعليم ابتدائي","إ -","العربية","جويدة الجموعي- النخلة","الرباح","حي النور","النخلة","مركز اجراء امتحان ش البكالوريا","","ثانوية الشهيد بن حمده علي  - النخلة"]
[158,12610,"محمد1 علي158","استاذ تعليم ابتدائي","إ -","العربية","جويدة الجموعي- النخلة","الرباح","حي النور","النخلة","مركز اجراء امتحان ش البكالوريا","","ثانوية الشهيد بن حمده علي  - النخلة"]
[159,12611,"محمد1 علي159","استاذ تعليم ابتدائي","إ -","العربية","جويدة الجموعي- النخلة","الرباح","حي النور","النخلة","مركز اجراء امتحان ش البكالوريا","","ثانوية الشهيد بن حمده علي  - النخلة"]
[160,12612,"محمد1 علي160","استاذ تعليم ابتدائي","إ -","العربية","جويدة الجموعي- النخلة","الرباح","حي النور","النخلة","مركز اجراء امتحان ش البكالوريا","","ثانوية الشهيد بن حمده علي  - النخلة"]
[161,12613,"محمد1 علي161","استاذ تعليم ابتدائي","إ -","العربية","جويدة الجموعي- النخلة","الرباح","حي النور","النخلة","مركز اجراء امتحان ش البكالوريا","","ثانوية الشهيد بن حمده علي  - النخلة"]
[162,12614,"محمد1 علي162","استاذ تعليم ابتدائي","إ -","العربية","جويدة الجموعي- النخلة","الرباح","حي النور","النخلة","مركز اجراء امتحان ش البكالوريا","","ثانوية الشهيد بن حمده علي  - النخلة"]
[163,12615,"محمد1 علي163","استاذ تعليم ابتدائي","إ -","العربية","جويدة الجموعي- النخلة","الرباح","حي النور","النخلة","مركز اجراء امتحان ش البكالوريا","","ثانوية الشهيد بن حمده علي  - النخلة"]
[164,12616,"محمد1 علي164","استاذ تعليم ابتدائي","إ -","العربية","جويدة الجموعي- النخلة","الرباح","حي النور","النخلة","مركز اجراء امتحان ش البكالوريا","","ثانوية الشهيد بن حمده علي  - النخلة"]
[165,12617,"محمد1 علي165","استاذ تعليم ابتدائي","إ -","العربية","جويدة الجموعي- النخلة","الرباح","حي النور","النخلة","مركز اجراء امتحان ش البكالوريا","","ثانوية الشهيد بن حمده علي  - النخلة"]
[166,12618,"محمد1 علي166","استاذ تعليم ابتدائي","إ -","العربية","جويدة الجموعي- النخلة","الرباح","حي النور","النخلة","مركز اجراء امتحان ش البكالوريا","","ثانوية الشهيد بن حمده علي  - النخلة"]
[167,12619,"محمد1 علي167","استاذ تعليم ابتدائي","إ -","العربية","جويدة الجموعي- النخلة","الرباح","حي النور","النخلة","مركز اجراء امتحان ش البكالوريا","","ثانوية الشهيد بن حمده علي  - النخلة"]
[168,12620,"محمد1 علي168","استاذ تعليم ابتدائي","إ -","العربية","جويدة الجموعي- النخلة","الرباح","حي النور","النخلة","مركز اجراء امتحان ش البكالوريا","","ثانوية الشهيد بن حمده علي  - النخلة"]
[169,12621,"محمد1 علي169","استاذ تعليم ابتدائي","إ -","العربية","جويدة الجموعي- النخلة","الرباح","حي النور","النخلة","مركز اجراء امتحان ش البكالوريا","","ثانوية الشهيد بن حمده علي  - النخلة"]
[170,12622,"محمد1 علي170","استاذ تعليم ابتدائي","إ -","العربية","جويدة الجموعي- النخلة","الرباح","حي النور","النخلة","مركز اجراء امتحان ش البكالوريا","","ثانوية الشهيد بن حمده علي  - النخلة"]
[171,12623,"محمد1 علي171","استاذ تعليم ابتدائي","إ -","العربية","جويدة الجموعي- النخلة","الرباح","حي النور","النخلة","مركز اجراء امتحان ش البكالوريا","","ثانوية الشهيد بن حمده علي  - النخلة"]
[172,12624,"محمد1 علي172","استاذ تعليم ابتدائي","إ -","العربية","جويدة الجموعي- النخلة","الرباح","حي النور","النخلة","مركز اجراء امتحان ش البكالوريا","","ثانوية الشهيد بن حمده علي  - النخلة"]
[173,12625,"محمد1 علي173","استاذ تعليم ابتدائي","إ -","العربية","جويدة الجموعي- النخلة","الرباح","حي النور","النخلة","مركز اجراء امتحان ش البكالوريا","","ثانوية الشهيد بن حمده علي  - النخلة"]
[174,12626,"محمد1 علي174","استاذ تعليم ابتدائي","إ -","العربية","جويدة الجموعي- النخلة","الرباح","حي النور","النخلة","مركز اجراء امتحان ش البكالوريا","","ثانوية الشهيد بن حمده علي  - النخلة"]
[175,12627,"محمد1 علي175","استاذ تعليم ابتدائي","إ -","العربية","جويدة الجموعي- النخلة","الرباح","حي النور","النخلة","مركز اجراء امتحان ش البكالوريا","","ثانوية الشهيد بن حمده علي  - النخلة"]
[176,12628,"محمد1 علي176","استاذ تعليم ابتدائي","إ -","العربية","جويدة الجموعي- النخلة","الرباح","حي النور","النخلة","مركز اجراء امتحان ش البكالوريا","","ثانوية الشهيد بن حمده علي  - النخلة"]
[177,12629,"محمد1 علي177","استاذ تعليم ابتدائي","إ -","العربية","جويدة الجموعي- النخلة","الرباح","حي النور","النخلة","مركز اجراء امتحان ش البكالوريا","","ثانوية الشهيد بن حمده علي  - النخلة"]
[178,12630,"محمد1 علي178","استاذ تعليم ابتدائي","إ -","العربية","جويدة الجموعي- النخلة","الرباح","حي النور","النخلة","مركز اجراء امتحان ش البكالوريا","","ثانوية الشهيد بن حمده علي  - النخلة"]
[179,12631,"محمد1 علي179","استاذ تعليم ابتدائي","إ -","العربية","جويدة الجموعي- النخلة","الرباح","حي النور","النخلة","مركز اجراء امتحان ش البكالوريا","","ثانوية الشهيد بن حمده علي  - النخلة"]
[180,12632,"محمد1 علي180","استاذ تعليم ابتدائي","إ -","العربية","جويدة الجموعي- النخلة","الرباح","حي النور","النخلة","مركز اجراء امتحان ش البكالوريا","","ثانوية الشهيد بن حمده علي  - النخلة"]
[181,12633,"محمد1 علي181","استاذ تعليم ابتدائي","إ -","العربية","جويدة الجموعي- النخلة","الرباح","حي النور","النخلة","مركز اجراء امتحان ش البكالوريا","","ثانوية الشهيد بن حمده علي  - النخلة"]
[182,12634,"محمد1 علي182","استاذ تعليم ابتدائي","إ -","العربية","جويدة الجموعي- النخلة","الرباح","حي النور","النخلة","مركز اجراء امتحان ش البكالوريا","","ثانوية الشهيد بن حمده علي  - النخلة"]
[183,12635,"محمد1 علي183","استاذ تعليم ابتدائي","إ -","العربية","جويدة الجموعي- النخلة","الرباح","حي النور","النخلة","مركز اجراء امتحان ش البكالوريا","","ثانوية الشهيد بن حمده علي  - النخلة"]
[184,12636,"محمد1 علي184","استاذ تعليم ابتدائي","إ -","العربية","جويدة الجموعي- النخلة","الرباح","حي النور","النخلة","مركز اجراء امتحان ش البكالوريا","","ثانوية الشهيد بن حمده علي  - النخلة"]
[185,12637,"محمد1 علي185","استاذ تعليم ابتدائي","إ -","العربية","جويدة الجموعي- النخلة","الرباح","حي النور","النخلة","مركز اجراء امتحان ش البكالوريا","","ثانوية الشهيد بن حمده علي  - النخلة"]
[186,12638,"محمد1 علي186","استاذ تعليم ابتدائي","إ -","العربية","جويدة الجموعي- النخلة","الرباح","حي النور","النخلة","مركز اجراء امتحان ش البكالوريا","","ثانوية الشهيد بن حمده علي  - النخلة"]
[187,12639,"محمد1 علي187","استاذ تعليم ابتدائي","إ -","العربية","جويدة الجموعي- النخلة","الرباح","حي النور","النخلة","مركز اجراء امتحان ش البكالوريا","","ثانوية الشهيد بن حمده علي  - النخلة"]
[188,12640,"محمد1 علي188","استاذ تعليم ابتدائي","إ -","العربية","جويدة الجموعي- النخلة","الرباح","حي النور","النخلة","مركز اجراء امتحان ش البكالوريا","","ثانوية الشهيد بن حمده علي  - النخلة"]
[189,12641,"محمد1 علي189","استاذ تعليم ابتدائي","إ -","العربية","جويدة الجموعي- النخلة","الرباح","حي النور","النخلة","مركز اجراء امتحان ش البكالوريا","","ثانوية الشهيد بن حمده علي  - النخلة"]
[190,12642,"محمد1 علي190","استاذ تعليم ابتدائي","إ -","العربية","جويدة الجموعي- النخلة","الرباح","حي النور","النخلة","مركز اجراء امتحان ش البكالوريا","","ثانوية الشهيد بن حمده علي  - النخلة"]
[191,12643,"محمد1 علي191","استاذ تعليم ابتدائي","إ -","العربية","جويدة الجموعي- النخلة","الرباح","حي النور","النخلة","مركز اجراء امتحان ش البكالوريا","","ثانوية الشهيد بن حمده علي  - النخلة"]
[192,12644,"محمد1 علي192","استاذ تعليم ابتدائي","إ -","العربية","جويدة الجموعي- النخلة","الرباح","حي النور","النخلة","مركز اجراء امتحان ش البكالوريا","","ثانوية الشهيد بن حمده علي  - النخلة"]
[193,12645,"محمد1 علي193","استاذ تعليم ابتدائي","إ -","العربية","جويدة الجموعي- النخلة","الرباح","حي النور","النخلة","مركز اجراء امتحان ش البكالوريا","","ثانوية الشهيد بن حمده علي  - النخلة"]
[194,12646,"محمد1 علي194","استاذ تعليم ابتدائي","إ -","العربية","جويدة الجموعي- النخلة","الرباح","حي النور","النخلة","مركز اجراء امتحان ش البكالوريا","","ثانوية الشهيد بن حمده علي  - النخلة"]
[195,12647,"محمد1 علي195","استاذ تعليم ابتدائي","إ -","العربية","جويدة الجموعي- النخلة","الرباح","حي النور","النخلة","مركز اجراء امتحان ش البكالوريا","","ثانوية الشهيد بن حمده علي  - النخلة"]
[196,12648,"محمد1 علي196","استاذ تعليم ابتدائي","إ -","العربية","جويدة الجموعي- النخلة","الرباح","حي النور","النخلة","مركز اجراء امتحان ش البكالوريا","","ثانوية الشهيد بن حمده علي  - النخلة"]
[197,12649,"محمد1 علي197","استاذ تعليم ابتدائي","إ -","العربية","جويدة الجموعي- النخلة","الرباح","حي النور","النخلة","مركز اجراء امتحان ش البكالوريا","","ثانوية الشهيد بن حمده علي  - النخلة"]
[198,12650,"محمد1 علي198","استاذ تعليم ابتدائي","إ -","العربية","جويدة الجموعي- النخلة","الرباح","حي النور","النخلة","مركز اجراء امتحان ش البكالوريا","","ثانوية الشهيد بن حمده علي  - النخلة"]
[199,12651,"محمد1 علي199","استاذ تعليم ابتدائي","إ -","العربية","جويدة الجموعي- النخلة","الرباح","حي النور","النخلة","مركز اجراء امتحان ش البكالوريا","","ثانوية الشهيد بن حمده علي  - النخلة"]
[200,12652,"محمد1 علي200","استاذ تعليم ابتدائي","إ -","العربية","جويدة الجموعي- النخلة","الرباح","حي النور","النخلة","مركز اجراء امتحان ش البكالوريا","","ثانوية الشهيد بن حمده علي  - النخلة"]
[201,12653,"محمد1 علي201","استاذ تعليم ابتدائي","إ -","العربية","جويدة الجموعي- النخلة","الرباح","حي النور","النخلة","مركز اجراء امتحان ش البكالوريا","","ثانوية الشهيد بن حمده علي  - النخلة"]
[202,12654,"محمد1 علي202","استاذ تعليم ابتدائي","إ -","العربية","جويدة الجموعي- النخلة","الرباح","حي النور","النخلة","مركز اجراء امتحان ش البكالوريا","","ثانوية الشهيد بن حمده علي  - النخلة"]
[203,12655,"محمد1 علي203","استاذ تعليم ابتدائي","إ -","العربية","جويدة الجموعي- النخلة","الرباح","حي النور","النخلة","مركز اجراء امتحان ش البكالوريا","","ثانوية الشهيد بن حمده علي  - النخلة"]
[204,12656,"محمد1 علي204","استاذ تعليم ابتدائي","إ -","العربية","جويدة الجموعي- النخلة","الرباح","حي النور","النخلة","مركز اجراء امتحان ش البكالوريا","","ثانوية الشهيد بن حمده علي  - النخلة"]
[205,12657,"محمد1 علي205","استاذ تعليم ابتدائي","إ -","العربية","جويدة الجموعي- النخلة","الرباح","حي النور","النخلة","مركز اجراء امتحان ش البكالوريا","","ثانوية الشهيد بن حمده علي  - النخلة"]
[206,12658,"محمد1 علي206","استاذ تعليم ابتدائي","إ -","العربية","جويدة الجموعي- النخلة","الرباح","حي النور","النخلة","مركز اجراء امتحان ش البكالوريا","","ثانوية الشهيد بن حمده علي  - النخلة"]
[207,12659,"محمد1 علي207","استاذ تعليم ابتدائي","إ -","العربية","جويدة الجموعي- النخلة","الرباح","حي النور","النخلة","مركز اجراء امتحان ش البكالوريا","","ثانوية الشهيد بن حمده علي  - النخلة"]
[208,12660,"محمد1 علي208","استاذ تعليم ابتدائي","إ -","العربية","جويدة الجموعي- النخلة","الرباح","حي النور","النخلة","مركز اجراء امتحان ش البكالوريا","","ثانوية الشهيد بن حمده علي  - النخلة"]
[209,12661,"محمد1 علي209","استاذ تعليم ابتدائي","إ -","العربية","جويدة الجموعي- النخلة","الرباح","حي النور","النخلة","مركز اجراء امتحان ش البكالوريا","","ثانوية الشهيد بن حمده علي  - النخلة"]
[210,12662,"محمد1 علي210","استاذ تعليم ابتدائي","إ -","العربية","جويدة الجموعي- النخلة","الرباح","حي النور","النخلة","مركز اجراء امتحان ش البكالوريا","","ثانوية الشهيد بن حمده علي  - النخلة"]
[211,12663,"محمد1 علي211","استاذ تعليم ابتدائي","إ -","العربية","جويدة الجموعي- النخلة","الرباح","حي النور","النخلة","مركز اجراء امتحان ش البكالوريا","","ثانوية الشهيد بن حمده علي  - النخلة"]
[212,12664,"محمد1 علي212","استاذ تعليم ابتدائي","إ -","العربية","جويدة الجموعي- النخلة","الرباح","حي النور","النخلة","مركز اجراء امتحان ش البكالوريا","","ثانوية الشهيد بن حمده علي  - النخلة"]
[213,12665,"محمد1 علي213","استاذ تعليم ابتدائي","إ -","العربية","جويدة الجموعي- النخلة","الرباح","حي النور","النخلة","مركز اجراء امتحان ش البكالوريا","","ثانوية الشهيد بن حمده علي  - النخلة"]
[214,12666,"محمد1 علي214","استاذ تعليم ابتدائي","إ -","العربية","جويدة الجموعي- النخلة","الرباح","حي النور","النخلة","مركز اجراء امتحان ش البكالوريا","","ثانوية الشهيد بن حمده علي  - النخلة"]
[215,12667,"محمد1 علي215","استاذ تعليم ابتدائي","إ -","العربية","جويدة الجموعي- النخلة","الرباح","حي النور","النخلة","مركز اجراء امتحان ش البكالوريا","","ثانوية الشهيد بن حمده علي  - النخلة"]
[216,12668,"محمد1 علي216","استاذ تعليم ابتدائي","إ -","العربية","جويدة الجموعي- النخلة","الرباح","حي النور","النخلة","مركز اجراء امتحان ش البكالوريا","","ثانوية الشهيد بن حمده علي  - النخلة"]
[217,12669,"محمد1 علي217","استاذ تعليم ابتدائي","إ -","العربية","جويدة الجموعي- النخلة","الرباح","حي النور","النخلة","مركز اجراء امتحان ش البكالوريا","","ثانوية الشهيد بن حمده علي  - النخلة"]
[218,12670,"محمد1 علي218","استاذ تعليم ابتدائي","إ -","العربية","جويدة الجموعي- النخلة","الرباح","حي النور","النخلة","مركز اجراء امتحان ش البكالوريا","","ثانوية الشهيد بن حمده علي  - النخلة"]
[219,12671,"محمد1 علي219","استاذ تعليم ابتدائي","إ -","العربية","جويدة الجموعي- النخلة","الرباح","حي النور","النخلة","مركز اجراء امتحان ش البكالوريا","","ثانوية الشهيد بن حمده علي  - النخلة"]
[220,12672,"محمد1 علي220","استاذ تعليم ابتدائي","إ -","العربية","جويدة الجموعي- النخلة","الرباح","حي النور","النخلة","مركز اجراء امتحان ش البكالوريا","","ثانوية الشهيد بن حمده علي  - النخلة"]
[221,12673,"محمد1 علي221","استاذ تعليم ابتدائي","إ -","العربية","جويدة الجموعي- النخلة","الرباح","حي النور","النخلة","مركز اجراء امتحان ش البكالوريا","","ثانوية الشهيد بن حمده علي  - النخلة"]
[222,12674,"محمد1 علي222","استاذ تعليم ابتدائي","إ -","العربية","جويدة الجموعي- النخلة","الرباح","حي النور","النخلة","مركز اجراء امتحان ش البكالوريا","","ثانوية الشهيد بن حمده علي  - النخلة"]
[223,12675,"محمد1 علي223","استاذ تعليم ابتدائي","إ -","العربية","جويدة الجموعي- النخلة","الرباح","حي النور","النخلة","مركز اجراء امتحان ش البكالوريا","","ثانوية الشهيد بن حمده علي  - النخلة"]
[224,12676,"محمد1 علي224","استاذ تعليم ابتدائي","إ -","العربية","جويدة الجموعي- النخلة","الرباح","حي النور","النخلة","مركز اجراء امتحان ش البكالوريا","","ثانوية الشهيد بن حمده علي  - النخلة"]
[225,12677,"محمد1 علي225","استاذ تعليم ابتدائي","إ -","العربية","جويدة الجموعي- النخلة","الرباح","حي النور","النخلة","مركز اجراء امتحان ش البكالوريا","","ثانوية الشهيد بن حمده علي  - النخلة"]
[226,12678,"محمد1 علي226","استاذ تعليم ابتدائي","إ -","العربية","جويدة الجموعي- النخلة","الرباح","حي النور","النخلة","مركز اجراء امتحان ش البكالوريا","","ثانوية الشهيد بن حمده علي  - النخلة"]
[227,12679,"محمد1 علي227","استاذ تعليم ابتدائي","إ -","العربية","جويدة الجموعي- النخلة","الرباح","حي النور","النخلة","مركز اجراء امتحان ش البكالوريا","","ثانوية الشهيد بن حمده علي  - النخلة"]
[228,12680,"محمد1 علي228","استاذ تعليم ابتدائي","إ -","العربية","جويدة الجموعي- النخلة","الرباح","حي النور","النخلة","مركز اجراء امتحان ش البكالوريا","","ثانوية الشهيد بن حمده علي  - النخلة"]
[229,12681,"محمد1 علي229","استاذ تعليم ابتدائي","إ -","العربية","جويدة الجموعي- النخلة","الرباح","حي النور","النخلة","مركز اجراء امتحان ش البكالوريا","","ثانوية الشهيد بن حمده علي  - النخلة"]
[230,12682,"محمد1 علي230","استاذ تعليم ابتدائي","إ -","العربية","جويدة الجموعي- النخلة","الرباح","حي النور","النخلة","مركز اجراء امتحان ش البكالوريا","","ثانوية الشهيد بن حمده علي  - النخلة"]
[231,12683,"محمد1 علي231","استاذ تعليم ابتدائي","إ -","العربية","جويدة الجموعي- النخلة","الرباح","حي النور","النخلة","مركز اجراء امتحان ش البكالوريا","","ثانوية الشهيد بن حمده علي  - النخلة"]
[232,12684,"محمد1 علي232","استاذ تعليم ابتدائي","إ -","العربية","جويدة الجموعي- النخلة","الرباح","حي النور","النخلة","مركز اجراء امتحان ش البكالوريا","","ثانوية الشهيد بن حمده علي  - النخلة"]
[233,12685,"محمد1 علي233","استاذ تعليم ابتدائي","إ -","العربية","جويدة الجموعي- النخلة","الرباح","حي النور","النخلة","مركز اجراء امتحان ش البكالوريا","","ثانوية الشهيد بن حمده علي  - النخلة"]
[234,12686,"محمد1 علي234","استاذ تعليم ابتدائي","إ -","العربية","جويدة الجموعي- النخلة","الرباح","حي النور","النخلة","مركز اجراء امتحان ش البكالوريا","","ثانوية الشهيد بن حمده علي  - النخلة"]
[235,12687,"محمد1 علي235","استاذ تعليم ابتدائي","إ -","العربية","جويدة الجموعي- النخلة","الرباح","حي النور","النخلة","مركز اجراء امتحان ش البكالوريا","","ثانوية الشهيد بن حمده علي  - النخلة"]
[236,12688,"محمد1 علي236","استاذ تعليم ابتدائي","إ -","العربية","جويدة الجموعي- النخلة","الرباح","حي النور","النخلة","مركز اجراء امتحان ش البكالوريا","","ثانوية الشهيد بن حمده علي  - النخلة"]
[237,12689,"محمد1 علي237","استاذ تعليم ابتدائي","إ -","العربية","جويدة الجموعي- النخلة","الرباح","حي النور","النخلة","مركز اجراء امتحان ش البكالوريا","","ثانوية الشهيد بن حمده علي  - النخلة"]
[238,12690,"محمد1 علي238","استاذ تعليم ابتدائي","إ -","العربية","جويدة الجموعي- النخلة","الرباح","حي النور","النخلة","مركز اجراء امتحان ش البكالوريا","","ثانوية الشهيد بن حمده علي  - النخلة"]
[239,12691,"محمد1 علي239","استاذ تعليم ابتدائي","إ -","العربية","جويدة الجموعي- النخلة","الرباح","حي النور","النخلة","مركز اجراء امتحان ش البكالوريا","","ثانوية الشهيد بن حمده علي  - النخلة"]
[240,12692,"محمد1 علي240","استاذ تعليم ابتدائي","إ -","العربية","جويدة الجموعي- النخلة","الرباح","حي النور","النخلة","مركز اجراء امتحان ش البكالوريا","","ثانوية الشهيد بن حمده علي  - النخلة"]
[241,12693,"محمد1 علي241","استاذ تعليم ابتدائي","إ -","العربية","جويدة الجموعي- النخلة","الرباح","حي النور","النخلة","مركز اجراء امتحان ش البكالوريا","","ثانوية الشهيد بن حمده علي  - النخلة"]
[242,12694,"محمد1 علي242","استاذ تعليم ابتدائي","إ -","العربية","جويدة الجموعي- النخلة","الرباح","حي النور","النخلة","مركز اجراء امتحان ش البكالوريا","","ثانوية الشهيد بن حمده علي  - النخلة"]
[243,12695,"محمد1 علي243","استاذ تعليم ابتدائي","إ -","العربية","جويدة الجموعي- النخلة","الرباح","حي النور","النخلة","مركز اجراء امتحان ش البكالوريا","","ثانوية الشهيد بن حمده علي  - النخلة"]
[244,12696,"محمد1 علي244","استاذ تعليم ابتدائي","إ -","العربية","جويدة الجموعي- النخلة","الرباح","حي النور","النخلة","مركز اجراء امتحان ش البكالوريا","","ثانوية الشهيد بن حمده علي  - النخلة"]
[245,12697,"محمد1 علي245","استاذ تعليم ابتدائي","إ -","العربية","جويدة الجموعي- النخلة","الرباح","حي النور","النخلة","مركز اجراء امتحان ش البكالوريا","","ثانوية الشهيد بن حمده علي  - النخلة"]
[246,12698,"محمد1 علي246","استاذ تعليم ابتدائي","إ -","العربية","جويدة الجموعي- النخلة","الرباح","حي النور","النخلة","مركز اجراء امتحان ش البكالوريا","","ثانوية الشهيد بن حمده علي  - النخلة"]
[247,12699,"محمد1 علي247","استاذ تعليم ابتدائي","إ -","العربية","جويدة الجموعي- النخلة","الرباح","حي النور","النخلة","مركز اجراء امتحان ش البكالوريا","","ثانوية الشهيد بن حمده علي  - النخلة"]
[248,12700,"محمد1 علي248","استاذ تعليم ابتدائي","إ -","العربية","جويدة الجموعي- النخلة","الرباح","حي النور","النخلة","مركز اجراء امتحان ش البكالوريا","","ثانوية الشهيد بن حمده علي  - النخلة"]
[249,12701,"محمد1 علي249","استاذ تعليم ابتدائي","إ -","العربية","جويدة الجموعي- النخلة","الرباح","حي النور","النخلة","مركز اجراء امتحان ش البكالوريا","","ثانوية الشهيد بن حمده علي  - النخلة"]
[250,12702,"محمد1 علي250","استاذ تعليم ابتدائي","إ -","العربية","جويدة الجموعي- النخلة","الرباح","حي النور","النخلة","مركز اجراء امتحان ش البكالوريا","","ثانوية الشهيد بن حمده علي  - النخلة"]
[251,12703,"محمد1 علي251","استاذ تعليم ابتدائي","إ -","العربية","جويدة الجموعي- النخلة","الرباح","حي النور","النخلة","مركز اجراء امتحان ش البكالوريا","","ثانوية الشهيد بن حمده علي  - النخلة"]
[252,12704,"محمد1 علي252","استاذ تعليم ابتدائي","إ -","العربية","جويدة الجموعي- النخلة","الرباح","حي النور","النخلة","مركز اجراء امتحان ش البكالوريا","","ثانوية الشهيد بن حمده علي  - النخلة"]
[253,12705,"محمد1 علي253","استاذ تعليم ابتدائي","إ -","العربية","جويدة الجموعي- النخلة","الرباح","حي النور","النخلة","مركز اجراء امتحان ش البكالوريا","","ثانوية الشهيد بن حمده علي  - النخلة"]
[254,12706,"محمد1 علي254","استاذ تعليم ابتدائي","إ -","العربية","جويدة الجموعي- النخلة","الرباح","حي النور","النخلة","مركز اجراء امتحان ش البكالوريا","","ثانوية الشهيد بن حمده علي  - النخلة"]
[255,12707,"محمد1 علي255","استاذ تعليم ابتدائي","إ -","العربية","جويدة الجموعي- النخلة","الرباح","حي النور","النخلة","مركز اجراء امتحان ش البكالوريا","","ثانوية الشهيد بن حمده علي  - النخلة"]
[256,12708,"محمد1 علي256","استاذ تعليم ابتدائي","إ -","العربية","جويدة الجموعي- النخلة","الرباح","حي النور","النخلة","مركز اجراء امتحان ش البكالوريا","","ثانوية الشهيد بن حمده علي  - النخلة"]
[257,12709,"محمد1 علي257","استاذ تعليم ابتدائي","إ -","العربية","جويدة الجموعي- النخلة","الرباح","حي النور","النخلة","مركز اجراء امتحان ش البكالوريا","","ثانوية الشهيد بن حمده علي  - النخلة"]
[258,12710,"محمد1 علي258","استاذ تعليم ابتدائي","إ -","العربية","جويدة الجموعي- النخلة","الرباح","حي النور","النخلة","مركز اجراء امتحان ش البكالوريا","","ثانوية الشهيد بن حمده علي  - النخلة"]
[259,12711,"محمد1 علي259","استاذ تعليم ابتدائي","إ -","العربية","جويدة الجموعي- النخلة","الرباح","حي النور","النخلة","مركز اجراء امتحان ش البكالوريا","","ثانوية الشهيد بن حمده علي  - النخلة"]
[260,12712,"محمد1 علي260","استاذ تعليم ابتدائي","إ -","العربية","جويدة الجموعي- النخلة","الرباح","حي النور","النخلة","مركز اجراء امتحان ش البكالوريا","","ثانوية الشهيد بن حمده علي  - النخلة"]
[261,12713,"محمد1 علي261","استاذ تعليم ابتدائي","إ -","العربية","جويدة الجموعي- النخلة","الرباح","حي النور","النخلة","مركز اجراء امتحان ش البكالوريا","","ثانوية الشهيد بن حمده علي  - النخلة"]
[262,12714,"محمد1 علي262","استاذ تعليم ابتدائي","إ -","العربية","جويدة الجموعي- النخلة","الرباح","حي النور","النخلة","مركز اجراء امتحان ش البكالوريا","","ثانوية الشهيد بن حمده علي  - النخلة"]
[263,12715,"محمد1 علي263","استاذ تعليم ابتدائي","إ -","العربية","جويدة الجموعي- النخلة","الرباح","حي النور","النخلة","مركز اجراء امتحان ش البكالوريا","","ثانوية الشهيد بن حمده علي  - النخلة"]
[264,12716,"محمد1 علي264","استاذ تعليم ابتدائي","إ -","العربية","جويدة الجموعي- النخلة","الرباح","حي النور","النخلة","مركز اجراء امتحان ش البكالوريا","","ثانوية الشهيد بن حمده علي  - النخلة"]
[265,12717,"محمد1 علي265","استاذ تعليم ابتدائي","إ -","العربية","جويدة الجموعي- النخلة","الرباح","حي النور","النخلة","مركز اجراء امتحان ش البكالوريا","","ثانوية الشهيد بن حمده علي  - النخلة"]
[266,12718,"محمد1 علي266","استاذ تعليم ابتدائي","إ -","العربية","جويدة الجموعي- النخلة","الرباح","حي النور","النخلة","مركز اجراء امتحان ش البكالوريا","","ثانوية الشهيد بن حمده علي  - النخلة"]
[267,12719,"محمد1 علي267","استاذ تعليم ابتدائي","إ -","العربية","جويدة الجموعي- النخلة","الرباح","حي النور","النخلة","مركز اجراء امتحان ش البكالوريا","","ثانوية الشهيد بن حمده علي  - النخلة"]
[268,12720,"محمد1 علي268","استاذ تعليم ابتدائي","إ -","العربية","جويدة الجموعي- النخلة","الرباح","حي النور","النخلة","مركز اجراء امتحان ش البكالوريا","","ثانوية الشهيد بن حمده علي  - النخلة"]
[269,12721,"محمد1 علي269","استاذ تعليم ابتدائي","إ -","العربية","جويدة الجموعي- النخلة","الرباح","حي النور","النخلة","مركز اجراء امتحان ش البكالوريا","","ثانوية الشهيد بن حمده علي  - النخلة"]
[270,12722,"محمد1 علي270","استاذ تعليم ابتدائي","إ -","العربية","جويدة الجموعي- النخلة","الرباح","حي النور","النخلة","مركز اجراء امتحان ش البكالوريا","","ثانوية الشهيد بن حمده علي  - النخلة"]
[271,12723,"محمد1 علي271","استاذ تعليم ابتدائي","إ -","العربية","جويدة الجموعي- النخلة","الرباح","حي النور","النخلة","مركز اجراء امتحان ش البكالوريا","","ثانوية الشهيد بن حمده علي  - النخلة"]
[272,12724,"محمد1 علي272","استاذ تعليم ابتدائي","إ -","العربية","جويدة الجموعي- النخلة","الرباح","حي النور","النخلة","مركز اجراء امتحان ش البكالوريا","","ثانوية الشهيد بن حمده علي  - النخلة"]
[273,12725,"محمد1 علي273","استاذ تعليم ابتدائي","إ -","العربية","جويدة الجموعي- النخلة","الرباح","حي النور","النخلة","مركز اجراء امتحان ش البكالوريا","","ثانوية الشهيد بن حمده علي  - النخلة"]
[274,12726,"محمد1 علي274","استاذ تعليم ابتدائي","إ -","العربية","جويدة الجموعي- النخلة","الرباح","حي النور","النخلة","مركز اجراء امتحان ش البكالوريا","","ثانوية الشهيد بن حمده علي  - النخلة"]
[275,12727,"محمد1 علي275","استاذ تعليم ابتدائي","إ -","العربية","جويدة الجموعي- النخلة","الرباح","حي النور","النخلة","مركز اجراء امتحان ش البكالوريا","","ثانوية الشهيد بن حمده علي  - النخلة"]
[276,12728,"محمد1 علي276","استاذ تعليم ابتدائي","إ -","العربية","جويدة الجموعي- النخلة","الرباح","حي النور","النخلة","مركز اجراء امتحان ش البكالوريا","","ثانوية الشهيد بن حمده علي  - النخلة"]
[277,12729,"محمد1 علي277","استاذ تعليم ابتدائي","إ -","العربية","جويدة الجموعي- النخلة","الرباح","حي النور","النخلة","مركز اجراء امتحان ش البكالوريا","","ثانوية الشهيد بن حمده علي  - النخلة"]
[278,12730,"محمد1 علي278","استاذ تعليم ابتدائي","إ -","العربية","جويدة الجموعي- النخلة","الرباح","حي النور","النخلة","مركز اجراء امتحان ش البكالوريا","","ثانوية الشهيد بن حمده علي  - النخلة"]
[279,12731,"محمد1 علي279","استاذ تعليم ابتدائي","إ -","العربية","جويدة الجموعي- النخلة","الرباح","حي النور","النخلة","مركز اجراء امتحان ش البكالوريا","","ثانوية الشهيد بن حمده علي  - النخلة"]
[280,12732,"محمد1 علي280","استاذ تعليم ابتدائي","إ -","العربية","جويدة الجموعي- النخلة","الرباح","حي النور","النخلة","مركز اجراء امتحان ش البكالوريا","","ثانوية الشهيد بن حمده علي  - النخلة"]
[281,12733,"محمد1 علي281","استاذ تعليم ابتدائي","إ -","العربية","جويدة الجموعي- النخلة","الرباح","حي النور","النخلة","مركز اجراء امتحان ش البكالوريا","","ثانوية الشهيد بن حمده علي  - النخلة"]
[282,12734,"محمد1 علي282","استاذ تعليم ابتدائي","إ -","العربية","جويدة الجموعي- النخلة","الرباح","حي النور","النخلة","مركز اجراء امتحان ش البكالوريا","","ثانوية الشهيد بن حمده علي  - النخلة"]
[283,12735,"محمد1 علي283","استاذ تعليم ابتدائي","إ -","العربية","جويدة الجموعي- النخلة","الرباح","حي النور","النخلة","مركز اجراء امتحان ش البكالوريا","","ثانوية الشهيد بن حمده علي  - النخلة"]
[284,12736,"محمد1 علي284","استاذ تعليم ابتدائي","إ -","العربية","جويدة الجموعي- النخلة","الرباح","حي النور","النخلة","مركز اجراء امتحان ش البكالوريا","","ثانوية الشهيد بن حمده علي  - النخلة"]
[285,12737,"محمد1 علي285","استاذ تعليم ابتدائي","إ -","العربية","جويدة الجموعي- النخلة","الرباح","حي النور","النخلة","مركز اجراء امتحان ش البكالوريا","","ثانوية الشهيد بن حمده علي  - النخلة"]
[286,12738,"محمد1 علي286","استاذ تعليم ابتدائي","إ -","العربية","جويدة الجموعي- النخلة","الرباح","حي النور","النخلة","مركز اجراء امتحان ش البكالوريا","","ثانوية الشهيد بن حمده علي  - النخلة"]
[287,12739,"محمد1 علي287","استاذ تعليم ابتدائي","إ -","العربية","جويدة الجموعي- النخلة","الرباح","حي النور","النخلة","مركز اجراء امتحان ش البكالوريا","","ثانوية الشهيد بن حمده علي  - النخلة"]
[288,12740,"محمد1 علي288","استاذ تعليم ابتدائي","إ -","العربية","جويدة الجموعي- النخلة","الرباح","حي النور","النخلة","مركز اجراء امتحان ش البكالوريا","","ثانوية الشهيد بن حمده علي  - النخلة"]
[289,12741,"محمد1 علي289","استاذ تعليم ابتدائي","إ -","العربية","جويدة الجموعي- النخلة","الرباح","حي النور","النخلة","مركز اجراء امتحان ش البكالوريا","","ثانوية الشهيد بن حمده علي  - النخلة"]
[290,12742,"محمد1 علي290","استاذ تعليم ابتدائي","إ -","العربية","جويدة الجموعي- النخلة","الرباح","حي النور","النخلة","مركز اجراء امتحان ش البكالوريا","","ثانوية الشهيد بن حمده علي  - النخلة"]
[291,12743,"محمد1 علي291","استاذ تعليم ابتدائي","إ -","العربية","جويدة الجموعي- النخلة","الرباح","حي النور","النخلة","مركز اجراء امتحان ش البكالوريا","","ثانوية الشهيد بن حمده علي  - النخلة"]
[292,12744,"محمد1 علي292","استاذ تعليم ابتدائي","إ -","العربية","جويدة الجموعي- النخلة","الرباح","حي النور","النخلة","مركز اجراء امتحان ش البكالوريا","","ثانوية الشهيد بن حمده علي  - النخلة"]
[293,12745,"محمد1 علي293","استاذ تعليم ابتدائي","إ -","العربية","جويدة الجموعي- النخلة","الرباح","حي النور","النخلة","مركز اجراء امتحان ش البكالوريا","","ثانوية الشهيد بن حمده علي  - النخلة"]
[294,12746,"محمد1 علي294","استاذ تعليم ابتدائي","إ -","العربية","جويدة الجموعي- النخلة","الرباح","حي النور","النخلة","مركز اجراء امتحان ش البكالوريا","","ثانوية الشهيد بن حمده علي  - النخلة"]
[295,12747,"محمد1 علي295","استاذ تعليم ابتدائي","إ -","العربية","جويدة الجموعي- النخلة","الرباح","حي النور","النخلة","مركز اجراء امتحان ش البكالوريا","","ثانوية الشهيد بن حمده علي  - النخلة"]
[296,12748,"محمد1 علي296","استاذ تعليم ابتدائي","إ -","العربية","جويدة الجموعي- النخلة","الرباح","حي النور","النخلة","مركز اجراء امتحان ش البكالوريا","","ثانوية الشهيد بن حمده علي  - النخلة"]
[297,12749,"محمد1 علي297","استاذ تعليم ابتدائي","إ -","العربية","جويدة الجموعي- النخلة","الرباح","حي النور","النخلة","مركز اجراء امتحان ش البكالوريا","","ثانوية الشهيد بن حمده علي  - النخلة"]
[298,12750,"محمد1 علي298","استاذ تعليم ابتدائي","إ -","العربية","جويدة الجموعي- النخلة","الرباح","حي النور","النخلة","مركز اجراء امتحان ش البكالوريا","","ثانوية الشهيد بن حمده علي  - النخلة"]
[299,12751,"محمد1 علي299","استاذ تعليم ابتدائي","إ -","العربية","جويدة الجموعي- النخلة","الرباح","حي النور","النخلة","مركز اجراء امتحان ش البكالوريا","","ثانوية الشهيد بن حمده علي  - النخلة"]
[300,12752,"محمد1 علي300","استاذ تعليم ابتدائي","إ -","العربية","جويدة الجموعي- النخلة","الرباح","حي النور","النخلة","مركز اجراء امتحان ش البكالوريا","","ثانوية الشهيد بن حمده علي  - النخلة"]
[301,12753,"محمد1 علي301","استاذ تعليم ابتدائي","إ -","العربية","جويدة الجموعي- النخلة","الرباح","حي النور","النخلة","مركز اجراء امتحان ش البكالوريا","","ثانوية الشهيد بن حمده علي  - النخلة"]
[302,12754,"محمد1 علي302","استاذ تعليم ابتدائي","إ -","العربية","جويدة الجموعي- النخلة","الرباح","حي النور","النخلة","مركز اجراء امتحان ش البكالوريا","","ثانوية الشهيد بن حمده علي  - النخلة"]
[303,12755,"محمد1 علي303","استاذ تعليم ابتدائي","إ -","العربية","جويدة الجموعي- النخلة","الرباح","حي النور","النخلة","مركز اجراء امتحان ش البكالوريا","","ثانوية الشهيد بن حمده علي  - النخلة"]
[304,12756,"محمد1 علي304","استاذ تعليم ابتدائي","إ -","العربية","جويدة الجموعي- النخلة","الرباح","حي النور","النخلة","مركز اجراء امتحان ش البكالوريا","","ثانوية الشهيد بن حمده علي  - النخلة"]
[305,12757,"محمد1 علي305","استاذ تعليم ابتدائي","إ -","العربية","جويدة الجموعي- النخلة","الرباح","حي النور","النخلة","مركز اجراء امتحان ش البكالوريا","","ثانوية الشهيد بن حمده علي  - النخلة"]
[306,12758,"محمد1 علي306","استاذ تعليم ابتدائي","إ -","العربية","جويدة الجموعي- النخلة","الرباح","حي النور","النخلة","مركز اجراء امتحان ش البكالوريا","","ثانوية الشهيد بن حمده علي  - النخلة"]
[307,12759,"محمد1 علي307","استاذ تعليم ابتدائي","إ -","العربية","جويدة الجموعي- النخلة","الرباح","حي النور","النخلة","مركز اجراء امتحان ش البكالوريا","","ثانوية الشهيد بن حمده علي  - النخلة"]
[308,12760,"محمد1 علي308","استاذ تعليم ابتدائي","إ -","العربية","جويدة الجموعي- النخلة","الرباح","حي النور","النخلة","مركز اجراء امتحان ش البكالوريا","","ثانوية الشهيد بن حمده علي  - النخلة"]
[309,12761,"محمد1 علي309","استاذ تعليم ابتدائي","إ -","العربية","جويدة الجموعي- النخلة","الرباح","حي النور","النخلة","مركز اجراء امتحان ش البكالوريا","","ثانوية الشهيد بن حمده علي  - النخلة"]
[310,12762,"محمد1 علي310","استاذ تعليم ابتدائي","إ -","العربية","جويدة الجموعي- النخلة","الرباح","حي النور","النخلة","مركز اجراء امتحان ش البكالوريا","","ثانوية الشهيد بن حمده علي  - النخلة"]
[311,12763,"محمد1 علي311","استاذ تعليم ابتدائي","إ -","العربية","جويدة الجموعي- النخلة","الرباح","حي النور","النخلة","مركز اجراء امتحان ش البكالوريا","","ثانوية الشهيد بن حمده علي  - النخلة"]
[312,12764,"محمد1 علي312","استاذ تعليم ابتدائي","إ -","العربية","جويدة الجموعي- النخلة","الرباح","حي النور","النخلة","مركز اجراء امتحان ش البكالوريا","","ثانوية الشهيد بن حمده علي  - النخلة"]
[313,12765,"محمد1 علي313","استاذ تعليم ابتدائي","إ -","العربية","جويدة الجموعي- النخلة","الرباح","حي النور","النخلة","مركز اجراء امتحان ش البكالوريا","","ثانوية الشهيد بن حمده علي  - النخلة"]
[314,12766,"محمد1 علي314","استاذ تعليم ابتدائي","إ -","العربية","جويدة الجموعي- النخلة","الرباح","حي النور","النخلة","مركز اجراء امتحان ش البكالوريا","","ثانوية الشهيد بن حمده علي  - النخلة"]
[315,12767,"محمد1 علي315","استاذ تعليم ابتدائي","إ -","العربية","جويدة الجموعي- النخلة","الرباح","حي النور","النخلة","مركز اجراء امتحان ش البكالوريا","","ثانوية الشهيد بن حمده علي  - النخلة"]
[316,12768,"محمد1 علي316","استاذ تعليم ابتدائي","إ -","العربية","جويدة الجموعي- النخلة","الرباح","حي النور","النخلة","مركز اجراء امتحان ش البكالوريا","","ثانوية الشهيد بن حمده علي  - النخلة"]
[317,12769,"محمد1 علي317","استاذ تعليم ابتدائي","إ -","العربية","جويدة الجموعي- النخلة","الرباح","حي النور","النخلة","مركز اجراء امتحان ش البكالوريا","","ثانوية الشهيد بن حمده علي  - النخلة"]
[318,12770,"محمد1 علي318","استاذ تعليم ابتدائي","إ -","العربية","جويدة الجموعي- النخلة","الرباح","حي النور","النخلة","مركز اجراء امتحان ش البكالوريا","","ثانوية الشهيد بن حمده علي  - النخلة"]
[319,12771,"محمد1 علي319","استاذ تعليم ابتدائي","إ -","العربية","جويدة الجموعي- النخلة","الرباح","حي النور","النخلة","مركز اجراء امتحان ش البكالوريا","","ثانوية الشهيد بن حمده علي  - النخلة"]
[320,12772,"محمد1 علي320","استاذ تعليم ابتدائي","إ -","العربية","جويدة الجموعي- النخلة","الرباح","حي النور","النخلة","مركز اجراء امتحان ش البكالوريا","","ثانوية الشهيد بن حمده علي  - النخلة"]
[321,12773,"محمد1 علي321","استاذ تعليم ابتدائي","إ -","العربية","جويدة الجموعي- النخلة","الرباح","حي النور","النخلة","مركز اجراء امتحان ش البكالوريا","","ثانوية الشهيد بن حمده علي  - النخلة"]
[322,12774,"محمد1 علي322","استاذ تعليم ابتدائي","إ -","العربية","جويدة الجموعي- النخلة","الرباح","حي النور","النخلة","مركز اجراء امتحان ش البكالوريا","","ثانوية الشهيد بن حمده علي  - النخلة"]
[323,12775,"محمد1 علي323","استاذ تعليم ابتدائي","إ -","العربية","جويدة الجموعي- النخلة","الرباح","حي النور","النخلة","مركز اجراء امتحان ش البكالوريا","","ثانوية الشهيد بن حمده علي  - النخلة"]
[324,12776,"محمد1 علي324","استاذ تعليم ابتدائي","إ -","العربية","جويدة الجموعي- النخلة","الرباح","حي النور","النخلة","مركز اجراء امتحان ش البكالوريا","","ثانوية الشهيد بن حمده علي  - النخلة"]
[325,12777,"محمد1 علي325","استاذ تعليم ابتدائي","إ -","العربية","جويدة الجموعي- النخلة","الرباح","حي النور","النخلة","مركز اجراء امتحان ش البكالوريا","","ثانوية الشهيد بن حمده علي  - النخلة"]
[326,12778,"محمد1 علي326","استاذ تعليم ابتدائي","إ -","العربية","جويدة الجموعي- النخلة","الرباح","حي النور","النخلة","مركز اجراء امتحان ش البكالوريا","","ثانوية الشهيد بن حمده علي  - النخلة"]
[327,12779,"محمد1 علي327","استاذ تعليم ابتدائي","إ -","العربية","جويدة الجموعي- النخلة","الرباح","حي النور","النخلة","مركز اجراء امتحان ش البكالوريا","","ثانوية الشهيد بن حمده علي  - النخلة"]
[328,12780,"محمد1 علي328","استاذ تعليم ابتدائي","إ -","العربية","جويدة الجموعي- النخلة","الرباح","حي النور","النخلة","مركز اجراء امتحان ش البكالوريا","","ثانوية الشهيد بن حمده علي  - النخلة"]
[329,12781,"محمد1 علي329","استاذ تعليم ابتدائي","إ -","العربية","جويدة الجموعي- النخلة","الرباح","حي النور","النخلة","مركز اجراء امتحان ش البكالوريا","","ثانوية الشهيد بن حمده علي  - النخلة"]
[330,12782,"محمد1 علي330","استاذ تعليم ابتدائي","إ -","العربية","جويدة الجموعي- النخلة","الرباح","حي النور","النخلة","مركز اجراء امتحان ش البكالوريا","","ثانوية الشهيد بن حمده علي  - النخلة"]
[331,12783,"محمد1 علي331","استاذ تعليم ابتدائي","إ -","العربية","جويدة الجموعي- النخلة","الرباح","حي النور","النخلة","مركز اجراء امتحان ش البكالوريا","","ثانوية الشهيد بن حمده علي  - النخلة"]
[332,12784,"محمد1 علي332","استاذ تعليم ابتدائي","إ -","العربية","جويدة الجموعي- النخلة","الرباح","حي النور","النخلة","مركز اجراء امتحان ش البكالوريا","","ثانوية الشهيد بن حمده علي  - النخلة"]
[333,12785,"محمد1 علي333","استاذ تعليم ابتدائي","إ -","العربية","جويدة الجموعي- النخلة","الرباح","حي النور","النخلة","مركز اجراء امتحان ش البكالوريا","","ثانوية الشهيد بن حمده علي  - النخلة"]
[334,12786,"محمد1 علي334","استاذ تعليم ابتدائي","إ -","العربية","جويدة الجموعي- النخلة","الرباح","حي النور","النخلة","مركز اجراء امتحان ش البكالوريا","","ثانوية الشهيد بن حمده علي  - النخلة"]
[335,12787,"محمد1 علي335","استاذ تعليم ابتدائي","إ -","العربية","جويدة الجموعي- النخلة","الرباح","حي النور","النخلة","مركز اجراء امتحان ش البكالوريا","","ثانوية الشهيد بن حمده علي  - النخلة"]
[336,12788,"محمد1 علي336","استاذ تعليم ابتدائي","إ -","العربية","جويدة الجموعي- النخلة","الرباح","حي النور","النخلة","مركز اجراء امتحان ش البكالوريا","","ثانوية الشهيد بن حمده علي  - النخلة"]
[337,12789,"محمد1 علي337","استاذ تعليم ابتدائي","إ -","العربية","جويدة الجموعي- النخلة","الرباح","حي النور","النخلة","مركز اجراء امتحان ش البكالوريا","","ثانوية الشهيد بن حمده علي  - النخلة"]
[338,12790,"محمد1 علي338","استاذ تعليم ابتدائي","إ -","العربية","جويدة الجموعي- النخلة","الرباح","حي النور","النخلة","مركز اجراء امتحان ش البكالوريا","","ثانوية الشهيد بن حمده علي  - النخلة"]
[339,12791,"محمد1 علي339","استاذ تعليم ابتدائي","إ -","العربية","جويدة الجموعي- النخلة","الرباح","حي النور","النخلة","مركز اجراء امتحان ش البكالوريا","","ثانوية الشهيد بن حمده علي  - النخلة"]
[340,12792,"محمد1 علي340","استاذ تعليم ابتدائي","إ -","العربية","جويدة الجموعي- النخلة","الرباح","حي النور","النخلة","مركز اجراء امتحان ش البكالوريا","","ثانوية الشهيد بن حمده علي  - النخلة"]
[341,12793,"محمد1 علي341","استاذ تعليم ابتدائي","إ -","العربية","جويدة الجموعي- النخلة","الرباح","حي النور","النخلة","مركز اجراء امتحان ش البكالوريا","","ثانوية الشهيد بن حمده علي  - النخلة"]
[342,12794,"محمد1 علي342","استاذ تعليم ابتدائي","إ -","العربية","جويدة الجموعي- النخلة","الرباح","حي النور","النخلة","مركز اجراء امتحان ش البكالوريا","","ثانوية الشهيد بن حمده علي  - النخلة"]
[343,12795,"محمد1 علي343","استاذ تعليم ابتدائي","إ -","العربية","جويدة الجموعي- النخلة","الرباح","حي النور","النخلة","مركز اجراء امتحان ش البكالوريا","","ثانوية الشهيد بن حمده علي  - النخلة"]
[344,12796,"محمد1 علي344","استاذ تعليم ابتدائي","إ -","العربية","جويدة الجموعي- النخلة","الرباح","حي النور","النخلة","مركز اجراء امتحان ش البكالوريا","","ثانوية الشهيد بن حمده علي  - النخلة"]
[345,12797,"محمد1 علي345","استاذ تعليم ابتدائي","إ -","العربية","جويدة الجموعي- النخلة","الرباح","حي النور","النخلة","مركز اجراء امتحان ش البكالوريا","","ثانوية الشهيد بن حمده علي  - النخلة"]
[346,12798,"محمد1 علي346","استاذ تعليم ابتدائي","إ -","العربية","جويدة الجموعي- النخلة","الرباح","حي النور","النخلة","مركز اجراء امتحان ش البكالوريا","","ثانوية الشهيد بن حمده علي  - النخلة"]
[347,12799,"محمد1 علي347","استاذ تعليم ابتدائي","إ -","العربية","جويدة الجموعي- النخلة","الرباح","حي النور","النخلة","مركز اجراء امتحان ش البكالوريا","","ثانوية الشهيد بن حمده علي  - النخلة"]
[348,12800,"محمد1 علي348","استاذ تعليم ابتدائي","إ -","العربية","جويدة الجموعي- النخلة","الرباح","حي النور","النخلة","مركز اجراء امتحان ش البكالوريا","","ثانوية الشهيد بن حمده علي  - النخلة"]
[349,12801,"محمد1 علي349","استاذ تعليم ابتدائي","إ -","العربية","جويدة الجموعي- النخلة","الرباح","حي النور","النخلة","مركز اجراء امتحان ش البكالوريا","","ثانوية الشهيد بن حمده علي  - النخلة"]
[350,12802,"محمد1 علي350","استاذ تعليم ابتدائي","إ -","العربية","جويدة الجموعي- النخلة","الرباح","حي النور","النخلة","مركز اجراء امتحان ش البكالوريا","","ثانوية الشهيد بن حمده علي  - النخلة"]
[351,12803,"محمد1 علي351","استاذ تعليم ابتدائي","إ -","العربية","جويدة الجموعي- النخلة","الرباح","حي النور","النخلة","مركز اجراء امتحان ش البكالوريا","","ثانوية الشهيد بن حمده علي  - النخلة"]
[352,12804,"محمد1 علي352","استاذ تعليم ابتدائي","إ -","العربية","جويدة الجموعي- النخلة","الرباح","حي النور","النخلة","مركز اجراء امتحان ش البكالوريا","","ثانوية الشهيد بن حمده علي  - النخلة"]
[353,12805,"محمد1 علي353","استاذ تعليم ابتدائي","إ -","العربية","جويدة الجموعي- النخلة","الرباح","حي النور","النخلة","مركز اجراء امتحان ش البكالوريا","","ثانوية الشهيد بن حمده علي  - النخلة"]
[354,12806,"محمد1 علي354","استاذ تعليم ابتدائي","إ -","العربية","جويدة الجموعي- النخلة","الرباح","حي النور","النخلة","مركز اجراء امتحان ش البكالوريا","","ثانوية الشهيد بن حمده علي  - النخلة"]
[355,12807,"محمد1 علي355","استاذ تعليم ابتدائي","إ -","العربية","جويدة الجموعي- النخلة","الرباح","حي النور","النخلة","مركز اجراء امتحان ش البكالوريا","","ثانوية الشهيد بن حمده علي  - النخلة"]
[356,12808,"محمد1 علي356","استاذ تعليم ابتدائي","إ -","العربية","جويدة الجموعي- النخلة","الرباح","حي النور","النخلة","مركز اجراء امتحان ش البكالوريا","","ثانوية الشهيد بن حمده علي  - النخلة"]
[357,12809,"محمد1 علي357","استاذ تعليم ابتدائي","إ -","العربية","جويدة الجموعي- النخلة","الرباح","حي النور","النخلة","مركز اجراء امتحان ش البكالوريا","","ثانوية الشهيد بن حمده علي  - النخلة"]
[358,12810,"محمد1 علي358","استاذ تعليم ابتدائي","إ -","العربية","جويدة الجموعي- النخلة","الرباح","حي النور","النخلة","مركز اجراء امتحان ش البكالوريا","","ثانوية الشهيد بن حمده علي  - النخلة"]
[359,12811,"محمد1 علي359","استاذ تعليم ابتدائي","إ -","العربية","جويدة الجموعي- النخلة","الرباح","حي النور","النخلة","مركز اجراء امتحان ش البكالوريا","","ثانوية الشهيد بن حمده علي  - النخلة"]
[360,12812,"محمد1 علي360","استاذ تعليم ابتدائي","إ -","العربية","جويدة الجموعي- النخلة","الرباح","حي النور","النخلة","مركز اجراء امتحان ش البكالوريا","","ثانوية الشهيد بن حمده علي  - النخلة"]
[361,12813,"محمد1 علي361","استاذ تعليم ابتدائي","إ -","العربية","جويدة الجموعي- النخلة","الرباح","حي النور","النخلة","مركز اجراء امتحان ش البكالوريا","","ثانوية الشهيد بن حمده علي  - النخلة"]
[362,12814,"محمد1 علي362","استاذ تعليم ابتدائي","إ -","العربية","جويدة الجموعي- النخلة","الرباح","حي النور","النخلة","مركز اجراء امتحان ش البكالوريا","","ثانوية الشهيد بن حمده علي  - النخلة"]
[363,12815,"محمد1 علي363","استاذ تعليم ابتدائي","إ -","العربية","جويدة الجموعي- النخلة","الرباح","حي النور","النخلة","مركز اجراء امتحان ش البكالوريا","","ثانوية الشهيد بن حمده علي  - النخلة"]
[364,12816,"محمد1 علي364","استاذ تعليم ابتدائي","إ -","العربية","جويدة الجموعي- النخلة","الرباح","حي النور","النخلة","مركز اجراء امتحان ش البكالوريا","","ثانوية الشهيد بن حمده علي  - النخلة"]
[365,12817,"محمد1 علي365","استاذ تعليم ابتدائي","إ -","العربية","جويدة الجموعي- النخلة","الرباح","حي النور","النخلة","مركز اجراء امتحان ش البكالوريا","","ثانوية الشهيد بن حمده علي  - النخلة"]
[366,12818,"محمد1 علي366","استاذ تعليم ابتدائي","إ -","العربية","جويدة الجموعي- النخلة","الرباح","حي النور","النخلة","مركز اجراء امتحان ش البكالوريا","","ثانوية الشهيد بن حمده علي  - النخلة"]
[367,12819,"محمد1 علي367","استاذ تعليم ابتدائي","إ -","العربية","جويدة الجموعي- النخلة","الرباح","حي النور","النخلة","مركز اجراء امتحان ش البكالوريا","","ثانوية الشهيد بن حمده علي  - النخلة"]
[368,12820,"محمد1 علي368","استاذ تعليم ابتدائي","إ -","العربية","جويدة الجموعي- النخلة","الرباح","حي النور","النخلة","مركز اجراء امتحان ش البكالوريا","","ثانوية الشهيد بن حمده علي  - النخلة"]
[369,12821,"محمد1 علي369","استاذ تعليم ابتدائي","إ -","العربية","جويدة الجموعي- النخلة","الرباح","حي النور","النخلة","مركز اجراء امتحان ش البكالوريا","","ثانوية الشهيد بن حمده علي  - النخلة"]
[370,12822,"محمد1 علي370","استاذ تعليم ابتدائي","إ -","العربية","جويدة الجموعي- النخلة","الرباح","حي النور","النخلة","مركز اجراء امتحان ش البكالوريا","","ثانوية الشهيد بن حمده علي  - النخلة"]
[371,12823,"محمد1 علي371","استاذ تعليم ابتدائي","إ -","العربية","جويدة الجموعي- النخلة","الرباح","حي النور","النخلة","مركز اجراء امتحان ش البكالوريا","","ثانوية الشهيد بن حمده علي  - النخلة"]
[372,12824,"محمد1 علي372","استاذ تعليم ابتدائي","إ -","العربية","جويدة الجموعي- النخلة","الرباح","حي النور","النخلة","مركز اجراء امتحان ش البكالوريا","","ثانوية الشهيد بن حمده علي  - النخلة"]
[373,12825,"محمد1 علي373","استاذ تعليم ابتدائي","إ -","العربية","جويدة الجموعي- النخلة","الرباح","حي النور","النخلة","مركز اجراء امتحان ش البكالوريا","","ثانوية الشهيد بن حمده علي  - النخلة"]
[374,12826,"محمد1 علي374","استاذ تعليم ابتدائي","إ -","العربية","جويدة الجموعي- النخلة","الرباح","حي النور","النخلة","مركز اجراء امتحان ش البكالوريا","","ثانوية الشهيد بن حمده علي  - النخلة"]
[375,12827,"محمد1 علي375","استاذ تعليم ابتدائي","إ -","العربية","جويدة الجموعي- النخلة","الرباح","حي النور","النخلة","مركز اجراء امتحان ش البكالوريا","","ثانوية الشهيد بن حمده علي  - النخلة"]
[376,12828,"محمد1 علي376","استاذ تعليم ابتدائي","إ -","العربية","جويدة الجموعي- النخلة","الرباح","حي النور","النخلة","مركز اجراء امتحان ش البكالوريا","","ثانوية الشهيد بن حمده علي  - النخلة"]
[377,12829,"محمد1 علي377","استاذ تعليم ابتدائي","إ -","العربية","جويدة الجموعي- النخلة","الرباح","حي النور","النخلة","مركز اجراء امتحان ش البكالوريا","","ثانوية الشهيد بن حمده علي  - النخلة"]
[378,12830,"محمد1 علي378","استاذ تعليم ابتدائي","إ -","العربية","جويدة الجموعي- النخلة","الرباح","حي النور","النخلة","مركز اجراء امتحان ش البكالوريا","","ثانوية الشهيد بن حمده علي  - النخلة"]
[379,12831,"محمد1 علي379","استاذ تعليم ابتدائي","إ -","العربية","جويدة الجموعي- النخلة","الرباح","حي النور","النخلة","مركز اجراء امتحان ش البكالوريا","","ثانوية الشهيد بن حمده علي  - النخلة"]
[380,12832,"محمد1 علي380","استاذ تعليم ابتدائي","إ -","العربية","جويدة الجموعي- النخلة","الرباح","حي النور","النخلة","مركز اجراء امتحان ش البكالوريا","","ثانوية الشهيد بن حمده علي  - النخلة"]
[381,12833,"محمد1 علي381","استاذ تعليم ابتدائي","إ -","العربية","جويدة الجموعي- النخلة","الرباح","حي النور","النخلة","مركز اجراء امتحان ش البكالوريا","","ثانوية الشهيد بن حمده علي  - النخلة"]
[382,12834,"محمد1 علي382","استاذ تعليم ابتدائي","إ -","العربية","جويدة الجموعي- النخلة","الرباح","حي النور","النخلة","مركز اجراء امتحان ش البكالوريا","","ثانوية الشهيد بن حمده علي  - النخلة"]
[383,12835,"محمد1 علي383","استاذ تعليم ابتدائي","إ -","العربية","جويدة الجموعي- النخلة","الرباح","حي النور","النخلة","مركز اجراء امتحان ش البكالوريا","","ثانوية الشهيد بن حمده علي  - النخلة"]
[384,12836,"محمد1 علي384","استاذ تعليم ابتدائي","إ -","العربية","جويدة الجموعي- النخلة","الرباح","حي النور","النخلة","مركز اجراء امتحان ش البكالوريا","","ثانوية الشهيد بن حمده علي  - النخلة"]
[385,12837,"محمد1 علي385","استاذ تعليم ابتدائي","إ -","العربية","جويدة الجموعي- النخلة","الرباح","حي النور","النخلة","مركز اجراء امتحان ش البكالوريا","","ثانوية الشهيد بن حمده علي  - النخلة"]
[386,12838,"محمد1 علي386","استاذ تعليم ابتدائي","إ -","العربية","جويدة الجموعي- النخلة","الرباح","حي النور","النخلة","مركز اجراء امتحان ش البكالوريا","","ثانوية الشهيد بن حمده علي  - النخلة"]
[387,12839,"محمد1 علي387","استاذ تعليم ابتدائي","إ -","العربية","جويدة الجموعي- النخلة","الرباح","حي النور","النخلة","مركز اجراء امتحان ش البكالوريا","","ثانوية الشهيد بن حمده علي  - النخلة"]
[388,12840,"محمد1 علي388","استاذ تعليم ابتدائي","إ -","العربية","جويدة الجموعي- النخلة","الرباح","حي النور","النخلة","مركز اجراء امتحان ش البكالوريا","","ثانوية الشهيد بن حمده علي  - النخلة"]
[389,12841,"محمد1 علي389","استاذ تعليم ابتدائي","إ -","العربية","جويدة الجموعي- النخلة","الرباح","حي النور","النخلة","مركز اجراء امتحان ش البكالوريا","","ثانوية الشهيد بن حمده علي  - النخلة"]
[390,12842,"محمد1 علي390","استاذ تعليم ابتدائي","إ -","العربية","جويدة الجموعي- النخلة","الرباح","حي النور","النخلة","مركز اجراء امتحان ش البكالوريا","","ثانوية الشهيد بن حمده علي  - النخلة"]
[391,12843,"محمد1 علي391","استاذ تعليم ابتدائي","إ -","العربية","جويدة الجموعي- النخلة","الرباح","حي النور","النخلة","مركز اجراء امتحان ش البكالوريا","","ثانوية الشهيد بن حمده علي  - النخلة"]
[392,12844,"محمد1 علي392","استاذ تعليم ابتدائي","إ -","العربية","جويدة الجموعي- النخلة","الرباح","حي النور","النخلة","مركز اجراء امتحان ش البكالوريا","","ثانوية الشهيد بن حمده علي  - النخلة"]
[393,12845,"محمد1 علي393","استاذ تعليم ابتدائي","إ -","العربية","جويدة الجموعي- النخلة","الرباح","حي النور","النخلة","مركز اجراء امتحان ش البكالوريا","","ثانوية الشهيد بن حمده علي  - النخلة"]
[394,12846,"محمد1 علي394","استاذ تعليم ابتدائي","إ -","العربية","جويدة الجموعي- النخلة","الرباح","حي النور","النخلة","مركز اجراء امتحان ش البكالوريا","","ثانوية الشهيد بن حمده علي  - النخلة"]
[395,12847,"محمد1 علي395","استاذ تعليم ابتدائي","إ -","العربية","جويدة الجموعي- النخلة","الرباح","حي النور","النخلة","مركز اجراء امتحان ش البكالوريا","","ثانوية الشهيد بن حمده علي  - النخلة"]
[396,12848,"محمد1 علي396","استاذ تعليم ابتدائي","إ -","العربية","جويدة الجموعي- النخلة","الرباح","حي النور","النخلة","مركز اجراء امتحان ش البكالوريا","","ثانوية الشهيد بن حمده علي  - النخلة"]
[397,12849,"محمد1 علي397","استاذ تعليم ابتدائي","إ -","العربية","جويدة الجموعي- النخلة","الرباح","حي النور","النخلة","مركز اجراء امتحان ش البكالوريا","","ثانوية الشهيد بن حمده علي  - النخلة"]
[398,12850,"محمد1 علي398","استاذ تعليم ابتدائي","إ -","العربية","جويدة الجموعي- النخلة","الرباح","حي النور","النخلة","مركز اجراء امتحان ش البكالوريا","","ثانوية الشهيد بن حمده علي  - النخلة"]
[399,12851,"محمد1 علي399","استاذ تعليم ابتدائي","إ -","العربية","جويدة الجموعي- النخلة","الرباح","حي النور","النخلة","مركز اجراء امتحان ش البكالوريا","","ثانوية الشهيد بن حمده علي  - النخلة"]
[400,12852,"محمد1 علي400","استاذ تعليم ابتدائي","إ -","العربية","جويدة الجموعي- النخلة","الرباح","حي النور","النخلة","مركز اجراء امتحان ش البكالوريا","","ثانوية الشهيد بن حمده علي  - النخلة"]
[401,12853,"محمد1 علي401","استاذ تعليم ابتدائي","إ -","العربية","جويدة الجموعي- النخلة","الرباح","حي النور","النخلة","مركز اجراء امتحان ش البكالوريا","","ثانوية الشهيد بن حمده علي  - النخلة"]
[402,12854,"محمد1 علي402","استاذ تعليم ابتدائي","إ -","العربية","جويدة الجموعي- النخلة","الرباح","حي النور","النخلة","مركز اجراء امتحان ش البكالوريا","","ثانوية الشهيد بن حمده علي  - النخلة"]
[403,12855,"محمد1 علي403","استاذ تعليم ابتدائي","إ -","العربية","جويدة الجموعي- النخلة","الرباح","حي النور","النخلة","مركز اجراء امتحان ش البكالوريا","","ثانوية الشهيد بن حمده علي  - النخلة"]
[404,12856,"محمد1 علي404","استاذ تعليم ابتدائي","إ -","العربية","جويدة الجموعي- النخلة","الرباح","حي النور","النخلة","مركز اجراء امتحان ش البكالوريا","","ثانوية الشهيد بن حمده علي  - النخلة"]
[405,12857,"محمد1 علي405","استاذ تعليم ابتدائي","إ -","العربية","جويدة الجموعي- النخلة","الرباح","حي النور","النخلة","مركز اجراء امتحان ش البكالوريا","","ثانوية الشهيد بن حمده علي  - النخلة"]
[406,12858,"محمد1 علي406","استاذ تعليم ابتدائي","إ -","العربية","جويدة الجموعي- النخلة","الرباح","حي النور","النخلة","مركز اجراء امتحان ش البكالوريا","","ثانوية الشهيد بن حمده علي  - النخلة"]
[407,12859,"محمد1 علي407","استاذ تعليم ابتدائي","إ -","العربية","جويدة الجموعي- النخلة","الرباح","حي النور","النخلة","مركز اجراء امتحان ش البكالوريا","","ثانوية الشهيد بن حمده علي  - النخلة"]
[408,12860,"محمد1 علي408","استاذ تعليم ابتدائي","إ -","العربية","جويدة الجموعي- النخلة","الرباح","حي النور","النخلة","مركز اجراء امتحان ش البكالوريا","","ثانوية الشهيد بن حمده علي  - النخلة"]
[409,12861,"محمد1 علي409","استاذ تعليم ابتدائي","إ -","العربية","جويدة الجموعي- النخلة","الرباح","حي النور","النخلة","مركز اجراء امتحان ش البكالوريا","","ثانوية الشهيد بن حمده علي  - النخلة"]
[410,12862,"محمد1 علي410","استاذ تعليم ابتدائي","إ -","العربية","جويدة الجموعي- النخلة","الرباح","حي النور","النخلة","مركز اجراء امتحان ش البكالوريا","","ثانوية الشهيد بن حمده علي  - النخلة"]
[411,12863,"محمد1 علي411","استاذ تعليم ابتدائي","إ -","العربية","جويدة الجموعي- النخلة","الرباح","حي النور","النخلة","مركز اجراء امتحان ش البكالوريا","","ثانوية الشهيد بن حمده علي  - النخلة"]
[412,12864,"محمد1 علي412","استاذ تعليم ابتدائي","إ -","العربية","جويدة الجموعي- النخلة","الرباح","حي النور","النخلة","مركز اجراء امتحان ش البكالوريا","","ثانوية الشهيد بن حمده علي  - النخلة"]
[413,12865,"محمد1 علي413","استاذ تعليم ابتدائي","إ -","العربية","جويدة الجموعي- النخلة","الرباح","حي النور","النخلة","مركز اجراء امتحان ش البكالوريا","","ثانوية الشهيد بن حمده علي  - النخلة"]
[414,12866,"محمد1 علي414","استاذ تعليم ابتدائي","إ -","العربية","جويدة الجموعي- النخلة","الرباح","حي النور","النخلة","مركز اجراء امتحان ش البكالوريا","","ثانوية الشهيد بن حمده علي  - النخلة"]
[415,12867,"محمد1 علي415","استاذ تعليم ابتدائي","إ -","العربية","جويدة الجموعي- النخلة","الرباح","حي النور","النخلة","مركز اجراء امتحان ش البكالوريا","","ثانوية الشهيد بن حمده علي  - النخلة"]
[416,12868,"محمد1 علي416","استاذ تعليم ابتدائي","إ -","العربية","جويدة الجموعي- النخلة","الرباح","حي النور","النخلة","مركز اجراء امتحان ش البكالوريا","","ثانوية الشهيد بن حمده علي  - النخلة"]
[417,12869,"محمد1 علي417","استاذ تعليم ابتدائي","إ -","العربية","جويدة الجموعي- النخلة","الرباح","حي النور","النخلة","مركز اجراء امتحان ش البكالوريا","","ثانوية الشهيد بن حمده علي  - النخلة"]
[418,12870,"محمد1 علي418","استاذ تعليم ابتدائي","إ -","العربية","جويدة الجموعي- النخلة","الرباح","حي النور","النخلة","مركز اجراء امتحان ش البكالوريا","","ثانوية الشهيد بن حمده علي  - النخلة"]
[419,12871,"محمد1 علي419","استاذ تعليم ابتدائي","إ -","العربية","جويدة الجموعي- النخلة","الرباح","حي النور","النخلة","مركز اجراء امتحان ش البكالوريا","","ثانوية الشهيد بن حمده علي  - النخلة"]
[420,12872,"محمد1 علي420","استاذ تعليم ابتدائي","إ -","العربية","جويدة الجموعي- النخلة","الرباح","حي النور","النخلة","مركز اجراء امتحان ش البكالوريا","","ثانوية الشهيد بن حمده علي  - النخلة"]
[421,12873,"محمد1 علي421","استاذ تعليم ابتدائي","إ -","العربية","جويدة الجموعي- النخلة","الرباح","حي النور","النخلة","مركز اجراء امتحان ش البكالوريا","","ثانوية الشهيد بن حمده علي  - النخلة"]
[422,12874,"محمد1 علي422","استاذ تعليم ابتدائي","إ -","العربية","جويدة الجموعي- النخلة","الرباح","حي النور","النخلة","مركز اجراء امتحان ش البكالوريا","","ثانوية الشهيد بن حمده علي  - النخلة"]
[423,12875,"محمد1 علي423","استاذ تعليم ابتدائي","إ -","العربية","جويدة الجموعي- النخلة","الرباح","حي النور","النخلة","مركز اجراء امتحان ش البكالوريا","","ثانوية الشهيد بن حمده علي  - النخلة"]
[424,12876,"محمد1 علي424","استاذ تعليم ابتدائي","إ -","العربية","جويدة الجموعي- النخلة","الرباح","حي النور","النخلة","مركز اجراء امتحان ش البكالوريا","","ثانوية الشهيد بن حمده علي  - النخلة"]
[425,12877,"محمد1 علي425","استاذ تعليم ابتدائي","إ -","العربية","جويدة الجموعي- النخلة","الرباح","حي النور","النخلة","مركز اجراء امتحان ش البكالوريا","","ثانوية الشهيد بن حمده علي  - النخلة"]
[426,12878,"محمد1 علي426","استاذ تعليم ابتدائي","إ -","العربية","جويدة الجموعي- النخلة","الرباح","حي النور","النخلة","مركز اجراء امتحان ش البكالوريا","","ثانوية الشهيد بن حمده علي  - النخلة"]
[427,12879,"محمد1 علي427","استاذ تعليم ابتدائي","إ -","العربية","جويدة الجموعي- النخلة","الرباح","حي النور","النخلة","مركز اجراء امتحان ش البكالوريا","","ثانوية الشهيد بن حمده علي  - النخلة"]
[428,12880,"محمد1 علي428","استاذ تعليم ابتدائي","إ -","العربية","جويدة الجموعي- النخلة","الرباح","حي النور","النخلة","مركز اجراء امتحان ش البكالوريا","","ثانوية الشهيد بن حمده علي  - النخلة"]
[429,12881,"محمد1 علي429","استاذ تعليم ابتدائي","إ -","العربية","جويدة الجموعي- النخلة","الرباح","حي النور","النخلة","مركز اجراء امتحان ش البكالوريا","","ثانوية الشهيد بن حمده علي  - النخلة"]
[430,12882,"محمد1 علي430","استاذ تعليم ابتدائي","إ -","العربية","جويدة الجموعي- النخلة","الرباح","حي النور","النخلة","مركز اجراء امتحان ش البكالوريا","","ثانوية الشهيد بن حمده علي  - النخلة"]
[431,12883,"محمد1 علي431","استاذ تعليم ابتدائي","إ -","العربية","جويدة الجموعي- النخلة","الرباح","حي النور","النخلة","مركز اجراء امتحان ش البكالوريا","","ثانوية الشهيد بن حمده علي  - النخلة"]
[432,12884,"محمد1 علي432","استاذ تعليم ابتدائي","إ -","العربية","جويدة الجموعي- النخلة","الرباح","حي النور","النخلة","مركز اجراء امتحان ش البكالوريا","","ثانوية الشهيد بن حمده علي  - النخلة"]
[433,12885,"محمد1 علي433","استاذ تعليم ابتدائي","إ -","العربية","جويدة الجموعي- النخلة","الرباح","حي النور","النخلة","مركز اجراء امتحان ش البكالوريا","","ثانوية الشهيد بن حمده علي  - النخلة"]
[434,12886,"محمد1 علي434","استاذ تعليم ابتدائي","إ -","العربية","جويدة الجموعي- النخلة","الرباح","حي النور","النخلة","مركز اجراء امتحان ش البكالوريا","","ثانوية الشهيد بن حمده علي  - النخلة"]
[435,12887,"محمد1 علي435","استاذ تعليم ابتدائي","إ -","العربية","جويدة الجموعي- النخلة","الرباح","حي النور","النخلة","مركز اجراء امتحان ش البكالوريا","","ثانوية الشهيد بن حمده علي  - النخلة"]
[436,12888,"محمد1 علي436","استاذ تعليم ابتدائي","إ -","العربية","جويدة الجموعي- النخلة","الرباح","حي النور","النخلة","مركز اجراء امتحان ش البكالوريا","","ثانوية الشهيد بن حمده علي  - النخلة"]
[437,12889,"محمد1 علي437","استاذ تعليم ابتدائي","إ -","العربية","جويدة الجموعي- النخلة","الرباح","حي النور","النخلة","مركز اجراء امتحان ش البكالوريا","","ثانوية الشهيد بن حمده علي  - النخلة"]
[438,12890,"محمد1 علي438","استاذ تعليم ابتدائي","إ -","العربية","جويدة الجموعي- النخلة","الرباح","حي النور","النخلة","مركز اجراء امتحان ش البكالوريا","","ثانوية الشهيد بن حمده علي  - النخلة"]
[439,12891,"محمد1 علي439","استاذ تعليم ابتدائي","إ -","العربية","جويدة الجموعي- النخلة","الرباح","حي النور","النخلة","مركز اجراء امتحان ش البكالوريا","","ثانوية الشهيد بن حمده علي  - النخلة"]
[440,12892,"محمد1 علي440","استاذ تعليم ابتدائي","إ -","العربية","جويدة الجموعي- النخلة","الرباح","حي النور","النخلة","مركز اجراء امتحان ش البكالوريا","","ثانوية الشهيد بن حمده علي  - النخلة"]
[441,12893,"محمد1 علي441","استاذ تعليم ابتدائي","إ -","العربية","جويدة الجموعي- النخلة","الرباح","حي النور","النخلة","مركز اجراء امتحان ش البكالوريا","","ثانوية الشهيد بن حمده علي  - النخلة"]
[442,12894,"محمد1 علي442","استاذ تعليم ابتدائي","إ -","العربية","جويدة الجموعي- النخلة","الرباح","حي النور","النخلة","مركز اجراء امتحان ش البكالوريا","","ثانوية الشهيد بن حمده علي  - النخلة"]
[443,12895,"محمد1 علي443","استاذ تعليم ابتدائي","إ -","العربية","جويدة الجموعي- النخلة","الرباح","حي النور","النخلة","مركز اجراء امتحان ش البكالوريا","","ثانوية الشهيد بن حمده علي  - النخلة"]
[444,12896,"محمد1 علي444","استاذ تعليم ابتدائي","إ -","العربية","جويدة الجموعي- النخلة","الرباح","حي النور","النخلة","مركز اجراء امتحان ش البكالوريا","","ثانوية الشهيد بن حمده علي  - النخلة"]
[445,12897,"محمد1 علي445","استاذ تعليم ابتدائي","إ -","العربية","جويدة الجموعي- النخلة","الرباح","حي النور","النخلة","مركز اجراء امتحان ش البكالوريا","","ثانوية الشهيد بن حمده علي  - النخلة"]
[446,12898,"محمد1 علي446","استاذ تعليم ابتدائي","إ -","العربية","جويدة الجموعي- النخلة","الرباح","حي النور","النخلة","مركز اجراء امتحان ش البكالوريا","","ثانوية الشهيد بن حمده علي  - النخلة"]
[447,12899,"محمد1 علي447","استاذ تعليم ابتدائي","إ -","العربية","جويدة الجموعي- النخلة","الرباح","حي النور","النخلة","مركز اجراء امتحان ش البكالوريا","","ثانوية الشهيد بن حمده علي  - النخلة"]
[448,12900,"محمد1 علي448","استاذ تعليم ابتدائي","إ -","العربية","جويدة الجموعي- النخلة","الرباح","حي النور","النخلة","مركز اجراء امتحان ش البكالوريا","","ثانوية الشهيد بن حمده علي  - النخلة"]
[449,12901,"محمد1 علي449","استاذ تعليم ابتدائي","إ -","العربية","جويدة الجموعي- النخلة","الرباح","حي النور","النخلة","مركز اجراء امتحان ش البكالوريا","","ثانوية الشهيد بن حمده علي  - النخلة"]
[450,12902,"محمد1 علي450","استاذ تعليم ابتدائي","إ -","العربية","جويدة الجموعي- النخلة","الرباح","حي النور","النخلة","مركز اجراء امتحان ش البكالوريا","","ثانوية الشهيد بن حمده علي  - النخلة"]
[451,12903,"محمد1 علي451","استاذ تعليم ابتدائي","إ -","العربية","جويدة الجموعي- النخلة","الرباح","حي النور","النخلة","مركز اجراء امتحان ش البكالوريا","","ثانوية الشهيد بن حمده علي  - النخلة"]
[452,12904,"محمد1 علي452","استاذ تعليم ابتدائي","إ -","العربية","جويدة الجموعي- النخلة","الرباح","حي النور","النخلة","مركز اجراء امتحان ش البكالوريا","","ثانوية الشهيد بن حمده علي  - النخلة"]
[453,12905,"محمد1 علي453","استاذ تعليم ابتدائي","إ -","العربية","جويدة الجموعي- النخلة","الرباح","حي النور","النخلة","مركز اجراء امتحان ش البكالوريا","","ثانوية الشهيد بن حمده علي  - النخلة"]
[454,12906,"محمد1 علي454","استاذ تعليم ابتدائي","إ -","العربية","جويدة الجموعي- النخلة","الرباح","حي النور","النخلة","مركز اجراء امتحان ش البكالوريا","","ثانوية الشهيد بن حمده علي  - النخلة"]
[455,12907,"محمد1 علي455","استاذ تعليم ابتدائي","إ -","العربية","جويدة الجموعي- النخلة","الرباح","حي النور","النخلة","مركز اجراء امتحان ش البكالوريا","","ثانوية الشهيد بن حمده علي  - النخلة"]
[456,12908,"محمد1 علي456","استاذ تعليم ابتدائي","إ -","العربية","جويدة الجموعي- النخلة","الرباح","حي النور","النخلة","مركز اجراء امتحان ش البكالوريا","","ثانوية الشهيد بن حمده علي  - النخلة"]
[457,12909,"محمد1 علي457","استاذ تعليم ابتدائي","إ -","العربية","جويدة الجموعي- النخلة","الرباح","حي النور","النخلة","مركز اجراء امتحان ش البكالوريا","","ثانوية الشهيد بن حمده علي  - النخلة"]
[458,12910,"محمد1 علي458","استاذ تعليم ابتدائي","إ -","العربية","جويدة الجموعي- النخلة","الرباح","حي النور","النخلة","مركز اجراء امتحان ش البكالوريا","","ثانوية الشهيد بن حمده علي  - النخلة"]
[459,12911,"محمد1 علي459","استاذ تعليم ابتدائي","إ -","العربية","جويدة الجموعي- النخلة","الرباح","حي النور","النخلة","مركز اجراء امتحان ش البكالوريا","","ثانوية الشهيد بن حمده علي  - النخلة"]
[460,12912,"محمد1 علي460","استاذ تعليم ابتدائي","إ -","العربية","جويدة الجموعي- النخلة","الرباح","حي النور","النخلة","مركز اجراء امتحان ش البكالوريا","","ثانوية الشهيد بن حمده علي  - النخلة"]
[461,12913,"محمد1 علي461","استاذ تعليم ابتدائي","إ -","العربية","جويدة الجموعي- النخلة","الرباح","حي النور","النخلة","مركز اجراء امتحان ش البكالوريا","","ثانوية الشهيد بن حمده علي  - النخلة"]
[462,12914,"محمد1 علي462","استاذ تعليم ابتدائي","إ -","العربية","جويدة الجموعي- النخلة","الرباح","حي النور","النخلة","مركز اجراء امتحان ش البكالوريا","","ثانوية الشهيد بن حمده علي  - النخلة"]
[463,12915,"محمد1 علي463","استاذ تعليم ابتدائي","إ -","العربية","جويدة الجموعي- النخلة","الرباح","حي النور","النخلة","مركز اجراء امتحان ش البكالوريا","","ثانوية الشهيد بن حمده علي  - النخلة"]
[464,12916,"محمد1 علي464","استاذ تعليم ابتدائي","إ -","العربية","جويدة الجموعي- النخلة","الرباح","حي النور","النخلة","مركز اجراء امتحان ش البكالوريا","","ثانوية الشهيد بن حمده علي  - النخلة"]
[465,12917,"محمد1 علي465","استاذ تعليم ابتدائي","إ -","العربية","جويدة الجموعي- النخلة","الرباح","حي النور","النخلة","مركز اجراء امتحان ش البكالوريا","","ثانوية الشهيد بن حمده علي  - النخلة"]
[466,12918,"محمد1 علي466","استاذ تعليم ابتدائي","إ -","العربية","جويدة الجموعي- النخلة","الرباح","حي النور","النخلة","مركز اجراء امتحان ش البكالوريا","","ثانوية الشهيد بن حمده علي  - النخلة"]
[467,12919,"محمد1 علي467","استاذ تعليم ابتدائي","إ -","العربية","جويدة الجموعي- النخلة","الرباح","حي النور","النخلة","مركز اجراء امتحان ش البكالوريا","","ثانوية الشهيد بن حمده علي  - النخلة"]
[468,12920,"محمد1 علي468","استاذ تعليم ابتدائي","إ -","العربية","جويدة الجموعي- النخلة","الرباح","حي النور","النخلة","مركز اجراء امتحان ش البكالوريا","","ثانوية الشهيد بن حمده علي  - النخلة"]
[469,12921,"محمد1 علي469","استاذ تعليم ابتدائي","إ -","العربية","جويدة الجموعي- النخلة","الرباح","حي النور","النخلة","مركز اجراء امتحان ش البكالوريا","","ثانوية الشهيد بن حمده علي  - النخلة"]
[470,12922,"محمد1 علي470","استاذ تعليم ابتدائي","إ -","العربية","جويدة الجموعي- النخلة","الرباح","حي النور","النخلة","مركز اجراء امتحان ش البكالوريا","","ثانوية الشهيد بن حمده علي  - النخلة"]
[471,12923,"محمد1 علي471","استاذ تعليم ابتدائي","إ -","العربية","جويدة الجموعي- النخلة","الرباح","حي النور","النخلة","مركز اجراء امتحان ش البكالوريا","","ثانوية الشهيد بن حمده علي  - النخلة"]
[472,12924,"محمد1 علي472","استاذ تعليم ابتدائي","إ -","العربية","جويدة الجموعي- النخلة","الرباح","حي النور","النخلة","مركز اجراء امتحان ش البكالوريا","","ثانوية الشهيد بن حمده علي  - النخلة"]
[473,12925,"محمد1 علي473","استاذ تعليم ابتدائي","إ -","العربية","جويدة الجموعي- النخلة","الرباح","حي النور","النخلة","مركز اجراء امتحان ش البكالوريا","","ثانوية الشهيد بن حمده علي  - النخلة"]
[474,12926,"محمد1 علي474","استاذ تعليم ابتدائي","إ -","العربية","جويدة الجموعي- النخلة","الرباح","حي النور","النخلة","مركز اجراء امتحان ش البكالوريا","","ثانوية الشهيد بن حمده علي  - النخلة"]
[475,12927,"محمد1 علي475","استاذ تعليم ابتدائي","إ -","العربية","جويدة الجموعي- النخلة","الرباح","حي النور","النخلة","مركز اجراء امتحان ش البكالوريا","","ثانوية الشهيد بن حمده علي  - النخلة"]
[476,12928,"محمد1 علي476","استاذ تعليم ابتدائي","إ -","العربية","جويدة الجموعي- النخلة","الرباح","حي النور","النخلة","مركز اجراء امتحان ش البكالوريا","","ثانوية الشهيد بن حمده علي  - النخلة"]
[477,12929,"محمد1 علي477","استاذ تعليم ابتدائي","إ -","العربية","جويدة الجموعي- النخلة","الرباح","حي النور","النخلة","مركز اجراء امتحان ش البكالوريا","","ثانوية الشهيد بن حمده علي  - النخلة"]
[478,12930,"محمد1 علي478","استاذ تعليم ابتدائي","إ -","العربية","جويدة الجموعي- النخلة","الرباح","حي النور","النخلة","مركز اجراء امتحان ش البكالوريا","","ثانوية الشهيد بن حمده علي  - النخلة"]
[479,12931,"محمد1 علي479","استاذ تعليم ابتدائي","إ -","العربية","جويدة الجموعي- النخلة","الرباح","حي النور","النخلة","مركز اجراء امتحان ش البكالوريا","","ثانوية الشهيد بن حمده علي  - النخلة"]
[480,12932,"محمد1 علي480","استاذ تعليم ابتدائي","إ -","العربية","جويدة الجموعي- النخلة","الرباح","حي النور","النخلة","مركز اجراء امتحان ش البكالوريا","","ثانوية الشهيد بن حمده علي  - النخلة"]
[481,12933,"محمد1 علي481","استاذ تعليم ابتدائي","إ -","العربية","جويدة الجموعي- النخلة","الرباح","حي النور","النخلة","مركز اجراء امتحان ش البكالوريا","","ثانوية الشهيد بن حمده علي  - النخلة"]
[482,12934,"محمد1 علي482","استاذ تعليم ابتدائي","إ -","العربية","جويدة الجموعي- النخلة","الرباح","حي النور","النخلة","مركز اجراء امتحان ش البكالوريا","","ثانوية الشهيد بن حمده علي  - النخلة"]
[483,12935,"محمد1 علي483","استاذ تعليم ابتدائي","إ -","العربية","جويدة الجموعي- النخلة","الرباح","حي النور","النخلة","مركز اجراء امتحان ش البكالوريا","","ثانوية الشهيد بن حمده علي  - النخلة"]
[484,12936,"محمد1 علي484","استاذ تعليم ابتدائي","إ -","العربية","جويدة الجموعي- النخلة","الرباح","حي النور","النخلة","مركز اجراء امتحان ش البكالوريا","","ثانوية الشهيد بن حمده علي  - النخلة"]
[485,12937,"محمد1 علي485","استاذ تعليم ابتدائي","إ -","العربية","جويدة الجموعي- النخلة","الرباح","حي النور","النخلة","مركز اجراء امتحان ش البكالوريا","","ثانوية الشهيد بن حمده علي  - النخلة"]
[486,12938,"محمد1 علي486","استاذ تعليم ابتدائي","إ -","العربية","جويدة الجموعي- النخلة","الرباح","حي النور","النخلة","مركز اجراء امتحان ش البكالوريا","","ثانوية الشهيد بن حمده علي  - النخلة"]
[487,12939,"محمد1 علي487","استاذ تعليم ابتدائي","إ -","العربية","جويدة الجموعي- النخلة","الرباح","حي النور","النخلة","مركز اجراء امتحان ش البكالوريا","","ثانوية الشهيد بن حمده علي  - النخلة"]
[488,12940,"محمد1 علي488","استاذ تعليم ابتدائي","إ -","العربية","جويدة الجموعي- النخلة","الرباح","حي النور","النخلة","مركز اجراء امتحان ش البكالوريا","","ثانوية الشهيد بن حمده علي  - النخلة"]
[489,12941,"محمد1 علي489","استاذ تعليم ابتدائي","إ -","العربية","جويدة الجموعي- النخلة","الرباح","حي النور","النخلة","مركز اجراء امتحان ش البكالوريا","","ثانوية الشهيد بن حمده علي  - النخلة"]
[490,12942,"محمد1 علي490","استاذ تعليم ابتدائي","إ -","العربية","جويدة الجموعي- النخلة","الرباح","حي النور","النخلة","مركز اجراء امتحان ش البكالوريا","","ثانوية الشهيد بن حمده علي  - النخلة"]
[491,12943,"محمد1 علي491","استاذ تعليم ابتدائي","إ -","العربية","جويدة الجموعي- النخلة","الرباح","حي النور","النخلة","مركز اجراء امتحان ش البكالوريا","","ثانوية الشهيد بن حمده علي  - النخلة"]
[492,12944,"محمد1 علي492","استاذ تعليم ابتدائي","إ -","العربية","جويدة الجموعي- النخلة","الرباح","حي النور","النخلة","مركز اجراء امتحان ش البكالوريا","","ثانوية الشهيد بن حمده علي  - النخلة"]
[493,12945,"محمد1 علي493","استاذ تعليم ابتدائي","إ -","العربية","جويدة الجموعي- النخلة","الرباح","حي النور","النخلة","مركز اجراء امتحان ش البكالوريا","","ثانوية الشهيد بن حمده علي  - النخلة"]
[494,12946,"محمد1 علي494","استاذ تعليم ابتدائي","إ -","العربية","جويدة الجموعي- النخلة","الرباح","حي النور","النخلة","مركز اجراء امتحان ش البكالوريا","","ثانوية الشهيد بن حمده علي  - النخلة"]
[495,12947,"محمد1 علي495","استاذ تعليم ابتدائي","إ -","العربية","جويدة الجموعي- النخلة","الرباح","حي النور","النخلة","مركز اجراء امتحان ش البكالوريا","","ثانوية الشهيد بن حمده علي  - النخلة"]
[496,12948,"محمد1 علي496","استاذ تعليم ابتدائي","إ -","العربية","جويدة الجموعي- النخلة","الرباح","حي النور","النخلة","مركز اجراء امتحان ش البكالوريا","","ثانوية الشهيد بن حمده علي  - النخلة"]
[497,12949,"محمد1 علي497","استاذ تعليم ابتدائي","إ -","العربية","جويدة الجموعي- النخلة","الرباح","حي النور","النخلة","مركز اجراء امتحان ش البكالوريا","","ثانوية الشهيد بن حمده علي  - النخلة"]
[498,12950,"محمد1 علي498","استاذ تعليم ابتدائي","إ -","العربية","جويدة الجموعي- النخلة","الرباح","حي النور","النخلة","مركز اجراء امتحان ش البكالوريا","","ثانوية الشهيد بن حمده علي  - النخلة"]
[499,12951,"محمد1 علي499","استاذ تعليم ابتدائي","إ -","العربية","جويدة الجموعي- النخلة","الرباح","حي النور","النخلة","مركز اجراء امتحان ش البكالوريا","","ثانوية الشهيد بن حمده علي  - النخلة"]
[500,12952,"محمد1 علي500","استاذ تعليم ابتدائي","إ -","العربية","جويدة الجموعي- النخلة","الرباح","حي النور","النخلة","مركز اجراء امتحان ش البكالوريا","","ثانوية الشهيد بن حمده علي  - النخلة"]
[501,12953,"محمد1 علي501","استاذ تعليم ابتدائي","إ -","العربية","جويدة الجموعي- النخلة","الرباح","حي النور","النخلة","مركز اجراء امتحان ش البكالوريا","","ثانوية الشهيد بن حمده علي  - النخلة"]
[502,12954,"محمد1 علي502","استاذ تعليم ابتدائي","إ -","العربية","جويدة الجموعي- النخلة","الرباح","حي النور","النخلة","مركز اجراء امتحان ش البكالوريا","","ثانوية الشهيد بن حمده علي  - النخلة"]
[503,12955,"محمد1 علي503","استاذ تعليم ابتدائي","إ -","العربية","جويدة الجموعي- النخلة","الرباح","حي النور","النخلة","مركز اجراء امتحان ش البكالوريا","","ثانوية الشهيد بن حمده علي  - النخلة"]
[504,12956,"محمد1 علي504","استاذ تعليم ابتدائي","إ -","العربية","جويدة الجموعي- النخلة","الرباح","حي النور","النخلة","مركز اجراء امتحان ش البكالوريا","","ثانوية الشهيد بن حمده علي  - النخلة"]
[505,12957,"محمد1 علي505","استاذ تعليم ابتدائي","إ -","العربية","جويدة الجموعي- النخلة","الرباح","حي النور","النخلة","مركز اجراء امتحان ش البكالوريا","","ثانوية الشهيد بن حمده علي  - النخلة"]
[506,12958,"محمد1 علي506","استاذ تعليم ابتدائي","إ -","العربية","جويدة الجموعي- النخلة","الرباح","حي النور","النخلة","مركز اجراء امتحان ش البكالوريا","","ثانوية الشهيد بن حمده علي  - النخلة"]
[507,12959,"محمد1 علي507","استاذ تعليم ابتدائي","إ -","العربية","جويدة الجموعي- النخلة","الرباح","حي النور","النخلة","مركز اجراء امتحان ش البكالوريا","","ثانوية الشهيد بن حمده علي  - النخلة"]
[508,12960,"محمد1 علي508","استاذ تعليم ابتدائي","إ -","العربية","جويدة الجموعي- النخلة","الرباح","حي النور","النخلة","مركز اجراء امتحان ش البكالوريا","","ثانوية الشهيد بن حمده علي  - النخلة"]
[509,12961,"محمد1 علي509","استاذ تعليم ابتدائي","إ -","العربية","جويدة الجموعي- النخلة","الرباح","حي النور","النخلة","مركز اجراء امتحان ش البكالوريا","","ثانوية الشهيد بن حمده علي  - النخلة"]
[510,12962,"محمد1 علي510","استاذ تعليم ابتدائي","إ -","العربية","جويدة الجموعي- النخلة","الرباح","حي النور","النخلة","مركز اجراء امتحان ش البكالوريا","","ثانوية الشهيد بن حمده علي  - النخلة"]
[511,12963,"محمد1 علي511","استاذ تعليم ابتدائي","إ -","العربية","جويدة الجموعي- النخلة","الرباح","حي النور","النخلة","مركز اجراء امتحان ش البكالوريا","","ثانوية الشهيد بن حمده علي  - النخلة"]
[512,12964,"محمد1 علي512","استاذ تعليم ابتدائي","إ -","العربية","جويدة الجموعي- النخلة","الرباح","حي النور","النخلة","مركز اجراء امتحان ش البكالوريا","","ثانوية الشهيد بن حمده علي  - النخلة"]
[513,12965,"محمد1 علي513","استاذ تعليم ابتدائي","إ -","العربية","جويدة الجموعي- النخلة","الرباح","حي النور","النخلة","مركز اجراء امتحان ش البكالوريا","","ثانوية الشهيد بن حمده علي  - النخلة"]
[514,12966,"محمد1 علي514","استاذ تعليم ابتدائي","إ -","العربية","جويدة الجموعي- النخلة","الرباح","حي النور","النخلة","مركز اجراء امتحان ش البكالوريا","","ثانوية الشهيد بن حمده علي  - النخلة"]
[515,12967,"محمد1 علي515","استاذ تعليم ابتدائي","إ -","العربية","جويدة الجموعي- النخلة","الرباح","حي النور","النخلة","مركز اجراء امتحان ش البكالوريا","","ثانوية الشهيد بن حمده علي  - النخلة"]
[516,12968,"محمد1 علي516","استاذ تعليم ابتدائي","إ -","العربية","جويدة الجموعي- النخلة","الرباح","حي النور","النخلة","مركز اجراء امتحان ش البكالوريا","","ثانوية الشهيد بن حمده علي  - النخلة"]
[517,12969,"محمد1 علي517","استاذ تعليم ابتدائي","إ -","العربية","جويدة الجموعي- النخلة","الرباح","حي النور","النخلة","مركز اجراء امتحان ش البكالوريا","","ثانوية الشهيد بن حمده علي  - النخلة"]
[518,12970,"محمد1 علي518","استاذ تعليم ابتدائي","إ -","العربية","جويدة الجموعي- النخلة","الرباح","حي النور","النخلة","مركز اجراء امتحان ش البكالوريا","","ثانوية الشهيد بن حمده علي  - النخلة"]
[519,12971,"محمد1 علي519","استاذ تعليم ابتدائي","إ -","العربية","جويدة الجموعي- النخلة","الرباح","حي النور","النخلة","مركز اجراء امتحان ش البكالوريا","","ثانوية الشهيد بن حمده علي  - النخلة"]
[520,12972,"محمد1 علي520","استاذ تعليم ابتدائي","إ -","العربية","جويدة الجموعي- النخلة","الرباح","حي النور","النخلة","مركز اجراء امتحان ش البكالوريا","","ثانوية الشهيد بن حمده علي  - النخلة"]
[521,12973,"محمد1 علي521","استاذ تعليم ابتدائي","إ -","العربية","جويدة الجموعي- النخلة","الرباح","حي النور","النخلة","مركز اجراء امتحان ش البكالوريا","","ثانوية الشهيد بن حمده علي  - النخلة"]
[522,12974,"محمد1 علي522","استاذ تعليم ابتدائي","إ -","العربية","جويدة الجموعي- النخلة","الرباح","حي النور","النخلة","مركز اجراء امتحان ش البكالوريا","","ثانوية الشهيد بن حمده علي  - النخلة"]
[523,12975,"محمد1 علي523","استاذ تعليم ابتدائي","إ -","العربية","جويدة الجموعي- النخلة","الرباح","حي النور","النخلة","مركز اجراء امتحان ش البكالوريا","","ثانوية الشهيد بن حمده علي  - النخلة"]
[524,12976,"محمد1 علي524","استاذ تعليم ابتدائي","إ -","العربية","جويدة الجموعي- النخلة","الرباح","حي النور","النخلة","مركز اجراء امتحان ش البكالوريا","","ثانوية الشهيد بن حمده علي  - النخلة"]
[525,12977,"محمد1 علي525","استاذ تعليم ابتدائي","إ -","العربية","جويدة الجموعي- النخلة","الرباح","حي النور","النخلة","مركز اجراء امتحان ش البكالوريا","","ثانوية الشهيد بن حمده علي  - النخلة"]
[526,12978,"محمد1 علي526","استاذ تعليم ابتدائي","إ -","العربية","جويدة الجموعي- النخلة","الرباح","حي النور","النخلة","مركز اجراء امتحان ش البكالوريا","","ثانوية الشهيد بن حمده علي  - النخلة"]
[527,12979,"محمد1 علي527","استاذ تعليم ابتدائي","إ -","العربية","جويدة الجموعي- النخلة","الرباح","حي النور","النخلة","مركز اجراء امتحان ش البكالوريا","","ثانوية الشهيد بن حمده علي  - النخلة"]
[528,12980,"محمد1 علي528","استاذ تعليم ابتدائي","إ -","العربية","جويدة الجموعي- النخلة","الرباح","حي النور","النخلة","مركز اجراء امتحان ش البكالوريا","","ثانوية الشهيد بن حمده علي  - النخلة"]
[529,12981,"محمد1 علي529","استاذ تعليم ابتدائي","إ -","العربية","جويدة الجموعي- النخلة","الرباح","حي النور","النخلة","مركز اجراء امتحان ش البكالوريا","","ثانوية الشهيد بن حمده علي  - النخلة"]
[530,12982,"محمد1 علي530","استاذ تعليم ابتدائي","إ -","العربية","جويدة الجموعي- النخلة","الرباح","حي النور","النخلة","مركز اجراء امتحان ش البكالوريا","","ثانوية الشهيد بن حمده علي  - النخلة"]
[531,12983,"محمد1 علي531","استاذ تعليم ابتدائي","إ -","العربية","جويدة الجموعي- النخلة","الرباح","حي النور","النخلة","مركز اجراء امتحان ش البكالوريا","","ثانوية الشهيد بن حمده علي  - النخلة"]
[532,12984,"محمد1 علي532","استاذ تعليم ابتدائي","إ -","العربية","جويدة الجموعي- النخلة","الرباح","حي النور","النخلة","مركز اجراء امتحان ش البكالوريا","","ثانوية الشهيد بن حمده علي  - النخلة"]
[533,12985,"محمد1 علي533","استاذ تعليم ابتدائي","إ -","العربية","جويدة الجموعي- النخلة","الرباح","حي النور","النخلة","مركز اجراء امتحان ش البكالوريا","","ثانوية الشهيد بن حمده علي  - النخلة"]
[534,12986,"محمد1 علي534","استاذ تعليم ابتدائي","إ -","العربية","جويدة الجموعي- النخلة","الرباح","حي النور","النخلة","مركز اجراء امتحان ش البكالوريا","","ثانوية الشهيد بن حمده علي  - النخلة"]
[535,12987,"محمد1 علي535","استاذ تعليم ابتدائي","إ -","العربية","جويدة الجموعي- النخلة","الرباح","حي النور","النخلة","مركز اجراء امتحان ش البكالوريا","","ثانوية الشهيد بن حمده علي  - النخلة"]
[536,12988,"محمد1 علي536","استاذ تعليم ابتدائي","إ -","العربية","جويدة الجموعي- النخلة","الرباح","حي النور","النخلة","مركز اجراء امتحان ش البكالوريا","","ثانوية الشهيد بن حمده علي  - النخلة"]
[537,12989,"محمد1 علي537","استاذ تعليم ابتدائي","إ -","العربية","جويدة الجموعي- النخلة","الرباح","حي النور","النخلة","مركز اجراء امتحان ش البكالوريا","","ثانوية الشهيد بن حمده علي  - النخلة"]
[538,12990,"محمد1 علي538","استاذ تعليم ابتدائي","إ -","العربية","جويدة الجموعي- النخلة","الرباح","حي النور","النخلة","مركز اجراء امتحان ش البكالوريا","","ثانوية الشهيد بن حمده علي  - النخلة"]
[539,12991,"محمد1 علي539","استاذ تعليم ابتدائي","إ -","العربية","جويدة الجموعي- النخلة","الرباح","حي النور","النخلة","مركز اجراء امتحان ش البكالوريا","","ثانوية الشهيد بن حمده علي  - النخلة"]
[540,12992,"محمد1 علي540","استاذ تعليم ابتدائي","إ -","العربية","جويدة الجموعي- النخلة","الرباح","حي النور","النخلة","مركز اجراء امتحان ش البكالوريا","","ثانوية الشهيد بن حمده علي  - النخلة"]
[541,12993,"محمد1 علي541","استاذ تعليم ابتدائي","إ -","العربية","جويدة الجموعي- النخلة","الرباح","حي النور","النخلة","مركز اجراء امتحان ش البكالوريا","","ثانوية الشهيد بن حمده علي  - النخلة"]
[542,12994,"محمد1 علي542","استاذ تعليم ابتدائي","إ -","العربية","جويدة الجموعي- النخلة","الرباح","حي النور","النخلة","مركز اجراء امتحان ش البكالوريا","","ثانوية الشهيد بن حمده علي  - النخلة"]
[543,12995,"محمد1 علي543","استاذ تعليم ابتدائي","إ -","العربية","جويدة الجموعي- النخلة","الرباح","حي النور","النخلة","مركز اجراء امتحان ش البكالوريا","","ثانوية الشهيد بن حمده علي  - النخلة"]
[544,12996,"محمد1 علي544","استاذ تعليم ابتدائي","إ -","العربية","جويدة الجموعي- النخلة","الرباح","حي النور","النخلة","مركز اجراء امتحان ش البكالوريا","","ثانوية الشهيد بن حمده علي  - النخلة"]
[545,12997,"محمد1 علي545","استاذ تعليم ابتدائي","إ -","العربية","جويدة الجموعي- النخلة","الرباح","حي النور","النخلة","مركز اجراء امتحان ش البكالوريا","","ثانوية الشهيد بن حمده علي  - النخلة"]
[546,12998,"محمد1 علي546","استاذ تعليم ابتدائي","إ -","العربية","جويدة الجموعي- النخلة","الرباح","حي النور","النخلة","مركز اجراء امتحان ش البكالوريا","","ثانوية الشهيد بن حمده علي  - النخلة"]
[547,12999,"محمد1 علي547","استاذ تعليم ابتدائي","إ -","العربية","جويدة الجموعي- النخلة","الرباح","حي النور","النخلة","مركز اجراء امتحان ش البكالوريا","","ثانوية الشهيد بن حمده علي  - النخلة"]
[548,13000,"محمد1 علي548","استاذ تعليم ابتدائي","إ -","العربية","جويدة الجموعي- النخلة","الرباح","حي النور","النخلة","مركز اجراء امتحان ش البكالوريا","","ثانوية الشهيد بن حمده علي  - النخلة"]
[549,13001,"محمد1 علي549","استاذ تعليم ابتدائي","إ -","العربية","جويدة الجموعي- النخلة","الرباح","حي النور","النخلة","مركز اجراء امتحان ش البكالوريا","","ثانوية الشهيد بن حمده علي  - النخلة"]
[550,13002,"محمد1 علي550","استاذ تعليم ابتدائي","إ -","العربية","جويدة الجموعي- النخلة","الرباح","حي النور","النخلة","مركز اجراء امتحان ش البكالوريا","","ثانوية الشهيد بن حمده علي  - النخلة"]
[551,13003,"محمد1 علي551","استاذ تعليم ابتدائي","إ -","العربية","جويدة الجموعي- النخلة","الرباح","حي النور","النخلة","مركز اجراء امتحان ش البكالوريا","","ثانوية الشهيد بن حمده علي  - النخلة"]
[552,13004,"محمد1 علي552","استاذ تعليم ابتدائي","إ -","العربية","جويدة الجموعي- النخلة","الرباح","حي النور","النخلة","مركز اجراء امتحان ش البكالوريا","","ثانوية الشهيد بن حمده علي  - النخلة"]
[553,13005,"محمد1 علي553","استاذ تعليم ابتدائي","إ -","العربية","جويدة الجموعي- النخلة","الرباح","حي النور","النخلة","مركز اجراء امتحان ش البكالوريا","","ثانوية الشهيد بن حمده علي  - النخلة"]
[554,13006,"محمد1 علي554","استاذ تعليم ابتدائي","إ -","العربية","جويدة الجموعي- النخلة","الرباح","حي النور","النخلة","مركز اجراء امتحان ش البكالوريا","","ثانوية الشهيد بن حمده علي  - النخلة"]
[555,13007,"محمد1 علي555","استاذ تعليم ابتدائي","إ -","العربية","جويدة الجموعي- النخلة","الرباح","حي النور","النخلة","مركز اجراء امتحان ش البكالوريا","","ثانوية الشهيد بن حمده علي  - النخلة"]
[556,13008,"محمد1 علي556","استاذ تعليم ابتدائي","إ -","العربية","جويدة الجموعي- النخلة","الرباح","حي النور","النخلة","مركز اجراء امتحان ش البكالوريا","","ثانوية الشهيد بن حمده علي  - النخلة"]
[557,13009,"محمد1 علي557","استاذ تعليم ابتدائي","إ -","العربية","جويدة الجموعي- النخلة","الرباح","حي النور","النخلة","مركز اجراء امتحان ش البكالوريا","","ثانوية الشهيد بن حمده علي  - النخلة"]
[558,13010,"محمد1 علي558","استاذ تعليم ابتدائي","إ -","العربية","جويدة الجموعي- النخلة","الرباح","حي النور","النخلة","مركز اجراء امتحان ش البكالوريا","","ثانوية الشهيد بن حمده علي  - النخلة"]
[559,13011,"محمد1 علي559","استاذ تعليم ابتدائي","إ -","العربية","جويدة الجموعي- النخلة","الرباح","حي النور","النخلة","مركز اجراء امتحان ش البكالوريا","","ثانوية الشهيد بن حمده علي  - النخلة"]
[560,13012,"محمد1 علي560","استاذ تعليم ابتدائي","إ -","العربية","جويدة الجموعي- النخلة","الرباح","حي النور","النخلة","مركز اجراء امتحان ش البكالوريا","","ثانوية الشهيد بن حمده علي  - النخلة"]
[561,13013,"محمد1 علي561","استاذ تعليم ابتدائي","إ -","العربية","جويدة الجموعي- النخلة","الرباح","حي النور","النخلة","مركز اجراء امتحان ش البكالوريا","","ثانوية الشهيد بن حمده علي  - النخلة"]
[562,13014,"محمد1 علي562","استاذ تعليم ابتدائي","إ -","العربية","جويدة الجموعي- النخلة","الرباح","حي النور","النخلة","مركز اجراء امتحان ش البكالوريا","","ثانوية الشهيد بن حمده علي  - النخلة"]
[563,13015,"محمد1 علي563","استاذ تعليم ابتدائي","إ -","العربية","جويدة الجموعي- النخلة","الرباح","حي النور","النخلة","مركز اجراء امتحان ش البكالوريا","","ثانوية الشهيد بن حمده علي  - النخلة"]
[564,13016,"محمد1 علي564","استاذ تعليم ابتدائي","إ -","العربية","جويدة الجموعي- النخلة","الرباح","حي النور","النخلة","مركز اجراء امتحان ش البكالوريا","","ثانوية الشهيد بن حمده علي  - النخلة"]
[565,13017,"محمد1 علي565","استاذ تعليم ابتدائي","إ -","العربية","جويدة الجموعي- النخلة","الرباح","حي النور","النخلة","مركز اجراء امتحان ش البكالوريا","","ثانوية الشهيد بن حمده علي  - النخلة"]
[566,13018,"محمد1 علي566","استاذ تعليم ابتدائي","إ -","العربية","جويدة الجموعي- النخلة","الرباح","حي النور","النخلة","مركز اجراء امتحان ش البكالوريا","","ثانوية الشهيد بن حمده علي  - النخلة"]
[567,13019,"محمد1 علي567","استاذ تعليم ابتدائي","إ -","العربية","جويدة الجموعي- النخلة","الرباح","حي النور","النخلة","مركز اجراء امتحان ش البكالوريا","","ثانوية الشهيد بن حمده علي  - النخلة"]
[568,13020,"محمد1 علي568","استاذ تعليم ابتدائي","إ -","العربية","جويدة الجموعي- النخلة","الرباح","حي النور","النخلة","مركز اجراء امتحان ش البكالوريا","","ثانوية الشهيد بن حمده علي  - النخلة"]
[569,13021,"محمد1 علي569","استاذ تعليم ابتدائي","إ -","العربية","جويدة الجموعي- النخلة","الرباح","حي النور","النخلة","مركز اجراء امتحان ش البكالوريا","","ثانوية الشهيد بن حمده علي  - النخلة"]
[570,13022,"محمد1 علي570","استاذ تعليم ابتدائي","إ -","العربية","جويدة الجموعي- النخلة","الرباح","حي النور","النخلة","مركز اجراء امتحان ش البكالوريا","","ثانوية الشهيد بن حمده علي  - النخلة"]
[571,13023,"محمد1 علي571","استاذ تعليم ابتدائي","إ -","العربية","جويدة الجموعي- النخلة","الرباح","حي النور","النخلة","مركز اجراء امتحان ش البكالوريا","","ثانوية الشهيد بن حمده علي  - النخلة"]
[572,13024,"محمد1 علي572","استاذ تعليم ابتدائي","إ -","العربية","جويدة الجموعي- النخلة","الرباح","حي النور","النخلة","مركز اجراء امتحان ش البكالوريا","","ثانوية الشهيد بن حمده علي  - النخلة"]
[573,13025,"محمد1 علي573","استاذ تعليم ابتدائي","إ -","العربية","جويدة الجموعي- النخلة","الرباح","حي النور","النخلة","مركز اجراء امتحان ش البكالوريا","","ثانوية الشهيد بن حمده علي  - النخلة"]
[574,13026,"محمد1 علي574","استاذ تعليم ابتدائي","إ -","العربية","جويدة الجموعي- النخلة","الرباح","حي النور","النخلة","مركز اجراء امتحان ش البكالوريا","","ثانوية الشهيد بن حمده علي  - النخلة"]
[575,13027,"محمد1 علي575","استاذ تعليم ابتدائي","إ -","العربية","جويدة الجموعي- النخلة","الرباح","حي النور","النخلة","مركز اجراء امتحان ش البكالوريا","","ثانوية الشهيد بن حمده علي  - النخلة"]
[576,13028,"محمد1 علي576","استاذ تعليم ابتدائي","إ -","العربية","جويدة الجموعي- النخلة","الرباح","حي النور","النخلة","مركز اجراء امتحان ش البكالوريا","","ثانوية الشهيد بن حمده علي  - النخلة"]
[577,13029,"محمد1 علي577","استاذ تعليم ابتدائي","إ -","العربية","جويدة الجموعي- النخلة","الرباح","حي النور","النخلة","مركز اجراء امتحان ش البكالوريا","","ثانوية الشهيد بن حمده علي  - النخلة"]
[578,13030,"محمد1 علي578","استاذ تعليم ابتدائي","إ -","العربية","جويدة الجموعي- النخلة","الرباح","حي النور","النخلة","مركز اجراء امتحان ش البكالوريا","","ثانوية الشهيد بن حمده علي  - النخلة"]
[579,13031,"محمد1 علي579","استاذ تعليم ابتدائي","إ -","العربية","جويدة الجموعي- النخلة","الرباح","حي النور","النخلة","مركز اجراء امتحان ش البكالوريا","","ثانوية الشهيد بن حمده علي  - النخلة"]
[580,13032,"محمد1 علي580","استاذ تعليم ابتدائي","إ -","العربية","جويدة الجموعي- النخلة","الرباح","حي النور","النخلة","مركز اجراء امتحان ش البكالوريا","","ثانوية الشهيد بن حمده علي  - النخلة"]
[581,13033,"محمد1 علي581","استاذ تعليم ابتدائي","إ -","العربية","جويدة الجموعي- النخلة","الرباح","حي النور","النخلة","مركز اجراء امتحان ش البكالوريا","","ثانوية الشهيد بن حمده علي  - النخلة"]
[582,13034,"محمد1 علي582","استاذ تعليم ابتدائي","إ -","العربية","جويدة الجموعي- النخلة","الرباح","حي النور","النخلة","مركز اجراء امتحان ش البكالوريا","","ثانوية الشهيد بن حمده علي  - النخلة"]
[583,13035,"محمد1 علي583","استاذ تعليم ابتدائي","إ -","العربية","جويدة الجموعي- النخلة","الرباح","حي النور","النخلة","مركز اجراء امتحان ش البكالوريا","","ثانوية الشهيد بن حمده علي  - النخلة"]
[584,13036,"محمد1 علي584","استاذ تعليم ابتدائي","إ -","العربية","جويدة الجموعي- النخلة","الرباح","حي النور","النخلة","مركز اجراء امتحان ش البكالوريا","","ثانوية الشهيد بن حمده علي  - النخلة"]
[585,13037,"محمد1 علي585","استاذ تعليم ابتدائي","إ -","العربية","جويدة الجموعي- النخلة","الرباح","حي النور","النخلة","مركز اجراء امتحان ش البكالوريا","","ثانوية الشهيد بن حمده علي  - النخلة"]
[586,13038,"محمد1 علي586","استاذ تعليم ابتدائي","إ -","العربية","جويدة الجموعي- النخلة","الرباح","حي النور","النخلة","مركز اجراء امتحان ش البكالوريا","","ثانوية الشهيد بن حمده علي  - النخلة"]
[587,13039,"محمد1 علي587","استاذ تعليم ابتدائي","إ -","العربية","جويدة الجموعي- النخلة","الرباح","حي النور","النخلة","مركز اجراء امتحان ش البكالوريا","","ثانوية الشهيد بن حمده علي  - النخلة"]
[588,13040,"محمد1 علي588","استاذ تعليم ابتدائي","إ -","العربية","جويدة الجموعي- النخلة","الرباح","حي النور","النخلة","مركز اجراء امتحان ش البكالوريا","","ثانوية الشهيد بن حمده علي  - النخلة"]
[589,13041,"محمد1 علي589","استاذ تعليم ابتدائي","إ -","العربية","جويدة الجموعي- النخلة","الرباح","حي النور","النخلة","مركز اجراء امتحان ش البكالوريا","","ثانوية الشهيد بن حمده علي  - النخلة"]
[590,13042,"محمد1 علي590","استاذ تعليم ابتدائي","إ -","العربية","جويدة الجموعي- النخلة","الرباح","حي النور","النخلة","مركز اجراء امتحان ش البكالوريا","","ثانوية الشهيد بن حمده علي  - النخلة"]
[591,13043,"محمد1 علي591","استاذ تعليم ابتدائي","إ -","العربية","جويدة الجموعي- النخلة","الرباح","حي النور","النخلة","مركز اجراء امتحان ش البكالوريا","","ثانوية الشهيد بن حمده علي  - النخلة"]
[592,13044,"محمد1 علي592","استاذ تعليم ابتدائي","إ -","العربية","جويدة الجموعي- النخلة","الرباح","حي النور","النخلة","مركز اجراء امتحان ش البكالوريا","","ثانوية الشهيد بن حمده علي  - النخلة"]
[593,13045,"محمد1 علي593","استاذ تعليم ابتدائي","إ -","العربية","جويدة الجموعي- النخلة","الرباح","حي النور","النخلة","مركز اجراء امتحان ش البكالوريا","","ثانوية الشهيد بن حمده علي  - النخلة"]
[594,13046,"محمد1 علي594","استاذ تعليم ابتدائي","إ -","العربية","جويدة الجموعي- النخلة","الرباح","حي النور","النخلة","مركز اجراء امتحان ش البكالوريا","","ثانوية الشهيد بن حمده علي  - النخلة"]
[595,13047,"محمد1 علي595","استاذ تعليم ابتدائي","إ -","العربية","جويدة الجموعي- النخلة","الرباح","حي النور","النخلة","مركز اجراء امتحان ش البكالوريا","","ثانوية الشهيد بن حمده علي  - النخلة"]
[596,13048,"محمد1 علي596","استاذ تعليم ابتدائي","إ -","العربية","جويدة الجموعي- النخلة","الرباح","حي النور","النخلة","مركز اجراء امتحان ش البكالوريا","","ثانوية الشهيد بن حمده علي  - النخلة"]
[597,13049,"محمد1 علي597","استاذ تعليم ابتدائي","إ -","العربية","جويدة الجموعي- النخلة","الرباح","حي النور","النخلة","مركز اجراء امتحان ش البكالوريا","","ثانوية الشهيد بن حمده علي  - النخلة"]
[598,13050,"محمد1 علي598","استاذ تعليم ابتدائي","إ -","العربية","جويدة الجموعي- النخلة","الرباح","حي النور","النخلة","مركز اجراء امتحان ش البكالوريا","","ثانوية الشهيد بن حمده علي  - النخلة"]
[599,13051,"محمد1 علي599","استاذ تعليم ابتدائي","إ -","العربية","جويدة الجموعي- النخلة","الرباح","حي النور","النخلة","مركز اجراء امتحان ش البكالوريا","","ثانوية الشهيد بن حمده علي  - النخلة"]
[600,13052,"محمد1 علي600","استاذ تعليم ابتدائي","إ -","العربية","جويدة الجموعي- النخلة","الرباح","حي النور","النخلة","مركز اجراء امتحان ش البكالوريا","","ثانوية الشهيد بن حمده علي  - النخلة"]
[601,13053,"محمد1 علي601","استاذ تعليم ابتدائي","إ -","العربية","جويدة الجموعي- النخلة","الرباح","حي النور","النخلة","مركز اجراء امتحان ش البكالوريا","","ثانوية الشهيد بن حمده علي  - النخلة"]
[602,13054,"محمد1 علي602","استاذ تعليم ابتدائي","إ -","العربية","جويدة الجموعي- النخلة","الرباح","حي النور","النخلة","مركز اجراء امتحان ش البكالوريا","","ثانوية الشهيد بن حمده علي  - النخلة"]
[603,13055,"محمد1 علي603","استاذ تعليم ابتدائي","إ -","العربية","جويدة الجموعي- النخلة","الرباح","حي النور","النخلة","مركز اجراء امتحان ش البكالوريا","","ثانوية الشهيد بن حمده علي  - النخلة"]
[604,13056,"محمد1 علي604","استاذ تعليم ابتدائي","إ -","العربية","جويدة الجموعي- النخلة","الرباح","حي النور","النخلة","مركز اجراء امتحان ش البكالوريا","","ثانوية الشهيد بن حمده علي  - النخلة"]
[605,13057,"محمد1 علي605","استاذ تعليم ابتدائي","إ -","العربية","جويدة الجموعي- النخلة","الرباح","حي النور","النخلة","مركز اجراء امتحان ش البكالوريا","","ثانوية الشهيد بن حمده علي  - النخلة"]
[606,13058,"محمد1 علي606","استاذ تعليم ابتدائي","إ -","العربية","جويدة الجموعي- النخلة","الرباح","حي النور","النخلة","مركز اجراء امتحان ش البكالوريا","","ثانوية الشهيد بن حمده علي  - النخلة"]
[607,13059,"محمد1 علي607","استاذ تعليم ابتدائي","إ -","العربية","جويدة الجموعي- النخلة","الرباح","حي النور","النخلة","مركز اجراء امتحان ش البكالوريا","","ثانوية الشهيد بن حمده علي  - النخلة"]
[608,13060,"محمد1 علي608","استاذ تعليم ابتدائي","إ -","العربية","جويدة الجموعي- النخلة","الرباح","حي النور","النخلة","مركز اجراء امتحان ش البكالوريا","","ثانوية الشهيد بن حمده علي  - النخلة"]
[609,13061,"محمد1 علي609","استاذ تعليم ابتدائي","إ -","العربية","جويدة الجموعي- النخلة","الرباح","حي النور","النخلة","مركز اجراء امتحان ش البكالوريا","","ثانوية الشهيد بن حمده علي  - النخلة"]
[610,13062,"محمد1 علي610","استاذ تعليم ابتدائي","إ -","العربية","جويدة الجموعي- النخلة","الرباح","حي النور","النخلة","مركز اجراء امتحان ش البكالوريا","","ثانوية الشهيد بن حمده علي  - النخلة"]
[611,13063,"محمد1 علي611","استاذ تعليم ابتدائي","إ -","العربية","جويدة الجموعي- النخلة","الرباح","حي النور","النخلة","مركز اجراء امتحان ش البكالوريا","","ثانوية الشهيد بن حمده علي  - النخلة"]
[612,13064,"محمد1 علي612","استاذ تعليم ابتدائي","إ -","العربية","جويدة الجموعي- النخلة","الرباح","حي النور","النخلة","مركز اجراء امتحان ش البكالوريا","","ثانوية الشهيد بن حمده علي  - النخلة"]
[613,13065,"محمد1 علي613","استاذ تعليم ابتدائي","إ -","العربية","جويدة الجموعي- النخلة","الرباح","حي النور","النخلة","مركز اجراء امتحان ش البكالوريا","","ثانوية الشهيد بن حمده علي  - النخلة"]
[614,13066,"محمد1 علي614","استاذ تعليم ابتدائي","إ -","العربية","جويدة الجموعي- النخلة","الرباح","حي النور","النخلة","مركز اجراء امتحان ش البكالوريا","","ثانوية الشهيد بن حمده علي  - النخلة"]
[615,13067,"محمد1 علي615","استاذ تعليم ابتدائي","إ -","العربية","جويدة الجموعي- النخلة","الرباح","حي النور","النخلة","مركز اجراء امتحان ش البكالوريا","","ثانوية الشهيد بن حمده علي  - النخلة"]
[616,13068,"محمد1 علي616","استاذ تعليم ابتدائي","إ -","العربية","جويدة الجموعي- النخلة","الرباح","حي النور","النخلة","مركز اجراء امتحان ش البكالوريا","","ثانوية الشهيد بن حمده علي  - النخلة"]
[617,13069,"محمد1 علي617","استاذ تعليم ابتدائي","إ -","العربية","جويدة الجموعي- النخلة","الرباح","حي النور","النخلة","مركز اجراء امتحان ش البكالوريا","","ثانوية الشهيد بن حمده علي  - النخلة"]
[618,13070,"محمد1 علي618","استاذ تعليم ابتدائي","إ -","العربية","جويدة الجموعي- النخلة","الرباح","حي النور","النخلة","مركز اجراء امتحان ش البكالوريا","","ثانوية الشهيد بن حمده علي  - النخلة"]
[619,13071,"محمد1 علي619","استاذ تعليم ابتدائي","إ -","العربية","جويدة الجموعي- النخلة","الرباح","حي النور","النخلة","مركز اجراء امتحان ش البكالوريا","","ثانوية الشهيد بن حمده علي  - النخلة"]
[620,13072,"محمد1 علي620","استاذ تعليم ابتدائي","إ -","العربية","جويدة الجموعي- النخلة","الرباح","حي النور","النخلة","مركز اجراء امتحان ش البكالوريا","","ثانوية الشهيد بن حمده علي  - النخلة"]
[621,13073,"محمد1 علي621","استاذ تعليم ابتدائي","إ -","العربية","جويدة الجموعي- النخلة","الرباح","حي النور","النخلة","مركز اجراء امتحان ش البكالوريا","","ثانوية الشهيد بن حمده علي  - النخلة"]
[622,13074,"محمد1 علي622","استاذ تعليم ابتدائي","إ -","العربية","جويدة الجموعي- النخلة","الرباح","حي النور","النخلة","مركز اجراء امتحان ش البكالوريا","","ثانوية الشهيد بن حمده علي  - النخلة"]
[623,13075,"محمد1 علي623","استاذ تعليم ابتدائي","إ -","العربية","جويدة الجموعي- النخلة","الرباح","حي النور","النخلة","مركز اجراء امتحان ش البكالوريا","","ثانوية الشهيد بن حمده علي  - النخلة"]
[624,13076,"محمد1 علي624","استاذ تعليم ابتدائي","إ -","العربية","جويدة الجموعي- النخلة","الرباح","حي النور","النخلة","مركز اجراء امتحان ش البكالوريا","","ثانوية الشهيد بن حمده علي  - النخلة"]
[625,13077,"محمد1 علي625","استاذ تعليم ابتدائي","إ -","العربية","جويدة الجموعي- النخلة","الرباح","حي النور","النخلة","مركز اجراء امتحان ش البكالوريا","","ثانوية الشهيد بن حمده علي  - النخلة"]
[626,13078,"محمد1 علي626","استاذ تعليم ابتدائي","إ -","العربية","جويدة الجموعي- النخلة","الرباح","حي النور","النخلة","مركز اجراء امتحان ش البكالوريا","","ثانوية الشهيد بن حمده علي  - النخلة"]
[627,13079,"محمد1 علي627","استاذ تعليم ابتدائي","إ -","العربية","جويدة الجموعي- النخلة","الرباح","حي النور","النخلة","مركز اجراء امتحان ش البكالوريا","","ثانوية الشهيد بن حمده علي  - النخلة"]
[628,13080,"محمد1 علي628","استاذ تعليم ابتدائي","إ -","العربية","جويدة الجموعي- النخلة","الرباح","حي النور","النخلة","مركز اجراء امتحان ش البكالوريا","","ثانوية الشهيد بن حمده علي  - النخلة"]
[629,13081,"محمد1 علي629","استاذ تعليم ابتدائي","إ -","العربية","جويدة الجموعي- النخلة","الرباح","حي النور","النخلة","مركز اجراء امتحان ش البكالوريا","","ثانوية الشهيد بن حمده علي  - النخلة"]
[630,13082,"محمد1 علي630","استاذ تعليم ابتدائي","إ -","العربية","جويدة الجموعي- النخلة","الرباح","حي النور","النخلة","مركز اجراء امتحان ش البكالوريا","","ثانوية الشهيد بن حمده علي  - النخلة"]
[631,13083,"محمد1 علي631","استاذ تعليم ابتدائي","إ -","العربية","جويدة الجموعي- النخلة","الرباح","حي النور","النخلة","مركز اجراء امتحان ش البكالوريا","","ثانوية الشهيد بن حمده علي  - النخلة"]
[632,13084,"محمد1 علي632","استاذ تعليم ابتدائي","إ -","العربية","جويدة الجموعي- النخلة","الرباح","حي النور","النخلة","مركز اجراء امتحان ش البكالوريا","","ثانوية الشهيد بن حمده علي  - النخلة"]
[633,13085,"محمد1 علي633","استاذ تعليم ابتدائي","إ -","العربية","جويدة الجموعي- النخلة","الرباح","حي النور","النخلة","مركز اجراء امتحان ش البكالوريا","","ثانوية الشهيد بن حمده علي  - النخلة"]
[634,13086,"محمد1 علي634","استاذ تعليم ابتدائي","إ -","العربية","جويدة الجموعي- النخلة","الرباح","حي النور","النخلة","مركز اجراء امتحان ش البكالوريا","","ثانوية الشهيد بن حمده علي  - النخلة"]
[635,13087,"محمد1 علي635","استاذ تعليم ابتدائي","إ -","العربية","جويدة الجموعي- النخلة","الرباح","حي النور","النخلة","مركز اجراء امتحان ش البكالوريا","","ثانوية الشهيد بن حمده علي  - النخلة"]
[636,13088,"محمد1 علي636","استاذ تعليم ابتدائي","إ -","العربية","جويدة الجموعي- النخلة","الرباح","حي النور","النخلة","مركز اجراء امتحان ش البكالوريا","","ثانوية الشهيد بن حمده علي  - النخلة"]
[637,13089,"محمد1 علي637","استاذ تعليم ابتدائي","إ -","العربية","جويدة الجموعي- النخلة","الرباح","حي النور","النخلة","مركز اجراء امتحان ش البكالوريا","","ثانوية الشهيد بن حمده علي  - النخلة"]
[638,13090,"محمد1 علي638","استاذ تعليم ابتدائي","إ -","العربية","جويدة الجموعي- النخلة","الرباح","حي النور","النخلة","مركز اجراء امتحان ش البكالوريا","","ثانوية الشهيد بن حمده علي  - النخلة"]
[639,13091,"محمد1 علي639","استاذ تعليم ابتدائي","إ -","العربية","جويدة الجموعي- النخلة","الرباح","حي النور","النخلة","مركز اجراء امتحان ش البكالوريا","","ثانوية الشهيد بن حمده علي  - النخلة"]
[640,13092,"محمد1 علي640","استاذ تعليم ابتدائي","إ -","العربية","جويدة الجموعي- النخلة","الرباح","حي النور","النخلة","مركز اجراء امتحان ش البكالوريا","","ثانوية الشهيد بن حمده علي  - النخلة"]
[641,13093,"محمد1 علي641","استاذ تعليم ابتدائي","إ -","العربية","جويدة الجموعي- النخلة","الرباح","حي النور","النخلة","مركز اجراء امتحان ش البكالوريا","","ثانوية الشهيد بن حمده علي  - النخلة"]
[642,13094,"محمد1 علي642","استاذ تعليم ابتدائي","إ -","العربية","جويدة الجموعي- النخلة","الرباح","حي النور","النخلة","مركز اجراء امتحان ش البكالوريا","","ثانوية الشهيد بن حمده علي  - النخلة"]
[643,13095,"محمد1 علي643","استاذ تعليم ابتدائي","إ -","العربية","جويدة الجموعي- النخلة","الرباح","حي النور","النخلة","مركز اجراء امتحان ش البكالوريا","","ثانوية الشهيد بن حمده علي  - النخلة"]
[644,13096,"محمد1 علي644","استاذ تعليم ابتدائي","إ -","العربية","جويدة الجموعي- النخلة","الرباح","حي النور","النخلة","مركز اجراء امتحان ش البكالوريا","","ثانوية الشهيد بن حمده علي  - النخلة"]
[645,13097,"محمد1 علي645","استاذ تعليم ابتدائي","إ -","العربية","جويدة الجموعي- النخلة","الرباح","حي النور","النخلة","مركز اجراء امتحان ش البكالوريا","","ثانوية الشهيد بن حمده علي  - النخلة"]
[646,13098,"محمد1 علي646","استاذ تعليم ابتدائي","إ -","العربية","جويدة الجموعي- النخلة","الرباح","حي النور","النخلة","مركز اجراء امتحان ش البكالوريا","","ثانوية الشهيد بن حمده علي  - النخلة"]
[647,13099,"محمد1 علي647","استاذ تعليم ابتدائي","إ -","العربية","جويدة الجموعي- النخلة","الرباح","حي النور","النخلة","مركز اجراء امتحان ش البكالوريا","","ثانوية الشهيد بن حمده علي  - النخلة"]
[648,13100,"محمد1 علي648","استاذ تعليم ابتدائي","إ -","العربية","جويدة الجموعي- النخلة","الرباح","حي النور","النخلة","مركز اجراء امتحان ش البكالوريا","","ثانوية الشهيد بن حمده علي  - النخلة"]
[649,13101,"محمد1 علي649","استاذ تعليم ابتدائي","إ -","العربية","جويدة الجموعي- النخلة","الرباح","حي النور","النخلة","مركز اجراء امتحان ش البكالوريا","","ثانوية الشهيد بن حمده علي  - النخلة"]
[650,13102,"محمد1 علي650","استاذ تعليم ابتدائي","إ -","العربية","جويدة الجموعي- النخلة","الرباح","حي النور","النخلة","مركز اجراء امتحان ش البكالوريا","","ثانوية الشهيد بن حمده علي  - النخلة"]
[651,13103,"محمد1 علي651","استاذ تعليم ابتدائي","إ -","العربية","جويدة الجموعي- النخلة","الرباح","حي النور","النخلة","مركز اجراء امتحان ش البكالوريا","","ثانوية الشهيد بن حمده علي  - النخلة"]
[652,13104,"محمد1 علي652","استاذ تعليم ابتدائي","إ -","العربية","جويدة الجموعي- النخلة","الرباح","حي النور","النخلة","مركز اجراء امتحان ش البكالوريا","","ثانوية الشهيد بن حمده علي  - النخلة"]
[653,13105,"محمد1 علي653","استاذ تعليم ابتدائي","إ -","العربية","جويدة الجموعي- النخلة","الرباح","حي النور","النخلة","مركز اجراء امتحان ش البكالوريا","","ثانوية الشهيد بن حمده علي  - النخلة"]
[654,13106,"محمد1 علي654","استاذ تعليم ابتدائي","إ -","العربية","جويدة الجموعي- النخلة","الرباح","حي النور","النخلة","مركز اجراء امتحان ش البكالوريا","","ثانوية الشهيد بن حمده علي  - النخلة"]
[655,13107,"محمد1 علي655","استاذ تعليم ابتدائي","إ -","العربية","جويدة الجموعي- النخلة","الرباح","حي النور","النخلة","مركز اجراء امتحان ش البكالوريا","","ثانوية الشهيد بن حمده علي  - النخلة"]
[656,13108,"محمد1 علي656","استاذ تعليم ابتدائي","إ -","العربية","جويدة الجموعي- النخلة","الرباح","حي النور","النخلة","مركز اجراء امتحان ش البكالوريا","","ثانوية الشهيد بن حمده علي  - النخلة"]

{"sheet":"حساب عدد الأيام","index":2,"n_rows":178,"n_cols":15,"rows_kept":178,"cut":false,"hidden":false,"merged":[[5,9,5,10],[5,11,5,12],[5,13,6,13],[149,0,149,12],[0,4,0,7],[1,4,1,7],[5,0,6,0],[5,1,6,2],[5,3,5,4],[5,5,5,6],[5,7,5,8]]}
[null,null,null,null,"وزارة التربية الوطنية"]
[null,null,null,null,"مديرية التربية لولاية الوادي"]
[]
[]
[null,"مـركـــــز الإمتحـــان:",{"$f":"'بيانات المركز.'!Q9","v":"ثانوية المجتهد - الوادي"},null,null,null,null,"رقم المركز: ",null,{"$f":"'بيانات المركز.'!V7","v":39044},null,{"$f":"'بيانات المركز.'!D19","v":"جوان 2021"}]
["الرقم","اللقب و الإسم",null,"اليوم الاول",null,"اليوم الثاني",null,"اليوم الثالث",null,"اليوم الرابع",null,"اليوم الخامس",null,"عدد الايام"]
[null,null,null,"صباحا","مساءا","صباحا","مساءا","صباحا","مساءا","صباحا","مساءا","صباحا","مساءا"]
[1,{"$f":"'توزيع الحراس'!B3","v":"محمد1 علي1"},{"$f":"'توزيع الحراس'!A3","v":1},{"$f":"COUNTIF('توزيع الحراس'!D$3:F$42,$C8)","v":0},{"$f":"COUNTIF('توزيع الحراس'!G$3:I$42,$C8)","v":1},{"$f":"COUNTIF('توزيع الحراس'!K$3:M$42,$C8)","v":0},{"$f":"COUNTIF('توزيع الحراس'!N$3:P$42,$C8)","v":0},{"$f":"COUNTIF('توزيع الحراس'!Q$3:S$42,$C8)","v":0},{"$f":"COUNTIF('توزيع الحراس'!T$3:V$42,$C8)","v":0},{"$f":"COUNTIF('توزيع الحراس'!W$3:Y$42,$C8)","v":0},{"$f":"COUNTIF('توزيع الحراس'!Z$3:AB$42,$C8)","v":0},{"$f":"COUNTIF('توزيع الحراس'!AC$3:AE$42,$C8)","v":0},{"$f":"COUNTIF('توزيع الحراس'!AF$3:AH$42,$C8)","v":0},{"$f":"COUNTIF(D8:M8,\"x\")/2","v":0},{"$f":"SUM(D8:M8)","v":1}]
[2,{"$f":"'توزيع الحراس'!B4","v":"محمد1 علي2"},{"$f":"'توزيع الحراس'!A4","v":2},{"$f":"COUNTIF('توزيع الحراس'!D$3:F$42,$C9)","v":0},{"$f":"COUNTIF('توزيع الحراس'!G$3:I$42,$C9)","v":1},{"$f":"COUNTIF('توزيع الحراس'!K$3:M$42,$C9)","v":0},{"$f":"COUNTIF('توزيع الحراس'!N$3:P$42,$C9)","v":0},{"$f":"COUNTIF('توزيع الحراس'!Q$3:S$42,$C9)","v":0},{"$f":"COUNTIF('توزيع الحراس'!T$3:V$42,$C9)","v":0},{"$f":"COUNTIF('توزيع الحراس'!W$3:Y$42,$C9)","v":0},{"$f":"COUNTIF('توزيع الحراس'!Z$3:AB$42,$C9)","v":0},{"$f":"COUNTIF('توزيع الحراس'!AC$3:AE$42,$C9)","v":0},{"$f":"COUNTIF('توزيع الحراس'!AF$3:AH$42,$C9)","v":0},0,1]
[3,{"$f":"'توزيع الحراس'!B5","v":"محمد1 علي3"},{"$f":"'توزيع الحراس'!A5","v":3},{"$f":"COUNTIF('توزيع الحراس'!D$3:F$42,$C10)","v":0},{"$f":"COUNTIF('توزيع الحراس'!G$3:I$42,$C10)","v":1},{"$f":"COUNTIF('توزيع الحراس'!K$3:M$42,$C10)","v":0},{"$f":"COUNTIF('توزيع الحراس'!N$3:P$42,$C10)","v":0},{"$f":"COUNTIF('توزيع الحراس'!Q$3:S$42,$C10)","v":0},{"$f":"COUNTIF('توزيع الحراس'!T$3:V$42,$C10)","v":0},{"$f":"COUNTIF('توزيع الحراس'!W$3:Y$42,$C10)","v":0},{"$f":"COUNTIF('توزيع الحراس'!Z$3:AB$42,$C10)","v":0},{"$f":"COUNTIF('توزيع الحراس'!AC$3:AE$42,$C10)","v":0},{"$f":"COUNTIF('توزيع الحراس'!AF$3:AH$42,$C10)","v":0},0,1]
[4,{"$f":"'توزيع الحراس'!B6","v":"محمد1 علي4"},{"$f":"'توزيع الحراس'!A6","v":4},{"$f":"COUNTIF('توزيع الحراس'!D$3:F$42,$C11)","v":0},{"$f":"COUNTIF('توزيع الحراس'!G$3:I$42,$C11)","v":0},{"$f":"COUNTIF('توزيع الحراس'!K$3:M$42,$C11)","v":0},{"$f":"COUNTIF('توزيع الحراس'!N$3:P$42,$C11)","v":0},{"$f":"COUNTIF('توزيع الحراس'!Q$3:S$42,$C11)","v":0},{"$f":"COUNTIF('توزيع الحراس'!T$3:V$42,$C11)","v":0},{"$f":"COUNTIF('توزيع الحراس'!W$3:Y$42,$C11)","v":0},{"$f":"COUNTIF('توزيع الحراس'!Z$3:AB$42,$C11)","v":0},{"$f":"COUNTIF('توزيع الحراس'!AC$3:AE$42,$C11)","v":0},{"$f":"COUNTIF('توزيع الحراس'!AF$3:AH$42,$C11)","v":0},0,0]
[5,{"$f":"'توزيع الحراس'!B7","v":"محمد1 علي5"},{"$f":"'توزيع الحراس'!A7","v":5},{"$f":"COUNTIF('توزيع الحراس'!D$3:F$42,$C12)","v":0},{"$f":"COUNTIF('توزيع الحراس'!G$3:I$42,$C12)","v":0},{"$f":"COUNTIF('توزيع الحراس'!K$3:M$42,$C12)","v":0},{"$f":"COUNTIF('توزيع الحراس'!N$3:P$42,$C12)","v":0},{"$f":"COUNTIF('توزيع الحراس'!Q$3:S$42,$C12)","v":0},{"$f":"COUNTIF('توزيع الحراس'!T$3:V$42,$C12)","v":0},{"$f":"COUNTIF('توزيع الحراس'!W$3:Y$42,$C12)","v":0},{"$f":"COUNTIF('توزيع الحراس'!Z$3:AB$42,$C12)","v":0},{"$f":"COUNTIF('توزيع الحراس'!AC$3:AE$42,$C12)","v":0},{"$f":"COUNTIF('توزيع الحراس'!AF$3:AH$42,$C12)","v":0},0,0]
[6,{"$f":"'توزيع الحراس'!B8","v":"محمد1 علي6"},{"$f":"'توزيع الحراس'!A8","v":6},{"$f":"COUNTIF('توزيع الحراس'!D$3:F$42,$C13)","v":0},{"$f":"COUNTIF('توزيع الحراس'!G$3:I$42,$C13)","v":0},{"$f":"COUNTIF('توزيع الحراس'!K$3:M$42,$C13)","v":0},{"$f":"COUNTIF('توزيع الحراس'!N$3:P$42,$C13)","v":0},{"$f":"COUNTIF('توزيع الحراس'!Q$3:S$42,$C13)","v":0},{"$f":"COUNTIF('توزيع الحراس'!T$3:V$42,$C13)","v":0},{"$f":"COUNTIF('توزيع الحراس'!W$3:Y$42,$C13)","v":0},{"$f":"COUNTIF('توزيع الحراس'!Z$3:AB$42,$C13)","v":0},{"$f":"COUNTIF('توزيع الحراس'!AC$3:AE$42,$C13)","v":0},{"$f":"COUNTIF('توزيع الحراس'!AF$3:AH$42,$C13)","v":0},0,0]
[7,{"$f":"'توزيع الحراس'!B9","v":"محمد1 علي7"},{"$f":"'توزيع الحراس'!A9","v":7},{"$f":"COUNTIF('توزيع الحراس'!D$3:F$42,$C14)","v":0},{"$f":"COUNTIF('توزيع الحراس'!G$3:I$42,$C14)","v":0},{"$f":"COUNTIF('توزيع الحراس'!K$3:M$42,$C14)","v":0},{"$f":"COUNTIF('توزيع الحراس'!N$3:P$42,$C14)","v":0},{"$f":"COUNTIF('توزيع الحراس'!Q$3:S$42,$C14)","v":0},{"$f":"COUNTIF('توزيع الحراس'!T$3:V$42,$C14)","v":0},{"$f":"COUNTIF('توزيع الحراس'!W$3:Y$42,$C14)","v":0},{"$f":"COUNTIF('توزيع الحراس'!Z$3:AB$42,$C14)","v":0},{"$f":"COUNTIF('توزيع الحراس'!AC$3:AE$42,$C14)","v":0},{"$f":"COUNTIF('توزيع الحراس'!AF$3:AH$42,$C14)","v":0},0,0]
[8,{"$f":"'توزيع الحراس'!B10","v":"محمد1 علي8"},{"$f":"'توزيع الحراس'!A10","v":8},{"$f":"COUNTIF('توزيع الحراس'!D$3:F$42,$C15)","v":0},{"$f":"COUNTIF('توزيع الحراس'!G$3:I$42,$C15)","v":0},{"$f":"COUNTIF('توزيع الحراس'!K$3:M$42,$C15)","v":0},{"$f":"COUNTIF('توزيع الحراس'!N$3:P$42,$C15)","v":0},{"$f":"COUNTIF('توزيع الحراس'!Q$3:S$42,$C15)","v":0},{"$f":"COUNTIF('توزيع الحراس'!T$3:V$42,$C15)","v":0},{"$f":"COUNTIF('توزيع الحراس'!W$3:Y$42,$C15)","v":0},{"$f":"COUNTIF('توزيع الحراس'!Z$3:AB$42,$C15)","v":0},{"$f":"COUNTIF('توزيع الحراس'!AC$3:AE$42,$C15)","v":0},{"$f":"COUNTIF('توزيع الحراس'!AF$3:AH$42,$C15)","v":0},0,0]
[9,{"$f":"'توزيع الحراس'!B11","v":"محمد1 علي9"},{"$f":"'توزيع الحراس'!A11","v":9},{"$f":"COUNTIF('توزيع الحراس'!D$3:F$42,$C16)","v":0},{"$f":"COUNTIF('توزيع الحراس'!G$3:I$42,$C16)","v":0},{"$f":"COUNTIF('توزيع الحراس'!K$3:M$42,$C16)","v":0},{"$f":"COUNTIF('توزيع الحراس'!N$3:P$42,$C16)","v":0},{"$f":"COUNTIF('توزيع الحراس'!Q$3:S$42,$C16)","v":0},{"$f":"COUNTIF('توزيع الحراس'!T$3:V$42,$C16)","v":0},{"$f":"COUNTIF('توزيع الحراس'!W$3:Y$42,$C16)","v":0},{"$f":"COUNTIF('توزيع الحراس'!Z$3:AB$42,$C16)","v":0},{"$f":"COUNTIF('توزيع الحراس'!AC$3:AE$42,$C16)","v":0},{"$f":"COUNTIF('توزيع الحراس'!AF$3:AH$42,$C16)","v":0},0,0]
[10,{"$f":"'توزيع الحراس'!B12","v":"محمد1 علي10"},{"$f":"'توزيع الحراس'!A12","v":10},{"$f":"COUNTIF('توزيع الحراس'!D$3:F$42,$C17)","v":1},{"$f":"COUNTIF('توزيع الحراس'!G$3:I$42,$C17)","v":0},{"$f":"COUNTIF('توزيع الحراس'!K$3:M$42,$C17)","v":0},{"$f":"COUNTIF('توزيع الحراس'!N$3:P$42,$C17)","v":0},{"$f":"COUNTIF('توزيع الحراس'!Q$3:S$42,$C17)","v":0},{"$f":"COUNTIF('توزيع الحراس'!T$3:V$42,$C17)","v":0},{"$f":"COUNTIF('توزيع الحراس'!W$3:Y$42,$C17)","v":0},{"$f":"COUNTIF('توزيع الحراس'!Z$3:AB$42,$C17)","v":0},{"$f":"COUNTIF('توزيع الحراس'!AC$3:AE$42,$C17)","v":0},{"$f":"COUNTIF('توزيع الحراس'!AF$3:AH$42,$C17)","v":0},0,1]
[11,{"$f":"'توزيع الحراس'!B13","v":"محمد1 علي11"},{"$f":"'توزيع الحراس'!A13","v":11},{"$f":"COUNTIF('توزيع الحراس'!D$3:F$42,$C18)","v":1},{"$f":"COUNTIF('توزيع الحراس'!G$3:I$42,$C18)","v":0},{"$f":"COUNTIF('توزيع الحراس'!K$3:M$42,$C18)","v":0},{"$f":"COUNTIF('توزيع الحراس'!N$3:P$42,$C18)","v":0},{"$f":"COUNTIF('توزيع الحراس'!Q$3:S$42,$C18)","v":0},{"$f":"COUNTIF('توزيع الحراس'!T$3:V$42,$C18)","v":0},{"$f":"COUNTIF('توزيع الحراس'!W$3:Y$42,$C18)","v":0},{"$f":"COUNTIF('توزيع الحراس'!Z$3:AB$42,$C18)","v":0},{"$f":"COUNTIF('توزيع الحراس'!AC$3:AE$42,$C18)","v":0},{"$f":"COUNTIF('توزيع الحراس'!AF$3:AH$42,$C18)","v":0},0,1]
[12,{"$f":"'توزيع الحراس'!B14","v":"محمد1 علي12"},{"$f":"'توزيع الحراس'!A14","v":12},{"$f":"COUNTIF('توزيع الحراس'!D$3:F$42,$C19)","v":1},{"$f":"COUNTIF('توزيع الحراس'!G$3:I$42,$C19)","v":0},{"$f":"COUNTIF('توزيع الحراس'!K$3:M$42,$C19)","v":0},{"$f":"COUNTIF('توزيع الحراس'!N$3:P$42,$C19)","v":0},{"$f":"COUNTIF('توزيع الحراس'!Q$3:S$42,$C19)","v":0},{"$f":"COUNTIF('توزيع الحراس'!T$3:V$42,$C19)","v":0},{"$f":"COUNTIF('توزيع الحراس'!W$3:Y$42,$C19)","v":0},{"$f":"COUNTIF('توزيع الحراس'!Z$3:AB$42,$C19)","v":0},{"$f":"COUNTIF('توزيع الحراس'!AC$3:AE$42,$C19)","v":0},{"$f":"COUNTIF('توزيع الحراس'!AF$3:AH$42,$C19)","v":0},0,1]
[13,{"$f":"'توزيع الحراس'!B15","v":"محمد1 علي13"},{"$f":"'توزيع الحراس'!A15","v":13},{"$f":"COUNTIF('توزيع الحراس'!D$3:F$42,$C20)","v":0},{"$f":"COUNTIF('توزيع الحراس'!G$3:I$42,$C20)","v":0},{"$f":"COUNTIF('توزيع الحراس'!K$3:M$42,$C20)","v":1},{"$f":"COUNTIF('توزيع الحراس'!N$3:P$42,$C20)","v":0},{"$f":"COUNTIF('توزيع الحراس'!Q$3:S$42,$C20)","v":0},{"$f":"COUNTIF('توزيع الحراس'!T$3:V$42,$C20)","v":0},{"$f":"COUNTIF('توزيع الحراس'!W$3:Y$42,$C20)","v":0},{"$f":"COUNTIF('توزيع الحراس'!Z$3:AB$42,$C20)","v":0},{"$f":"COUNTIF('توزيع الحراس'!AC$3:AE$42,$C20)","v":0},{"$f":"COUNTIF('توزيع الحراس'!AF$3:AH$42,$C20)","v":0},0,1]
[14,{"$f":"'توزيع الحراس'!B16","v":"محمد1 علي14"},{"$f":"'توزيع الحراس'!A16","v":14},{"$f":"COUNTIF('توزيع الحراس'!D$3:F$42,$C21)","v":0},{"$f":"COUNTIF('توزيع الحراس'!G$3:I$42,$C21)","v":0},{"$f":"COUNTIF('توزيع الحراس'!K$3:M$42,$C21)","v":0},{"$f":"COUNTIF('توزيع الحراس'!N$3:P$42,$C21)","v":0},{"$f":"COUNTIF('توزيع الحراس'!Q$3:S$42,$C21)","v":0},{"$f":"COUNTIF('توزيع الحراس'!T$3:V$42,$C21)","v":0},{"$f":"COUNTIF('توزيع الحراس'!W$3:Y$42,$C21)","v":0},{"$f":"COUNTIF('توزيع الحراس'!Z$3:AB$42,$C21)","v":0},{"$f":"COUNTIF('توزيع الحراس'!AC$3:AE$42,$C21)","v":0},{"$f":"COUNTIF('توزيع الحراس'!AF$3:AH$42,$C21)","v":0},0,0]
[15,{"$f":"'توزيع الحراس'!B17","v":"محمد1 علي15"},{"$f":"'توزيع الحراس'!A17","v":15},{"$f":"COUNTIF('توزيع الحراس'!D$3:F$42,$C22)","v":0},{"$f":"COUNTIF('توزيع الحراس'!G$3:I$42,$C22)","v":0},{"$f":"COUNTIF('توزيع الحراس'!K$3:M$42,$C22)","v":1},{"$f":"COUNTIF('توزيع الحراس'!N$3:P$42,$C22)","v":0},{"$f":"COUNTIF('توزيع الحراس'!Q$3:S$42,$C22)","v":0},{"$f":"COUNTIF('توزيع الحراس'!T$3:V$42,$C22)","v":0},{"$f":"COUNTIF('توزيع الحراس'!W$3:Y$42,$C22)","v":0},{"$f":"COUNTIF('توزيع الحراس'!Z$3:AB$42,$C22)","v":0},{"$f":"COUNTIF('توزيع الحراس'!AC$3:AE$42,$C22)","v":0},{"$f":"COUNTIF('توزيع الحراس'!AF$3:AH$42,$C22)","v":0},0,1]
[16,{"$f":"'توزيع الحراس'!B18","v":"محمد1 علي16"},{"$f":"'توزيع الحراس'!A18","v":16},{"$f":"COUNTIF('توزيع الحراس'!D$3:F$42,$C23)","v":0},{"$f":"COUNTIF('توزيع الحراس'!G$3:I$42,$C23)","v":0},{"$f":"COUNTIF('توزيع الحراس'!K$3:M$42,$C23)","v":0},{"$f":"COUNTIF('توزيع الحراس'!N$3:P$42,$C23)","v":0},{"$f":"COUNTIF('توزيع الحراس'!Q$3:S$42,$C23)","v":0},{"$f":"COUNTIF('توزيع الحراس'!T$3:V$42,$C23)","v":0},{"$f":"COUNTIF('توزيع الحراس'!W$3:Y$42,$C23)","v":0},{"$f":"COUNTIF('توزيع الحراس'!Z$3:AB$42,$C23)","v":0},{"$f":"COUNTIF('توزيع الحراس'!AC$3:AE$42,$C23)","v":0},{"$f":"COUNTIF('توزيع الحراس'!AF$3:AH$42,$C23)","v":0},0,0]
[17,{"$f":"'توزيع الحراس'!B19","v":"محمد1 علي17"},{"$f":"'توزيع الحراس'!A19","v":17},{"$f":"COUNTIF('توزيع الحراس'!D$3:F$42,$C24)","v":0},{"$f":"COUNTIF('توزيع الحراس'!G$3:I$42,$C24)","v":0},{"$f":"COUNTIF('توزيع الحراس'!K$3:M$42,$C24)","v":0},{"$f":"COUNTIF('توزيع الحراس'!N$3:P$42,$C24)","v":0},{"$f":"COUNTIF('توزيع الحراس'!Q$3:S$42,$C24)","v":0},{"$f":"COUNTIF('توزيع الحراس'!T$3:V$42,$C24)","v":0},{"$f":"COUNTIF('توزيع الحراس'!W$3:Y$42,$C24)","v":0},{"$f":"COUNTIF('توزيع الحراس'!Z$3:AB$42,$C24)","v":0},{"$f":"COUNTIF('توزيع الحراس'!AC$3:AE$42,$C24)","v":0},{"$f":"COUNTIF('توزيع الحراس'!AF$3:AH$42,$C24)","v":0},0,0]
[18,{"$f":"'توزيع الحراس'!B20","v":"محمد1 علي18"},{"$f":"'توزيع الحراس'!A20","v":18},{"$f":"COUNTIF('توزيع الحراس'!D$3:F$42,$C25)","v":0},{"$f":"COUNTIF('توزيع الحراس'!G$3:I$42,$C25)","v":0},{"$f":"COUNTIF('توزيع الحراس'!K$3:M$42,$C25)","v":0},{"$f":"COUNTIF('توزيع الحراس'!N$3:P$42,$C25)","v":0},{"$f":"COUNTIF('توزيع الحراس'!Q$3:S$42,$C25)","v":0},{"$f":"COUNTIF('توزيع الحراس'!T$3:V$42,$C25)","v":0},{"$f":"COUNTIF('توزيع الحراس'!W$3:Y$42,$C25)","v":0},{"$f":"COUNTIF('توزيع الحراس'!Z$3:AB$42,$C25)","v":0},{"$f":"COUNTIF('توزيع الحراس'!AC$3:AE$42,$C25)","v":0},{"$f":"COUNTIF('توزيع الحراس'!AF$3:AH$42,$C25)","v":0},0,0]
[19,{"$f":"'توزيع الحراس'!B21","v":"محمد1 علي19"},{"$f":"'توزيع الحراس'!A21","v":19},{"$f":"COUNTIF('توزيع الحراس'!D$3:F$42,$C26)","v":0},{"$f":"COUNTIF('توزيع الحراس'!G$3:I$42,$C26)","v":0},{"$f":"COUNTIF('توزيع الحراس'!K$3:M$42,$C26)","v":0},{"$f":"COUNTIF('توزيع الحراس'!N$3:P$42,$C26)","v":0},{"$f":"COUNTIF('توزيع الحراس'!Q$3:S$42,$C26)","v":0},{"$f":"COUNTIF('توزيع الحراس'!T$3:V$42,$C26)","v":0},{"$f":"COUNTIF('توزيع الحراس'!W$3:Y$42,$C26)","v":0},{"$f":"COUNTIF('توزيع الحراس'!Z$3:AB$42,$C26)","v":0},{"$f":"COUNTIF('توزيع الحراس'!AC$3:AE$42,$C26)","v":0},{"$f":"COUNTIF('توزيع الحراس'!AF$3:AH$42,$C26)","v":0},0,0]
[20,{"$f":"'توزيع الحراس'!B22","v":"محمد1 علي20"},{"$f":"'توزيع الحراس'!A22","v":20},{"$f":"COUNTIF('توزيع الحراس'!D$3:F$42,$C27)","v":0},{"$f":"COUNTIF('توزيع الحراس'!G$3:I$42,$C27)","v":0},{"$f":"COUNTIF('توزيع الحراس'!K$3:M$42,$C27)","v":1},{"$f":"COUNTIF('توزيع الحراس'!N$3:P$42,$C27)","v":0},{"$f":"COUNTIF('توزيع الحراس'!Q$3:S$42,$C27)","v":0},{"$f":"COUNTIF('توزيع الحراس'!T$3:V$42,$C27)","v":0},{"$f":"COUNTIF('توزيع الحراس'!W$3:Y$42,$C27)","v":0},{"$f":"COUNTIF('توزيع الحراس'!Z$3:AB$42,$C27)","v":0},{"$f":"COUNTIF('توزيع الحراس'!AC$3:AE$42,$C27)","v":0},{"$f":"COUNTIF('توزيع الحراس'!AF$3:AH$42,$C27)","v":0},0,1]
[21,{"$f":"'توزيع الحراس'!B23","v":"محمد1 علي21"},{"$f":"'توزيع الحراس'!A23","v":21},{"$f":"COUNTIF('توزيع الحراس'!D$3:F$42,$C28)","v":0},{"$f":"COUNTIF('توزيع الحراس'!G$3:I$42,$C28)","v":0},{"$f":"COUNTIF('توزيع الحراس'!K$3:M$42,$C28)","v":0},{"$f":"COUNTIF('توزيع الحراس'!N$3:P$42,$C28)","v":0},{"$f":"COUNTIF('توزيع الحراس'!Q$3:S$42,$C28)","v":0},{"$f":"COUNTIF('توزيع الحراس'!T$3:V$42,$C28)","v":0},{"$f":"COUNTIF('توزيع الحراس'!W$3:Y$42,$C28)","v":0},{"$f":"COUNTIF('توزيع الحراس'!Z$3:AB$42,$C28)","v":0},{"$f":"COUNTIF('توزيع الحراس'!AC$3:AE$42,$C28)","v":0},{"$f":"COUNTIF('توزيع الحراس'!AF$3:AH$42,$C28)","v":0},0,0]
[22,{"$f":"'توزيع الحراس'!B24","v":"محمد1 علي22"},{"$f":"'توزيع الحراس'!A24","v":22},{"$f":"COUNTIF('توزيع الحراس'!D$3:F$42,$C29)","v":0},{"$f":"COUNTIF('توزيع الحراس'!G$3:I$42,$C29)","v":0},{"$f":"COUNTIF('توزيع الحراس'!K$3:M$42,$C29)","v":0},{"$f":"COUNTIF('توزيع الحراس'!N$3:P$42,$C29)","v":0},{"$f":"COUNTIF('توزيع الحراس'!Q$3:S$42,$C29)","v":0},{"$f":"COUNTIF('توزيع الحراس'!T$3:V$42,$C29)","v":0},{"$f":"COUNTIF('توزيع الحراس'!W$3:Y$42,$C29)","v":0},{"$f":"COUNTIF('توزيع الحراس'!Z$3:AB$42,$C29)","v":0},{"$f":"COUNTIF('توزيع الحراس'!AC$3:AE$42,$C29)","v":0},{"$f":"COUNTIF('توزيع الحراس'!AF$3:AH$42,$C29)","v":0},0,0]
[23,{"$f":"'توزيع الحراس'!B25","v":"محمد1 علي23"},{"$f":"'توزيع الحراس'!A25","v":23},{"$f":"COUNTIF('توزيع الحراس'!D$3:F$42,$C30)","v":0},{"$f":"COUNTIF('توزيع الحراس'!G$3:I$42,$C30)","v":0},{"$f":"COUNTIF('توزيع الحراس'!K$3:M$42,$C30)","v":0},{"$f":"COUNTIF('توزيع الحراس'!N$3:P$42,$C30)","v":0},{"$f":"COUNTIF('توزيع الحراس'!Q$3:S$42,$C30)","v":0},{"$f":"COUNTIF('توزيع الحراس'!T$3:V$42,$C30)","v":0},{"$f":"COUNTIF('توزيع الحراس'!W$3:Y$42,$C30)","v":0},{"$f":"COUNTIF('توزيع الحراس'!Z$3:AB$42,$C30)","v":0},{"$f":"COUNTIF('توزيع الحراس'!AC$3:AE$42,$C30)","v":0},{"$f":"COUNTIF('توزيع الحراس'!AF$3:AH$42,$C30)","v":0},0,0]
[24,{"$f":"'توزيع الحراس'!B26","v":"محمد1 علي24"},{"$f":"'توزيع الحراس'!A26","v":24},{"$f":"COUNTIF('توزيع الحراس'!D$3:F$42,$C31)","v":0},{"$f":"COUNTIF('توزيع الحراس'!G$3:I$42,$C31)","v":0},{"$f":"COUNTIF('توزيع الحراس'!K$3:M$42,$C31)","v":0},{"$f":"COUNTIF('توزيع الحراس'!N$3:P$42,$C31)","v":0},{"$f":"COUNTIF('توزيع الحراس'!Q$3:S$42,$C31)","v":0},{"$f":"COUNTIF('توزيع الحراس'!T$3:V$42,$C31)","v":0},{"$f":"COUNTIF('توزيع الحراس'!W$3:Y$42,$C31)","v":0},{"$f":"COUNTIF('توزيع الحراس'!Z$3:AB$42,$C31)","v":0},{"$f":"COUNTIF('توزيع الحراس'!AC$3:AE$42,$C31)","v":0},{"$f":"COUNTIF('توزيع الحراس'!AF$3:AH$42,$C31)","v":0},0,0]
[25,{"$f":"'توزيع الحراس'!B27","v":"محمد1 علي25"},{"$f":"'توزيع الحراس'!A27","v":25},{"$f":"COUNTIF('توزيع الحراس'!D$3:F$42,$C32)","v":0},{"$f":"COUNTIF('توزيع الحراس'!G$3:I$42,$C32)","v":0},{"$f":"COUNTIF('توزيع الحراس'!K$3:M$42,$C32)","v":0},{"$f":"COUNTIF('توزيع الحراس'!N$3:P$42,$C32)","v":0},{"$f":"COUNTIF('توزيع الحراس'!Q$3:S$42,$C32)","v":0},{"$f":"COUNTIF('توزيع الحراس'!T$3:V$42,$C32)","v":0},{"$f":"COUNTIF('توزيع الحراس'!W$3:Y$42,$C32)","v":0},{"$f":"COUNTIF('توزيع الحراس'!Z$3:AB$42,$C32)","v":0},{"$f":"COUNTIF('توزيع الحراس'!AC$3:AE$42,$C32)","v":0},{"$f":"COUNTIF('توزيع الحراس'!AF$3:AH$42,$C32)","v":0},0,0]
[26,{"$f":"'توزيع الحراس'!B28","v":"محمد1 علي26"},{"$f":"'توزيع الحراس'!A28","v":26},{"$f":"COUNTIF('توزيع الحراس'!D$3:F$42,$C33)","v":0},{"$f":"COUNTIF('توزيع الحراس'!G$3:I$42,$C33)","v":0},{"$f":"COUNTIF('توزيع الحراس'!K$3:M$42,$C33)","v":0},{"$f":"COUNTIF('توزيع الحراس'!N$3:P$42,$C33)","v":0},{"$f":"COUNTIF('توزيع الحراس'!Q$3:S$42,$C33)","v":0},{"$f":"COUNTIF('توزيع الحراس'!T$3:V$42,$C33)","v":0},{"$f":"COUNTIF('توزيع الحراس'!W$3:Y$42,$C33)","v":0},{"$f":"COUNTIF('توزيع الحراس'!Z$3:AB$42,$C33)","v":0},{"$f":"COUNTIF('توزيع الحراس'!AC$3:AE$42,$C33)","v":0},{"$f":"COUNTIF('توزيع الحراس'!AF$3:AH$42,$C33)","v":0},0,0]
[27,{"$f":"'توزيع الحراس'!B29","v":"محمد1 علي27"},{"$f":"'توزيع الحراس'!A29","v":27},{"$f":"COUNTIF('توزيع الحراس'!D$3:F$42,$C34)","v":0},{"$f":"COUNTIF('توزيع الحراس'!G$3:I$42,$C34)","v":0},{"$f":"COUNTIF('توزيع الحراس'!K$3:M$42,$C34)","v":0},{"$f":"COUNTIF('توزيع الحراس'!N$3:P$42,$C34)","v":0},{"$f":"COUNTIF('توزيع الحراس'!Q$3:S$42,$C34)","v":0},{"$f":"COUNTIF('توزيع الحراس'!T$3:V$42,$C34)","v":0},{"$f":"COUNTIF('توزيع الحراس'!W$3:Y$42,$C34)","v":0},{"$f":"COUNTIF('توزيع الحراس'!Z$3:AB$42,$C34)","v":0},{"$f":"COUNTIF('توزيع الحراس'!AC$3:AE$42,$C34)","v":0},{"$f":"COUNTIF('توزيع الحراس'!AF$3:AH$42,$C34)","v":0},0,0]
[28,{"$f":"'توزيع الحراس'!B30","v":"محمد1 علي28"},{"$f":"'توزيع الحراس'!A30","v":28},{"$f":"COUNTIF('توزيع الحراس'!D$3:F$42,$C35)","v":0},{"$f":"COUNTIF('توزيع الحراس'!G$3:I$42,$C35)","v":0},{"$f":"COUNTIF('توزيع الحراس'!K$3:M$42,$C35)","v":0},{"$f":"COUNTIF('توزيع الحراس'!N$3:P$42,$C35)","v":0},{"$f":"COUNTIF('توزيع الحراس'!Q$3:S$42,$C35)","v":0},{"$f":"COUNTIF('توزيع الحراس'!T$3:V$42,$C35)","v":0},{"$f":"COUNTIF('توزيع الحراس'!W$3:Y$42,$C35)","v":0},{"$f":"COUNTIF('توزيع الحراس'!Z$3:AB$42,$C35)","v":0},{"$f":"COUNTIF('توزيع الحراس'!AC$3:AE$42,$C35)","v":0},{"$f":"COUNTIF('توزيع الحراس'!AF$3:AH$42,$C35)","v":0},0,0]
[29,{"$f":"'توزيع الحراس'!B31","v":"محمد1 علي29"},{"$f":"'توزيع الحراس'!A31","v":29},{"$f":"COUNTIF('توزيع الحراس'!D$3:F$42,$C36)","v":0},{"$f":"COUNTIF('توزيع الحراس'!G$3:I$42,$C36)","v":0},{"$f":"COUNTIF('توزيع الحراس'!K$3:M$42,$C36)","v":0},{"$f":"COUNTIF('توزيع الحراس'!N$3:P$42,$C36)","v":0},{"$f":"COUNTIF('توزيع الحراس'!Q$3:S$42,$C36)","v":0},{"$f":"COUNTIF('توزيع الحراس'!T$3:V$42,$C36)","v":0},{"$f":"COUNTIF('توزيع الحراس'!W$3:Y$42,$C36)","v":0},{"$f":"COUNTIF('توزيع الحراس'!Z$3:AB$42,$C36)","v":0},{"$f":"COUNTIF('توزيع الحراس'!AC$3:AE$42,$C36)","v":0},{"$f":"COUNTIF('توزيع الحراس'!AF$3:AH$42,$C36)","v":0},0,0]
[30,{"$f":"'توزيع الحراس'!B32","v":"محمد1 علي30"},{"$f":"'توزيع الحراس'!A32","v":30},{"$f":"COUNTIF('توزيع الحراس'!D$3:F$42,$C37)","v":0},{"$f":"COUNTIF('توزيع الحراس'!G$3:I$42,$C37)","v":0},{"$f":"COUNTIF('توزيع الحراس'!K$3:M$42,$C37)","v":0},{"$f":"COUNTIF('توزيع الحراس'!N$3:P$42,$C37)","v":0},{"$f":"COUNTIF('توزيع الحراس'!Q$3:S$42,$C37)","v":0},{"$f":"COUNTIF('توزيع الحراس'!T$3:V$42,$C37)","v":0},{"$f":"COUNTIF('توزيع الحراس'!W$3:Y$42,$C37)","v":0},{"$f":"COUNTIF('توزيع الحراس'!Z$3:AB$42,$C37)","v":0},{"$f":"COUNTIF('توزيع الحراس'!AC$3:AE$42,$C37)","v":0},{"$f":"COUNTIF('توزيع الحراس'!AF$3:AH$42,$C37)","v":0},null,0]
[31,{"$f":"'توزيع الحراس'!B33","v":"محمد1 علي31"},{"$f":"'توزيع الحراس'!A33","v":31},{"$f":"COUNTIF('توزيع الحراس'!D$3:F$42,$C38)","v":0},{"$f":"COUNTIF('توزيع الحراس'!G$3:I$42,$C38)","v":0},{"$f":"COUNTIF('توزيع الحراس'!K$3:M$42,$C38)","v":0},{"$f":"COUNTIF('توزيع الحراس'!N$3:P$42,$C38)","v":0},{"$f":"COUNTIF('توزيع الحراس'!Q$3:S$42,$C38)","v":0},{"$f":"COUNTIF('توزيع الحراس'!T$3:V$42,$C38)","v":0},{"$f":"COUNTIF('توزيع الحراس'!W$3:Y$42,$C38)","v":0},{"$f":"COUNTIF('توزيع الحراس'!Z$3:AB$42,$C38)","v":0},{"$f":"COUNTIF('توزيع الحراس'!AC$3:AE$42,$C38)","v":0},{"$f":"COUNTIF('توزيع الحراس'!AF$3:AH$42,$C38)","v":0},{"$f":"COUNTIF(D38:M38,\"x\")/2","v":0},0]
[32,{"$f":"'توزيع الحراس'!B34","v":"محمد1 علي32"},{"$f":"'توزيع الحراس'!A34","v":32},{"$f":"COUNTIF('توزيع الحراس'!D$3:F$42,$C39)","v":0},{"$f":"COUNTIF('توزيع الحراس'!G$3:I$42,$C39)","v":0},{"$f":"COUNTIF('توزيع الحراس'!K$3:M$42,$C39)","v":0},{"$f":"COUNTIF('توزيع الحراس'!N$3:P$42,$C39)","v":0},{"$f":"COUNTIF('توزيع الحراس'!Q$3:S$42,$C39)","v":0},{"$f":"COUNTIF('توزيع الحراس'!T$3:V$42,$C39)","v":0},{"$f":"COUNTIF('توزيع الحراس'!W$3:Y$42,$C39)","v":0},{"$f":"COUNTIF('توزيع الحراس'!Z$3:AB$42,$C39)","v":0},{"$f":"COUNTIF('توزيع الحراس'!AC$3:AE$42,$C39)","v":0},{"$f":"COUNTIF('توزيع الحراس'!AF$3:AH$42,$C39)","v":0},null,0]
[33,{"$f":"'توزيع الحراس'!B35","v":"محمد1 علي33"},{"$f":"'توزيع الحراس'!A35","v":33},{"$f":"COUNTIF('توزيع الحراس'!D$3:F$42,$C40)","v":0},{"$f":"COUNTIF('توزيع الحراس'!G$3:I$42,$C40)","v":0},{"$f":"COUNTIF('توزيع الحراس'!K$3:M$42,$C40)","v":0},{"$f":"COUNTIF('توزيع الحراس'!N$3:P$42,$C40)","v":0},{"$f":"COUNTIF('توزيع الحراس'!Q$3:S$42,$C40)","v":0},{"$f":"COUNTIF('توزيع الحراس'!T$3:V$42,$C40)","v":0},{"$f":"COUNTIF('توزيع الحراس'!W$3:Y$42,$C40)","v":0},{"$f":"COUNTIF('توزيع الحراس'!Z$3:AB$42,$C40)","v":0},{"$f":"COUNTIF('توزيع الحراس'!AC$3:AE$42,$C40)","v":0},{"$f":"COUNTIF('توزيع الحراس'!AF$3:AH$42,$C40)","v":0},{"$f":"COUNTIF(D40:M40,\"x\")/2","v":0},0]
[34,{"$f":"'توزيع الحراس'!B36","v":"محمد1 علي34"},{"$f":"'توزيع الحراس'!A36","v":34},{"$f":"COUNTIF('توزيع الحراس'!D$3:F$42,$C41)","v":0},{"$f":"COUNTIF('توزيع الحراس'!G$3:I$42,$C41)","v":0},{"$f":"COUNTIF('توزيع الحراس'!K$3:M$42,$C41)","v":0},{"$f":"COUNTIF('توزيع الحراس'!N$3:P$42,$C41)","v":0},{"$f":"COUNTIF('توزيع الحراس'!Q$3:S$42,$C41)","v":0},{"$f":"COUNTIF('توزيع الحراس'!T$3:V$42,$C41)","v":0},{"$f":"COUNTIF('توزيع الحراس'!W$3:Y$42,$C41)","v":0},{"$f":"COUNTIF('توزيع الحراس'!Z$3:AB$42,$C41)","v":0},{"$f":"COUNTIF('توزيع الحراس'!AC$3:AE$42,$C41)","v":0},{"$f":"COUNTIF('توزيع الحراس'!AF$3:AH$42,$C41)","v":0},0,0]
[35,{"$f":"'توزيع الحراس'!B37","v":"محمد1 علي35"},{"$f":"'توزيع الحراس'!A37","v":35},{"$f":"COUNTIF('توزيع الحراس'!D$3:F$42,$C42)","v":0},{"$f":"COUNTIF('توزيع الحراس'!G$3:I$42,$C42)","v":0},{"$f":"COUNTIF('توزيع الحراس'!K$3:M$42,$C42)","v":0},{"$f":"COUNTIF('توزيع الحراس'!N$3:P$42,$C42)","v":0},{"$f":"COUNTIF('توزيع الحراس'!Q$3:S$42,$C42)","v":0},{"$f":"COUNTIF('توزيع الحراس'!T$3:V$42,$C42)","v":0},{"$f":"COUNTIF('توزيع الحراس'!W$3:Y$42,$C42)","v":0},{"$f":"COUNTIF('توزيع الحراس'!Z$3:AB$42,$C42)","v":0},{"$f":"COUNTIF('توزيع الحراس'!AC$3:AE$42,$C42)","v":0},{"$f":"COUNTIF('توزيع الحراس'!AF$3:AH$42,$C42)","v":0},0,0]
[36,{"$f":"'توزيع الحراس'!B38","v":"محمد1 علي36"},{"$f":"'توزيع الحراس'!A38","v":36},{"$f":"COUNTIF('توزيع الحراس'!D$3:F$42,$C43)","v":0},{"$f":"COUNTIF('توزيع الحراس'!G$3:I$42,$C43)","v":0},{"$f":"COUNTIF('توزيع الحراس'!K$3:M$42,$C43)","v":0},{"$f":"COUNTIF('توزيع الحراس'!N$3:P$42,$C43)","v":0},{"$f":"COUNTIF('توزيع الحراس'!Q$3:S$42,$C43)","v":0},{"$f":"COUNTIF('توزيع الحراس'!T$3:V$42,$C43)","v":0},{"$f":"COUNTIF('توزيع الحراس'!W$3:Y$42,$C43)","v":0},{"$f":"COUNTIF('توزيع الحراس'!Z$3:AB$42,$C43)","v":0},{"$f":"COUNTIF('توزيع الحراس'!AC$3:AE$42,$C43)","v":0},{"$f":"COUNTIF('توزيع الحراس'!AF$3:AH$42,$C43)","v":0},0,0]
[37,{"$f":"'توزيع الحراس'!B39","v":"محمد1 علي37"},{"$f":"'توزيع الحراس'!A39","v":37},{"$f":"COUNTIF('توزيع الحراس'!D$3:F$42,$C44)","v":0},{"$f":"COUNTIF('توزيع الحراس'!G$3:I$42,$C44)","v":0},{"$f":"COUNTIF('توزيع الحراس'!K$3:M$42,$C44)","v":0},{"$f":"COUNTIF('توزيع الحراس'!N$3:P$42,$C44)","v":0},{"$f":"COUNTIF('توزيع الحراس'!Q$3:S$42,$C44)","v":0},{"$f":"COUNTIF('توزيع الحراس'!T$3:V$42,$C44)","v":0},{"$f":"COUNTIF('توزيع الحراس'!W$3:Y$42,$C44)","v":0},{"$f":"COUNTIF('توزيع الحراس'!Z$3:AB$42,$C44)","v":0},{"$f":"COUNTIF('توزيع الحراس'!AC$3:AE$42,$C44)","v":0},{"$f":"COUNTIF('توزيع الحراس'!AF$3:AH$42,$C44)","v":0},0,0]
[38,{"$f":"'توزيع الحراس'!B40","v":"محمد1 علي38"},{"$f":"'توزيع الحراس'!A40","v":38},{"$f":"COUNTIF('توزيع الحراس'!D$3:F$42,$C45)","v":0},{"$f":"COUNTIF('توزيع الحراس'!G$3:I$42,$C45)","v":0},{"$f":"COUNTIF('توزيع الحراس'!K$3:M$42,$C45)","v":0},{"$f":"COUNTIF('توزيع الحراس'!N$3:P$42,$C45)","v":0},{"$f":"COUNTIF('توزيع الحراس'!Q$3:S$42,$C45)","v":0},{"$f":"COUNTIF('توزيع الحراس'!T$3:V$42,$C45)","v":0},{"$f":"COUNTIF('توزيع الحراس'!W$3:Y$42,$C45)","v":0},{"$f":"COUNTIF('توزيع الحراس'!Z$3:AB$42,$C45)","v":0},{"$f":"COUNTIF('توزيع الحراس'!AC$3:AE$42,$C45)","v":0},{"$f":"COUNTIF('توزيع الحراس'!AF$3:AH$42,$C45)","v":0},0,0]
[39,{"$f":"'توزيع الحراس'!B41","v":"محمد1 علي39"},{"$f":"'توزيع الحراس'!A41","v":39},{"$f":"COUNTIF('توزيع الحراس'!D$3:F$42,$C46)","v":0},{"$f":"COUNTIF('توزيع الحراس'!G$3:I$42,$C46)","v":0},{"$f":"COUNTIF('توزيع الحراس'!K$3:M$42,$C46)","v":0},{"$f":"COUNTIF('توزيع الحراس'!N$3:P$42,$C46)","v":0},{"$f":"COUNTIF('توزيع الحراس'!Q$3:S$42,$C46)","v":0},{"$f":"COUNTIF('توزيع الحراس'!T$3:V$42,$C46)","v":0},{"$f":"COUNTIF('توزيع الحراس'!W$3:Y$42,$C46)","v":0},{"$f":"COUNTIF('توزيع الحراس'!Z$3:AB$42,$C46)","v":0},{"$f":"COUNTIF('توزيع الحراس'!AC$3:AE$42,$C46)","v":0},{"$f":"COUNTIF('توزيع الحراس'!AF$3:AH$42,$C46)","v":0},0,0]
[40,{"$f":"'توزيع الحراس'!B42","v":"محمد1 علي40"},{"$f":"'توزيع الحراس'!A42","v":40},{"$f":"COUNTIF('توزيع الحراس'!D$3:F$42,$C47)","v":0},{"$f":"COUNTIF('توزيع الحراس'!G$3:I$42,$C47)","v":0},{"$f":"COUNTIF('توزيع الحراس'!K$3:M$42,$C47)","v":0},{"$f":"COUNTIF('توزيع الحراس'!N$3:P$42,$C47)","v":0},{"$f":"COUNTIF('توزيع الحراس'!Q$3:S$42,$C47)","v":0},{"$f":"COUNTIF('توزيع الحراس'!T$3:V$42,$C47)","v":0},{"$f":"COUNTIF('توزيع الحراس'!W$3:Y$42,$C47)","v":0},{"$f":"COUNTIF('توزيع الحراس'!Z$3:AB$42,$C47)","v":0},{"$f":"COUNTIF('توزيع الحراس'!AC$3:AE$42,$C47)","v":0},{"$f":"COUNTIF('توزيع الحراس'!AF$3:AH$42,$C47)","v":0},0,0]
[41,{"$f":"'توزيع الحراس'!B43","v":"محمد1 علي41"},{"$f":"'توزيع الحراس'!A43","v":41},{"$f":"COUNTIF('توزيع الحراس'!D$3:F$42,$C48)","v":0},{"$f":"COUNTIF('توزيع الحراس'!G$3:I$42,$C48)","v":0},{"$f":"COUNTIF('توزيع الحراس'!K$3:M$42,$C48)","v":0},{"$f":"COUNTIF('توزيع الحراس'!N$3:P$42,$C48)","v":0},{"$f":"COUNTIF('توزيع الحراس'!Q$3:S$42,$C48)","v":0},{"$f":"COUNTIF('توزيع الحراس'!T$3:V$42,$C48)","v":0},{"$f":"COUNTIF('توزيع الحراس'!W$3:Y$42,$C48)","v":0},{"$f":"COUNTIF('توزيع الحراس'!Z$3:AB$42,$C48)","v":0},{"$f":"COUNTIF('توزيع الحراس'!AC$3:AE$42,$C48)","v":0},{"$f":"COUNTIF('توزيع الحراس'!AF$3:AH$42,$C48)","v":0},0,0]
[42,{"$f":"'توزيع الحراس'!B44","v":"محمد1 علي42"},{"$f":"'توزيع الحراس'!A44","v":42},{"$f":"COUNTIF('توزيع الحراس'!D$3:F$42,$C49)","v":0},{"$f":"COUNTIF('توزيع الحراس'!G$3:I$42,$C49)","v":0},{"$f":"COUNTIF('توزيع الحراس'!K$3:M$42,$C49)","v":0},{"$f":"COUNTIF('توزيع الحراس'!N$3:P$42,$C49)","v":0},{"$f":"COUNTIF('توزيع الحراس'!Q$3:S$42,$C49)","v":0},{"$f":"COUNTIF('توزيع الحراس'!T$3:V$42,$C49)","v":0},{"$f":"COUNTIF('توزيع الحراس'!W$3:Y$42,$C49)","v":0},{"$f":"COUNTIF('توزيع الحراس'!Z$3:AB$42,$C49)","v":0},{"$f":"COUNTIF('توزيع الحراس'!AC$3:AE$42,$C49)","v":0},{"$f":"COUNTIF('توزيع الحراس'!AF$3:AH$42,$C49)","v":0},0,0]
[43,{"$f":"'توزيع الحراس'!B45","v":"محمد1 علي43"},{"$f":"'توزيع الحراس'!A45","v":43},{"$f":"COUNTIF('توزيع الحراس'!D$3:F$42,$C50)","v":0},{"$f":"COUNTIF('توزيع الحراس'!G$3:I$42,$C50)","v":0},{"$f":"COUNTIF('توزيع الحراس'!K$3:M$42,$C50)","v":0},{"$f":"COUNTIF('توزيع الحراس'!N$3:P$42,$C50)","v":0},{"$f":"COUNTIF('توزيع الحراس'!Q$3:S$42,$C50)","v":0},{"$f":"COUNTIF('توزيع الحراس'!T$3:V$42,$C50)","v":0},{"$f":"COUNTIF('توزيع الحراس'!W$3:Y$42,$C50)","v":0},{"$f":"COUNTIF('توزيع الحراس'!Z$3:AB$42,$C50)","v":0},{"$f":"COUNTIF('توزيع الحراس'!AC$3:AE$42,$C50)","v":0},{"$f":"COUNTIF('توزيع الحراس'!AF$3:AH$42,$C50)","v":0},0,0]
[44,{"$f":"'توزيع الحراس'!B46","v":"محمد1 علي44"},{"$f":"'توزيع الحراس'!A46","v":44},{"$f":"COUNTIF('توزيع الحراس'!D$3:F$42,$C51)","v":0},{"$f":"COUNTIF('توزيع الحراس'!G$3:I$42,$C51)","v":0},{"$f":"COUNTIF('توزيع الحراس'!K$3:M$42,$C51)","v":0},{"$f":"COUNTIF('توزيع الحراس'!N$3:P$42,$C51)","v":0},{"$f":"COUNTIF('توزيع الحراس'!Q$3:S$42,$C51)","v":0},{"$f":"COUNTIF('توزيع الحراس'!T$3:V$42,$C51)","v":0},{"$f":"COUNTIF('توزيع الحراس'!W$3:Y$42,$C51)","v":0},{"$f":"COUNTIF('توزيع الحراس'!Z$3:AB$42,$C51)","v":0},{"$f":"COUNTIF('توزيع الحراس'!AC$3:AE$42,$C51)","v":0},{"$f":"COUNTIF('توزيع الحراس'!AF$3:AH$42,$C51)","v":0},0,0]
[45,{"$f":"'توزيع الحراس'!B47","v":"محمد1 علي45"},{"$f":"'توزيع الحراس'!A47","v":45},{"$f":"COUNTIF('توزيع الحراس'!D$3:F$42,$C52)","v":0},{"$f":"COUNTIF('توزيع الحراس'!G$3:I$42,$C52)","v":0},{"$f":"COUNTIF('توزيع الحراس'!K$3:M$42,$C52)","v":0},{"$f":"COUNTIF('توزيع الحراس'!N$3:P$42,$C52)","v":0},{"$f":"COUNTIF('توزيع الحراس'!Q$3:S$42,$C52)","v":0},{"$f":"COUNTIF('توزيع الحراس'!T$3:V$42,$C52)","v":0},{"$f":"COUNTIF('توزيع الحراس'!W$3:Y$42,$C52)","v":0},{"$f":"COUNTIF('توزيع الحراس'!Z$3:AB$42,$C52)","v":0},{"$f":"COUNTIF('توزيع الحراس'!AC$3:AE$42,$C52)","v":0},{"$f":"COUNTIF('توزيع الحراس'!AF$3:AH$42,$C52)","v":0},0,0]
[46,{"$f":"'توزيع الحراس'!B48","v":"محمد1 علي46"},{"$f":"'توزيع الحراس'!A48","v":46},{"$f":"COUNTIF('توزيع الحراس'!D$3:F$42,$C53)","v":0},{"$f":"COUNTIF('توزيع الحراس'!G$3:I$42,$C53)","v":0},{"$f":"COUNTIF('توزيع الحراس'!K$3:M$42,$C53)","v":0},{"$f":"COUNTIF('توزيع الحراس'!N$3:P$42,$C53)","v":0},{"$f":"COUNTIF('توزيع الحراس'!Q$3:S$42,$C53)","v":0},{"$f":"COUNTIF('توزيع الحراس'!T$3:V$42,$C53)","v":0},{"$f":"COUNTIF('توزيع الحراس'!W$3:Y$42,$C53)","v":0},{"$f":"COUNTIF('توزيع الحراس'!Z$3:AB$42,$C53)","v":0},{"$f":"COUNTIF('توزيع الحراس'!AC$3:AE$42,$C53)","v":0},{"$f":"COUNTIF('توزيع الحراس'!AF$3:AH$42,$C53)","v":0},0,0]
[47,{"$f":"'توزيع الحراس'!B49","v":"محمد1 علي47"},{"$f":"'توزيع الحراس'!A49","v":47},{"$f":"COUNTIF('توزيع الحراس'!D$3:F$42,$C54)","v":0},{"$f":"COUNTIF('توزيع الحراس'!G$3:I$42,$C54)","v":0},{"$f":"COUNTIF('توزيع الحراس'!K$3:M$42,$C54)","v":0},{"$f":"COUNTIF('توزيع الحراس'!N$3:P$42,$C54)","v":0},{"$f":"COUNTIF('توزيع الحراس'!Q$3:S$42,$C54)","v":0},{"$f":"COUNTIF('توزيع الحراس'!T$3:V$42,$C54)","v":0},{"$f":"COUNTIF('توزيع الحراس'!W$3:Y$42,$C54)","v":0},{"$f":"COUNTIF('توزيع الحراس'!Z$3:AB$42,$C54)","v":0},{"$f":"COUNTIF('توزيع الحراس'!AC$3:AE$42,$C54)","v":0},{"$f":"COUNTIF('توزيع الحراس'!AF$3:AH$42,$C54)","v":0},0,0]
[48,{"$f":"'توزيع الحراس'!B50","v":"محمد1 علي48"},{"$f":"'توزيع الحراس'!A50","v":48},{"$f":"COUNTIF('توزيع الحراس'!D$3:F$42,$C55)","v":0},{"$f":"COUNTIF('توزيع الحراس'!G$3:I$42,$C55)","v":0},{"$f":"COUNTIF('توزيع الحراس'!K$3:M$42,$C55)","v":0},{"$f":"COUNTIF('توزيع الحراس'!N$3:P$42,$C55)","v":0},{"$f":"COUNTIF('توزيع الحراس'!Q$3:S$42,$C55)","v":0},{"$f":"COUNTIF('توزيع الحراس'!T$3:V$42,$C55)","v":0},{"$f":"COUNTIF('توزيع الحراس'!W$3:Y$42,$C55)","v":0},{"$f":"COUNTIF('توزيع الحراس'!Z$3:AB$42,$C55)","v":0},{"$f":"COUNTIF('توزيع الحراس'!AC$3:AE$42,$C55)","v":0},{"$f":"COUNTIF('توزيع الحراس'!AF$3:AH$42,$C55)","v":0},0,0]
[49,{"$f":"'توزيع الحراس'!B51","v":"محمد1 علي49"},{"$f":"'توزيع الحراس'!A51","v":49},{"$f":"COUNTIF('توزيع الحراس'!D$3:F$42,$C56)","v":0},{"$f":"COUNTIF('توزيع الحراس'!G$3:I$42,$C56)","v":0},{"$f":"COUNTIF('توزيع الحراس'!K$3:M$42,$C56)","v":0},{"$f":"COUNTIF('توزيع الحراس'!N$3:P$42,$C56)","v":0},{"$f":"COUNTIF('توزيع الحراس'!Q$3:S$42,$C56)","v":0},{"$f":"COUNTIF('توزيع الحراس'!T$3:V$42,$C56)","v":0},{"$f":"COUNTIF('توزيع الحراس'!W$3:Y$42,$C56)","v":0},{"$f":"COUNTIF('توزيع الحراس'!Z$3:AB$42,$C56)","v":0},{"$f":"COUNTIF('توزيع الحراس'!AC$3:AE$42,$C56)","v":0},{"$f":"COUNTIF('توزيع الحراس'!AF$3:AH$42,$C56)","v":0},0,0]
[50,{"$f":"'توزيع الحراس'!B52","v":"محمد1 علي50"},{"$f":"'توزيع الحراس'!A52","v":50},{"$f":"COUNTIF('توزيع الحراس'!D$3:F$42,$C57)","v":0},{"$f":"COUNTIF('توزيع الحراس'!G$3:I$42,$C57)","v":0},{"$f":"COUNTIF('توزيع الحراس'!K$3:M$42,$C57)","v":0},{"$f":"COUNTIF('توزيع الحراس'!N$3:P$42,$C57)","v":0},{"$f":"COUNTIF('توزيع الحراس'!Q$3:S$42,$C57)","v":0},{"$f":"COUNTIF('توزيع الحراس'!T$3:V$42,$C57)","v":0},{"$f":"COUNTIF('توزيع الحراس'!W$3:Y$42,$C57)","v":0},{"$f":"COUNTIF('توزيع الحراس'!Z$3:AB$42,$C57)","v":0},{"$f":"COUNTIF('توزيع الحراس'!AC$3:AE$42,$C57)","v":0},{"$f":"COUNTIF('توزيع الحراس'!AF$3:AH$42,$C57)","v":0},0,0]
[51,{"$f":"'توزيع الحراس'!B53","v":"محمد1 علي51"},{"$f":"'توزيع الحراس'!A53","v":51},{"$f":"COUNTIF('توزيع الحراس'!D$3:F$42,$C58)","v":0},{"$f":"COUNTIF('توزيع الحراس'!G$3:I$42,$C58)","v":0},{"$f":"COUNTIF('توزيع الحراس'!K$3:M$42,$C58)","v":0},{"$f":"COUNTIF('توزيع الحراس'!N$3:P$42,$C58)","v":0},{"$f":"COUNTIF('توزيع الحراس'!Q$3:S$42,$C58)","v":0},{"$f":"COUNTIF('توزيع الحراس'!T$3:V$42,$C58)","v":0},{"$f":"COUNTIF('توزيع الحراس'!W$3:Y$42,$C58)","v":0},{"$f":"COUNTIF('توزيع الحراس'!Z$3:AB$42,$C58)","v":0},{"$f":"COUNTIF('توزيع الحراس'!AC$3:AE$42,$C58)","v":0},{"$f":"COUNTIF('توزيع الحراس'!AF$3:AH$42,$C58)","v":0},0,0]
[52,{"$f":"'توزيع الحراس'!B54","v":"محمد1 علي52"},{"$f":"'توزيع الحراس'!A54","v":52},{"$f":"COUNTIF('توزيع الحراس'!D$3:F$42,$C59)","v":0},{"$f":"COUNTIF('توزيع الحراس'!G$3:I$42,$C59)","v":0},{"$f":"COUNTIF('توزيع الحراس'!K$3:M$42,$C59)","v":0},{"$f":"COUNTIF('توزيع الحراس'!N$3:P$42,$C59)","v":0},{"$f":"COUNTIF('توزيع الحراس'!Q$3:S$42,$C59)","v":0},{"$f":"COUNTIF('توزيع الحراس'!T$3:V$42,$C59)","v":0},{"$f":"COUNTIF('توزيع الحراس'!W$3:Y$42,$C59)","v":0},{"$f":"COUNTIF('توزيع الحراس'!Z$3:AB$42,$C59)","v":0},{"$f":"COUNTIF('توزيع الحراس'!AC$3:AE$42,$C59)","v":0},{"$f":"COUNTIF('توزيع الحراس'!AF$3:AH$42,$C59)","v":0},0,0]
[53,{"$f":"'توزيع الحراس'!B55","v":"محمد1 علي53"},{"$f":"'توزيع الحراس'!A55","v":53},{"$f":"COUNTIF('توزيع الحراس'!D$3:F$42,$C60)","v":0},{"$f":"COUNTIF('توزيع الحراس'!G$3:I$42,$C60)","v":0},{"$f":"COUNTIF('توزيع الحراس'!K$3:M$42,$C60)","v":0},{"$f":"COUNTIF('توزيع الحراس'!N$3:P$42,$C60)","v":0},{"$f":"COUNTIF('توزيع الحراس'!Q$3:S$42,$C60)","v":0},{"$f":"COUNTIF('توزيع الحراس'!T$3:V$42,$C60)","v":0},{"$f":"COUNTIF('توزيع الحراس'!W$3:Y$42,$C60)","v":0},{"$f":"COUNTIF('توزيع الحراس'!Z$3:AB$42,$C60)","v":0},{"$f":"COUNTIF('توزيع الحراس'!AC$3:AE$42,$C60)","v":0},{"$f":"COUNTIF('توزيع الحراس'!AF$3:AH$42,$C60)","v":0},0,0]
[54,{"$f":"'توزيع الحراس'!B56","v":"محمد1 علي54"},{"$f":"'توزيع الحراس'!A56","v":54},{"$f":"COUNTIF('توزيع الحراس'!D$3:F$42,$C61)","v":0},{"$f":"COUNTIF('توزيع الحراس'!G$3:I$42,$C61)","v":0},{"$f":"COUNTIF('توزيع الحراس'!K$3:M$42,$C61)","v":0},{"$f":"COUNTIF('توزيع الحراس'!N$3:P$42,$C61)","v":0},{"$f":"COUNTIF('توزيع الحراس'!Q$3:S$42,$C61)","v":0},{"$f":"COUNTIF('توزيع الحراس'!T$3:V$42,$C61)","v":0},{"$f":"COUNTIF('توزيع الحراس'!W$3:Y$42,$C61)","v":0},{"$f":"COUNTIF('توزيع الحراس'!Z$3:AB$42,$C61)","v":0},{"$f":"COUNTIF('توزيع الحراس'!AC$3:AE$42,$C61)","v":0},{"$f":"COUNTIF('توزيع الحراس'!AF$3:AH$42,$C61)","v":0},0,0]
[55,{"$f":"'توزيع الحراس'!B57","v":"محمد1 علي55"},{"$f":"'توزيع الحراس'!A57","v":55},{"$f":"COUNTIF('توزيع الحراس'!D$3:F$42,$C62)","v":0},{"$f":"COUNTIF('توزيع الحراس'!G$3:I$42,$C62)","v":0},{"$f":"COUNTIF('توزيع الحراس'!K$3:M$42,$C62)","v":0},{"$f":"COUNTIF('توزيع الحراس'!N$3:P$42,$C62)","v":0},{"$f":"COUNTIF('توزيع الحراس'!Q$3:S$42,$C62)","v":0},{"$f":"COUNTIF('توزيع الحراس'!T$3:V$42,$C62)","v":0},{"$f":"COUNTIF('توزيع الحراس'!W$3:Y$42,$C62)","v":0},{"$f":"COUNTIF('توزيع الحراس'!Z$3:AB$42,$C62)","v":0},{"$f":"COUNTIF('توزيع الحراس'!AC$3:AE$42,$C62)","v":0},{"$f":"COUNTIF('توزيع الحراس'!AF$3:AH$42,$C62)","v":0},0,0]
[56,{"$f":"'توزيع الحراس'!B58","v":"محمد1 علي56"},{"$f":"'توزيع الحراس'!A58","v":56},{"$f":"COUNTIF('توزيع الحراس'!D$3:F$42,$C63)","v":0},{"$f":"COUNTIF('توزيع الحراس'!G$3:I$42,$C63)","v":0},{"$f":"COUNTIF('توزيع الحراس'!K$3:M$42,$C63)","v":0},{"$f":"COUNTIF('توزيع الحراس'!N$3:P$42,$C63)","v":0},{"$f":"COUNTIF('توزيع الحراس'!Q$3:S$42,$C63)","v":0},{"$f":"COUNTIF('توزيع الحراس'!T$3:V$42,$C63)","v":0},{"$f":"COUNTIF('توزيع الحراس'!W$3:Y$42,$C63)","v":0},{"$f":"COUNTIF('توزيع الحراس'!Z$3:AB$42,$C63)","v":0},{"$f":"COUNTIF('توزيع الحراس'!AC$3:AE$42,$C63)","v":0},{"$f":"COUNTIF('توزيع الحراس'!AF$3:AH$42,$C63)","v":0},0,0]
[57,{"$f":"'توزيع الحراس'!B59","v":"محمد1 علي57"},{"$f":"'توزيع الحراس'!A59","v":57},{"$f":"COUNTIF('توزيع الحراس'!D$3:F$42,$C64)","v":0},{"$f":"COUNTIF('توزيع الحراس'!G$3:I$42,$C64)","v":0},{"$f":"COUNTIF('توزيع الحراس'!K$3:M$42,$C64)","v":0},{"$f":"COUNTIF('توزيع الحراس'!N$3:P$42,$C64)","v":0},{"$f":"COUNTIF('توزيع الحراس'!Q$3:S$42,$C64)","v":0},{"$f":"COUNTIF('توزيع الحراس'!T$3:V$42,$C64)","v":0},{"$f":"COUNTIF('توزيع الحراس'!W$3:Y$42,$C64)","v":0},{"$f":"COUNTIF('توزيع الحراس'!Z$3:AB$42,$C64)","v":0},{"$f":"COUNTIF('توزيع الحراس'!AC$3:AE$42,$C64)","v":0},{"$f":"COUNTIF('توزيع الحراس'!AF$3:AH$42,$C64)","v":0},0,0]
[58,{"$f":"'توزيع الحراس'!B60","v":"محمد1 علي58"},{"$f":"'توزيع الحراس'!A60","v":58},{"$f":"COUNTIF('توزيع الحراس'!D$3:F$42,$C65)","v":0},{"$f":"COUNTIF('توزيع الحراس'!G$3:I$42,$C65)","v":0},{"$f":"COUNTIF('توزيع الحراس'!K$3:M$42,$C65)","v":0},{"$f":"COUNTIF('توزيع الحراس'!N$3:P$42,$C65)","v":0},{"$f":"COUNTIF('توزيع الحراس'!Q$3:S$42,$C65)","v":0},{"$f":"COUNTIF('توزيع الحراس'!T$3:V$42,$C65)","v":0},{"$f":"COUNTIF('توزيع الحراس'!W$3:Y$42,$C65)","v":0},{"$f":"COUNTIF('توزيع الحراس'!Z$3:AB$42,$C65)","v":0},{"$f":"COUNTIF('توزيع الحراس'!AC$3:AE$42,$C65)","v":0},{"$f":"COUNTIF('توزيع الحراس'!AF$3:AH$42,$C65)","v":0},0,0]
[59,{"$f":"'توزيع الحراس'!B61","v":"محمد1 علي59"},{"$f":"'توزيع الحراس'!A61","v":59},{"$f":"COUNTIF('توزيع الحراس'!D$3:F$42,$C66)","v":0},{"$f":"COUNTIF('توزيع الحراس'!G$3:I$42,$C66)","v":0},{"$f":"COUNTIF('توزيع الحراس'!K$3:M$42,$C66)","v":0},{"$f":"COUNTIF('توزيع الحراس'!N$3:P$42,$C66)","v":0},{"$f":"COUNTIF('توزيع الحراس'!Q$3:S$42,$C66)","v":0},{"$f":"COUNTIF('توزيع الحراس'!T$3:V$42,$C66)","v":0},{"$f":"COUNTIF('توزيع الحراس'!W$3:Y$42,$C66)","v":0},{"$f":"COUNTIF('توزيع الحراس'!Z$3:AB$42,$C66)","v":0},{"$f":"COUNTIF('توزيع الحراس'!AC$3:AE$42,$C66)","v":0},{"$f":"COUNTIF('توزيع الحراس'!AF$3:AH$42,$C66)","v":0},0,0]
[60,{"$f":"'توزيع الحراس'!B62","v":"محمد1 علي60"},{"$f":"'توزيع الحراس'!A62","v":60},{"$f":"COUNTIF('توزيع الحراس'!D$3:F$42,$C67)","v":0},{"$f":"COUNTIF('توزيع الحراس'!G$3:I$42,$C67)","v":0},{"$f":"COUNTIF('توزيع الحراس'!K$3:M$42,$C67)","v":0},{"$f":"COUNTIF('توزيع الحراس'!N$3:P$42,$C67)","v":0},{"$f":"COUNTIF('توزيع الحراس'!Q$3:S$42,$C67)","v":0},{"$f":"COUNTIF('توزيع الحراس'!T$3:V$42,$C67)","v":0},{"$f":"COUNTIF('توزيع الحراس'!W$3:Y$42,$C67)","v":0},{"$f":"COUNTIF('توزيع الحراس'!Z$3:AB$42,$C67)","v":0},{"$f":"COUNTIF('توزيع الحراس'!AC$3:AE$42,$C67)","v":0},{"$f":"COUNTIF('توزيع الحراس'!AF$3:AH$42,$C67)","v":0},0,0]
[61,{"$f":"'توزيع الحراس'!B63","v":"محمد1 علي61"},{"$f":"'توزيع الحراس'!A63","v":61},{"$f":"COUNTIF('توزيع الحراس'!D$3:F$42,$C68)","v":0},{"$f":"COUNTIF('توزيع الحراس'!G$3:I$42,$C68)","v":0},{"$f":"COUNTIF('توزيع الحراس'!K$3:M$42,$C68)","v":0},{"$f":"COUNTIF('توزيع الحراس'!N$3:P$42,$C68)","v":0},{"$f":"COUNTIF('توزيع الحراس'!Q$3:S$42,$C68)","v":0},{"$f":"COUNTIF('توزيع الحراس'!T$3:V$42,$C68)","v":0},{"$f":"COUNTIF('توزيع الحراس'!W$3:Y$42,$C68)","v":0},{"$f":"COUNTIF('توزيع الحراس'!Z$3:AB$42,$C68)","v":0},{"$f":"COUNTIF('توزيع الحراس'!AC$3:AE$42,$C68)","v":0},{"$f":"COUNTIF('توزيع الحراس'!AF$3:AH$42,$C68)","v":0},0,0]
[62,{"$f":"'توزيع الحراس'!B64","v":"محمد1 علي62"},{"$f":"'توزيع الحراس'!A64","v":62},{"$f":"COUNTIF('توزيع الحراس'!D$3:F$42,$C69)","v":0},{"$f":"COUNTIF('توزيع الحراس'!G$3:I$42,$C69)","v":0},{"$f":"COUNTIF('توزيع الحراس'!K$3:M$42,$C69)","v":0},{"$f":"COUNTIF('توزيع الحراس'!N$3:P$42,$C69)","v":0},{"$f":"COUNTIF('توزيع الحراس'!Q$3:S$42,$C69)","v":0},{"$f":"COUNTIF('توزيع الحراس'!T$3:V$42,$C69)","v":0},{"$f":"COUNTIF('توزيع الحراس'!W$3:Y$42,$C69)","v":0},{"$f":"COUNTIF('توزيع الحراس'!Z$3:AB$42,$C69)","v":0},{"$f":"COUNTIF('توزيع الحراس'!AC$3:AE$42,$C69)","v":0},{"$f":"COUNTIF('توزيع الحراس'!AF$3:AH$42,$C69)","v":0},0,0]
[63,{"$f":"'توزيع الحراس'!B65","v":"محمد1 علي63"},{"$f":"'توزيع الحراس'!A65","v":63},{"$f":"COUNTIF('توزيع الحراس'!D$3:F$42,$C70)","v":0},{"$f":"COUNTIF('توزيع الحراس'!G$3:I$42,$C70)","v":0},{"$f":"COUNTIF('توزيع الحراس'!K$3:M$42,$C70)","v":0},{"$f":"COUNTIF('توزيع الحراس'!N$3:P$42,$C70)","v":0},{"$f":"COUNTIF('توزيع الحراس'!Q$3:S$42,$C70)","v":0},{"$f":"COUNTIF('توزيع الحراس'!T$3:V$42,$C70)","v":0},{"$f":"COUNTIF('توزيع الحراس'!W$3:Y$42,$C70)","v":0},{"$f":"COUNTIF('توزيع الحراس'!Z$3:AB$42,$C70)","v":0},{"$f":"COUNTIF('توزيع الحراس'!AC$3:AE$42,$C70)","v":0},{"$f":"COUNTIF('توزيع الحراس'!AF$3:AH$42,$C70)","v":0},0,0]
[64,{"$f":"'توزيع الحراس'!B66","v":"محمد1 علي64"},{"$f":"'توزيع الحراس'!A66","v":64},{"$f":"COUNTIF('توزيع الحراس'!D$3:F$42,$C71)","v":0},{"$f":"COUNTIF('توزيع الحراس'!G$3:I$42,$C71)","v":0},{"$f":"COUNTIF('توزيع الحراس'!K$3:M$42,$C71)","v":0},{"$f":"COUNTIF('توزيع الحراس'!N$3:P$42,$C71)","v":0},{"$f":"COUNTIF('توزيع الحراس'!Q$3:S$42,$C71)","v":0},{"$f":"COUNTIF('توزيع الحراس'!T$3:V$42,$C71)","v":0},{"$f":"COUNTIF('توزيع الحراس'!W$3:Y$42,$C71)","v":0},{"$f":"COUNTIF('توزيع الحراس'!Z$3:AB$42,$C71)","v":0},{"$f":"COUNTIF('توزيع الحراس'!AC$3:AE$42,$C71)","v":0},{"$f":"COUNTIF('توزيع الحراس'!AF$3:AH$42,$C71)","v":0},0,0]
[65,{"$f":"'توزيع الحراس'!B67","v":"محمد1 علي65"},{"$f":"'توزيع الحراس'!A67","v":65},{"$f":"COUNTIF('توزيع الحراس'!D$3:F$42,$C72)","v":0},{"$f":"COUNTIF('توزيع الحراس'!G$3:I$42,$C72)","v":0},{"$f":"COUNTIF('توزيع الحراس'!K$3:M$42,$C72)","v":0},{"$f":"COUNTIF('توزيع الحراس'!N$3:P$42,$C72)","v":0},{"$f":"COUNTIF('توزيع الحراس'!Q$3:S$42,$C72)","v":0},{"$f":"COUNTIF('توزيع الحراس'!T$3:V$42,$C72)","v":0},{"$f":"COUNTIF('توزيع الحراس'!W$3:Y$42,$C72)","v":0},{"$f":"COUNTIF('توزيع الحراس'!Z$3:AB$42,$C72)","v":0},{"$f":"COUNTIF('توزيع الحراس'!AC$3:AE$42,$C72)","v":0},{"$f":"COUNTIF('توزيع الحراس'!AF$3:AH$42,$C72)","v":0},0,{"$f":"SUM(D72:M72)","v":0}]
[66,{"$f":"'توزيع الحراس'!B68","v":"محمد1 علي66"},{"$f":"'توزيع الحراس'!A68","v":66},{"$f":"COUNTIF('توزيع الحراس'!D$3:F$42,$C73)","v":0},{"$f":"COUNTIF('توزيع الحراس'!G$3:I$42,$C73)","v":0},{"$f":"COUNTIF('توزيع الحراس'!K$3:M$42,$C73)","v":0},{"$f":"COUNTIF('توزيع الحراس'!N$3:P$42,$C73)","v":0},{"$f":"COUNTIF('توزيع الحراس'!Q$3:S$42,$C73)","v":0},{"$f":"COUNTIF('توزيع الحراس'!T$3:V$42,$C73)","v":0},{"$f":"COUNTIF('توزيع الحراس'!W$3:Y$42,$C73)","v":0},{"$f":"COUNTIF('توزيع الحراس'!Z$3:AB$42,$C73)","v":0},{"$f":"COUNTIF('توزيع الحراس'!AC$3:AE$42,$C73)","v":0},{"$f":"COUNTIF('توزيع الحراس'!AF$3:AH$42,$C73)","v":0},0,0]
[67,{"$f":"'توزيع الحراس'!B69","v":"محمد1 علي67"},{"$f":"'توزيع الحراس'!A69","v":67},{"$f":"COUNTIF('توزيع الحراس'!D$3:F$42,$C74)","v":0},{"$f":"COUNTIF('توزيع الحراس'!G$3:I$42,$C74)","v":0},{"$f":"COUNTIF('توزيع الحراس'!K$3:M$42,$C74)","v":0},{"$f":"COUNTIF('توزيع الحراس'!N$3:P$42,$C74)","v":0},{"$f":"COUNTIF('توزيع الحراس'!Q$3:S$42,$C74)","v":0},{"$f":"COUNTIF('توزيع الحراس'!T$3:V$42,$C74)","v":0},{"$f":"COUNTIF('توزيع الحراس'!W$3:Y$42,$C74)","v":0},{"$f":"COUNTIF('توزيع الحراس'!Z$3:AB$42,$C74)","v":0},{"$f":"COUNTIF('توزيع الحراس'!AC$3:AE$42,$C74)","v":0},{"$f":"COUNTIF('توزيع الحراس'!AF$3:AH$42,$C74)","v":0},0,0]
[68,{"$f":"'توزيع الحراس'!B70","v":"محمد1 علي68"},{"$f":"'توزيع الحراس'!A70","v":68},{"$f":"COUNTIF('توزيع الحراس'!D$3:F$42,$C75)","v":0},{"$f":"COUNTIF('توزيع الحراس'!G$3:I$42,$C75)","v":0},{"$f":"COUNTIF('توزيع الحراس'!K$3:M$42,$C75)","v":0},{"$f":"COUNTIF('توزيع الحراس'!N$3:P$42,$C75)","v":0},{"$f":"COUNTIF('توزيع الحراس'!Q$3:S$42,$C75)","v":0},{"$f":"COUNTIF('توزيع الحراس'!T$3:V$42,$C75)","v":0},{"$f":"COUNTIF('توزيع الحراس'!W$3:Y$42,$C75)","v":0},{"$f":"COUNTIF('توزيع الحراس'!Z$3:AB$42,$C75)","v":0},{"$f":"COUNTIF('توزيع الحراس'!AC$3:AE$42,$C75)","v":0},{"$f":"COUNTIF('توزيع الحراس'!AF$3:AH$42,$C75)","v":0},0,0]
[69,{"$f":"'توزيع الحراس'!B71","v":"محمد1 علي69"},{"$f":"'توزيع الحراس'!A71","v":69},{"$f":"COUNTIF('توزيع الحراس'!D$3:F$42,$C76)","v":0},{"$f":"COUNTIF('توزيع الحراس'!G$3:I$42,$C76)","v":0},{"$f":"COUNTIF('توزيع الحراس'!K$3:M$42,$C76)","v":0},{"$f":"COUNTIF('توزيع الحراس'!N$3:P$42,$C76)","v":0},{"$f":"COUNTIF('توزيع الحراس'!Q$3:S$42,$C76)","v":0},{"$f":"COUNTIF('توزيع الحراس'!T$3:V$42,$C76)","v":0},{"$f":"COUNTIF('توزيع الحراس'!W$3:Y$42,$C76)","v":0},{"$f":"COUNTIF('توزيع الحراس'!Z$3:AB$42,$C76)","v":0},{"$f":"COUNTIF('توزيع الحراس'!AC$3:AE$42,$C76)","v":0},{"$f":"COUNTIF('توزيع الحراس'!AF$3:AH$42,$C76)","v":0},0,0]
[70,{"$f":"'توزيع الحراس'!B72","v":"محمد1 علي70"},{"$f":"'توزيع الحراس'!A72","v":70},{"$f":"COUNTIF('توزيع الحراس'!D$3:F$42,$C77)","v":0},{"$f":"COUNTIF('توزيع الحراس'!G$3:I$42,$C77)","v":0},{"$f":"COUNTIF('توزيع الحراس'!K$3:M$42,$C77)","v":0},{"$f":"COUNTIF('توزيع الحراس'!N$3:P$42,$C77)","v":0},{"$f":"COUNTIF('توزيع الحراس'!Q$3:S$42,$C77)","v":0},{"$f":"COUNTIF('توزيع الحراس'!T$3:V$42,$C77)","v":0},{"$f":"COUNTIF('توزيع الحراس'!W$3:Y$42,$C77)","v":0},{"$f":"COUNTIF('توزيع الحراس'!Z$3:AB$42,$C77)","v":0},{"$f":"COUNTIF('توزيع الحراس'!AC$3:AE$42,$C77)","v":0},{"$f":"COUNTIF('توزيع الحراس'!AF$3:AH$42,$C77)","v":0},0,0]
[71,{"$f":"'توزيع الحراس'!B73","v":"محمد1 علي71"},{"$f":"'توزيع الحراس'!A73","v":71},{"$f":"COUNTIF('توزيع الحراس'!D$3:F$42,$C78)","v":0},{"$f":"COUNTIF('توزيع الحراس'!G$3:I$42,$C78)","v":0},{"$f":"COUNTIF('توزيع الحراس'!K$3:M$42,$C78)","v":0},{"$f":"COUNTIF('توزيع الحراس'!N$3:P$42,$C78)","v":0},{"$f":"COUNTIF('توزيع الحراس'!Q$3:S$42,$C78)","v":0},{"$f":"COUNTIF('توزيع الحراس'!T$3:V$42,$C78)","v":0},{"$f":"COUNTIF('توزيع الحراس'!W$3:Y$42,$C78)","v":0},{"$f":"COUNTIF('توزيع الحراس'!Z$3:AB$42,$C78)","v":0},{"$f":"COUNTIF('توزيع الحراس'!AC$3:AE$42,$C78)","v":0},{"$f":"COUNTIF('توزيع الحراس'!AF$3:AH$42,$C78)","v":0},0,0]
[72,{"$f":"'توزيع الحراس'!B74","v":"محمد1 علي72"},{"$f":"'توزيع الحراس'!A74","v":72},{"$f":"COUNTIF('توزيع الحراس'!D$3:F$42,$C79)","v":0},{"$f":"COUNTIF('توزيع الحراس'!G$3:I$42,$C79)","v":0},{"$f":"COUNTIF('توزيع الحراس'!K$3:M$42,$C79)","v":0},{"$f":"COUNTIF('توزيع الحراس'!N$3:P$42,$C79)","v":0},{"$f":"COUNTIF('توزيع الحراس'!Q$3:S$42,$C79)","v":0},{"$f":"COUNTIF('توزيع الحراس'!T$3:V$42,$C79)","v":0},{"$f":"COUNTIF('توزيع الحراس'!W$3:Y$42,$C79)","v":0},{"$f":"COUNTIF('توزيع الحراس'!Z$3:AB$42,$C79)","v":0},{"$f":"COUNTIF('توزيع الحراس'!AC$3:AE$42,$C79)","v":0},{"$f":"COUNTIF('توزيع الحراس'!AF$3:AH$42,$C79)","v":0},0,0]
[73,{"$f":"'توزيع الحراس'!B75","v":"محمد1 علي73"},{"$f":"'توزيع الحراس'!A75","v":73},{"$f":"COUNTIF('توزيع الحراس'!D$3:F$42,$C80)","v":0},{"$f":"COUNTIF('توزيع الحراس'!G$3:I$42,$C80)","v":0},{"$f":"COUNTIF('توزيع الحراس'!K$3:M$42,$C80)","v":0},{"$f":"COUNTIF('توزيع الحراس'!N$3:P$42,$C80)","v":0},{"$f":"COUNTIF('توزيع الحراس'!Q$3:S$42,$C80)","v":0},{"$f":"COUNTIF('توزيع الحراس'!T$3:V$42,$C80)","v":0},{"$f":"COUNTIF('توزيع الحراس'!W$3:Y$42,$C80)","v":0},{"$f":"COUNTIF('توزيع الحراس'!Z$3:AB$42,$C80)","v":0},{"$f":"COUNTIF('توزيع الحراس'!AC$3:AE$42,$C80)","v":0},{"$f":"COUNTIF('توزيع الحراس'!AF$3:AH$42,$C80)","v":0},0,0]
[74,{"$f":"'توزيع الحراس'!B76","v":"محمد1 علي74"},{"$f":"'توزيع الحراس'!A76","v":74},{"$f":"COUNTIF('توزيع الحراس'!D$3:F$42,$C81)","v":0},{"$f":"COUNTIF('توزيع الحراس'!G$3:I$42,$C81)","v":0},{"$f":"COUNTIF('توزيع الحراس'!K$3:M$42,$C81)","v":0},{"$f":"COUNTIF('توزيع الحراس'!N$3:P$42,$C81)","v":0},{"$f":"COUNTIF('توزيع الحراس'!Q$3:S$42,$C81)","v":0},{"$f":"COUNTIF('توزيع الحراس'!T$3:V$42,$C81)","v":0},{"$f":"COUNTIF('توزيع الحراس'!W$3:Y$42,$C81)","v":0},{"$f":"COUNTIF('توزيع الحراس'!Z$3:AB$42,$C81)","v":0},{"$f":"COUNTIF('توزيع الحراس'!AC$3:AE$42,$C81)","v":0},{"$f":"COUNTIF('توزيع الحراس'!AF$3:AH$42,$C81)","v":0},0,0]
[75,{"$f":"'توزيع الحراس'!B77","v":"محمد1 علي75"},{"$f":"'توزيع الحراس'!A77","v":75},{"$f":"COUNTIF('توزيع الحراس'!D$3:F$42,$C82)","v":0},{"$f":"COUNTIF('توزيع الحراس'!G$3:I$42,$C82)","v":0},{"$f":"COUNTIF('توزيع الحراس'!K$3:M$42,$C82)","v":0},{"$f":"COUNTIF('توزيع الحراس'!N$3:P$42,$C82)","v":0},{"$f":"COUNTIF('توزيع الحراس'!Q$3:S$42,$C82)","v":0},{"$f":"COUNTIF('توزيع الحراس'!T$3:V$42,$C82)","v":0},{"$f":"COUNTIF('توزيع الحراس'!W$3:Y$42,$C82)","v":0},{"$f":"COUNTIF('توزيع الحراس'!Z$3:AB$42,$C82)","v":0},{"$f":"COUNTIF('توزيع الحراس'!AC$3:AE$42,$C82)","v":0},{"$f":"COUNTIF('توزيع الحراس'!AF$3:AH$42,$C82)","v":0},0,0]
[76,{"$f":"'توزيع الحراس'!B78","v":"محمد1 علي76"},{"$f":"'توزيع الحراس'!A78","v":76},{"$f":"COUNTIF('توزيع الحراس'!D$3:F$42,$C83)","v":0},{"$f":"COUNTIF('توزيع الحراس'!G$3:I$42,$C83)","v":0},{"$f":"COUNTIF('توزيع الحراس'!K$3:M$42,$C83)","v":0},{"$f":"COUNTIF('توزيع الحراس'!N$3:P$42,$C83)","v":0},{"$f":"COUNTIF('توزيع الحراس'!Q$3:S$42,$C83)","v":0},{"$f":"COUNTIF('توزيع الحراس'!T$3:V$42,$C83)","v":0},{"$f":"COUNTIF('توزيع الحراس'!W$3:Y$42,$C83)","v":0},{"$f":"COUNTIF('توزيع الحراس'!Z$3:AB$42,$C83)","v":0},{"$f":"COUNTIF('توزيع الحراس'!AC$3:AE$42,$C83)","v":0},{"$f":"COUNTIF('توزيع الحراس'!AF$3:AH$42,$C83)","v":0},0,0]
[77,{"$f":"'توزيع الحراس'!B79","v":"محمد1 علي77"},{"$f":"'توزيع الحراس'!A79","v":77},{"$f":"COUNTIF('توزيع الحراس'!D$3:F$42,$C84)","v":0},{"$f":"COUNTIF('توزيع الحراس'!G$3:I$42,$C84)","v":0},{"$f":"COUNTIF('توزيع الحراس'!K$3:M$42,$C84)","v":0},{"$f":"COUNTIF('توزيع الحراس'!N$3:P$42,$C84)","v":1},{"$f":"COUNTIF('توزيع الحراس'!Q$3:S$42,$C84)","v":0},{"$f":"COUNTIF('توزيع الحراس'!T$3:V$42,$C84)","v":0},{"$f":"COUNTIF('توزيع الحراس'!W$3:Y$42,$C84)","v":0},{"$f":"COUNTIF('توزيع الحراس'!Z$3:AB$42,$C84)","v":0},{"$f":"COUNTIF('توزيع الحراس'!AC$3:AE$42,$C84)","v":0},{"$f":"COUNTIF('توزيع الحراس'!AF$3:AH$42,$C84)","v":0},0,1]
[78,{"$f":"'توزيع الحراس'!B80","v":"محمد1 علي78"},{"$f":"'توزيع الحراس'!A80","v":78},{"$f":"COUNTIF('توزيع الحراس'!D$3:F$42,$C85)","v":0},{"$f":"COUNTIF('توزيع الحراس'!G$3:I$42,$C85)","v":0},{"$f":"COUNTIF('توزيع الحراس'!K$3:M$42,$C85)","v":0},{"$f":"COUNTIF('توزيع الحراس'!N$3:P$42,$C85)","v":0},{"$f":"COUNTIF('توزيع الحراس'!Q$3:S$42,$C85)","v":0},{"$f":"COUNTIF('توزيع الحراس'!T$3:V$42,$C85)","v":0},{"$f":"COUNTIF('توزيع الحراس'!W$3:Y$42,$C85)","v":0},{"$f":"COUNTIF('توزيع الحراس'!Z$3:AB$42,$C85)","v":0},{"$f":"COUNTIF('توزيع الحراس'!AC$3:AE$42,$C85)","v":0},{"$f":"COUNTIF('توزيع الحراس'!AF$3:AH$42,$C85)","v":0},0,0]
[79,{"$f":"'توزيع الحراس'!B81","v":"محمد1 علي79"},{"$f":"'توزيع الحراس'!A81","v":79},{"$f":"COUNTIF('توزيع الحراس'!D$3:F$42,$C86)","v":0},{"$f":"COUNTIF('توزيع الحراس'!G$3:I$42,$C86)","v":0},{"$f":"COUNTIF('توزيع الحراس'!K$3:M$42,$C86)","v":0},{"$f":"COUNTIF('توزيع الحراس'!N$3:P$42,$C86)","v":0},{"$f":"COUNTIF('توزيع الحراس'!Q$3:S$42,$C86)","v":0},{"$f":"COUNTIF('توزيع الحراس'!T$3:V$42,$C86)","v":0},{"$f":"COUNTIF('توزيع الحراس'!W$3:Y$42,$C86)","v":0},{"$f":"COUNTIF('توزيع الحراس'!Z$3:AB$42,$C86)","v":0},{"$f":"COUNTIF('توزيع الحراس'!AC$3:AE$42,$C86)","v":0},{"$f":"COUNTIF('توزيع الحراس'!AF$3:AH$42,$C86)","v":0},0,0]
[80,{"$f":"'توزيع الحراس'!B82","v":"محمد1 علي80"},{"$f":"'توزيع الحراس'!A82","v":80},{"$f":"COUNTIF('توزيع الحراس'!D$3:F$42,$C87)","v":0},{"$f":"COUNTIF('توزيع الحراس'!G$3:I$42,$C87)","v":0},{"$f":"COUNTIF('توزيع الحراس'!K$3:M$42,$C87)","v":0},{"$f":"COUNTIF('توزيع الحراس'!N$3:P$42,$C87)","v":0},{"$f":"COUNTIF('توزيع الحراس'!Q$3:S$42,$C87)","v":0},{"$f":"COUNTIF('توزيع الحراس'!T$3:V$42,$C87)","v":0},{"$f":"COUNTIF('توزيع الحراس'!W$3:Y$42,$C87)","v":0},{"$f":"COUNTIF('توزيع الحراس'!Z$3:AB$42,$C87)","v":0},{"$f":"COUNTIF('توزيع الحراس'!AC$3:AE$42,$C87)","v":0},{"$f":"COUNTIF('توزيع الحراس'!AF$3:AH$42,$C87)","v":0},0,0]
[81,{"$f":"'توزيع الحراس'!B83","v":"محمد1 علي81"},{"$f":"'توزيع الحراس'!A83","v":81},{"$f":"COUNTIF('توزيع الحراس'!D$3:F$42,$C88)","v":0},{"$f":"COUNTIF('توزيع الحراس'!G$3:I$42,$C88)","v":0},{"$f":"COUNTIF('توزيع الحراس'!K$3:M$42,$C88)","v":0},{"$f":"COUNTIF('توزيع الحراس'!N$3:P$42,$C88)","v":0},{"$f":"COUNTIF('توزيع الحراس'!Q$3:S$42,$C88)","v":0},{"$f":"COUNTIF('توزيع الحراس'!T$3:V$42,$C88)","v":0},{"$f":"COUNTIF('توزيع الحراس'!W$3:Y$42,$C88)","v":0},{"$f":"COUNTIF('توزيع الحراس'!Z$3:AB$42,$C88)","v":0},{"$f":"COUNTIF('توزيع الحراس'!AC$3:AE$42,$C88)","v":0},{"$f":"COUNTIF('توزيع الحراس'!AF$3:AH$42,$C88)","v":0},0,0]
[82,{"$f":"'توزيع الحراس'!B84","v":"محمد1 علي82"},{"$f":"'توزيع الحراس'!A84","v":82},{"$f":"COUNTIF('توزيع الحراس'!D$3:F$42,$C89)","v":0},{"$f":"COUNTIF('توزيع الحراس'!G$3:I$42,$C89)","v":0},{"$f":"COUNTIF('توزيع الحراس'!K$3:M$42,$C89)","v":0},{"$f":"COUNTIF('توزيع الحراس'!N$3:P$42,$C89)","v":0},{"$f":"COUNTIF('توزيع الحراس'!Q$3:S$42,$C89)","v":0},{"$f":"COUNTIF('توزيع الحراس'!T$3:V$42,$C89)","v":0},{"$f":"COUNTIF('توزيع الحراس'!W$3:Y$42,$C89)","v":0},{"$f":"COUNTIF('توزيع الحراس'!Z$3:AB$42,$C89)","v":0},{"$f":"COUNTIF('توزيع الحراس'!AC$3:AE$42,$C89)","v":0},{"$f":"COUNTIF('توزيع الحراس'!AF$3:AH$42,$C89)","v":0},0,0]
[83,{"$f":"'توزيع الحراس'!B85","v":"محمد1 علي83"},{"$f":"'توزيع الحراس'!A85","v":83},{"$f":"COUNTIF('توزيع الحراس'!D$3:F$42,$C90)","v":0},{"$f":"COUNTIF('توزيع الحراس'!G$3:I$42,$C90)","v":0},{"$f":"COUNTIF('توزيع الحراس'!K$3:M$42,$C90)","v":0},{"$f":"COUNTIF('توزيع الحراس'!N$3:P$42,$C90)","v":0},{"$f":"COUNTIF('توزيع الحراس'!Q$3:S$42,$C90)","v":0},{"$f":"COUNTIF('توزيع الحراس'!T$3:V$42,$C90)","v":0},{"$f":"COUNTIF('توزيع الحراس'!W$3:Y$42,$C90)","v":0},{"$f":"COUNTIF('توزيع الحراس'!Z$3:AB$42,$C90)","v":0},{"$f":"COUNTIF('توزيع الحراس'!AC$3:AE$42,$C90)","v":0},{"$f":"COUNTIF('توزيع الحراس'!AF$3:AH$42,$C90)","v":0},0,0]
[84,{"$f":"'توزيع الحراس'!B86","v":"محمد1 علي84"},{"$f":"'توزيع الحراس'!A86","v":84},{"$f":"COUNTIF('توزيع الحراس'!D$3:F$42,$C91)","v":0},{"$f":"COUNTIF('توزيع الحراس'!G$3:I$42,$C91)","v":0},{"$f":"COUNTIF('توزيع الحراس'!K$3:M$42,$C91)","v":0},{"$f":"COUNTIF('توزيع الحراس'!N$3:P$42,$C91)","v":0},{"$f":"COUNTIF('توزيع الحراس'!Q$3:S$42,$C91)","v":0},{"$f":"COUNTIF('توزيع الحراس'!T$3:V$42,$C91)","v":0},{"$f":"COUNTIF('توزيع الحراس'!W$3:Y$42,$C91)","v":0},{"$f":"COUNTIF('توزيع الحراس'!Z$3:AB$42,$C91)","v":0},{"$f":"COUNTIF('توزيع الحراس'!AC$3:AE$42,$C91)","v":0},{"$f":"COUNTIF('توزيع الحراس'!AF$3:AH$42,$C91)","v":0},0,0]
[85,{"$f":"'توزيع الحراس'!B87","v":"محمد1 علي85"},{"$f":"'توزيع الحراس'!A87","v":85},{"$f":"COUNTIF('توزيع الحراس'!D$3:F$42,$C92)","v":0},{"$f":"COUNTIF('توزيع الحراس'!G$3:I$42,$C92)","v":0},{"$f":"COUNTIF('توزيع الحراس'!K$3:M$42,$C92)","v":0},{"$f":"COUNTIF('توزيع الحراس'!N$3:P$42,$C92)","v":0},{"$f":"COUNTIF('توزيع الحراس'!Q$3:S$42,$C92)","v":0},{"$f":"COUNTIF('توزيع الحراس'!T$3:V$42,$C92)","v":0},{"$f":"COUNTIF('توزيع الحراس'!W$3:Y$42,$C92)","v":0},{"$f":"COUNTIF('توزيع الحراس'!Z$3:AB$42,$C92)","v":0},{"$f":"COUNTIF('توزيع الحراس'!AC$3:AE$42,$C92)","v":0},{"$f":"COUNTIF('توزيع الحراس'!AF$3:AH$42,$C92)","v":0},0,0]
[86,{"$f":"'توزيع الحراس'!B88","v":"محمد1 علي86"},{"$f":"'توزيع الحراس'!A88","v":86},{"$f":"COUNTIF('توزيع الحراس'!D$3:F$42,$C93)","v":0},{"$f":"COUNTIF('توزيع الحراس'!G$3:I$42,$C93)","v":0},{"$f":"COUNTIF('توزيع الحراس'!K$3:M$42,$C93)","v":0},{"$f":"COUNTIF('توزيع الحراس'!N$3:P$42,$C93)","v":0},{"$f":"COUNTIF('توزيع الحراس'!Q$3:S$42,$C93)","v":0},{"$f":"COUNTIF('توزيع الحراس'!T$3:V$42,$C93)","v":0},{"$f":"COUNTIF('توزيع الحراس'!W$3:Y$42,$C93)","v":0},{"$f":"COUNTIF('توزيع الحراس'!Z$3:AB$42,$C93)","v":0},{"$f":"COUNTIF('توزيع الحراس'!AC$3:AE$42,$C93)","v":0},{"$f":"COUNTIF('توزيع الحراس'!AF$3:AH$42,$C93)","v":0},0,0]
[87,{"$f":"'توزيع الحراس'!B89","v":"محمد1 علي87"},{"$f":"'توزيع الحراس'!A89","v":87},{"$f":"COUNTIF('توزيع الحراس'!D$3:F$42,$C94)","v":0},{"$f":"COUNTIF('توزيع الحراس'!G$3:I$42,$C94)","v":0},{"$f":"COUNTIF('توزيع الحراس'!K$3:M$42,$C94)","v":0},{"$f":"COUNTIF('توزيع الحراس'!N$3:P$42,$C94)","v":0},{"$f":"COUNTIF('توزيع الحراس'!Q$3:S$42,$C94)","v":0},{"$f":"COUNTIF('توزيع الحراس'!T$3:V$42,$C94)","v":0},{"$f":"COUNTIF('توزيع الحراس'!W$3:Y$42,$C94)","v":0},{"$f":"COUNTIF('توزيع الحراس'!Z$3:AB$42,$C94)","v":0},{"$f":"COUNTIF('توزيع الحراس'!AC$3:AE$42,$C94)","v":0},{"$f":"COUNTIF('توزيع الحراس'!AF$3:AH$42,$C94)","v":0},0,0]
[88,{"$f":"'توزيع الحراس'!B90","v":"محمد1 علي88"},{"$f":"'توزيع الحراس'!A90","v":88},{"$f":"COUNTIF('توزيع الحراس'!D$3:F$42,$C95)","v":0},{"$f":"COUNTIF('توزيع الحراس'!G$3:I$42,$C95)","v":0},{"$f":"COUNTIF('توزيع الحراس'!K$3:M$42,$C95)","v":0},{"$f":"COUNTIF('توزيع الحراس'!N$3:P$42,$C95)","v":0},{"$f":"COUNTIF('توزيع الحراس'!Q$3:S$42,$C95)","v":0},{"$f":"COUNTIF('توزيع الحراس'!T$3:V$42,$C95)","v":0},{"$f":"COUNTIF('توزيع الحراس'!W$3:Y$42,$C95)","v":0},{"$f":"COUNTIF('توزيع الحراس'!Z$3:AB$42,$C95)","v":0},{"$f":"COUNTIF('توزيع الحراس'!AC$3:AE$42,$C95)","v":0},{"$f":"COUNTIF('توزيع الحراس'!AF$3:AH$42,$C95)","v":0},0,0]
[89,{"$f":"'توزيع الحراس'!B91","v":"محمد1 علي89"},{"$f":"'توزيع الحراس'!A91","v":89},{"$f":"COUNTIF('توزيع الحراس'!D$3:F$42,$C96)","v":0},{"$f":"COUNTIF('توزيع الحراس'!G$3:I$42,$C96)","v":0},{"$f":"COUNTIF('توزيع الحراس'!K$3:M$42,$C96)","v":0},{"$f":"COUNTIF('توزيع الحراس'!N$3:P$42,$C96)","v":0},{"$f":"COUNTIF('توزيع الحراس'!Q$3:S$42,$C96)","v":0},{"$f":"COUNTIF('توزيع الحراس'!T$3:V$42,$C96)","v":0},{"$f":"COUNTIF('توزيع الحراس'!W$3:Y$42,$C96)","v":0},{"$f":"COUNTIF('توزيع الحراس'!Z$3:AB$42,$C96)","v":0},{"$f":"COUNTIF('توزيع الحراس'!AC$3:AE$42,$C96)","v":0},{"$f":"COUNTIF('توزيع الحراس'!AF$3:AH$42,$C96)","v":0},0,0]
[90,{"$f":"'توزيع الحراس'!B92","v":"محمد1 علي90"},{"$f":"'توزيع الحراس'!A92","v":90},{"$f":"COUNTIF('توزيع الحراس'!D$3:F$42,$C97)","v":0},{"$f":"COUNTIF('توزيع الحراس'!G$3:I$42,$C97)","v":0},{"$f":"COUNTIF('توزيع الحراس'!K$3:M$42,$C97)","v":0},{"$f":"COUNTIF('توزيع الحراس'!N$3:P$42,$C97)","v":0},{"$f":"COUNTIF('توزيع الحراس'!Q$3:S$42,$C97)","v":0},{"$f":"COUNTIF('توزيع الحراس'!T$3:V$42,$C97)","v":0},{"$f":"COUNTIF('توزيع الحراس'!W$3:Y$42,$C97)","v":0},{"$f":"COUNTIF('توزيع الحراس'!Z$3:AB$42,$C97)","v":0},{"$f":"COUNTIF('توزيع الحراس'!AC$3:AE$42,$C97)","v":0},{"$f":"COUNTIF('توزيع الحراس'!AF$3:AH$42,$C97)","v":0},0,0]
[91,{"$f":"'توزيع الحراس'!B93","v":"محمد1 علي91"},{"$f":"'توزيع الحراس'!A93","v":91},{"$f":"COUNTIF('توزيع الحراس'!D$3:F$42,$C98)","v":0},{"$f":"COUNTIF('توزيع الحراس'!G$3:I$42,$C98)","v":0},{"$f":"COUNTIF('توزيع الحراس'!K$3:M$42,$C98)","v":0},{"$f":"COUNTIF('توزيع الحراس'!N$3:P$42,$C98)","v":0},{"$f":"COUNTIF('توزيع الحراس'!Q$3:S$42,$C98)","v":0},{"$f":"COUNTIF('توزيع الحراس'!T$3:V$42,$C98)","v":0},{"$f":"COUNTIF('توزيع الحراس'!W$3:Y$42,$C98)","v":0},{"$f":"COUNTIF('توزيع الحراس'!Z$3:AB$42,$C98)","v":0},{"$f":"COUNTIF('توزيع الحراس'!AC$3:AE$42,$C98)","v":0},{"$f":"COUNTIF('توزيع الحراس'!AF$3:AH$42,$C98)","v":0},0,0]
[92,{"$f":"'توزيع الحراس'!B94","v":"محمد1 علي92"},{"$f":"'توزيع الحراس'!A94","v":92},{"$f":"COUNTIF('توزيع الحراس'!D$3:F$42,$C99)","v":0},{"$f":"COUNTIF('توزيع الحراس'!G$3:I$42,$C99)","v":0},{"$f":"COUNTIF('توزيع الحراس'!K$3:M$42,$C99)","v":0},{"$f":"COUNTIF('توزيع الحراس'!N$3:P$42,$C99)","v":0},{"$f":"COUNTIF('توزيع الحراس'!Q$3:S$42,$C99)","v":0},{"$f":"COUNTIF('توزيع الحراس'!T$3:V$42,$C99)","v":0},{"$f":"COUNTIF('توزيع الحراس'!W$3:Y$42,$C99)","v":0},{"$f":"COUNTIF('توزيع الحراس'!Z$3:AB$42,$C99)","v":0},{"$f":"COUNTIF('توزيع الحراس'!AC$3:AE$42,$C99)","v":0},{"$f":"COUNTIF('توزيع الحراس'!AF$3:AH$42,$C99)","v":0},0,0]
[93,{"$f":"'توزيع الحراس'!B95","v":"محمد1 علي93"},{"$f":"'توزيع الحراس'!A95","v":93},{"$f":"COUNTIF('توزيع الحراس'!D$3:F$42,$C100)","v":0},{"$f":"COUNTIF('توزيع الحراس'!G$3:I$42,$C100)","v":0},{"$f":"COUNTIF('توزيع الحراس'!K$3:M$42,$C100)","v":0},{"$f":"COUNTIF('توزيع الحراس'!N$3:P$42,$C100)","v":0},{"$f":"COUNTIF('توزيع الحراس'!Q$3:S$42,$C100)","v":0},{"$f":"COUNTIF('توزيع الحراس'!T$3:V$42,$C100)","v":0},{"$f":"COUNTIF('توزيع الحراس'!W$3:Y$42,$C100)","v":0},{"$f":"COUNTIF('توزيع الحراس'!Z$3:AB$42,$C100)","v":0},{"$f":"COUNTIF('توزيع الحراس'!AC$3:AE$42,$C100)","v":0},{"$f":"COUNTIF('توزيع الحراس'!AF$3:AH$42,$C100)","v":0},0,0]
[94,{"$f":"'توزيع الحراس'!B96","v":"محمد1 علي94"},{"$f":"'توزيع الحراس'!A96","v":94},{"$f":"COUNTIF('توزيع الحراس'!D$3:F$42,$C101)","v":0},{"$f":"COUNTIF('توزيع الحراس'!G$3:I$42,$C101)","v":0},{"$f":"COUNTIF('توزيع الحراس'!K$3:M$42,$C101)","v":0},{"$f":"COUNTIF('توزيع الحراس'!N$3:P$42,$C101)","v":0},{"$f":"COUNTIF('توزيع الحراس'!Q$3:S$42,$C101)","v":0},{"$f":"COUNTIF('توزيع الحراس'!T$3:V$42,$C101)","v":0},{"$f":"COUNTIF('توزيع الحراس'!W$3:Y$42,$C101)","v":0},{"$f":"COUNTIF('توزيع الحراس'!Z$3:AB$42,$C101)","v":0},{"$f":"COUNTIF('توزيع الحراس'!AC$3:AE$42,$C101)","v":0},{"$f":"COUNTIF('توزيع الحراس'!AF$3:AH$42,$C101)","v":0},0,0]
[95,{"$f":"'توزيع الحراس'!B97","v":"محمد1 علي95"},{"$f":"'توزيع الحراس'!A97","v":95},{"$f":"COUNTIF('توزيع الحراس'!D$3:F$42,$C102)","v":0},{"$f":"COUNTIF('توزيع الحراس'!G$3:I$42,$C102)","v":0},{"$f":"COUNTIF('توزيع الحراس'!K$3:M$42,$C102)","v":0},{"$f":"COUNTIF('توزيع الحراس'!N$3:P$42,$C102)","v":0},{"$f":"COUNTIF('توزيع الحراس'!Q$3:S$42,$C102)","v":0},{"$f":"COUNTIF('توزيع الحراس'!T$3:V$42,$C102)","v":0},{"$f":"COUNTIF('توزيع الحراس'!W$3:Y$42,$C102)","v":0},{"$f":"COUNTIF('توزيع الحراس'!Z$3:AB$42,$C102)","v":0},{"$f":"COUNTIF('توزيع الحراس'!AC$3:AE$42,$C102)","v":0},{"$f":"COUNTIF('توزيع الحراس'!AF$3:AH$42,$C102)","v":0},0,0]
[96,{"$f":"'توزيع الحراس'!B98","v":"محمد1 علي96"},{"$f":"'توزيع الحراس'!A98","v":96},{"$f":"COUNTIF('توزيع الحراس'!D$3:F$42,$C103)","v":0},{"$f":"COUNTIF('توزيع الحراس'!G$3:I$42,$C103)","v":0},{"$f":"COUNTIF('توزيع الحراس'!K$3:M$42,$C103)","v":0},{"$f":"COUNTIF('توزيع الحراس'!N$3:P$42,$C103)","v":0},{"$f":"COUNTIF('توزيع الحراس'!Q$3:S$42,$C103)","v":0},{"$f":"COUNTIF('توزيع الحراس'!T$3:V$42,$C103)","v":0},{"$f":"COUNTIF('توزيع الحراس'!W$3:Y$42,$C103)","v":0},{"$f":"COUNTIF('توزيع الحراس'!Z$3:AB$42,$C103)","v":0},{"$f":"COUNTIF('توزيع الحراس'!AC$3:AE$42,$C103)","v":0},{"$f":"COUNTIF('توزيع الحراس'!AF$3:AH$42,$C103)","v":0},0,0]
[97,{"$f":"'توزيع الحراس'!B99","v":"محمد1 علي97"},{"$f":"'توزيع الحراس'!A99","v":97},{"$f":"COUNTIF('توزيع الحراس'!D$3:F$42,$C104)","v":0},{"$f":"COUNTIF('توزيع الحراس'!G$3:I$42,$C104)","v":0},{"$f":"COUNTIF('توزيع الحراس'!K$3:M$42,$C104)","v":0},{"$f":"COUNTIF('توزيع الحراس'!N$3:P$42,$C104)","v":0},{"$f":"COUNTIF('توزيع الحراس'!Q$3:S$42,$C104)","v":0},{"$f":"COUNTIF('توزيع الحراس'!T$3:V$42,$C104)","v":0},{"$f":"COUNTIF('توزيع الحراس'!W$3:Y$42,$C104)","v":0},{"$f":"COUNTIF('توزيع الحراس'!Z$3:AB$42,$C104)","v":0},{"$f":"COUNTIF('توزيع الحراس'!AC$3:AE$42,$C104)","v":0},{"$f":"COUNTIF('توزيع الحراس'!AF$3:AH$42,$C104)","v":0},{"$f":"COUNTIF(D104:M104,\"x\")/2","v":0},0]
[98,{"$f":"'توزيع الحراس'!B100","v":"محمد1 علي98"},{"$f":"'توزيع الحراس'!A100","v":98},{"$f":"COUNTIF('توزيع الحراس'!D$3:F$42,$C105)","v":0},{"$f":"COUNTIF('توزيع الحراس'!G$3:I$42,$C105)","v":0},{"$f":"COUNTIF('توزيع الحراس'!K$3:M$42,$C105)","v":0},{"$f":"COUNTIF('توزيع الحراس'!N$3:P$42,$C105)","v":0},{"$f":"COUNTIF('توزيع الحراس'!Q$3:S$42,$C105)","v":0},{"$f":"COUNTIF('توزيع الحراس'!T$3:V$42,$C105)","v":0},{"$f":"COUNTIF('توزيع الحراس'!W$3:Y$42,$C105)","v":0},{"$f":"COUNTIF('توزيع الحراس'!Z$3:AB$42,$C105)","v":0},{"$f":"COUNTIF('توزيع الحراس'!AC$3:AE$42,$C105)","v":0},{"$f":"COUNTIF('توزيع الحراس'!AF$3:AH$42,$C105)","v":0},0,0]
[99,{"$f":"'توزيع الحراس'!B101","v":"محمد1 علي99"},{"$f":"'توزيع الحراس'!A101","v":99},{"$f":"COUNTIF('توزيع الحراس'!D$3:F$42,$C106)","v":0},{"$f":"COUNTIF('توزيع الحراس'!G$3:I$42,$C106)","v":0},{"$f":"COUNTIF('توزيع الحراس'!K$3:M$42,$C106)","v":0},{"$f":"COUNTIF('توزيع الحراس'!N$3:P$42,$C106)","v":0},{"$f":"COUNTIF('توزيع الحراس'!Q$3:S$42,$C106)","v":0},{"$f":"COUNTIF('توزيع الحراس'!T$3:V$42,$C106)","v":0},{"$f":"COUNTIF('توزيع الحراس'!W$3:Y$42,$C106)","v":0},{"$f":"COUNTIF('توزيع الحراس'!Z$3:AB$42,$C106)","v":0},{"$f":"COUNTIF('توزيع الحراس'!AC$3:AE$42,$C106)","v":0},{"$f":"COUNTIF('توزيع الحراس'!AF$3:AH$42,$C106)","v":0},0,0]
[100,{"$f":"'توزيع الحراس'!B102","v":"محمد1 علي100"},{"$f":"'توزيع الحراس'!A102","v":100},{"$f":"COUNTIF('توزيع الحراس'!D$3:F$42,$C107)","v":0},{"$f":"COUNTIF('توزيع الحراس'!G$3:I$42,$C107)","v":0},{"$f":"COUNTIF('توزيع الحراس'!K$3:M$42,$C107)","v":0},{"$f":"COUNTIF('توزيع الحراس'!N$3:P$42,$C107)","v":1},{"$f":"COUNTIF('توزيع الحراس'!Q$3:S$42,$C107)","v":0},{"$f":"COUNTIF('توزيع الحراس'!T$3:V$42,$C107)","v":0},{"$f":"COUNTIF('توزيع الحراس'!W$3:Y$42,$C107)","v":0},{"$f":"COUNTIF('توزيع الحراس'!Z$3:AB$42,$C107)","v":0},{"$f":"COUNTIF('توزيع الحراس'!AC$3:AE$42,$C107)","v":0},{"$f":"COUNTIF('توزيع الحراس'!AF$3:AH$42,$C107)","v":0},0,1]
[101,{"$f":"'توزيع الحراس'!B103","v":"محمد1 علي101"},{"$f":"'توزيع الحراس'!A103","v":101},{"$f":"COUNTIF('توزيع الحراس'!D$3:F$42,$C108)","v":0},{"$f":"COUNTIF('توزيع الحراس'!G$3:I$42,$C108)","v":0},{"$f":"COUNTIF('توزيع الحراس'!K$3:M$42,$C108)","v":0},{"$f":"COUNTIF('توزيع الحراس'!N$3:P$42,$C108)","v":1},{"$f":"COUNTIF('توزيع الحراس'!Q$3:S$42,$C108)","v":0},{"$f":"COUNTIF('توزيع الحراس'!T$3:V$42,$C108)","v":0},{"$f":"COUNTIF('توزيع الحراس'!W$3:Y$42,$C108)","v":0},{"$f":"COUNTIF('توزيع الحراس'!Z$3:AB$42,$C108)","v":0},{"$f":"COUNTIF('توزيع الحراس'!AC$3:AE$42,$C108)","v":0},{"$f":"COUNTIF('توزيع الحراس'!AF$3:AH$42,$C108)","v":0},0,1]
[102,{"$f":"'توزيع الحراس'!B104","v":"محمد1 علي102"},{"$f":"'توزيع الحراس'!A104","v":102},{"$f":"COUNTIF('توزيع الحراس'!D$3:F$42,$C109)","v":0},{"$f":"COUNTIF('توزيع الحراس'!G$3:I$42,$C109)","v":0},{"$f":"COUNTIF('توزيع الحراس'!K$3:M$42,$C109)","v":0},{"$f":"COUNTIF('توزيع الحراس'!N$3:P$42,$C109)","v":0},{"$f":"COUNTIF('توزيع الحراس'!Q$3:S$42,$C109)","v":0},{"$f":"COUNTIF('توزيع الحراس'!T$3:V$42,$C109)","v":0},{"$f":"COUNTIF('توزيع الحراس'!W$3:Y$42,$C109)","v":0},{"$f":"COUNTIF('توزيع الحراس'!Z$3:AB$42,$C109)","v":0},{"$f":"COUNTIF('توزيع الحراس'!AC$3:AE$42,$C109)","v":0},{"$f":"COUNTIF('توزيع الحراس'!AF$3:AH$42,$C109)","v":0},0,0]
[103,{"$f":"'توزيع الحراس'!B105","v":"محمد1 علي103"},{"$f":"'توزيع الحراس'!A105","v":103},{"$f":"COUNTIF('توزيع الحراس'!D$3:F$42,$C110)","v":0},{"$f":"COUNTIF('توزيع الحراس'!G$3:I$42,$C110)","v":0},{"$f":"COUNTIF('توزيع الحراس'!K$3:M$42,$C110)","v":0},{"$f":"COUNTIF('توزيع الحراس'!N$3:P$42,$C110)","v":0},{"$f":"COUNTIF('توزيع الحراس'!Q$3:S$42,$C110)","v":0},{"$f":"COUNTIF('توزيع الحراس'!T$3:V$42,$C110)","v":0},{"$f":"COUNTIF('توزيع الحراس'!W$3:Y$42,$C110)","v":0},{"$f":"COUNTIF('توزيع الحراس'!Z$3:AB$42,$C110)","v":0},{"$f":"COUNTIF('توزيع الحراس'!AC$3:AE$42,$C110)","v":0},{"$f":"COUNTIF('توزيع الحراس'!AF$3:AH$42,$C110)","v":0},0,0]
[104,{"$f":"'توزيع الحراس'!B106","v":"محمد1 علي104"},{"$f":"'توزيع الحراس'!A106","v":104},{"$f":"COUNTIF('توزيع الحراس'!D$3:F$42,$C111)","v":0},{"$f":"COUNTIF('توزيع الحراس'!G$3:I$42,$C111)","v":0},{"$f":"COUNTIF('توزيع الحراس'!K$3:M$42,$C111)","v":0},{"$f":"COUNTIF('توزيع الحراس'!N$3:P$42,$C111)","v":0},{"$f":"COUNTIF('توزيع الحراس'!Q$3:S$42,$C111)","v":0},{"$f":"COUNTIF('توزيع الحراس'!T$3:V$42,$C111)","v":0},{"$f":"COUNTIF('توزيع الحراس'!W$3:Y$42,$C111)","v":0},{"$f":"COUNTIF('توزيع الحراس'!Z$3:AB$42,$C111)","v":0},{"$f":"COUNTIF('توزيع الحراس'!AC$3:AE$42,$C111)","v":0},{"$f":"COUNTIF('توزيع الحراس'!AF$3:AH$42,$C111)","v":0},0,0]
[105,{"$f":"'توزيع الحراس'!B107","v":"محمد1 علي105"},{"$f":"'توزيع الحراس'!A107","v":105},{"$f":"COUNTIF('توزيع الحراس'!D$3:F$42,$C112)","v":0},{"$f":"COUNTIF('توزيع الحراس'!G$3:I$42,$C112)","v":0},{"$f":"COUNTIF('توزيع الحراس'!K$3:M$42,$C112)","v":0},{"$f":"COUNTIF('توزيع الحراس'!N$3:P$42,$C112)","v":0},{"$f":"COUNTIF('توزيع الحراس'!Q$3:S$42,$C112)","v":0},{"$f":"COUNTIF('توزيع الحراس'!T$3:V$42,$C112)","v":0},{"$f":"COUNTIF('توزيع الحراس'!W$3:Y$42,$C112)","v":0},{"$f":"COUNTIF('توزيع الحراس'!Z$3:AB$42,$C112)","v":0},{"$f":"COUNTIF('توزيع الحراس'!AC$3:AE$42,$C112)","v":0},{"$f":"COUNTIF('توزيع الحراس'!AF$3:AH$42,$C112)","v":0},0,0]
[106,{"$f":"'توزيع الحراس'!B108","v":"محمد1 علي106"},{"$f":"'توزيع الحراس'!A108","v":106},{"$f":"COUNTIF('توزيع الحراس'!D$3:F$42,$C113)","v":0},{"$f":"COUNTIF('توزيع الحراس'!G$3:I$42,$C113)","v":0},{"$f":"COUNTIF('توزيع الحراس'!K$3:M$42,$C113)","v":0},{"$f":"COUNTIF('توزيع الحراس'!N$3:P$42,$C113)","v":0},{"$f":"COUNTIF('توزيع الحراس'!Q$3:S$42,$C113)","v":0},{"$f":"COUNTIF('توزيع الحراس'!T$3:V$42,$C113)","v":0},{"$f":"COUNTIF('توزيع الحراس'!W$3:Y$42,$C113)","v":0},{"$f":"COUNTIF('توزيع الحراس'!Z$3:AB$42,$C113)","v":0},{"$f":"COUNTIF('توزيع الحراس'!AC$3:AE$42,$C113)","v":0},{"$f":"COUNTIF('توزيع الحراس'!AF$3:AH$42,$C113)","v":0},0,0]
[107,{"$f":"'توزيع الحراس'!B109","v":"محمد1 علي107"},{"$f":"'توزيع الحراس'!A109","v":107},{"$f":"COUNTIF('توزيع الحراس'!D$3:F$42,$C114)","v":0},{"$f":"COUNTIF('توزيع الحراس'!G$3:I$42,$C114)","v":0},{"$f":"COUNTIF('توزيع الحراس'!K$3:M$42,$C114)","v":0},{"$f":"COUNTIF('توزيع الحراس'!N$3:P$42,$C114)","v":0},{"$f":"COUNTIF('توزيع الحراس'!Q$3:S$42,$C114)","v":0},{"$f":"COUNTIF('توزيع الحراس'!T$3:V$42,$C114)","v":0},{"$f":"COUNTIF('توزيع الحراس'!W$3:Y$42,$C114)","v":0},{"$f":"COUNTIF('توزيع الحراس'!Z$3:AB$42,$C114)","v":0},{"$f":"COUNTIF('توزيع الحراس'!AC$3:AE$42,$C114)","v":0},{"$f":"COUNTIF('توزيع الحراس'!AF$3:AH$42,$C114)","v":0},0,0]
[108,{"$f":"'توزيع الحراس'!B110","v":"محمد1 علي108"},{"$f":"'توزيع الحراس'!A110","v":108},{"$f":"COUNTIF('توزيع الحراس'!D$3:F$42,$C115)","v":0},{"$f":"COUNTIF('توزيع الحراس'!G$3:I$42,$C115)","v":0},{"$f":"COUNTIF('توزيع الحراس'!K$3:M$42,$C115)","v":0},{"$f":"COUNTIF('توزيع الحراس'!N$3:P$42,$C115)","v":0},{"$f":"COUNTIF('توزيع الحراس'!Q$3:S$42,$C115)","v":0},{"$f":"COUNTIF('توزيع الحراس'!T$3:V$42,$C115)","v":0},{"$f":"COUNTIF('توزيع الحراس'!W$3:Y$42,$C115)","v":0},{"$f":"COUNTIF('توزيع الحراس'!Z$3:AB$42,$C115)","v":0},{"$f":"COUNTIF('توزيع الحراس'!AC$3:AE$42,$C115)","v":0},{"$f":"COUNTIF('توزيع الحراس'!AF$3:AH$42,$C115)","v":0},0,0]
[109,{"$f":"'توزيع الحراس'!B111","v":"محمد1 علي109"},{"$f":"'توزيع الحراس'!A111","v":109},{"$f":"COUNTIF('توزيع الحراس'!D$3:F$42,$C116)","v":0},{"$f":"COUNTIF('توزيع الحراس'!G$3:I$42,$C116)","v":0},{"$f":"COUNTIF('توزيع الحراس'!K$3:M$42,$C116)","v":0},{"$f":"COUNTIF('توزيع الحراس'!N$3:P$42,$C116)","v":0},{"$f":"COUNTIF('توزيع الحراس'!Q$3:S$42,$C116)","v":0},{"$f":"COUNTIF('توزيع الحراس'!T$3:V$42,$C116)","v":0},{"$f":"COUNTIF('توزيع الحراس'!W$3:Y$42,$C116)","v":0},{"$f":"COUNTIF('توزيع الحراس'!Z$3:AB$42,$C116)","v":0},{"$f":"COUNTIF('توزيع الحراس'!AC$3:AE$42,$C116)","v":0},{"$f":"COUNTIF('توزيع الحراس'!AF$3:AH$42,$C116)","v":0},0,0]
[110,{"$f":"'توزيع الحراس'!B112","v":"محمد1 علي110"},{"$f":"'توزيع الحراس'!A112","v":110},{"$f":"COUNTIF('توزيع الحراس'!D$3:F$42,$C117)","v":0},{"$f":"COUNTIF('توزيع الحراس'!G$3:I$42,$C117)","v":0},{"$f":"COUNTIF('توزيع الحراس'!K$3:M$42,$C117)","v":0},{"$f":"COUNTIF('توزيع الحراس'!N$3:P$42,$C117)","v":0},{"$f":"COUNTIF('توزيع الحراس'!Q$3:S$42,$C117)","v":0},{"$f":"COUNTIF('توزيع الحراس'!T$3:V$42,$C117)","v":0},{"$f":"COUNTIF('توزيع الحراس'!W$3:Y$42,$C117)","v":0},{"$f":"COUNTIF('توزيع الحراس'!Z$3:AB$42,$C117)","v":0},{"$f":"COUNTIF('توزيع الحراس'!AC$3:AE$42,$C117)","v":0},{"$f":"COUNTIF('توزيع الحراس'!AF$3:AH$42,$C117)","v":0},0,0]
[111,{"$f":"'توزيع الحراس'!B113","v":"محمد1 علي111"},{"$f":"'توزيع الحراس'!A113","v":111},{"$f":"COUNTIF('توزيع الحراس'!D$3:F$42,$C118)","v":0},{"$f":"COUNTIF('توزيع الحراس'!G$3:I$42,$C118)","v":0},{"$f":"COUNTIF('توزيع الحراس'!K$3:M$42,$C118)","v":0},{"$f":"COUNTIF('توزيع الحراس'!N$3:P$42,$C118)","v":0},{"$f":"COUNTIF('توزيع الحراس'!Q$3:S$42,$C118)","v":0},{"$f":"COUNTIF('توزيع الحراس'!T$3:V$42,$C118)","v":0},{"$f":"COUNTIF('توزيع الحراس'!W$3:Y$42,$C118)","v":0},{"$f":"COUNTIF('توزيع الحراس'!Z$3:AB$42,$C118)","v":0},{"$f":"COUNTIF('توزيع الحراس'!AC$3:AE$42,$C118)","v":0},{"$f":"COUNTIF('توزيع الحراس'!AF$3:AH$42,$C118)","v":0},0,0]
[112,{"$f":"'توزيع الحراس'!B114","v":"محمد1 علي112"},{"$f":"'توزيع الحراس'!A114","v":112},{"$f":"COUNTIF('توزيع الحراس'!D$3:F$42,$C119)","v":0},{"$f":"COUNTIF('توزيع الحراس'!G$3:I$42,$C119)","v":0},{"$f":"COUNTIF('توزيع الحراس'!K$3:M$42,$C119)","v":0},{"$f":"COUNTIF('توزيع الحراس'!N$3:P$42,$C119)","v":0},{"$f":"COUNTIF('توزيع الحراس'!Q$3:S$42,$C119)","v":0},{"$f":"COUNTIF('توزيع الحراس'!T$3:V$42,$C119)","v":0},{"$f":"COUNTIF('توزيع الحراس'!W$3:Y$42,$C119)","v":0},{"$f":"COUNTIF('توزيع الحراس'!Z$3:AB$42,$C119)","v":0},{"$f":"COUNTIF('توزيع الحراس'!AC$3:AE$42,$C119)","v":0},{"$f":"COUNTIF('توزيع الحراس'!AF$3:AH$42,$C119)","v":0},0,0]
[113,{"$f":"'توزيع الحراس'!B115","v":"محمد1 علي113"},{"$f":"'توزيع الحراس'!A115","v":113},{"$f":"COUNTIF('توزيع الحراس'!D$3:F$42,$C120)","v":0},{"$f":"COUNTIF('توزيع الحراس'!G$3:I$42,$C120)","v":0},{"$f":"COUNTIF('توزيع الحراس'!K$3:M$42,$C120)","v":0},{"$f":"COUNTIF('توزيع الحراس'!N$3:P$42,$C120)","v":0},{"$f":"COUNTIF('توزيع الحراس'!Q$3:S$42,$C120)","v":0},{"$f":"COUNTIF('توزيع الحراس'!T$3:V$42,$C120)","v":0},{"$f":"COUNTIF('توزيع الحراس'!W$3:Y$42,$C120)","v":0},{"$f":"COUNTIF('توزيع الحراس'!Z$3:AB$42,$C120)","v":0},{"$f":"COUNTIF('توزيع الحراس'!AC$3:AE$42,$C120)","v":0},{"$f":"COUNTIF('توزيع الحراس'!AF$3:AH$42,$C120)","v":0},0,0]
[114,{"$f":"'توزيع الحراس'!B116","v":"محمد1 علي114"},{"$f":"'توزيع الحراس'!A116","v":114},{"$f":"COUNTIF('توزيع الحراس'!D$3:F$42,$C121)","v":0},{"$f":"COUNTIF('توزيع الحراس'!G$3:I$42,$C121)","v":0},{"$f":"COUNTIF('توزيع الحراس'!K$3:M$42,$C121)","v":0},{"$f":"COUNTIF('توزيع الحراس'!N$3:P$42,$C121)","v":0},{"$f":"COUNTIF('توزيع الحراس'!Q$3:S$42,$C121)","v":0},{"$f":"COUNTIF('توزيع الحراس'!T$3:V$42,$C121)","v":0},{"$f":"COUNTIF('توزيع الحراس'!W$3:Y$42,$C121)","v":0},{"$f":"COUNTIF('توزيع الحراس'!Z$3:AB$42,$C121)","v":0},{"$f":"COUNTIF('توزيع الحراس'!AC$3:AE$42,$C121)","v":0},{"$f":"COUNTIF('توزيع الحراس'!AF$3:AH$42,$C121)","v":0},0,0]
[115,{"$f":"'توزيع الحراس'!B117","v":"محمد1 علي115"},{"$f":"'توزيع الحراس'!A117","v":115},{"$f":"COUNTIF('توزيع الحراس'!D$3:F$42,$C122)","v":0},{"$f":"COUNTIF('توزيع الحراس'!G$3:I$42,$C122)","v":0},{"$f":"COUNTIF('توزيع الحراس'!K$3:M$42,$C122)","v":0},{"$f":"COUNTIF('توزيع الحراس'!N$3:P$42,$C122)","v":0},{"$f":"COUNTIF('توزيع الحراس'!Q$3:S$42,$C122)","v":0},{"$f":"COUNTIF('توزيع الحراس'!T$3:V$42,$C122)","v":0},{"$f":"COUNTIF('توزيع الحراس'!W$3:Y$42,$C122)","v":0},{"$f":"COUNTIF('توزيع الحراس'!Z$3:AB$42,$C122)","v":0},{"$f":"COUNTIF('توزيع الحراس'!AC$3:AE$42,$C122)","v":0},{"$f":"COUNTIF('توزيع الحراس'!AF$3:AH$42,$C122)","v":0},0,0]
[116,{"$f":"'توزيع الحراس'!B118","v":"محمد1 علي116"},{"$f":"'توزيع الحراس'!A118","v":116},{"$f":"COUNTIF('توزيع الحراس'!D$3:F$42,$C123)","v":0},{"$f":"COUNTIF('توزيع الحراس'!G$3:I$42,$C123)","v":0},{"$f":"COUNTIF('توزيع الحراس'!K$3:M$42,$C123)","v":0},{"$f":"COUNTIF('توزيع الحراس'!N$3:P$42,$C123)","v":0},{"$f":"COUNTIF('توزيع الحراس'!Q$3:S$42,$C123)","v":0},{"$f":"COUNTIF('توزيع الحراس'!T$3:V$42,$C123)","v":0},{"$f":"COUNTIF('توزيع الحراس'!W$3:Y$42,$C123)","v":0},{"$f":"COUNTIF('توزيع الحراس'!Z$3:AB$42,$C123)","v":0},{"$f":"COUNTIF('توزيع الحراس'!AC$3:AE$42,$C123)","v":0},{"$f":"COUNTIF('توزيع الحراس'!AF$3:AH$42,$C123)","v":0},0,0]
[117,{"$f":"'توزيع الحراس'!B119","v":"محمد1 علي117"},{"$f":"'توزيع الحراس'!A119","v":117},{"$f":"COUNTIF('توزيع الحراس'!D$3:F$42,$C124)","v":0},{"$f":"COUNTIF('توزيع الحراس'!G$3:I$42,$C124)","v":0},{"$f":"COUNTIF('توزيع الحراس'!K$3:M$42,$C124)","v":0},{"$f":"COUNTIF('توزيع الحراس'!N$3:P$42,$C124)","v":0},{"$f":"COUNTIF('توزيع الحراس'!Q$3:S$42,$C124)","v":0},{"$f":"COUNTIF('توزيع الحراس'!T$3:V$42,$C124)","v":0},{"$f":"COUNTIF('توزيع الحراس'!W$3:Y$42,$C124)","v":0},{"$f":"COUNTIF('توزيع الحراس'!Z$3:AB$42,$C124)","v":0},{"$f":"COUNTIF('توزيع الحراس'!AC$3:AE$42,$C124)","v":0},{"$f":"COUNTIF('توزيع الحراس'!AF$3:AH$42,$C124)","v":0},0,0]
[118,{"$f":"'توزيع الحراس'!B120","v":"محمد1 علي118"},{"$f":"'توزيع الحراس'!A120","v":118},{"$f":"COUNTIF('توزيع الحراس'!D$3:F$42,$C125)","v":0},{"$f":"COUNTIF('توزيع الحراس'!G$3:I$42,$C125)","v":0},{"$f":"COUNTIF('توزيع الحراس'!K$3:M$42,$C125)","v":0},{"$f":"COUNTIF('توزيع الحراس'!N$3:P$42,$C125)","v":0},{"$f":"COUNTIF('توزيع الحراس'!Q$3:S$42,$C125)","v":0},{"$f":"COUNTIF('توزيع الحراس'!T$3:V$42,$C125)","v":0},{"$f":"COUNTIF('توزيع الحراس'!W$3:Y$42,$C125)","v":0},{"$f":"COUNTIF('توزيع الحراس'!Z$3:AB$42,$C125)","v":0},{"$f":"COUNTIF('توزيع الحراس'!AC$3:AE$42,$C125)","v":0},{"$f":"COUNTIF('توزيع الحراس'!AF$3:AH$42,$C125)","v":0},0,0]
[119,{"$f":"'توزيع الحراس'!B121","v":"محمد1 علي119"},{"$f":"'توزيع الحراس'!A121","v":119},{"$f":"COUNTIF('توزيع الحراس'!D$3:F$42,$C126)","v":0},{"$f":"COUNTIF('توزيع الحراس'!G$3:I$42,$C126)","v":0},{"$f":"COUNTIF('توزيع الحراس'!K$3:M$42,$C126)","v":0},{"$f":"COUNTIF('توزيع الحراس'!N$3:P$42,$C126)","v":0},{"$f":"COUNTIF('توزيع الحراس'!Q$3:S$42,$C126)","v":0},{"$f":"COUNTIF('توزيع الحراس'!T$3:V$42,$C126)","v":0},{"$f":"COUNTIF('توزيع الحراس'!W$3:Y$42,$C126)","v":0},{"$f":"COUNTIF('توزيع الحراس'!Z$3:AB$42,$C126)","v":0},{"$f":"COUNTIF('توزيع الحراس'!AC$3:AE$42,$C126)","v":0},{"$f":"COUNTIF('توزيع الحراس'!AF$3:AH$42,$C126)","v":0},0,0]
[120,{"$f":"'توزيع الحراس'!B122","v":"محمد1 علي120"},{"$f":"'توزيع الحراس'!A122","v":120},{"$f":"COUNTIF('توزيع الحراس'!D$3:F$42,$C127)","v":0},{"$f":"COUNTIF('توزيع الحراس'!G$3:I$42,$C127)","v":0},{"$f":"COUNTIF('توزيع الحراس'!K$3:M$42,$C127)","v":0},{"$f":"COUNTIF('توزيع الحراس'!N$3:P$42,$C127)","v":0},{"$f":"COUNTIF('توزيع الحراس'!Q$3:S$42,$C127)","v":0},{"$f":"COUNTIF('توزيع الحراس'!T$3:V$42,$C127)","v":0},{"$f":"COUNTIF('توزيع الحراس'!W$3:Y$42,$C127)","v":0},{"$f":"COUNTIF('توزيع الحراس'!Z$3:AB$42,$C127)","v":0},{"$f":"COUNTIF('توزيع الحراس'!AC$3:AE$42,$C127)","v":0},{"$f":"COUNTIF('توزيع الحراس'!AF$3:AH$42,$C127)","v":0},0,0]
[121,{"$f":"'توزيع الحراس'!B123","v":"محمد1 علي121"},{"$f":"'توزيع الحراس'!A123","v":121},{"$f":"COUNTIF('توزيع الحراس'!D$3:F$42,$C128)","v":0},{"$f":"COUNTIF('توزيع الحراس'!G$3:I$42,$C128)","v":0},{"$f":"COUNTIF('توزيع الحراس'!K$3:M$42,$C128)","v":0},{"$f":"COUNTIF('توزيع الحراس'!N$3:P$42,$C128)","v":0},{"$f":"COUNTIF('توزيع الحراس'!Q$3:S$42,$C128)","v":0},{"$f":"COUNTIF('توزيع الحراس'!T$3:V$42,$C128)","v":0},{"$f":"COUNTIF('توزيع الحراس'!W$3:Y$42,$C128)","v":0},{"$f":"COUNTIF('توزيع الحراس'!Z$3:AB$42,$C128)","v":0},{"$f":"COUNTIF('توزيع الحراس'!AC$3:AE$42,$C128)","v":0},{"$f":"COUNTIF('توزيع الحراس'!AF$3:AH$42,$C128)","v":0},0,0]
[122,{"$f":"'توزيع الحراس'!B124","v":"محمد1 علي122"},{"$f":"'توزيع الحراس'!A124","v":122},{"$f":"COUNTIF('توزيع الحراس'!D$3:F$42,$C129)","v":0},{"$f":"COUNTIF('توزيع الحراس'!G$3:I$42,$C129)","v":0},{"$f":"COUNTIF('توزيع الحراس'!K$3:M$42,$C129)","v":0},{"$f":"COUNTIF('توزيع الحراس'!N$3:P$42,$C129)","v":0},{"$f":"COUNTIF('توزيع الحراس'!Q$3:S$42,$C129)","v":0},{"$f":"COUNTIF('توزيع الحراس'!T$3:V$42,$C129)","v":0},{"$f":"COUNTIF('توزيع الحراس'!W$3:Y$42,$C129)","v":0},{"$f":"COUNTIF('توزيع الحراس'!Z$3:AB$42,$C129)","v":0},{"$f":"COUNTIF('توزيع الحراس'!AC$3:AE$42,$C129)","v":0},{"$f":"COUNTIF('توزيع الحراس'!AF$3:AH$42,$C129)","v":0},0,0]
[123,{"$f":"'توزيع الحراس'!B125","v":"محمد1 علي123"},{"$f":"'توزيع الحراس'!A125","v":123},{"$f":"COUNTIF('توزيع الحراس'!D$3:F$42,$C130)","v":0},{"$f":"COUNTIF('توزيع الحراس'!G$3:I$42,$C130)","v":0},{"$f":"COUNTIF('توزيع الحراس'!K$3:M$42,$C130)","v":0},{"$f":"COUNTIF('توزيع الحراس'!N$3:P$42,$C130)","v":0},{"$f":"COUNTIF('توزيع الحراس'!Q$3:S$42,$C130)","v":0},{"$f":"COUNTIF('توزيع الحراس'!T$3:V$42,$C130)","v":0},{"$f":"COUNTIF('توزيع الحراس'!W$3:Y$42,$C130)","v":0},{"$f":"COUNTIF('توزيع الحراس'!Z$3:AB$42,$C130)","v":0},{"$f":"COUNTIF('توزيع الحراس'!AC$3:AE$42,$C130)","v":0},{"$f":"COUNTIF('توزيع الحراس'!AF$3:AH$42,$C130)","v":0},0,0]
[124,{"$f":"'توزيع الحراس'!B126","v":"محمد1 علي124"},{"$f":"'توزيع الحراس'!A126","v":124},{"$f":"COUNTIF('توزيع الحراس'!D$3:F$42,$C131)","v":0},{"$f":"COUNTIF('توزيع الحراس'!G$3:I$42,$C131)","v":0},{"$f":"COUNTIF('توزيع الحراس'!K$3:M$42,$C131)","v":0},{"$f":"COUNTIF('توزيع الحراس'!N$3:P$42,$C131)","v":0},{"$f":"COUNTIF('توزيع الحراس'!Q$3:S$42,$C131)","v":0},{"$f":"COUNTIF('توزيع الحراس'!T$3:V$42,$C131)","v":0},{"$f":"COUNTIF('توزيع الحراس'!W$3:Y$42,$C131)","v":0},{"$f":"COUNTIF('توزيع الحراس'!Z$3:AB$42,$C131)","v":0},{"$f":"COUNTIF('توزيع الحراس'!AC$3:AE$42,$C131)","v":0},{"$f":"COUNTIF('توزيع الحراس'!AF$3:AH$42,$C131)","v":0},0,0]
[125,{"$f":"'توزيع الحراس'!B127","v":"محمد1 علي125"},{"$f":"'توزيع الحراس'!A127","v":125},{"$f":"COUNTIF('توزيع الحراس'!D$3:F$42,$C132)","v":0},{"$f":"COUNTIF('توزيع الحراس'!G$3:I$42,$C132)","v":0},{"$f":"COUNTIF('توزيع الحراس'!K$3:M$42,$C132)","v":0},{"$f":"COUNTIF('توزيع الحراس'!N$3:P$42,$C132)","v":0},{"$f":"COUNTIF('توزيع الحراس'!Q$3:S$42,$C132)","v":0},{"$f":"COUNTIF('توزيع الحراس'!T$3:V$42,$C132)","v":0},{"$f":"COUNTIF('توزيع الحراس'!W$3:Y$42,$C132)","v":0},{"$f":"COUNTIF('توزيع الحراس'!Z$3:AB$42,$C132)","v":0},{"$f":"COUNTIF('توزيع الحراس'!AC$3:AE$42,$C132)","v":0},{"$f":"COUNTIF('توزيع الحراس'!AF$3:AH$42,$C132)","v":0},0,0]
[126,{"$f":"'توزيع الحراس'!B128","v":"محمد1 علي126"},{"$f":"'توزيع الحراس'!A128","v":126},{"$f":"COUNTIF('توزيع الحراس'!D$3:F$42,$C133)","v":0},{"$f":"COUNTIF('توزيع الحراس'!G$3:I$42,$C133)","v":0},{"$f":"COUNTIF('توزيع الحراس'!K$3:M$42,$C133)","v":0},{"$f":"COUNTIF('توزيع الحراس'!N$3:P$42,$C133)","v":0},{"$f":"COUNTIF('توزيع الحراس'!Q$3:S$42,$C133)","v":0},{"$f":"COUNTIF('توزيع الحراس'!T$3:V$42,$C133)","v":0},{"$f":"COUNTIF('توزيع الحراس'!W$3:Y$42,$C133)","v":0},{"$f":"COUNTIF('توزيع الحراس'!Z$3:AB$42,$C133)","v":0},{"$f":"COUNTIF('توزيع الحراس'!AC$3:AE$42,$C133)","v":0},{"$f":"COUNTIF('توزيع الحراس'!AF$3:AH$42,$C133)","v":0},0,0]
[127,{"$f":"'توزيع الحراس'!B129","v":"محمد1 علي127"},{"$f":"'توزيع الحراس'!A129","v":127},{"$f":"COUNTIF('توزيع الحراس'!D$3:F$42,$C134)","v":0},{"$f":"COUNTIF('توزيع الحراس'!G$3:I$42,$C134)","v":0},{"$f":"COUNTIF('توزيع الحراس'!K$3:M$42,$C134)","v":0},{"$f":"COUNTIF('توزيع الحراس'!N$3:P$42,$C134)","v":0},{"$f":"COUNTIF('توزيع الحراس'!Q$3:S$42,$C134)","v":0},{"$f":"COUNTIF('توزيع الحراس'!T$3:V$42,$C134)","v":0},{"$f":"COUNTIF('توزيع الحراس'!W$3:Y$42,$C134)","v":0},{"$f":"COUNTIF('توزيع الحراس'!Z$3:AB$42,$C134)","v":0},{"$f":"COUNTIF('توزيع الحراس'!AC$3:AE$42,$C134)","v":0},{"$f":"COUNTIF('توزيع الحراس'!AF$3:AH$42,$C134)","v":0},0,0]
[128,{"$f":"'توزيع الحراس'!B130","v":"محمد1 علي128"},{"$f":"'توزيع الحراس'!A130","v":128},{"$f":"COUNTIF('توزيع الحراس'!D$3:F$42,$C135)","v":0},{"$f":"COUNTIF('توزيع الحراس'!G$3:I$42,$C135)","v":0},{"$f":"COUNTIF('توزيع الحراس'!K$3:M$42,$C135)","v":0},{"$f":"COUNTIF('توزيع الحراس'!N$3:P$42,$C135)","v":0},{"$f":"COUNTIF('توزيع الحراس'!Q$3:S$42,$C135)","v":0},{"$f":"COUNTIF('توزيع الحراس'!T$3:V$42,$C135)","v":0},{"$f":"COUNTIF('توزيع الحراس'!W$3:Y$42,$C135)","v":0},{"$f":"COUNTIF('توزيع الحراس'!Z$3:AB$42,$C135)","v":0},{"$f":"COUNTIF('توزيع الحراس'!AC$3:AE$42,$C135)","v":0},{"$f":"COUNTIF('توزيع الحراس'!AF$3:AH$42,$C135)","v":0},0,0]
[129,{"$f":"'توزيع الحراس'!B131","v":"محمد1 علي129"},{"$f":"'توزيع الحراس'!A131","v":129},{"$f":"COUNTIF('توزيع الحراس'!D$3:F$42,$C136)","v":0},{"$f":"COUNTIF('توزيع الحراس'!G$3:I$42,$C136)","v":0},{"$f":"COUNTIF('توزيع الحراس'!K$3:M$42,$C136)","v":0},{"$f":"COUNTIF('توزيع الحراس'!N$3:P$42,$C136)","v":0},{"$f":"COUNTIF('توزيع الحراس'!Q$3:S$42,$C136)","v":0},{"$f":"COUNTIF('توزيع الحراس'!T$3:V$42,$C136)","v":0},{"$f":"COUNTIF('توزيع الحراس'!W$3:Y$42,$C136)","v":0},{"$f":"COUNTIF('توزيع الحراس'!Z$3:AB$42,$C136)","v":0},{"$f":"COUNTIF('توزيع الحراس'!AC$3:AE$42,$C136)","v":0},{"$f":"COUNTIF('توزيع الحراس'!AF$3:AH$42,$C136)","v":0},0,{"$f":"SUM(D136:M136)","v":0}]
[130,{"$f":"'توزيع الحراس'!B132","v":"محمد1 علي130"},{"$f":"'توزيع الحراس'!A132","v":130},{"$f":"COUNTIF('توزيع الحراس'!D$3:F$42,$C137)","v":0},{"$f":"COUNTIF('توزيع الحراس'!G$3:I$42,$C137)","v":0},{"$f":"COUNTIF('توزيع الحراس'!K$3:M$42,$C137)","v":0},{"$f":"COUNTIF('توزيع الحراس'!N$3:P$42,$C137)","v":0},{"$f":"COUNTIF('توزيع الحراس'!Q$3:S$42,$C137)","v":0},{"$f":"COUNTIF('توزيع الحراس'!T$3:V$42,$C137)","v":0},{"$f":"COUNTIF('توزيع الحراس'!W$3:Y$42,$C137)","v":0},{"$f":"COUNTIF('توزيع الحراس'!Z$3:AB$42,$C137)","v":0},{"$f":"COUNTIF('توزيع الحراس'!AC$3:AE$42,$C137)","v":0},{"$f":"COUNTIF('توزيع الحراس'!AF$3:AH$42,$C137)","v":0},0,0]
[131,{"$f":"'توزيع الحراس'!B133","v":"محمد1 علي131"},{"$f":"'توزيع الحراس'!A133","v":131},{"$f":"COUNTIF('توزيع الحراس'!D$3:F$42,$C138)","v":0},{"$f":"COUNTIF('توزيع الحراس'!G$3:I$42,$C138)","v":0},{"$f":"COUNTIF('توزيع الحراس'!K$3:M$42,$C138)","v":0},{"$f":"COUNTIF('توزيع الحراس'!N$3:P$42,$C138)","v":0},{"$f":"COUNTIF('توزيع الحراس'!Q$3:S$42,$C138)","v":0},{"$f":"COUNTIF('توزيع الحراس'!T$3:V$42,$C138)","v":0},{"$f":"COUNTIF('توزيع الحراس'!W$3:Y$42,$C138)","v":0},{"$f":"COUNTIF('توزيع الحراس'!Z$3:AB$42,$C138)","v":0},{"$f":"COUNTIF('توزيع الحراس'!AC$3:AE$42,$C138)","v":0},{"$f":"COUNTIF('توزيع الحراس'!AF$3:AH$42,$C138)","v":0},0,0]
[132,{"$f":"'توزيع الحراس'!B134","v":"محمد1 علي132"},{"$f":"'توزيع الحراس'!A134","v":132},{"$f":"COUNTIF('توزيع الحراس'!D$3:F$42,$C139)","v":0},{"$f":"COUNTIF('توزيع الحراس'!G$3:I$42,$C139)","v":0},{"$f":"COUNTIF('توزيع الحراس'!K$3:M$42,$C139)","v":0},{"$f":"COUNTIF('توزيع الحراس'!N$3:P$42,$C139)","v":0},{"$f":"COUNTIF('توزيع الحراس'!Q$3:S$42,$C139)","v":0},{"$f":"COUNTIF('توزيع الحراس'!T$3:V$42,$C139)","v":0},{"$f":"COUNTIF('توزيع الحراس'!W$3:Y$42,$C139)","v":0},{"$f":"COUNTIF('توزيع الحراس'!Z$3:AB$42,$C139)","v":0},{"$f":"COUNTIF('توزيع الحراس'!AC$3:AE$42,$C139)","v":0},{"$f":"COUNTIF('توزيع الحراس'!AF$3:AH$42,$C139)","v":0},0,0]
[133,{"$f":"'توزيع الحراس'!B135","v":"محمد1 علي133"},{"$f":"'توزيع الحراس'!A135","v":133},{"$f":"COUNTIF('توزيع الحراس'!D$3:F$42,$C140)","v":0},{"$f":"COUNTIF('توزيع الحراس'!G$3:I$42,$C140)","v":0},{"$f":"COUNTIF('توزيع الحراس'!K$3:M$42,$C140)","v":0},{"$f":"COUNTIF('توزيع الحراس'!N$3:P$42,$C140)","v":0},{"$f":"COUNTIF('توزيع الحراس'!Q$3:S$42,$C140)","v":0},{"$f":"COUNTIF('توزيع الحراس'!T$3:V$42,$C140)","v":0},{"$f":"COUNTIF('توزيع الحراس'!W$3:Y$42,$C140)","v":0},{"$f":"COUNTIF('توزيع الحراس'!Z$3:AB$42,$C140)","v":0},{"$f":"COUNTIF('توزيع الحراس'!AC$3:AE$42,$C140)","v":0},{"$f":"COUNTIF('توزيع الحراس'!AF$3:AH$42,$C140)","v":0},0,0]
[134,{"$f":"'توزيع الحراس'!B136","v":"محمد1 علي134"},{"$f":"'توزيع الحراس'!A136","v":134},{"$f":"COUNTIF('توزيع الحراس'!D$3:F$42,$C141)","v":0},{"$f":"COUNTIF('توزيع الحراس'!G$3:I$42,$C141)","v":0},{"$f":"COUNTIF('توزيع الحراس'!K$3:M$42,$C141)","v":0},{"$f":"COUNTIF('توزيع الحراس'!N$3:P$42,$C141)","v":0},{"$f":"COUNTIF('توزيع الحراس'!Q$3:S$42,$C141)","v":0},{"$f":"COUNTIF('توزيع الحراس'!T$3:V$42,$C141)","v":0},{"$f":"COUNTIF('توزيع الحراس'!W$3:Y$42,$C141)","v":0},{"$f":"COUNTIF('توزيع الحراس'!Z$3:AB$42,$C141)","v":0},{"$f":"COUNTIF('توزيع الحراس'!AC$3:AE$42,$C141)","v":0},{"$f":"COUNTIF('توزيع الحراس'!AF$3:AH$42,$C141)","v":0},0,0]
[135,{"$f":"'توزيع الحراس'!B137","v":"محمد1 علي135"},{"$f":"'توزيع الحراس'!A137","v":135},{"$f":"COUNTIF('توزيع الحراس'!D$3:F$42,$C142)","v":0},{"$f":"COUNTIF('توزيع الحراس'!G$3:I$42,$C142)","v":0},{"$f":"COUNTIF('توزيع الحراس'!K$3:M$42,$C142)","v":0},{"$f":"COUNTIF('توزيع الحراس'!N$3:P$42,$C142)","v":0},{"$f":"COUNTIF('توزيع الحراس'!Q$3:S$42,$C142)","v":0},{"$f":"COUNTIF('توزيع الحراس'!T$3:V$42,$C142)","v":0},{"$f":"COUNTIF('توزيع الحراس'!W$3:Y$42,$C142)","v":0},{"$f":"COUNTIF('توزيع الحراس'!Z$3:AB$42,$C142)","v":0},{"$f":"COUNTIF('توزيع الحراس'!AC$3:AE$42,$C142)","v":0},{"$f":"COUNTIF('توزيع الحراس'!AF$3:AH$42,$C142)","v":0},0,0]
[136,{"$f":"'توزيع الحراس'!B138","v":"محمد1 علي136"},{"$f":"'توزيع الحراس'!A138","v":136},{"$f":"COUNTIF('توزيع الحراس'!D$3:F$42,$C143)","v":0},{"$f":"COUNTIF('توزيع الحراس'!G$3:I$42,$C143)","v":0},{"$f":"COUNTIF('توزيع الحراس'!K$3:M$42,$C143)","v":0},{"$f":"COUNTIF('توزيع الحراس'!N$3:P$42,$C143)","v":0},{"$f":"COUNTIF('توزيع الحراس'!Q$3:S$42,$C143)","v":0},{"$f":"COUNTIF('توزيع الحراس'!T$3:V$42,$C143)","v":0},{"$f":"COUNTIF('توزيع الحراس'!W$3:Y$42,$C143)","v":0},{"$f":"COUNTIF('توزيع الحراس'!Z$3:AB$42,$C143)","v":0},{"$f":"COUNTIF('توزيع الحراس'!AC$3:AE$42,$C143)","v":0},{"$f":"COUNTIF('توزيع الحراس'!AF$3:AH$42,$C143)","v":0},0,0]
[137,{"$f":"'توزيع الحراس'!B139","v":"محمد1 علي137"},{"$f":"'توزيع الحراس'!A139","v":137},{"$f":"COUNTIF('توزيع الحراس'!D$3:F$42,$C144)","v":0},{"$f":"COUNTIF('توزيع الحراس'!G$3:I$42,$C144)","v":0},{"$f":"COUNTIF('توزيع الحراس'!K$3:M$42,$C144)","v":0},{"$f":"COUNTIF('توزيع الحراس'!N$3:P$42,$C144)","v":0},{"$f":"COUNTIF('توزيع الحراس'!Q$3:S$42,$C144)","v":0},{"$f":"COUNTIF('توزيع الحراس'!T$3:V$42,$C144)","v":0},{"$f":"COUNTIF('توزيع الحراس'!W$3:Y$42,$C144)","v":0},{"$f":"COUNTIF('توزيع الحراس'!Z$3:AB$42,$C144)","v":0},{"$f":"COUNTIF('توزيع الحراس'!AC$3:AE$42,$C144)","v":0},{"$f":"COUNTIF('توزيع الحراس'!AF$3:AH$42,$C144)","v":0},0,0]
[138,{"$f":"'توزيع الحراس'!B140","v":"محمد1 علي138"},{"$f":"'توزيع الحراس'!A140","v":138},{"$f":"COUNTIF('توزيع الحراس'!D$3:F$42,$C145)","v":0},{"$f":"COUNTIF('توزيع الحراس'!G$3:I$42,$C145)","v":0},{"$f":"COUNTIF('توزيع الحراس'!K$3:M$42,$C145)","v":0},{"$f":"COUNTIF('توزيع الحراس'!N$3:P$42,$C145)","v":0},{"$f":"COUNTIF('توزيع الحراس'!Q$3:S$42,$C145)","v":0},{"$f":"COUNTIF('توزيع الحراس'!T$3:V$42,$C145)","v":0},{"$f":"COUNTIF('توزيع الحراس'!W$3:Y$42,$C145)","v":0},{"$f":"COUNTIF('توزيع الحراس'!Z$3:AB$42,$C145)","v":0},{"$f":"COUNTIF('توزيع الحراس'!AC$3:AE$42,$C145)","v":0},{"$f":"COUNTIF('توزيع الحراس'!AF$3:AH$42,$C145)","v":0},0,0]
[139,{"$f":"'توزيع الحراس'!B141","v":"محمد1 علي139"},{"$f":"'توزيع الحراس'!A141","v":139},{"$f":"COUNTIF('توزيع الحراس'!D$3:F$42,$C146)","v":0},{"$f":"COUNTIF('توزيع الحراس'!G$3:I$42,$C146)","v":0},{"$f":"COUNTIF('توزيع الحراس'!K$3:M$42,$C146)","v":0},{"$f":"COUNTIF('توزيع الحراس'!N$3:P$42,$C146)","v":0},{"$f":"COUNTIF('توزيع الحراس'!Q$3:S$42,$C146)","v":0},{"$f":"COUNTIF('توزيع الحراس'!T$3:V$42,$C146)","v":0},{"$f":"COUNTIF('توزيع الحراس'!W$3:Y$42,$C146)","v":0},{"$f":"COUNTIF('توزيع الحراس'!Z$3:AB$42,$C146)","v":0},{"$f":"COUNTIF('توزيع الحراس'!AC$3:AE$42,$C146)","v":0},{"$f":"COUNTIF('توزيع الحراس'!AF$3:AH$42,$C146)","v":0},0,0]
[140,{"$f":"'توزيع الحراس'!B142","v":"محمد1 علي140"},{"$f":"'توزيع الحراس'!A142","v":140},{"$f":"COUNTIF('توزيع الحراس'!D$3:F$42,$C147)","v":0},{"$f":"COUNTIF('توزيع الحراس'!G$3:I$42,$C147)","v":0},{"$f":"COUNTIF('توزيع الحراس'!K$3:M$42,$C147)","v":0},{"$f":"COUNTIF('توزيع الحراس'!N$3:P$42,$C147)","v":0},{"$f":"COUNTIF('توزيع الحراس'!Q$3:S$42,$C147)","v":0},{"$f":"COUNTIF('توزيع الحراس'!T$3:V$42,$C147)","v":0},{"$f":"COUNTIF('توزيع الحراس'!W$3:Y$42,$C147)","v":0},{"$f":"COUNTIF('توزيع الحراس'!Z$3:AB$42,$C147)","v":0},{"$f":"COUNTIF('توزيع الحراس'!AC$3:AE$42,$C147)","v":0},{"$f":"COUNTIF('توزيع الحراس'!AF$3:AH$42,$C147)","v":0},0,0]
[141,{"$f":"'توزيع الحراس'!B143","v":"محمد1 علي141"},{"$f":"'توزيع الحراس'!A143","v":141},{"$f":"COUNTIF('توزيع الحراس'!D$3:F$42,$C148)","v":0},{"$f":"COUNTIF('توزيع الحراس'!G$3:I$42,$C148)","v":0},{"$f":"COUNTIF('توزيع الحراس'!K$3:M$42,$C148)","v":0},{"$f":"COUNTIF('توزيع الحراس'!N$3:P$42,$C148)","v":0},{"$f":"COUNTIF('توزيع الحراس'!Q$3:S$42,$C148)","v":0},{"$f":"COUNTIF('توزيع الحراس'!T$3:V$42,$C148)","v":0},{"$f":"COUNTIF('توزيع الحراس'!W$3:Y$42,$C148)","v":0},{"$f":"COUNTIF('توزيع الحراس'!Z$3:AB$42,$C148)","v":0},{"$f":"COUNTIF('توزيع الحراس'!AC$3:AE$42,$C148)","v":0},{"$f":"COUNTIF('توزيع الحراس'!AF$3:AH$42,$C148)","v":0},0,0]
[142,{"$f":"'توزيع الحراس'!B144","v":"محمد1 علي142"},{"$f":"'توزيع الحراس'!A144","v":142},{"$f":"COUNTIF('توزيع الحراس'!D$3:F$42,$C149)","v":0},{"$f":"COUNTIF('توزيع الحراس'!G$3:I$42,$C149)","v":0},{"$f":"COUNTIF('توزيع الحراس'!K$3:M$42,$C149)","v":0},{"$f":"COUNTIF('توزيع الحراس'!N$3:P$42,$C149)","v":0},{"$f":"COUNTIF('توزيع الحراس'!Q$3:S$42,$C149)","v":0},{"$f":"COUNTIF('توزيع الحراس'!T$3:V$42,$C149)","v":0},{"$f":"COUNTIF('توزيع الحراس'!W$3:Y$42,$C149)","v":0},{"$f":"COUNTIF('توزيع الحراس'!Z$3:AB$42,$C149)","v":0},{"$f":"COUNTIF('توزيع الحراس'!AC$3:AE$42,$C149)","v":0},{"$f":"COUNTIF('توزيع الحراس'!AF$3:AH$42,$C149)","v":0},0,0]
["المجمـــــــــــــــــــــــــــــــــــــــــــــــــــــــــــــــــــــــوع",null,null,null,null,null,null,null,null,null,null,null,null,{"$f":"SUM(N8:N149)","v":0},{"$f":"SUM(O8:O149)","v":12}]
[]
[]
[]
[1,"محسن تجاني",5]
[2,"صحراوي محمد",5]
[3,"بالي",5]
[4,"شاوش",5]
[5,"باهي",5]
[6,"ضيات",5]
[7,"حفوظة",5]
[8,"عبيد",5]
[9,"حميداني",5]
[10,"عزوز",5]
[11,"لطرش",5]
[12,"بوصبيع",5]
[13,"عامل1",5]
[14,"عامل2",5]
[15,"عامل3",5]
[16,"عامل4",5]
[17,"عامل5",5]
[18,"عامل6",5]
[19,"عامل7",5]
[20,"عامل8",5]
[21,"عامل9",5]
[22,"عامل10",5]
[23,"عامل11",5]
[24,"عامل12",5]
[null,null,{"$f":"SUM(C154:C177)","v":120}]

{"sheet":"توزيع الحراس","index":3,"n_rows":252,"n_cols":37,"rows_kept":252,"cut":false,"hidden":false,"merged":[[1,25,1,27],[1,3,1,5],[1,6,1,8],[0,3,0,8],[0,10,0,15],[1,10,1,12],[1,13,1,15],[0,16,0,21],[1,16,1,18],[1,19,1,21],[32,2,42,2],[1,28,1,30],[1,31,1,33],[0,28,0,33],[32,3,32,5],[32,6,32,8],[32,10,32,12],[32,13,32,15],[32,16,32,18],[32,19,32,21],[32,22,32,24],[32,25,32,27],[32,28,32,30],[32,31,32,33],[0,22,0,27],[1,22,1,24]]}
[null,null,"أيام الامتحان             ","اليوم الأول",null,null,null,null,null,null,"اليوم الثاني",null,null,null,null,null,"اليوم الثالث",null,null,null,null,null,"اليوم الرابع",null,null,null,null,null,"اليوم الخامس"]
["الرقم"," لقب وإسم الحارس","القاعات","صباحا",null,null,"مساءً",null,null,null,"صباحا",null,null,"مساءً",null,null,"صباحا",null,null,"مساءً",null,null,"صباحا",null,null,"مساءً",null,null,"صباحا",null,null,"مساءً"]
[{"$f":"prof!A2","v":1},{"$f":"prof!C2","v":"محمد1 علي1"},1,10,11,12,1,2,3,null,15,13,20,77,100,101]
[{"$f":"prof!A3","v":2},{"$f":"prof!C3","v":"محمد1 علي2"},2,null,null,null,null,null,null,null,null,null,null,null,null,null,null,null,null,null,null,null,null,null,null,null,null,null,null,null,null,null,null,null,null,null,{"$f":"IF(C2:C32=G2,ROW(),\"\")","v":""}]
[{"$f":"prof!A4","v":3},{"$f":"prof!C4","v":"محمد1 علي3"},3]
[{"$f":"prof!A5","v":4},{"$f":"prof!C5","v":"محمد1 علي4"},4]
[{"$f":"prof!A6","v":5},{"$f":"prof!C6","v":"محمد1 علي5"},5]
[{"$f":"prof!A7","v":6},{"$f":"prof!C7","v":"محمد1 علي6"},6]
[{"$f":"prof!A8","v":7},{"$f":"prof!C8","v":"محمد1 علي7"},7]
[{"$f":"prof!A9","v":8},{"$f":"prof!C9","v":"محمد1 علي8"},8]
[{"$f":"prof!A10","v":9},{"$f":"prof!C10","v":"محمد1 علي9"},9]
[{"$f":"prof!A11","v":10},{"$f":"prof!C11","v":"محمد1 علي10"},10]
[{"$f":"prof!A12","v":11},{"$f":"prof!C12","v":"محمد1 علي11"},11]
[{"$f":"prof!A13","v":12},{"$f":"prof!C13","v":"محمد1 علي12"},12]
[{"$f":"prof!A14","v":13},{"$f":"prof!C14","v":"محمد1 علي13"},13]
[{"$f":"prof!A15","v":14},{"$f":"prof!C15","v":"محمد1 علي14"},14]
[{"$f":"prof!A16","v":15},{"$f":"prof!C16","v":"محمد1 علي15"},15]
[{"$f":"prof!A17","v":16},{"$f":"prof!C17","v":"محمد1 علي16"},16]
[{"$f":"prof!A18","v":17},{"$f":"prof!C18","v":"محمد1 علي17"},17]
[{"$f":"prof!A19","v":18},{"$f":"prof!C19","v":"محمد1 علي18"},18]
[{"$f":"prof!A20","v":19},{"$f":"prof!C20","v":"محمد1 علي19"},19]
[{"$f":"prof!A21","v":20},{"$f":"prof!C21","v":"محمد1 علي20"},20]
[{"$f":"prof!A22","v":21},{"$f":"prof!C22","v":"محمد1 علي21"},21]
[{"$f":"prof!A23","v":22},{"$f":"prof!C23","v":"محمد1 علي22"},22]
[{"$f":"prof!A24","v":23},{"$f":"prof!C24","v":"محمد1 علي23"},23]
[{"$f":"prof!A25","v":24},{"$f":"prof!C25","v":"محمد1 علي24"},24]
[{"$f":"prof!A26","v":25},{"$f":"prof!C26","v":"محمد1 علي25"},25]
[{"$f":"prof!A27","v":26},{"$f":"prof!C27","v":"محمد1 علي26"},26]
[{"$f":"prof!A28","v":27},{"$f":"prof!C28","v":"محمد1 علي27"},27]
[{"$f":"prof!A29","v":28},{"$f":"prof!C29","v":"محمد1 علي28"},28]
[{"$f":"prof!A30","v":29},{"$f":"prof!C30","v":"محمد1 علي29"},29]
[{"$f":"prof!A31","v":30},{"$f":"prof!C31","v":"محمد1 علي30"},30]
[{"$f":"prof!A32","v":31},{"$f":"prof!C32","v":"محمد1 علي31"},"حراس الإحتياط","صباحا",null,null,"مساءا",null,null,null,"صباحا",null,null,"مساءا",null,null,"صباحا",null,null,"مساءا",null,null,"صباحا",null,null,"مساءا",null,null,"صباحا",null,null,"مساءا"]
[{"$f":"prof!A33","v":32},{"$f":"prof!C33","v":"محمد1 علي32"}]
[{"$f":"prof!A34","v":33},{"$f":"prof!C34","v":"محمد1 علي33"}]
[{"$f":"prof!A35","v":34},{"$f":"prof!C35","v":"محمد1 علي34"}]
[{"$f":"prof!A36","v":35},{"$f":"prof!C36","v":"محمد1 علي35"}]
[{"$f":"prof!A37","v":36},{"$f":"prof!C37","v":"محمد1 علي36"}]
[{"$f":"prof!A38","v":37},{"$f":"prof!C38","v":"محمد1 علي37"}]
[{"$f":"prof!A39","v":38},{"$f":"prof!C39","v":"محمد1 علي38"}]
[{"$f":"prof!A40","v":39},{"$f":"prof!C40","v":"محمد1 علي39"}]
[{"$f":"prof!A41","v":40},{"$f":"prof!C41","v":"محمد1 علي40"}]
[{"$f":"prof!A42","v":41},{"$f":"prof!C42","v":"محمد1 علي41"}]
[{"$f":"prof!A43","v":42},{"$f":"prof!C43","v":"محمد1 علي42"}]
[{"$f":"prof!A44","v":43},{"$f":"prof!C44","v":"محمد1 علي43"}]
[{"$f":"prof!A45","v":44},{"$f":"prof!C45","v":"محمد1 علي44"}]
[{"$f":"prof!A46","v":45},{"$f":"prof!C46","v":"محمد1 علي45"}]
[{"$f":"prof!A47","v":46},{"$f":"prof!C47","v":"محمد1 علي46"}]
[{"$f":"prof!A48","v":47},{"$f":"prof!C48","v":"محمد1 علي47"}]
[{"$f":"prof!A49","v":48},{"$f":"prof!C49","v":"محمد1 علي48"}]
[{"$f":"prof!A50","v":49},{"$f":"prof!C50","v":"محمد1 علي49"}]
[{"$f":"prof!A51","v":50},{"$f":"prof!C51","v":"محمد1 علي50"}]
[{"$f":"prof!A52","v":51},{"$f":"prof!C52","v":"محمد1 علي51"}]
[{"$f":"prof!A53","v":52},{"$f":"prof!C53","v":"محمد1 علي52"}]
[{"$f":"prof!A54","v":53},{"$f":"prof!C54","v":"محمد1 علي53"}]
[{"$f":"prof!A55","v":54},{"$f":"prof!C55","v":"محمد1 علي54"}]
[{"$f":"prof!A56","v":55},{"$f":"prof!C56","v":"محمد1 علي55"}]
[{"$f":"prof!A57","v":56},{"$f":"prof!C57","v":"محمد1 علي56"}]
[{"$f":"prof!A58","v":57},{"$f":"prof!C58","v":"محمد1 علي57"}]
[{"$f":"prof!A59","v":58},{"$f":"prof!C59","v":"محمد1 علي58"}]
[{"$f":"prof!A60","v":59},{"$f":"prof!C60","v":"محمد1 علي59"}]
[{"$f":"prof!A61","v":60},{"$f":"prof!C61","v":"محمد1 علي60"}]
[{"$f":"prof!A62","v":61},{"$f":"prof!C62","v":"محمد1 علي61"}]
[{"$f":"prof!A63","v":62},{"$f":"prof!C63","v":"محمد1 علي62"}]
[{"$f":"prof!A64","v":63},{"$f":"prof!C64","v":"محمد1 علي63"}]
[{"$f":"prof!A65","v":64},{"$f":"prof!C65","v":"محمد1 علي64"}]
[{"$f":"prof!A66","v":65},{"$f":"prof!C66","v":"محمد1 علي65"}]
[{"$f":"prof!A67","v":66},{"$f":"prof!C67","v":"محمد1 علي66"}]
[{"$f":"prof!A68","v":67},{"$f":"prof!C68","v":"محمد1 علي67"}]
[{"$f":"prof!A69","v":68},{"$f":"prof!C69","v":"محمد1 علي68"}]
[{"$f":"prof!A70","v":69},{"$f":"prof!C70","v":"محمد1 علي69"}]
[{"$f":"prof!A71","v":70},{"$f":"prof!C71","v":"محمد1 علي70"}]
[{"$f":"prof!A72","v":71},{"$f":"prof!C72","v":"محمد1 علي71"}]
[{"$f":"prof!A73","v":72},{"$f":"prof!C73","v":"محمد1 علي72"}]
[{"$f":"prof!A74","v":73},{"$f":"prof!C74","v":"محمد1 علي73"}]
[{"$f":"prof!A75","v":74},{"$f":"prof!C75","v":"محمد1 علي74"}]
[{"$f":"prof!A76","v":75},{"$f":"prof!C76","v":"محمد1 علي75"}]
[{"$f":"prof!A77","v":76},{"$f":"prof!C77","v":"محمد1 علي76"}]
[{"$f":"prof!A78","v":77},{"$f":"prof!C78","v":"محمد1 علي77"}]
[{"$f":"prof!A79","v":78},{"$f":"prof!C79","v":"محمد1 علي78"}]
[{"$f":"prof!A80","v":79},{"$f":"prof!C80","v":"محمد1 علي79"}]
[{"$f":"prof!A81","v":80},{"$f":"prof!C81","v":"محمد1 علي80"}]
[{"$f":"prof!A82","v":81},{"$f":"prof!C82","v":"محمد1 علي81"}]
[{"$f":"prof!A83","v":82},{"$f":"prof!C83","v":"محمد1 علي82"}]
[{"$f":"prof!A84","v":83},{"$f":"prof!C84","v":"محمد1 علي83"}]
[{"$f":"prof!A85","v":84},{"$f":"prof!C85","v":"محمد1 علي84"}]
[{"$f":"prof!A86","v":85},{"$f":"prof!C86","v":"محمد1 علي85"}]
[{"$f":"prof!A87","v":86},{"$f":"prof!C87","v":"محمد1 علي86"}]
[{"$f":"prof!A88","v":87},{"$f":"prof!C88","v":"محمد1 علي87"}]
[{"$f":"prof!A89","v":88},{"$f":"prof!C89","v":"محمد1 علي88"}]
[{"$f":"prof!A90","v":89},{"$f":"prof!C90","v":"محمد1 علي89"}]
[{"$f":"prof!A91","v":90},{"$f":"prof!C91","v":"محمد1 علي90"}]
[{"$f":"prof!A92","v":91},{"$f":"prof!C92","v":"محمد1 علي91"}]
[{"$f":"prof!A93","v":92},{"$f":"prof!C93","v":"محمد1 علي92"}]
[{"$f":"prof!A94","v":93},{"$f":"prof!C94","v":"محمد1 علي93"}]
[{"$f":"prof!A95","v":94},{"$f":"prof!C95","v":"محمد1 علي94"}]
[{"$f":"prof!A96","v":95},{"$f":"prof!C96","v":"محمد1 علي95"}]
[{"$f":"prof!A97","v":96},{"$f":"prof!C97","v":"محمد1 علي96"}]
[{"$f":"prof!A98","v":97},{"$f":"prof!C98","v":"محمد1 علي97"}]
[{"$f":"prof!A99","v":98},{"$f":"prof!C99","v":"محمد1 علي98"}]
[{"$f":"prof!A100","v":99},{"$f":"prof!C100","v":"محمد1 علي99"}]
[{"$f":"prof!A101","v":100},{"$f":"prof!C101","v":"محمد1 علي100"}]
[{"$f":"prof!A102","v":101},{"$f":"prof!C102","v":"محمد1 علي101"}]
[{"$f":"prof!A103","v":102},{"$f":"prof!C103","v":"محمد1 علي102"}]
[{"$f":"prof!A104","v":103},{"$f":"prof!C104","v":"محمد1 علي103"}]
[{"$f":"prof!A105","v":104},{"$f":"prof!C105","v":"محمد1 علي104"}]
[{"$f":"prof!A106","v":105},{"$f":"prof!C106","v":"محمد1 علي105"}]
[{"$f":"prof!A107","v":106},{"$f":"prof!C107","v":"محمد1 علي106"}]
[{"$f":"prof!A108","v":107},{"$f":"prof!C108","v":"محمد1 علي107"}]
[{"$f":"prof!A109","v":108},{"$f":"prof!C109","v":"محمد1 علي108"}]
[{"$f":"prof!A110","v":109},{"$f":"prof!C110","v":"محمد1 علي109"}]
[{"$f":"prof!A111","v":110},{"$f":"prof!C111","v":"محمد1 علي110"}]
[{"$f":"prof!A112","v":111},{"$f":"prof!C112","v":"محمد1 علي111"}]
[{"$f":"prof!A113","v":112},{"$f":"prof!C113","v":"محمد1 علي112"}]
[{"$f":"prof!A114","v":113},{"$f":"prof!C114","v":"محمد1 علي113"}]
[{"$f":"prof!A115","v":114},{"$f":"prof!C115","v":"محمد1 علي114"}]
[{"$f":"prof!A116","v":115},{"$f":"prof!C116","v":"محمد1 علي115"}]
[{"$f":"prof!A117","v":116},{"$f":"prof!C117","v":"محمد1 علي116"}]
[{"$f":"prof!A118","v":117},{"$f":"prof!C118","v":"محمد1 علي117"}]
[{"$f":"prof!A119","v":118},{"$f":"prof!C119","v":"محمد1 علي118"}]
[{"$f":"prof!A120","v":119},{"$f":"prof!C120","v":"محمد1 علي119"}]
[{"$f":"prof!A121","v":120},{"$f":"prof!C121","v":"محمد1 علي120"}]
[{"$f":"prof!A122","v":121},{"$f":"prof!C122","v":"محمد1 علي121"}]
[{"$f":"prof!A123","v":122},{"$f":"prof!C123","v":"محمد1 علي122"}]
[{"$f":"prof!A124","v":123},{"$f":"prof!C124","v":"محمد1 علي123"}]
[{"$f":"prof!A125","v":124},{"$f":"prof!C125","v":"محمد1 علي124"}]
[{"$f":"prof!A126","v":125},{"$f":"prof!C126","v":"محمد1 علي125"}]
[{"$f":"prof!A127","v":126},{"$f":"prof!C127","v":"محمد1 علي126"}]
[{"$f":"prof!A128","v":127},{"$f":"prof!C128","v":"محمد1 علي127"}]
[{"$f":"prof!A129","v":128},{"$f":"prof!C129","v":"محمد1 علي128"}]
[{"$f":"prof!A130","v":129},{"$f":"prof!C130","v":"محمد1 علي129"}]
[{"$f":"prof!A131","v":130},{"$f":"prof!C131","v":"محمد1 علي130"}]
[{"$f":"prof!A132","v":131},{"$f":"prof!C132","v":"محمد1 علي131"}]
[{"$f":"prof!A133","v":132},{"$f":"prof!C133","v":"محمد1 علي132"}]
[{"$f":"prof!A134","v":133},{"$f":"prof!C134","v":"محمد1 علي133"}]
[{"$f":"prof!A135","v":134},{"$f":"prof!C135","v":"محمد1 علي134"}]
[{"$f":"prof!A136","v":135},{"$f":"prof!C136","v":"محمد1 علي135"}]
[{"$f":"prof!A137","v":136},{"$f":"prof!C137","v":"محمد1 علي136"}]
[{"$f":"prof!A138","v":137},{"$f":"prof!C138","v":"محمد1 علي137"}]
[{"$f":"prof!A139","v":138},{"$f":"prof!C139","v":"محمد1 علي138"}]
[{"$f":"prof!A140","v":139},{"$f":"prof!C140","v":"محمد1 علي139"}]
[{"$f":"prof!A141","v":140},{"$f":"prof!C141","v":"محمد1 علي140"}]
[{"$f":"prof!A142","v":141},{"$f":"prof!C142","v":"محمد1 علي141"}]
[{"$f":"prof!A143","v":142},{"$f":"prof!C143","v":"محمد1 علي142"}]
[{"$f":"prof!A144","v":143},{"$f":"prof!C144","v":"محمد1 علي143"}]
[{"$f":"prof!A145","v":144},{"$f":"prof!C145","v":"محمد1 علي144"}]
[{"$f":"prof!A146","v":145},{"$f":"prof!C146","v":"محمد1 علي145"}]
[{"$f":"prof!A147","v":146},{"$f":"prof!C147","v":"محمد1 علي146"}]
[{"$f":"prof!A148","v":147},{"$f":"prof!C148","v":"محمد1 علي147"}]
[{"$f":"prof!A149","v":148},{"$f":"prof!C149","v":"محمد1 علي148"}]
[{"$f":"prof!A150","v":149},{"$f":"prof!C150","v":"محمد1 علي149"}]
[{"$f":"prof!A151","v":150},{"$f":"prof!C151","v":"محمد1 علي150"}]
[{"$f":"prof!A152","v":151},{"$f":"prof!C152","v":"محمد1 علي151"}]
[{"$f":"prof!A153","v":152},{"$f":"prof!C153","v":"محمد1 علي152"}]
[{"$f":"prof!A154","v":153},{"$f":"prof!C154","v":"محمد1 علي153"}]
[{"$f":"prof!A155","v":154},{"$f":"prof!C155","v":"محمد1 علي154"}]
[{"$f":"prof!A156","v":155},{"$f":"prof!C156","v":"محمد1 علي155"}]
[{"$f":"prof!A157","v":156},{"$f":"prof!C157","v":"محمد1 علي156"}]
[{"$f":"prof!A158","v":157},{"$f":"prof!C158","v":"محمد1 علي157"}]
[{"$f":"prof!A159","v":158},{"$f":"prof!C159","v":"محمد1 علي158"}]
[{"$f":"prof!A160","v":159},{"$f":"prof!C160","v":"محمد1 علي159"}]
[{"$f":"prof!A161","v":160},{"$f":"prof!C161","v":"محمد1 علي160"}]
[{"$f":"prof!A162","v":161},{"$f":"prof!C162","v":"محمد1 علي161"}]
[{"$f":"prof!A163","v":162},{"$f":"prof!C163","v":"محمد1 علي162"}]
[{"$f":"prof!A164","v":163},{"$f":"prof!C164","v":"محمد1 علي163"}]
[{"$f":"prof!A165","v":164},{"$f":"prof!C165","v":"محمد1 علي164"}]
[{"$f":"prof!A166","v":165},{"$f":"prof!C166","v":"محمد1 علي165"}]
[{"$f":"prof!A167","v":166},{"$f":"prof!C167","v":"محمد1 علي166"}]
[{"$f":"prof!A168","v":167},{"$f":"prof!C168","v":"محمد1 علي167"}]
[{"$f":"prof!A169","v":168},{"$f":"prof!C169","v":"محمد1 علي168"}]
[{"$f":"prof!A170","v":169},{"$f":"prof!C170","v":"محمد1 علي169"}]
[{"$f":"prof!A171","v":170},{"$f":"prof!C171","v":"محمد1 علي170"}]
[{"$f":"prof!A172","v":171},{"$f":"prof!C172","v":"محمد1 علي171"}]
[{"$f":"prof!A173","v":172},{"$f":"prof!C173","v":"محمد1 علي172"}]
[{"$f":"prof!A174","v":173},{"$f":"prof!C174","v":"محمد1 علي173"}]
[{"$f":"prof!A175","v":174},{"$f":"prof!C175","v":"محمد1 علي174"}]
[{"$f":"prof!A176","v":175},{"$f":"prof!C176","v":"محمد1 علي175"}]
[{"$f":"prof!A177","v":176},{"$f":"prof!C177","v":"محمد1 علي176"}]
[{"$f":"prof!A178","v":177},{"$f":"prof!C178","v":"محمد1 علي177"}]
[{"$f":"prof!A179","v":178},{"$f":"prof!C179","v":"محمد1 علي178"}]
[{"$f":"prof!A180","v":179},{"$f":"prof!C180","v":"محمد1 علي179"}]
[{"$f":"prof!A181","v":180},{"$f":"prof!C181","v":"محمد1 علي180"}]
[{"$f":"prof!A182","v":181},{"$f":"prof!C182","v":"محمد1 علي181"}]
[{"$f":"prof!A183","v":182},{"$f":"prof!C183","v":"محمد1 علي182"}]
[{"$f":"prof!A184","v":183},{"$f":"prof!C184","v":"محمد1 علي183"}]
[{"$f":"prof!A185","v":184},{"$f":"prof!C185","v":"محمد1 علي184"}]
[{"$f":"prof!A186","v":185},{"$f":"prof!C186","v":"محمد1 علي185"}]
[{"$f":"prof!A187","v":186},{"$f":"prof!C187","v":"محمد1 علي186"}]
[{"$f":"prof!A188","v":187},{"$f":"prof!C188","v":"محمد1 علي187"}]
[{"$f":"prof!A189","v":188},{"$f":"prof!C189","v":"محمد1 علي188"}]
[{"$f":"prof!A190","v":189},{"$f":"prof!C190","v":"محمد1 علي189"}]
[{"$f":"prof!A191","v":190},{"$f":"prof!C191","v":"محمد1 علي190"}]
[{"$f":"prof!A192","v":191},{"$f":"prof!C192","v":"محمد1 علي191"}]
[{"$f":"prof!A193","v":192},{"$f":"prof!C193","v":"محمد1 علي192"}]
[{"$f":"prof!A194","v":193},{"$f":"prof!C194","v":"محمد1 علي193"}]
[{"$f":"prof!A195","v":194},{"$f":"prof!C195","v":"محمد1 علي194"}]
[{"$f":"prof!A196","v":195},{"$f":"prof!C196","v":"محمد1 علي195"}]
[{"$f":"prof!A197","v":196},{"$f":"prof!C197","v":"محمد1 علي196"}]
[{"$f":"prof!A198","v":197},{"$f":"prof!C198","v":"محمد1 علي197"}]
[{"$f":"prof!A199","v":198},{"$f":"prof!C199","v":"محمد1 علي198"}]
[{"$f":"prof!A200","v":199},{"$f":"prof!C200","v":"محمد1 علي199"}]
[{"$f":"prof!A201","v":200},{"$f":"prof!C201","v":"محمد1 علي200"}]
[{"$f":"prof!A202","v":201},{"$f":"prof!C202","v":"محمد1 علي201"}]
[{"$f":"prof!A203","v":202},{"$f":"prof!C203","v":"محمد1 علي202"}]
[{"$f":"prof!A204","v":203},{"$f":"prof!C204","v":"محمد1 علي203"}]
[{"$f":"prof!A205","v":204},{"$f":"prof!C205","v":"محمد1 علي204"}]
[{"$f":"prof!A206","v":205},{"$f":"prof!C206","v":"محمد1 علي205"}]
[{"$f":"prof!A207","v":206},{"$f":"prof!C207","v":"محمد1 علي206"}]
[{"$f":"prof!A208","v":207},{"$f":"prof!C208","v":"محمد1 علي207"}]
[{"$f":"prof!A209","v":208},{"$f":"prof!C209","v":"محمد1 علي208"}]
[{"$f":"prof!A210","v":209},{"$f":"prof!C210","v":"محمد1 علي209"}]
[{"$f":"prof!A211","v":210},{"$f":"prof!C211","v":"محمد1 علي210"}]
[{"$f":"prof!A212","v":211},{"$f":"prof!C212","v":"محمد1 علي211"}]
[{"$f":"prof!A213","v":212},{"$f":"prof!C213","v":"محمد1 علي212"}]
[{"$f":"prof!A214","v":213},{"$f":"prof!C214","v":"محمد1 علي213"}]
[{"$f":"prof!A215","v":214},{"$f":"prof!C215","v":"محمد1 علي214"}]
[{"$f":"prof!A216","v":215},{"$f":"prof!C216","v":"محمد1 علي215"}]
[{"$f":"prof!A217","v":216},{"$f":"prof!C217","v":"محمد1 علي216"}]
[{"$f":"prof!A218","v":217},{"$f":"prof!C218","v":"محمد1 علي217"}]
[{"$f":"prof!A219","v":218},{"$f":"prof!C219","v":"محمد1 علي218"}]
[{"$f":"prof!A220","v":219},{"$f":"prof!C220","v":"محمد1 علي219"}]
[{"$f":"prof!A221","v":220},{"$f":"prof!C221","v":"محمد1 علي220"}]
[{"$f":"prof!A222","v":221},{"$f":"prof!C222","v":"محمد1 علي221"}]
[{"$f":"prof!A223","v":222},{"$f":"prof!C223","v":"محمد1 علي222"}]
[{"$f":"prof!A224","v":223},{"$f":"prof!C224","v":"محمد1 علي223"}]
[{"$f":"prof!A225","v":224},{"$f":"prof!C225","v":"محمد1 علي224"}]
[{"$f":"prof!A226","v":225},{"$f":"prof!C226","v":"محمد1 علي225"}]
[{"$f":"prof!A227","v":226},{"$f":"prof!C227","v":"محمد1 علي226"}]
[{"$f":"prof!A228","v":227},{"$f":"prof!C228","v":"محمد1 علي227"}]
[{"$f":"prof!A229","v":228},{"$f":"prof!C229","v":"محمد1 علي228"}]
[{"$f":"prof!A230","v":229},{"$f":"prof!C230","v":"محمد1 علي229"}]
[{"$f":"prof!A231","v":230},{"$f":"prof!C231","v":"محمد1 علي230"}]
[{"$f":"prof!A232","v":231},{"$f":"prof!C232","v":"محمد1 علي231"}]
[{"$f":"prof!A233","v":232},{"$f":"prof!C233","v":"محمد1 علي232"}]
[{"$f":"prof!A234","v":233},{"$f":"prof!C234","v":"محمد1 علي233"}]
[{"$f":"prof!A235","v":234},{"$f":"prof!C235","v":"محمد1 علي234"}]
[{"$f":"prof!A236","v":235},{"$f":"prof!C236","v":"محمد1 علي235"}]
[{"$f":"prof!A237","v":236},{"$f":"prof!C237","v":"محمد1 علي236"}]
[{"$f":"prof!A238","v":237},{"$f":"prof!C238","v":"محمد1 علي237"}]
[{"$f":"prof!A239","v":238},{"$f":"prof!C239","v":"محمد1 علي238"}]
[{"$f":"prof!A240","v":239},{"$f":"prof!C240","v":"محمد1 علي239"}]
[{"$f":"prof!A241","v":240},{"$f":"prof!C241","v":"محمد1 علي240"}]
[{"$f":"prof!A242","v":241},{"$f":"prof!C242","v":"محمد1 علي241"}]
[{"$f":"prof!A243","v":242},{"$f":"prof!C243","v":"محمد1 علي242"}]
[{"$f":"prof!A244","v":243},{"$f":"prof!C244","v":"محمد1 علي243"}]
[{"$f":"prof!A245","v":244},{"$f":"prof!C245","v":"محمد1 علي244"}]
[{"$f":"prof!A246","v":245},{"$f":"prof!C246","v":"محمد1 علي245"}]
[{"$f":"prof!A247","v":246},{"$f":"prof!C247","v":"محمد1 علي246"}]
[{"$f":"prof!A248","v":247},{"$f":"prof!C248","v":"محمد1 علي247"}]
[{"$f":"prof!A249","v":248},{"$f":"prof!C249","v":"محمد1 علي248"}]
[{"$f":"prof!A250","v":249},{"$f":"prof!C250","v":"محمد1 علي249"}]
[{"$f":"prof!A251","v":250},{"$f":"prof!C251","v":"محمد1 علي250"}]

{"sheet":"أيام الحراسة","index":4,"n_rows":39,"n_cols":13,"rows_kept":39,"cut":false,"hidden":false,"merged":[[34,0,36,3],[34,4,34,5],[34,8,34,9],[35,4,35,5],[35,8,35,9],[36,4,36,5],[36,8,36,9],[28,6,28,9],[31,1,31,5],[9,6,9,8],[30,1,30,5],[30,6,30,9],[25,1,25,5],[26,1,26,5],[27,1,27,5],[28,1,28,5],[29,1,29,5],[24,1,24,5],[24,6,24,9],[25,6,25,9],[26,6,26,9],[27,6,27,9],[17,1,17,5],[18,1,18,5],[19,1,19,5],[20,1,20,5],[16,6,16,9],[17,6,17,9],[18,6,18,9],[12,1,12,5],[13,1,13,5],[14,1,14,5],[15,1,15,5],[16,1,16,5],[13,10,13,14],[16,10,16,14],[17,10,17,14],[18,10,18,14],[19,10,19,14],[14,6,14,9],[15,6,15,9],[24,10,24,14],[23,10,23,14],[19,6,19,9],[21,6,21,9],[22,6,22,9],[23,6,23,9],[23,1,23,5],[9,0,9,2],[2,0,2,6],[9,3,9,4],[5,2,5,11],[11,10,11,14],[11,6,11,9],[11,1,11,5],[20,6,20,9],[20,10,20,14],[9,11,9,14],[14,10,14,14],[15,10,15,14],[12,10,12,14],[12,6,12,9],[13,6,13,9],[0,0,0,13],[1,0,1,13],[2,8,2,13],[4,8,4,10],[4,0,4,2],[4,3,4,6],[37,0,37,2],[37,4,37,5],[37,8,37,9],[21,10,21,14],[22,10,22,14],[25,10,25,14],[26,10,26,14],[27,10,27,14],[29,6,29,9],[31,6,31,9],[28,10,28,14],[29,10,29,14],[30,10,30,14],[31,10,31,14],[21,1,21,5],[22,1,22,5],[38,10,38,14],[34,12,34,14],[35,12,35,14],[36,12,36,14],[37,12,37,14]]}
["الجمهوريــة الجزائريــة الديمقراطيــة الشعبيــة"]
["وزارة التربيــة الوطنيـة"]
["مديريــة التربيـــة لولايـــة الــــوادي",null,null,null,null,null,null,null,"الديوان الوطني للامتحانات والمسابقات"]
[]
["مركز الإجراء: ",null,null,{"$f":"'بيانات المركز.'!Q9","v":"ثانوية المجتهد - الوادي"},null,null,null,null,"رمز المركز:  ",null,null,{"$f":"'بيانات المركز.'!V7","v":39044}]
[null,null,"إمتحــان شهـادة البكالـــوريا دورة جــــوان 2021"]
[]
[]
[]
["التاريــــخ:",null,null,{"$f":"TODAY()","v":"2021-06-30"},null,null,"اليــــوم الأول",null,null,null,"الفتـــرة:","مسائيـــــة"]
[]
["القاعة","الحـــــارس الأول",null,null,null,null,"الحـــــارس الثانـــي",null,null,null,"الحـــارس الثالـــث"]
[1,{"$f":"IFERROR(VLOOKUP(OFFSET('توزيع الحراس'!$A$1,MATCH($A13,'توزيع الحراس'!$C:$C,0)-1,MATCH($G$10,'توزيع الحراس'!$1:$1,0)+IF($L$10=\"صباحيـــــة\",0,3)+COUNTA($B$12:B$12)-2),prof,3,FALSE),\"\")","v":"محمد1 علي1"},null,null,null,null,{"$f":"IFERROR(VLOOKUP(OFFSET('توزيع الحراس'!$A$1,MATCH($A13,'توزيع الحراس'!$C:$C,0)-1,MATCH($G$10,'توزيع الحراس'!$1:$1,0)+IF($L$10=\"صباحيـــــة\",0,3)+COUNTA($B$12:G$12)-2),prof,3,FALSE),\"\")","v":"محمد1 علي2"},null,null,null,{"$f":"IFERROR(VLOOKUP(OFFSET('توزيع الحراس'!$A$1,MATCH($A13,'توزيع الحراس'!$C:$C,0)-1,MATCH($G$10,'توزيع الحراس'!$1:$1,0)+IF($L$10=\"صباحيـــــة\",0,3)+COUNTA($B$12:K$12)-2),prof,3,FALSE),\"\")","v":"محمد1 علي3"}]
[2,{"$f":"IFERROR(VLOOKUP(OFFSET('توزيع الحراس'!$A$1,MATCH($A14,'توزيع الحراس'!$C:$C,0)-1,MATCH($G$10,'توزيع الحراس'!$1:$1,0)+IF($L$10=\"صباحيـــــة\",0,3)+COUNTA($B$12:B$12)-2),prof,3,FALSE),\"\")","v":""},null,null,null,null,{"$f":"IFERROR(VLOOKUP(OFFSET('توزيع الحراس'!$A$1,MATCH($A14,'توزيع الحراس'!$C:$C,0)-1,MATCH($G$10,'توزيع الحراس'!$1:$1,0)+IF($L$10=\"صباحيـــــة\",0,3)+COUNTA($B$12:G$12)-2),prof,3,FALSE),\"\")","v":""},null,null,null,{"$f":"IFERROR(VLOOKUP(OFFSET('توزيع الحراس'!$A$1,MATCH($A14,'توزيع الحراس'!$C:$C,0)-1,MATCH($G$10,'توزيع الحراس'!$1:$1,0)+IF($L$10=\"صباحيـــــة\",0,3)+COUNTA($B$12:K$12)-2),prof,3,FALSE),\"\")","v":""}]
[3,{"$f":"IFERROR(VLOOKUP(OFFSET('توزيع الحراس'!$A$1,MATCH($A15,'توزيع الحراس'!$C:$C,0)-1,MATCH($G$10,'توزيع الحراس'!$1:$1,0)+IF($L$10=\"صباحيـــــة\",0,3)+COUNTA($B$12:B$12)-2),prof,3,FALSE),\"\")","v":""},null,null,null,null,{"$f":"IFERROR(VLOOKUP(OFFSET('توزيع الحراس'!$A$1,MATCH($A15,'توزيع الحراس'!$C:$C,0)-1,MATCH($G$10,'توزيع الحراس'!$1:$1,0)+IF($L$10=\"صباحيـــــة\",0,3)+COUNTA($B$12:G$12)-2),prof,3,FALSE),\"\")","v":""},null,null,null,{"$f":"IFERROR(VLOOKUP(OFFSET('توزيع الحراس'!$A$1,MATCH($A15,'توزيع الحراس'!$C:$C,0)-1,MATCH($G$10,'توزيع الحراس'!$1:$1,0)+IF($L$10=\"صباحيـــــة\",0,3)+COUNTA($B$12:K$12)-2),prof,3,FALSE),\"\")","v":""}]
[4,{"$f":"IFERROR(VLOOKUP(OFFSET('توزيع الحراس'!$A$1,MATCH($A16,'توزيع الحراس'!$C:$C,0)-1,MATCH($G$10,'توزيع الحراس'!$1:$1,0)+IF($L$10=\"صباحيـــــة\",0,3)+COUNTA($B$12:B$12)-2),prof,3,FALSE),\"\")","v":""},null,null,null,null,{"$f":"IFERROR(VLOOKUP(OFFSET('توزيع الحراس'!$A$1,MATCH($A16,'توزيع الحراس'!$C:$C,0)-1,MATCH($G$10,'توزيع الحراس'!$1:$1,0)+IF($L$10=\"صباحيـــــة\",0,3)+COUNTA($B$12:G$12)-2),prof,3,FALSE),\"\")","v":""},null,null,null,{"$f":"IFERROR(VLOOKUP(OFFSET('توزيع الحراس'!$A$1,MATCH($A16,'توزيع الحراس'!$C:$C,0)-1,MATCH($G$10,'توزيع الحراس'!$1:$1,0)+IF($L$10=\"صباحيـــــة\",0,3)+COUNTA($B$12:K$12)-2),prof,3,FALSE),\"\")","v":""}]
[5,{"$f":"IFERROR(VLOOKUP(OFFSET('توزيع الحراس'!$A$1,MATCH($A17,'توزيع الحراس'!$C:$C,0)-1,MATCH($G$10,'توزيع الحراس'!$1:$1,0)+IF($L$10=\"صباحيـــــة\",0,3)+COUNTA($B$12:B$12)-2),prof,3,FALSE),\"\")","v":""},null,null,null,null,{"$f":"IFERROR(VLOOKUP(OFFSET('توزيع الحراس'!$A$1,MATCH($A17,'توزيع الحراس'!$C:$C,0)-1,MATCH($G$10,'توزيع الحراس'!$1:$1,0)+IF($L$10=\"صباحيـــــة\",0,3)+COUNTA($B$12:G$12)-2),prof,3,FALSE),\"\")","v":""},null,null,null,{"$f":"IFERROR(VLOOKUP(OFFSET('توزيع الحراس'!$A$1,MATCH($A17,'توزيع الحراس'!$C:$C,0)-1,MATCH($G$10,'توزيع الحراس'!$1:$1,0)+IF($L$10=\"صباحيـــــة\",0,3)+COUNTA($B$12:K$12)-2),prof,3,FALSE),\"\")","v":""}]
[6,{"$f":"IFERROR(VLOOKUP(OFFSET('توزيع الحراس'!$A$1,MATCH($A18,'توزيع الحراس'!$C:$C,0)-1,MATCH($G$10,'توزيع الحراس'!$1:$1,0)+IF($L$10=\"صباحيـــــة\",0,3)+COUNTA($B$12:B$12)-2),prof,3,FALSE),\"\")","v":""},null,null,null,null,{"$f":"IFERROR(VLOOKUP(OFFSET('توزيع الحراس'!$A$1,MATCH($A18,'توزيع الحراس'!$C:$C,0)-1,MATCH($G$10,'توزيع الحراس'!$1:$1,0)+IF($L$10=\"صباحيـــــة\",0,3)+COUNTA($B$12:G$12)-2),prof,3,FALSE),\"\")","v":""},null,null,null,{"$f":"IFERROR(VLOOKUP(OFFSET('توزيع الحراس'!$A$1,MATCH($A18,'توزيع الحراس'!$C:$C,0)-1,MATCH($G$10,'توزيع الحراس'!$1:$1,0)+IF($L$10=\"صباحيـــــة\",0,3)+COUNTA($B$12:K$12)-2),prof,3,FALSE),\"\")","v":""}]
[7,{"$f":"IFERROR(VLOOKUP(OFFSET('توزيع الحراس'!$A$1,MATCH($A19,'توزيع الحراس'!$C:$C,0)-1,MATCH($G$10,'توزيع الحراس'!$1:$1,0)+IF($L$10=\"صباحيـــــة\",0,3)+COUNTA($B$12:B$12)-2),prof,3,FALSE),\"\")","v":""},null,null,null,null,{"$f":"IFERROR(VLOOKUP(OFFSET('توزيع الحراس'!$A$1,MATCH($A19,'توزيع الحراس'!$C:$C,0)-1,MATCH($G$10,'توزيع الحراس'!$1:$1,0)+IF($L$10=\"صباحيـــــة\",0,3)+COUNTA($B$12:G$12)-2),prof,3,FALSE),\"\")","v":""},null,null,null,{"$f":"IFERROR(VLOOKUP(OFFSET('توزيع الحراس'!$A$1,MATCH($A19,'توزيع الحراس'!$C:$C,0)-1,MATCH($G$10,'توزيع الحراس'!$1:$1,0)+IF($L$10=\"صباحيـــــة\",0,3)+COUNTA($B$12:K$12)-2),prof,3,FALSE),\"\")","v":""}]
[8,{"$f":"IFERROR(VLOOKUP(OFFSET('توزيع الحراس'!$A$1,MATCH($A20,'توزيع الحراس'!$C:$C,0)-1,MATCH($G$10,'توزيع الحراس'!$1:$1,0)+IF($L$10=\"صباحيـــــة\",0,3)+COUNTA($B$12:B$12)-2),prof,3,FALSE),\"\")","v":""},null,null,null,null,{"$f":"IFERROR(VLOOKUP(OFFSET('توزيع الحراس'!$A$1,MATCH($A20,'توزيع الحراس'!$C:$C,0)-1,MATCH($G$10,'توزيع الحراس'!$1:$1,0)+IF($L$10=\"صباحيـــــة\",0,3)+COUNTA($B$12:G$12)-2),prof,3,FALSE),\"\")","v":""},null,null,null,{"$f":"IFERROR(VLOOKUP(OFFSET('توزيع الحراس'!$A$1,MATCH($A20,'توزيع الحراس'!$C:$C,0)-1,MATCH($G$10,'توزيع الحراس'!$1:$1,0)+IF($L$10=\"صباحيـــــة\",0,3)+COUNTA($B$12:K$12)-2),prof,3,FALSE),\"\")","v":""}]
[9,{"$f":"IFERROR(VLOOKUP(OFFSET('توزيع الحراس'!$A$1,MATCH($A21,'توزيع الحراس'!$C:$C,0)-1,MATCH($G$10,'توزيع الحراس'!$1:$1,0)+IF($L$10=\"صباحيـــــة\",0,3)+COUNTA($B$12:B$12)-2),prof,3,FALSE),\"\")","v":""},null,null,null,null,{"$f":"IFERROR(VLOOKUP(OFFSET('توزيع الحراس'!$A$1,MATCH($A21,'توزيع الحراس'!$C:$C,0)-1,MATCH($G$10,'توزيع الحراس'!$1:$1,0)+IF($L$10=\"صباحيـــــة\",0,3)+COUNTA($B$12:G$12)-2),prof,3,FALSE),\"\")","v":""},null,null,null,{"$f":"IFERROR(VLOOKUP(OFFSET('توزيع الحراس'!$A$1,MATCH($A21,'توزيع الحراس'!$C:$C,0)-1,MATCH($G$10,'توزيع الحراس'!$1:$1,0)+IF($L$10=\"صباحيـــــة\",0,3)+COUNTA($B$12:K$12)-2),prof,3,FALSE),\"\")","v":""}]
[10,{"$f":"IFERROR(VLOOKUP(OFFSET('توزيع الحراس'!$A$1,MATCH($A22,'توزيع الحراس'!$C:$C,0)-1,MATCH($G$10,'توزيع الحراس'!$1:$1,0)+IF($L$10=\"صباحيـــــة\",0,3)+COUNTA($B$12:B$12)-2),prof,3,FALSE),\"\")","v":""},null,null,null,null,{"$f":"IFERROR(VLOOKUP(OFFSET('توزيع الحراس'!$A$1,MATCH($A22,'توزيع الحراس'!$C:$C,0)-1,MATCH($G$10,'توزيع الحراس'!$1:$1,0)+IF($L$10=\"صباحيـــــة\",0,3)+COUNTA($B$12:G$12)-2),prof,3,FALSE),\"\")","v":""},null,null,null,{"$f":"IFERROR(VLOOKUP(OFFSET('توزيع الحراس'!$A$1,MATCH($A22,'توزيع الحراس'!$C:$C,0)-1,MATCH($G$10,'توزيع الحراس'!$1:$1,0)+IF($L$10=\"صباحيـــــة\",0,3)+COUNTA($B$12:K$12)-2),prof,3,FALSE),\"\")","v":""}]
[11,{"$f":"IFERROR(VLOOKUP(OFFSET('توزيع الحراس'!$A$1,MATCH($A23,'توزيع الحراس'!$C:$C,0)-1,MATCH($G$10,'توزيع الحراس'!$1:$1,0)+IF($L$10=\"صباحيـــــة\",0,3)+COUNTA($B$12:B$12)-2),prof,3,FALSE),\"\")","v":""},null,null,null,null,{"$f":"IFERROR(VLOOKUP(OFFSET('توزيع الحراس'!$A$1,MATCH($A23,'توزيع الحراس'!$C:$C,0)-1,MATCH($G$10,'توزيع الحراس'!$1:$1,0)+IF($L$10=\"صباحيـــــة\",0,3)+COUNTA($B$12:G$12)-2),prof,3,FALSE),\"\")","v":""},null,null,null,{"$f":"IFERROR(VLOOKUP(OFFSET('توزيع الحراس'!$A$1,MATCH($A23,'توزيع الحراس'!$C:$C,0)-1,MATCH($G$10,'توزيع الحراس'!$1:$1,0)+IF($L$10=\"صباحيـــــة\",0,3)+COUNTA($B$12:K$12)-2),prof,3,FALSE),\"\")","v":""}]
[12,{"$f":"IFERROR(VLOOKUP(OFFSET('توزيع الحراس'!$A$1,MATCH($A24,'توزيع الحراس'!$C:$C,0)-1,MATCH($G$10,'توزيع الحراس'!$1:$1,0)+IF($L$10=\"صباحيـــــة\",0,3)+COUNTA($B$12:B$12)-2),prof,3,FALSE),\"\")","v":""},null,null,null,null,{"$f":"IFERROR(VLOOKUP(OFFSET('توزيع الحراس'!$A$1,MATCH($A24,'توزيع الحراس'!$C:$C,0)-1,MATCH($G$10,'توزيع الحراس'!$1:$1,0)+IF($L$10=\"صباحيـــــة\",0,3)+COUNTA($B$12:G$12)-2),prof,3,FALSE),\"\")","v":""},null,null,null,{"$f":"IFERROR(VLOOKUP(OFFSET('توزيع الحراس'!$A$1,MATCH($A24,'توزيع الحراس'!$C:$C,0)-1,MATCH($G$10,'توزيع الحراس'!$1:$1,0)+IF($L$10=\"صباحيـــــة\",0,3)+COUNTA($B$12:K$12)-2),prof,3,FALSE),\"\")","v":""}]
[13,{"$f":"IFERROR(VLOOKUP(OFFSET('توزيع الحراس'!$A$1,MATCH($A25,'توزيع الحراس'!$C:$C,0)-1,MATCH($G$10,'توزيع الحراس'!$1:$1,0)+IF($L$10=\"صباحيـــــة\",0,3)+COUNTA($B$12:B$12)-2),prof,3,FALSE),\"\")","v":""},null,null,null,null,{"$f":"IFERROR(VLOOKUP(OFFSET('توزيع الحراس'!$A$1,MATCH($A25,'توزيع الحراس'!$C:$C,0)-1,MATCH($G$10,'توزيع الحراس'!$1:$1,0)+IF($L$10=\"صباحيـــــة\",0,3)+COUNTA($B$12:G$12)-2),prof,3,FALSE),\"\")","v":""},null,null,null,{"$f":"IFERROR(VLOOKUP(OFFSET('توزيع الحراس'!$A$1,MATCH($A25,'توزيع الحراس'!$C:$C,0)-1,MATCH($G$10,'توزيع الحراس'!$1:$1,0)+IF($L$10=\"صباحيـــــة\",0,3)+COUNTA($B$12:K$12)-2),prof,3,FALSE),\"\")","v":""}]
[14,{"$f":"IFERROR(VLOOKUP(OFFSET('توزيع الحراس'!$A$1,MATCH($A26,'توزيع الحراس'!$C:$C,0)-1,MATCH($G$10,'توزيع الحراس'!$1:$1,0)+IF($L$10=\"صباحيـــــة\",0,3)+COUNTA($B$12:B$12)-2),prof,3,FALSE),\"\")","v":""},null,null,null,null,{"$f":"IFERROR(VLOOKUP(OFFSET('توزيع الحراس'!$A$1,MATCH($A26,'توزيع الحراس'!$C:$C,0)-1,MATCH($G$10,'توزيع الحراس'!$1:$1,0)+IF($L$10=\"صباحيـــــة\",0,3)+COUNTA($B$12:G$12)-2),prof,3,FALSE),\"\")","v":""},null,null,null,{"$f":"IFERROR(VLOOKUP(OFFSET('توزيع الحراس'!$A$1,MATCH($A26,'توزيع الحراس'!$C:$C,0)-1,MATCH($G$10,'توزيع الحراس'!$1:$1,0)+IF($L$10=\"صباحيـــــة\",0,3)+COUNTA($B$12:K$12)-2),prof,3,FALSE),\"\")","v":""}]
[15,{"$f":"IFERROR(VLOOKUP(OFFSET('توزيع الحراس'!$A$1,MATCH($A27,'توزيع الحراس'!$C:$C,0)-1,MATCH($G$10,'توزيع الحراس'!$1:$1,0)+IF($L$10=\"صباحيـــــة\",0,3)+COUNTA($B$12:B$12)-2),prof,3,FALSE),\"\")","v":""},null,null,null,null,{"$f":"IFERROR(VLOOKUP(OFFSET('توزيع الحراس'!$A$1,MATCH($A27,'توزيع الحراس'!$C:$C,0)-1,MATCH($G$10,'توزيع الحراس'!$1:$1,0)+IF($L$10=\"صباحيـــــة\",0,3)+COUNTA($B$12:G$12)-2),prof,3,FALSE),\"\")","v":""},null,null,null,{"$f":"IFERROR(VLOOKUP(OFFSET('توزيع الحراس'!$A$1,MATCH($A27,'توزيع الحراس'!$C:$C,0)-1,MATCH($G$10,'توزيع الحراس'!$1:$1,0)+IF($L$10=\"صباحيـــــة\",0,3)+COUNTA($B$12:K$12)-2),prof,3,FALSE),\"\")","v":""}]
[16,{"$f":"IFERROR(VLOOKUP(OFFSET('توزيع الحراس'!$A$1,MATCH($A28,'توزيع الحراس'!$C:$C,0)-1,MATCH($G$10,'توزيع الحراس'!$1:$1,0)+IF($L$10=\"صباحيـــــة\",0,3)+COUNTA($B$12:B$12)-2),prof,3,FALSE),\"\")","v":""},null,null,null,null,{"$f":"IFERROR(VLOOKUP(OFFSET('توزيع الحراس'!$A$1,MATCH($A28,'توزيع الحراس'!$C:$C,0)-1,MATCH($G$10,'توزيع الحراس'!$1:$1,0)+IF($L$10=\"صباحيـــــة\",0,3)+COUNTA($B$12:G$12)-2),prof,3,FALSE),\"\")","v":""},null,null,null,{"$f":"IFERROR(VLOOKUP(OFFSET('توزيع الحراس'!$A$1,MATCH($A28,'توزيع الحراس'!$C:$C,0)-1,MATCH($G$10,'توزيع الحراس'!$1:$1,0)+IF($L$10=\"صباحيـــــة\",0,3)+COUNTA($B$12:K$12)-2),prof,3,FALSE),\"\")","v":""}]
[17,{"$f":"IFERROR(VLOOKUP(OFFSET('توزيع الحراس'!$A$1,MATCH($A29,'توزيع الحراس'!$C:$C,0)-1,MATCH($G$10,'توزيع الحراس'!$1:$1,0)+IF($L$10=\"صباحيـــــة\",0,3)+COUNTA($B$12:B$12)-2),prof,3,FALSE),\"\")","v":""},null,null,null,null,{"$f":"IFERROR(VLOOKUP(OFFSET('توزيع الحراس'!$A$1,MATCH($A29,'توزيع الحراس'!$C:$C,0)-1,MATCH($G$10,'توزيع الحراس'!$1:$1,0)+IF($L$10=\"صباحيـــــة\",0,3)+COUNTA($B$12:G$12)-2),prof,3,FALSE),\"\")","v":""},null,null,null,{"$f":"IFERROR(VLOOKUP(OFFSET('توزيع الحراس'!$A$1,MATCH($A29,'توزيع الحراس'!$C:$C,0)-1,MATCH($G$10,'توزيع الحراس'!$1:$1,0)+IF($L$10=\"صباحيـــــة\",0,3)+COUNTA($B$12:K$12)-2),prof,3,FALSE),\"\")","v":""}]
[18,{"$f":"IFERROR(VLOOKUP(OFFSET('توزيع الحراس'!$A$1,MATCH($A30,'توزيع الحراس'!$C:$C,0)-1,MATCH($G$10,'توزيع الحراس'!$1:$1,0)+IF($L$10=\"صباحيـــــة\",0,3)+COUNTA($B$12:B$12)-2),prof,3,FALSE),\"\")","v":""},null,null,null,null,{"$f":"IFERROR(VLOOKUP(OFFSET('توزيع الحراس'!$A$1,MATCH($A30,'توزيع الحراس'!$C:$C,0)-1,MATCH($G$10,'توزيع الحراس'!$1:$1,0)+IF($L$10=\"صباحيـــــة\",0,3)+COUNTA($B$12:G$12)-2),prof,3,FALSE),\"\")","v":""},null,null,null,{"$f":"IFERROR(VLOOKUP(OFFSET('توزيع الحراس'!$A$1,MATCH($A30,'توزيع الحراس'!$C:$C,0)-1,MATCH($G$10,'توزيع الحراس'!$1:$1,0)+IF($L$10=\"صباحيـــــة\",0,3)+COUNTA($B$12:K$12)-2),prof,3,FALSE),\"\")","v":""}]
[19,{"$f":"IFERROR(VLOOKUP(OFFSET('توزيع الحراس'!$A$1,MATCH($A31,'توزيع الحراس'!$C:$C,0)-1,MATCH($G$10,'توزيع الحراس'!$1:$1,0)+IF($L$10=\"صباحيـــــة\",0,3)+COUNTA($B$12:B$12)-2),prof,3,FALSE),\"\")","v":""},null,null,null,null,{"$f":"IFERROR(VLOOKUP(OFFSET('توزيع الحراس'!$A$1,MATCH($A31,'توزيع الحراس'!$C:$C,0)-1,MATCH($G$10,'توزيع الحراس'!$1:$1,0)+IF($L$10=\"صباحيـــــة\",0,3)+COUNTA($B$12:G$12)-2),prof,3,FALSE),\"\")","v":""},null,null,null,{"$f":"IFERROR(VLOOKUP(OFFSET('توزيع الحراس'!$A$1,MATCH($A31,'توزيع الحراس'!$C:$C,0)-1,MATCH($G$10,'توزيع الحراس'!$1:$1,0)+IF($L$10=\"صباحيـــــة\",0,3)+COUNTA($B$12:K$12)-2),prof,3,FALSE),\"\")","v":""}]
[20,{"$f":"IFERROR(VLOOKUP(OFFSET('توزيع الحراس'!$A$1,MATCH($A32,'توزيع الحراس'!$C:$C,0)-1,MATCH($G$10,'توزيع الحراس'!$1:$1,0)+IF($L$10=\"صباحيـــــة\",0,3)+COUNTA($B$12:B$12)-2),prof,3,FALSE),\"\")","v":""},null,null,null,null,{"$f":"IFERROR(VLOOKUP(OFFSET('توزيع الحراس'!$A$1,MATCH($A32,'توزيع الحراس'!$C:$C,0)-1,MATCH($G$10,'توزيع الحراس'!$1:$1,0)+IF($L$10=\"صباحيـــــة\",0,3)+COUNTA($B$12:G$12)-2),prof,3,FALSE),\"\")","v":""},null,null,null,{"$f":"IFERROR(VLOOKUP(OFFSET('توزيع الحراس'!$A$1,MATCH($A32,'توزيع الحراس'!$C:$C,0)-1,MATCH($G$10,'توزيع الحراس'!$1:$1,0)+IF($L$10=\"صباحيـــــة\",0,3)+COUNTA($B$12:K$12)-2),prof,3,FALSE),\"\")","v":""}]
[]
[]
["الحـــراس الإحتياطيــون:",null,null,null,{"$f":"'توزيع الحراس'!D34","v":0},null,{"$f":"'توزيع الحراس'!E34","v":0},{"$f":"'توزيع الحراس'!F34","v":0},{"$f":"'توزيع الحراس'!D38","v":0},null,{"$f":"'توزيع الحراس'!E38","v":0},{"$f":"'توزيع الحراس'!F38","v":0},{"$f":"'توزيع الحراس'!D42","v":0}]
[null,null,null,null,{"$f":"'توزيع الحراس'!D35","v":0},null,{"$f":"'توزيع الحراس'!E35","v":0},{"$f":"'توزيع الحراس'!F35","v":0},{"$f":"'توزيع الحراس'!D39","v":0},null,{"$f":"'توزيع الحراس'!E39","v":0},{"$f":"'توزيع الحراس'!F39","v":0},{"$f":"'توزيع الحراس'!E42","v":0}]
[null,null,null,null,{"$f":"'توزيع الحراس'!D36","v":0},null,{"$f":"'توزيع الحراس'!E36","v":0},{"$f":"'توزيع الحراس'!F36","v":0},{"$f":"'توزيع الحراس'!D40","v":0},null,{"$f":"'توزيع الحراس'!E40","v":0},{"$f":"'توزيع الحراس'!F40","v":0},{"$f":"'توزيع الحراس'!F42","v":0}]
["المجمـــــوع",null,null,{"$f":"COUNTA(E35:O38)","v":28},{"$f":"'توزيع الحراس'!D37","v":0},null,{"$f":"'توزيع الحراس'!E37","v":0},{"$f":"'توزيع الحراس'!F37","v":0},{"$f":"'توزيع الحراس'!D41","v":0},null,{"$f":"'توزيع الحراس'!E41","v":0},{"$f":"'توزيع الحراس'!F41","v":0},{"$f":"'توزيع الحراس'!D43","v":0}]
[null,null,null,null,null,null,null,null,null,null,{"$f":"'بيانات المركز.'!V11","v":"مصطفى مصطفى"}]